Workbook

Sheet Cover
G1: FPL 002314
G2: 20170235-EI
C11: Economic Decision Making Model
C12: =Assumptions!D9 -> Vero Beach
C29: Author:

Sheet SRB-2 Exhibit
F1: FPL 002315
F2: 20170235-EI
E8: COVB Transaction
E9: Summary of Economic Analysis
K10: Nominal Total | L10: 30 Year CPVRR | N10: 2018 | O10: =N10+1 -> 2019 | P10: 2020 | Q10: 2021 | R10: 2022 | S10: 2023 | T10: 2024 | U10: 2025 | V10: 2026 | W10: 2027 | X10: 2028 | Y10: 2029 | Z10: 2030 | AA10: 2031 | AB10: 2032 | AC10: 2033 | AD10: 2034 | AE10: 2035 | AF10: 2036 | AG10: 2037 | AH10: 2038 | AI10: 2039 | AJ10: 2040 | AK10: 2041 | AL10: 2042 | AM10: 2043 | AN10: 2044 | AO10: 2045 | AP10: 2046 | AQ10: 2047 | AR10: 2048 | AT10: 2029-2048
E11: Discount Factor | N11: ='Revenue Requirement'!P14 -> 0.9634216422 | O11: ='Revenue Requirement'!Q14 -> 0.8942299144 | P11: ='Revenue Requirement'!R14 -> 0.8296676343 | Q11: ='Revenue Requirement'!S14 -> 0.7699242942 | R11: ='Revenue Requirement'!T14 -> 0.7144829982 | S11: ='Revenue Requirement'!U14 -> 0.6630339613 | T11: ='Revenue Requirement'!V14 -> 0.6151637395 | U11: ='Revenue Requirement'!W14 -> 0.5708665595 | V11: ='Revenue Requirement'!X14 -> 0.5297591647 | W11: ='Revenue Requirement'!Y14 -> 0.4916118626 | X11: ='Revenue Requirement'!Z14 -> 0.4561181017 | Y11: ='Revenue Requirement'!AA14 -> 0.4232736014 | Z11: ='Revenue Requirement'!AB14 -> 0.3927941929 | AA11: ='Revenue Requirement'!AC14 -> 0.3645095689 | AB11: ='Revenue Requirement'!AD14 -> 0.3381924345 | AC11: ='Revenue Requirement'!AE14 -> 0.3138396156 | AD11: ='Revenue Requirement'!AF14 -> 0.2912404131 | AE11: ='Revenue Requirement'!AG14 -> 0.2702685512 | AF11: ='Revenue Requirement'!AH14 -> 0.2507555002 | AG11: ='Revenue Requirement'!AI14 -> 0.2326989068 | AH11: ='Revenue Requirement'!AJ14 -> 0.2159425464 | AI11: ='Revenue Requirement'!AK14 -> 0.2003927907 | AJ11: ='Revenue Requirement'!AL14 -> 0.1859246822 | AK11: ='Revenue Requirement'!AM14 -> 0.1725364758 | AL11: ='Revenue Requirement'!AN14 -> 0.1601123376 | AM11: ='Revenue Requirement'!AO14 -> 0.1485828462 | AN11: ='Revenue Requirement'!AP14 -> 0.1378553508 | AO11: ='Revenue Requirement'!AQ14 -> 0.1279285575 | AP11: ='Revenue Requirement'!AR14 -> 0.1187165803 | AQ11: ='Revenue Requirement'!AS14 -> 0.1101679462 | AR11: ='Revenue Requirement'!AT14 -> 0.1022139584
E13: Base Rates: Incremental Revenue Requirements(1)
E14: Operations and Maintenance(2) | H14: Base | K14: =SUM(N14:AR14) -> 157.2962644 | L14: =SUMPRODUCT($N14:$AR14,$N$11:$AR$11) -> 57.61863245 | N14: =SUMPRODUCT(('Revenue Requirement'!$P$154:$BN$178),N('Revenue Requirement'!$A$154:$A$178='SRB-2 Exhibit'!$H14)*N('Revenue Requirement'!$P$11:$BN$11='SRB-2 Exhibit'!N$10))/1000 -> 1.69798197 | O14: =SUMPRODUCT(('Revenue Requirement'!$P$154:$BN$178),N('Revenue Requirement'!$A$154:$A$178='SRB-2 Exhibit'!$H14)*N('Revenue Requirement'!$P$11:$BN$11='SRB-2 Exhibit'!O$10))/1000 -> 6.350487835 | P14: =SUMPRODUCT(('Revenue Requirement'!$P$154:$BN$178),N('Revenue Requirement'!$A$154:$A$178='SRB-2 Exhibit'!$H14)*N('Revenue Requirement'!$P$11:$BN$11='SRB-2 Exhibit'!P$10))/1000 -> 10.0288162 | Q14: =SUMPRODUCT(('Revenue Requirement'!$P$154:$BN$178),N('Revenue Requirement'!$A$154:$A$178='SRB-2 Exhibit'!$H14)*N('Revenue Requirement'!$P$11:$BN$11='SRB-2 Exhibit'!Q$10))/1000 -> 4.180470142 | R14: =SUMPRODUCT(('Revenue Requirement'!$P$154:$BN$178),N('Revenue Requirement'!$A$154:$A$178='SRB-2 Exhibit'!$H14)*N('Revenue Requirement'!$P$11:$BN$11='SRB-2 Exhibit'!R$10))/1000 -> 4.128454076 | S14: =SUMPRODUCT(('Revenue Requirement'!$P$154:$BN$178),N('Revenue Requirement'!$A$154:$A$178='SRB-2 Exhibit'!$H14)*N('Revenue Requirement'!$P$11:$BN$11='SRB-2 Exhibit'!S$10))/1000 -> 3.833956964 | T14: =SUMPRODUCT(('Revenue Requirement'!$P$154:$BN$178),N('Revenue Requirement'!$A$154:$A$178='SRB-2 Exhibit'!$H14)*N('Revenue Requirement'!$P$11:$BN$11='SRB-2 Exhibit'!T$10))/1000 -> 3.621858222 | U14: =SUMPRODUCT(('Revenue Requirement'!$P$154:$BN$178),N('Revenue Requirement'!$A$154:$A$178='SRB-2 Exhibit'!$H14)*N('Revenue Requirement'!$P$11:$BN$11='SRB-2 Exhibit'!U$10))/1000 -> 3.796928234 | V14: =SUMPRODUCT(('Revenue Requirement'!$P$154:$BN$178),N('Revenue Requirement'!$A$154:$A$178='SRB-2 Exhibit'!$H14)*N('Revenue Requirement'!$P$11:$BN$11='SRB-2 Exhibit'!V$10))/1000 -> 3.82719696 | W14: =SUMPRODUCT(('Revenue Requirement'!$P$154:$BN$178),N('Revenue Requirement'!$A$154:$A$178='SRB-2 Exhibit'!$H14)*N('Revenue Requirement'!$P$11:$BN$11='SRB-2 Exhibit'!W$10))/1000 -> 3.926748527 | X14: =SUMPRODUCT(('Revenue Requirement'!$P$154:$BN$178),N('Revenue Requirement'!$A$154:$A$178='SRB-2 Exhibit'!$H14)*N('Revenue Requirement'!$P$11:$BN$11='SRB-2 Exhibit'!X$10))/1000 -> 4.034273898 | Y14: =SUMPRODUCT(('Revenue Requirement'!$P$154:$BN$178),N('Revenue Requirement'!$A$154:$A$178='SRB-2 Exhibit'!$H14)*N('Revenue Requirement'!$P$11:$BN$11='SRB-2 Exhibit'!Y$10))/1000 -> 4.146582517 | Z14: =SUMPRODUCT(('Revenue Requirement'!$P$154:$BN$178),N('Revenue Requirement'!$A$154:$A$178='SRB-2 Exhibit'!$H14)*N('Revenue Requirement'!$P$11:$BN$11='SRB-2 Exhibit'!Z$10))/1000 -> 4.262100145 | AA14: =SUMPRODUCT(('Revenue Requirement'!$P$154:$BN$178),N('Revenue Requirement'!$A$154:$A$178='SRB-2 Exhibit'!$H14)*N('Revenue Requirement'!$P$11:$BN$11='SRB-2 Exhibit'!AA$10))/1000 -> 4.380921051 | AB14: =SUMPRODUCT(('Revenue Requirement'!$P$154:$BN$178),N('Revenue Requirement'!$A$154:$A$178='SRB-2 Exhibit'!$H14)*N('Revenue Requirement'!$P$11:$BN$11='SRB-2 Exhibit'!AB$10))/1000 -> 4.50314235 | AC14: =SUMPRODUCT(('Revenue Requirement'!$P$154:$BN$178),N('Revenue Requirement'!$A$154:$A$178='SRB-2 Exhibit'!$H14)*N('Revenue Requirement'!$P$11:$BN$11='SRB-2 Exhibit'!AC$10))/1000 -> 4.628864096 | AD14: =SUMPRODUCT(('Revenue Requirement'!$P$154:$BN$178),N('Revenue Requirement'!$A$154:$A$178='SRB-2 Exhibit'!$H14)*N('Revenue Requirement'!$P$11:$BN$11='SRB-2 Exhibit'!AD$10))/1000 -> 4.758189369 | AE14: =SUMPRODUCT(('Revenue Requirement'!$P$154:$BN$178),N('Revenue Requirement'!$A$154:$A$178='SRB-2 Exhibit'!$H14)*N('Revenue Requirement'!$P$11:$BN$11='SRB-2 Exhibit'!AE$10))/1000 -> 4.891224369 | AF14: =SUMPRODUCT(('Revenue Requirement'!$P$154:$BN$178),N('Revenue Requirement'!$A$154:$A$178='SRB-2 Exhibit'!$H14)*N('Revenue Requirement'!$P$11:$BN$11='SRB-2 Exhibit'!AF$10))/1000 -> 5.028078516 | AG14: =SUMPRODUCT(('Revenue Requirement'!$P$154:$BN$178),N('Revenue Requirement'!$A$154:$A$178='SRB-2 Exhibit'!$H14)*N('Revenue Requirement'!$P$11:$BN$11='SRB-2 Exhibit'!AG$10))/1000 -> 5.168864549 | AH14: =SUMPRODUCT(('Revenue Requirement'!$P$154:$BN$178),N('Revenue Requirement'!$A$154:$A$178='SRB-2 Exhibit'!$H14)*N('Revenue Requirement'!$P$11:$BN$11='SRB-2 Exhibit'!AH$10))/1000 -> 5.313698628 | AI14: =SUMPRODUCT(('Revenue Requirement'!$P$154:$BN$178),N('Revenue Requirement'!$A$154:$A$178='SRB-2 Exhibit'!$H14)*N('Revenue Requirement'!$P$11:$BN$11='SRB-2 Exhibit'!AI$10))/1000 -> 5.462700441 | AJ14: =SUMPRODUCT(('Revenue Requirement'!$P$154:$BN$178),N('Revenue Requirement'!$A$154:$A$178='SRB-2 Exhibit'!$H14)*N('Revenue Requirement'!$P$11:$BN$11='SRB-2 Exhibit'!AJ$10))/1000 -> 5.488377109 | AK14: =SUMPRODUCT(('Revenue Requirement'!$P$154:$BN$178),N('Revenue Requirement'!$A$154:$A$178='SRB-2 Exhibit'!$H14)*N('Revenue Requirement'!$P$11:$BN$11='SRB-2 Exhibit'!AK$10))/1000 -> 5.64225964 | AL14: =SUMPRODUCT(('Revenue Requirement'!$P$154:$BN$178),N('Revenue Requirement'!$A$154:$A$178='SRB-2 Exhibit'!$H14)*N('Revenue Requirement'!$P$11:$BN$11='SRB-2 Exhibit'!AL$10))/1000 -> 5.800576407 | AM14: =SUMPRODUCT(('Revenue Requirement'!$P$154:$BN$178),N('Revenue Requirement'!$A$154:$A$178='SRB-2 Exhibit'!$H14)*N('Revenue Requirement'!$P$11:$BN$11='SRB-2 Exhibit'!AM$10))/1000 -> 5.963458905 | AN14: =SUMPRODUCT(('Revenue Requirement'!$P$154:$BN$178),N('Revenue Requirement'!$A$154:$A$178='SRB-2 Exhibit'!$H14)*N('Revenue Requirement'!$P$11:$BN$11='SRB-2 Exhibit'!AN$10))/1000 -> 6.131042637 | AO14: =SUMPRODUCT(('Revenue Requirement'!$P$154:$BN$178),N('Revenue Requirement'!$A$154:$A$178='SRB-2 Exhibit'!$H14)*N('Revenue Requirement'!$P$11:$BN$11='SRB-2 Exhibit'!AO$10))/1000 -> 6.303467248 | AP14: =SUMPRODUCT(('Revenue Requirement'!$P$154:$BN$178),N('Revenue Requirement'!$A$154:$A$178='SRB-2 Exhibit'!$H14)*N('Revenue Requirement'!$P$11:$BN$11='SRB-2 Exhibit'!AP$10))/1000 -> 6.480876647 | AQ14: =SUMPRODUCT(('Revenue Requirement'!$P$154:$BN$178),N('Revenue Requirement'!$A$154:$A$178='SRB-2 Exhibit'!$H14)*N('Revenue Requirement'!$P$11:$BN$11='SRB-2 Exhibit'!AQ$10))/1000 -> 6.663419146 | AR14: =SUMPRODUCT(('Revenue Requirement'!$P$154:$BN$178),N('Revenue Requirement'!$A$154:$A$178='SRB-2 Exhibit'!$H14)*N('Revenue Requirement'!$P$11:$BN$11='SRB-2 Exhibit'!AR$10))/1000 -> 6.851247594 | AT14: =SUM(Y14:AR14) -> 107.8690914
E15: Property Tax and Insurance | H15: Base | K15: =SUM(N15:AR15) -> 104.9651652 | L15: 31.48681094 | N15: =SUMPRODUCT(('Revenue Requirement'!$P$954:$BN$978),N('Revenue Requirement'!$A$954:$A$978='SRB-2 Exhibit'!$H15)*N('Revenue Requirement'!$P$11:$BN$11='SRB-2 Exhibit'!N$10))/1000 -> 0.1395599023 | O15: =SUMPRODUCT(('Revenue Requirement'!$P$954:$BN$978),N('Revenue Requirement'!$A$954:$A$978='SRB-2 Exhibit'!$H15)*N('Revenue Requirement'!$P$11:$BN$11='SRB-2 Exhibit'!O$10))/1000 -> 1.421812826 | P15: =SUMPRODUCT(('Revenue Requirement'!$P$954:$BN$978),N('Revenue Requirement'!$A$954:$A$978='SRB-2 Exhibit'!$H15)*N('Revenue Requirement'!$P$11:$BN$11='SRB-2 Exhibit'!P$10))/1000 -> 1.671448168 | Q15: =SUMPRODUCT(('Revenue Requirement'!$P$954:$BN$978),N('Revenue Requirement'!$A$954:$A$978='SRB-2 Exhibit'!$H15)*N('Revenue Requirement'!$P$11:$BN$11='SRB-2 Exhibit'!Q$10))/1000 -> 1.830778373 | R15: =SUMPRODUCT(('Revenue Requirement'!$P$954:$BN$978),N('Revenue Requirement'!$A$954:$A$978='SRB-2 Exhibit'!$H15)*N('Revenue Requirement'!$P$11:$BN$11='SRB-2 Exhibit'!R$10))/1000 -> 1.972911758 | S15: =SUMPRODUCT(('Revenue Requirement'!$P$954:$BN$978),N('Revenue Requirement'!$A$954:$A$978='SRB-2 Exhibit'!$H15)*N('Revenue Requirement'!$P$11:$BN$11='SRB-2 Exhibit'!S$10))/1000 -> 2.181420862 | T15: =SUMPRODUCT(('Revenue Requirement'!$P$954:$BN$978),N('Revenue Requirement'!$A$954:$A$978='SRB-2 Exhibit'!$H15)*N('Revenue Requirement'!$P$11:$BN$11='SRB-2 Exhibit'!T$10))/1000 -> 2.304651881 | U15: =SUMPRODUCT(('Revenue Requirement'!$P$954:$BN$978),N('Revenue Requirement'!$A$954:$A$978='SRB-2 Exhibit'!$H15)*N('Revenue Requirement'!$P$11:$BN$11='SRB-2 Exhibit'!U$10))/1000 -> 2.416354707 | V15: =SUMPRODUCT(('Revenue Requirement'!$P$954:$BN$978),N('Revenue Requirement'!$A$954:$A$978='SRB-2 Exhibit'!$H15)*N('Revenue Requirement'!$P$11:$BN$11='SRB-2 Exhibit'!V$10))/1000 -> 2.558924044 | W15: =SUMPRODUCT(('Revenue Requirement'!$P$954:$BN$978),N('Revenue Requirement'!$A$954:$A$978='SRB-2 Exhibit'!$H15)*N('Revenue Requirement'!$P$11:$BN$11='SRB-2 Exhibit'!W$10))/1000 -> 2.701026098 | X15: =SUMPRODUCT(('Revenue Requirement'!$P$954:$BN$978),N('Revenue Requirement'!$A$954:$A$978='SRB-2 Exhibit'!$H15)*N('Revenue Requirement'!$P$11:$BN$11='SRB-2 Exhibit'!X$10))/1000 -> 2.830723977 | Y15: =SUMPRODUCT(('Revenue Requirement'!$P$954:$BN$978),N('Revenue Requirement'!$A$954:$A$978='SRB-2 Exhibit'!$H15)*N('Revenue Requirement'!$P$11:$BN$11='SRB-2 Exhibit'!Y$10))/1000 -> 2.961499561 | Z15: =SUMPRODUCT(('Revenue Requirement'!$P$954:$BN$978),N('Revenue Requirement'!$A$954:$A$978='SRB-2 Exhibit'!$H15)*N('Revenue Requirement'!$P$11:$BN$11='SRB-2 Exhibit'!Z$10))/1000 -> 3.094685441 | AA15: =SUMPRODUCT(('Revenue Requirement'!$P$954:$BN$978),N('Revenue Requirement'!$A$954:$A$978='SRB-2 Exhibit'!$H15)*N('Revenue Requirement'!$P$11:$BN$11='SRB-2 Exhibit'!AA$10))/1000 -> 3.230695481 | AB15: =SUMPRODUCT(('Revenue Requirement'!$P$954:$BN$978),N('Revenue Requirement'!$A$954:$A$978='SRB-2 Exhibit'!$H15)*N('Revenue Requirement'!$P$11:$BN$11='SRB-2 Exhibit'!AB$10))/1000 -> 3.367890247 | AC15: =SUMPRODUCT(('Revenue Requirement'!$P$954:$BN$978),N('Revenue Requirement'!$A$954:$A$978='SRB-2 Exhibit'!$H15)*N('Revenue Requirement'!$P$11:$BN$11='SRB-2 Exhibit'!AC$10))/1000 -> 3.506307752 | AD15: =SUMPRODUCT(('Revenue Requirement'!$P$954:$BN$978),N('Revenue Requirement'!$A$954:$A$978='SRB-2 Exhibit'!$H15)*N('Revenue Requirement'!$P$11:$BN$11='SRB-2 Exhibit'!AD$10))/1000 -> 3.647889573 | AE15: =SUMPRODUCT(('Revenue Requirement'!$P$954:$BN$978),N('Revenue Requirement'!$A$954:$A$978='SRB-2 Exhibit'!$H15)*N('Revenue Requirement'!$P$11:$BN$11='SRB-2 Exhibit'!AE$10))/1000 -> 3.794352057 | AF15: =SUMPRODUCT(('Revenue Requirement'!$P$954:$BN$978),N('Revenue Requirement'!$A$954:$A$978='SRB-2 Exhibit'!$H15)*N('Revenue Requirement'!$P$11:$BN$11='SRB-2 Exhibit'!AF$10))/1000 -> 3.94331538 | AG15: =SUMPRODUCT(('Revenue Requirement'!$P$954:$BN$978),N('Revenue Requirement'!$A$954:$A$978='SRB-2 Exhibit'!$H15)*N('Revenue Requirement'!$P$11:$BN$11='SRB-2 Exhibit'!AG$10))/1000 -> 4.093666271 | AH15: =SUMPRODUCT(('Revenue Requirement'!$P$954:$BN$978),N('Revenue Requirement'!$A$954:$A$978='SRB-2 Exhibit'!$H15)*N('Revenue Requirement'!$P$11:$BN$11='SRB-2 Exhibit'!AH$10))/1000 -> 4.234878724 | AI15: =SUMPRODUCT(('Revenue Requirement'!$P$954:$BN$978),N('Revenue Requirement'!$A$954:$A$978='SRB-2 Exhibit'!$H15)*N('Revenue Requirement'!$P$11:$BN$11='SRB-2 Exhibit'!AI$10))/1000 -> 4.389327886 | AJ15: =SUMPRODUCT(('Revenue Requirement'!$P$954:$BN$978),N('Revenue Requirement'!$A$954:$A$978='SRB-2 Exhibit'!$H15)*N('Revenue Requirement'!$P$11:$BN$11='SRB-2 Exhibit'!AJ$10))/1000 -> 4.455907082 | AK15: =SUMPRODUCT(('Revenue Requirement'!$P$954:$BN$978),N('Revenue Requirement'!$A$954:$A$978='SRB-2 Exhibit'!$H15)*N('Revenue Requirement'!$P$11:$BN$11='SRB-2 Exhibit'!AK$10))/1000 -> 4.523592394 | AL15: =SUMPRODUCT(('Revenue Requirement'!$P$954:$BN$978),N('Revenue Requirement'!$A$954:$A$978='SRB-2 Exhibit'!$H15)*N('Revenue Requirement'!$P$11:$BN$11='SRB-2 Exhibit'!AL$10))/1000 -> 4.592420472 | AM15: =SUMPRODUCT(('Revenue Requirement'!$P$954:$BN$978),N('Revenue Requirement'!$A$954:$A$978='SRB-2 Exhibit'!$H15)*N('Revenue Requirement'!$P$11:$BN$11='SRB-2 Exhibit'!AM$10))/1000 -> 4.662429196 | AN15: =SUMPRODUCT(('Revenue Requirement'!$P$954:$BN$978),N('Revenue Requirement'!$A$954:$A$978='SRB-2 Exhibit'!$H15)*N('Revenue Requirement'!$P$11:$BN$11='SRB-2 Exhibit'!AN$10))/1000 -> 4.735676384 | AO15: =SUMPRODUCT(('Revenue Requirement'!$P$954:$BN$978),N('Revenue Requirement'!$A$954:$A$978='SRB-2 Exhibit'!$H15)*N('Revenue Requirement'!$P$11:$BN$11='SRB-2 Exhibit'!AO$10))/1000 -> 4.81018384 | AP15: =SUMPRODUCT(('Revenue Requirement'!$P$954:$BN$978),N('Revenue Requirement'!$A$954:$A$978='SRB-2 Exhibit'!$H15)*N('Revenue Requirement'!$P$11:$BN$11='SRB-2 Exhibit'!AP$10))/1000 -> 4.885993394 | AQ15: =SUMPRODUCT(('Revenue Requirement'!$P$954:$BN$978),N('Revenue Requirement'!$A$954:$A$978='SRB-2 Exhibit'!$H15)*N('Revenue Requirement'!$P$11:$BN$11='SRB-2 Exhibit'!AQ$10))/1000 -> 4.963148283 | AR15: =SUMPRODUCT(('Revenue Requirement'!$P$954:$BN$978),N('Revenue Requirement'!$A$954:$A$978='SRB-2 Exhibit'!$H15)*N('Revenue Requirement'!$P$11:$BN$11='SRB-2 Exhibit'!AR$10))/1000 -> 5.041693198 | AT15: =SUM(Y15:AR15) -> 82.93555262
E16: Depreciation and Amortization(3) | H16: Base | K16: 326.9355246 | L16: 115.1328504 | N16: =SUMPRODUCT(('Revenue Requirement'!$P$274:$BN$298),N('Revenue Requirement'!$A$274:$A$298='SRB-2 Exhibit'!$H16)*N('Revenue Requirement'!$P$11:$BN$11='SRB-2 Exhibit'!N$10))/1000 -> 0.3322466168 | O16: =SUMPRODUCT(('Revenue Requirement'!$P$274:$BN$298),N('Revenue Requirement'!$A$274:$A$298='SRB-2 Exhibit'!$H16)*N('Revenue Requirement'!$P$11:$BN$11='SRB-2 Exhibit'!O$10))/1000 -> 9.566377114 | P16: =SUMPRODUCT(('Revenue Requirement'!$P$274:$BN$298),N('Revenue Requirement'!$A$274:$A$298='SRB-2 Exhibit'!$H16)*N('Revenue Requirement'!$P$11:$BN$11='SRB-2 Exhibit'!P$10))/1000 -> 9.17670146 | Q16: =SUMPRODUCT(('Revenue Requirement'!$P$274:$BN$298),N('Revenue Requirement'!$A$274:$A$298='SRB-2 Exhibit'!$H16)*N('Revenue Requirement'!$P$11:$BN$11='SRB-2 Exhibit'!Q$10))/1000 -> 9.395193785 | R16: =SUMPRODUCT(('Revenue Requirement'!$P$274:$BN$298),N('Revenue Requirement'!$A$274:$A$298='SRB-2 Exhibit'!$H16)*N('Revenue Requirement'!$P$11:$BN$11='SRB-2 Exhibit'!R$10))/1000 -> 9.680747433 | S16: =SUMPRODUCT(('Revenue Requirement'!$P$274:$BN$298),N('Revenue Requirement'!$A$274:$A$298='SRB-2 Exhibit'!$H16)*N('Revenue Requirement'!$P$11:$BN$11='SRB-2 Exhibit'!S$10))/1000 -> 10.06928084 | T16: =SUMPRODUCT(('Revenue Requirement'!$P$274:$BN$298),N('Revenue Requirement'!$A$274:$A$298='SRB-2 Exhibit'!$H16)*N('Revenue Requirement'!$P$11:$BN$11='SRB-2 Exhibit'!T$10))/1000 -> 9.526100485 | U16: =SUMPRODUCT(('Revenue Requirement'!$P$274:$BN$298),N('Revenue Requirement'!$A$274:$A$298='SRB-2 Exhibit'!$H16)*N('Revenue Requirement'!$P$11:$BN$11='SRB-2 Exhibit'!U$10))/1000 -> 9.792762521 | V16: =SUMPRODUCT(('Revenue Requirement'!$P$274:$BN$298),N('Revenue Requirement'!$A$274:$A$298='SRB-2 Exhibit'!$H16)*N('Revenue Requirement'!$P$11:$BN$11='SRB-2 Exhibit'!V$10))/1000 -> 10.08540182 | W16: =SUMPRODUCT(('Revenue Requirement'!$P$274:$BN$298),N('Revenue Requirement'!$A$274:$A$298='SRB-2 Exhibit'!$H16)*N('Revenue Requirement'!$P$11:$BN$11='SRB-2 Exhibit'!W$10))/1000 -> 10.38459633 | X16: =SUMPRODUCT(('Revenue Requirement'!$P$274:$BN$298),N('Revenue Requirement'!$A$274:$A$298='SRB-2 Exhibit'!$H16)*N('Revenue Requirement'!$P$11:$BN$11='SRB-2 Exhibit'!X$10))/1000 -> 10.30742063 | Y16: =SUMPRODUCT(('Revenue Requirement'!$P$274:$BN$298),N('Revenue Requirement'!$A$274:$A$298='SRB-2 Exhibit'!$H16)*N('Revenue Requirement'!$P$11:$BN$11='SRB-2 Exhibit'!Y$10))/1000 -> 10.30493912 | Z16: =SUMPRODUCT(('Revenue Requirement'!$P$274:$BN$298),N('Revenue Requirement'!$A$274:$A$298='SRB-2 Exhibit'!$H16)*N('Revenue Requirement'!$P$11:$BN$11='SRB-2 Exhibit'!Z$10))/1000 -> 10.6150186 | AA16: =SUMPRODUCT(('Revenue Requirement'!$P$274:$BN$298),N('Revenue Requirement'!$A$274:$A$298='SRB-2 Exhibit'!$H16)*N('Revenue Requirement'!$P$11:$BN$11='SRB-2 Exhibit'!AA$10))/1000 -> 10.93445226 | AB16: =SUMPRODUCT(('Revenue Requirement'!$P$274:$BN$298),N('Revenue Requirement'!$A$274:$A$298='SRB-2 Exhibit'!$H16)*N('Revenue Requirement'!$P$11:$BN$11='SRB-2 Exhibit'!AB$10))/1000 -> 11.263527 | AC16: =SUMPRODUCT(('Revenue Requirement'!$P$274:$BN$298),N('Revenue Requirement'!$A$274:$A$298='SRB-2 Exhibit'!$H16)*N('Revenue Requirement'!$P$11:$BN$11='SRB-2 Exhibit'!AC$10))/1000 -> 11.60253872 | AD16: =SUMPRODUCT(('Revenue Requirement'!$P$274:$BN$298),N('Revenue Requirement'!$A$274:$A$298='SRB-2 Exhibit'!$H16)*N('Revenue Requirement'!$P$11:$BN$11='SRB-2 Exhibit'!AD$10))/1000 -> 11.95179249 | AE16: =SUMPRODUCT(('Revenue Requirement'!$P$274:$BN$298),N('Revenue Requirement'!$A$274:$A$298='SRB-2 Exhibit'!$H16)*N('Revenue Requirement'!$P$11:$BN$11='SRB-2 Exhibit'!AE$10))/1000 -> 12.31160293 | AF16: =SUMPRODUCT(('Revenue Requirement'!$P$274:$BN$298),N('Revenue Requirement'!$A$274:$A$298='SRB-2 Exhibit'!$H16)*N('Revenue Requirement'!$P$11:$BN$11='SRB-2 Exhibit'!AF$10))/1000 -> 11.70446717 | AG16: =SUMPRODUCT(('Revenue Requirement'!$P$274:$BN$298),N('Revenue Requirement'!$A$274:$A$298='SRB-2 Exhibit'!$H16)*N('Revenue Requirement'!$P$11:$BN$11='SRB-2 Exhibit'!AG$10))/1000 -> 9.966005832 | AH16: =SUMPRODUCT(('Revenue Requirement'!$P$274:$BN$298),N('Revenue Requirement'!$A$274:$A$298='SRB-2 Exhibit'!$H16)*N('Revenue Requirement'!$P$11:$BN$11='SRB-2 Exhibit'!AH$10))/1000 -> 10.17461458 | AI16: =SUMPRODUCT(('Revenue Requirement'!$P$274:$BN$298),N('Revenue Requirement'!$A$274:$A$298='SRB-2 Exhibit'!$H16)*N('Revenue Requirement'!$P$11:$BN$11='SRB-2 Exhibit'!AI$10))/1000 -> 10.5262561 | AJ16: =SUMPRODUCT(('Revenue Requirement'!$P$274:$BN$298),N('Revenue Requirement'!$A$274:$A$298='SRB-2 Exhibit'!$H16)*N('Revenue Requirement'!$P$11:$BN$11='SRB-2 Exhibit'!AJ$10))/1000 -> 10.78259126 | AK16: =SUMPRODUCT(('Revenue Requirement'!$P$274:$BN$298),N('Revenue Requirement'!$A$274:$A$298='SRB-2 Exhibit'!$H16)*N('Revenue Requirement'!$P$11:$BN$11='SRB-2 Exhibit'!AK$10))/1000 -> 11.04674814 | AL16: =SUMPRODUCT(('Revenue Requirement'!$P$274:$BN$298),N('Revenue Requirement'!$A$274:$A$298='SRB-2 Exhibit'!$H16)*N('Revenue Requirement'!$P$11:$BN$11='SRB-2 Exhibit'!AL$10))/1000 -> 11.31897175 | AM16: =SUMPRODUCT(('Revenue Requirement'!$P$274:$BN$298),N('Revenue Requirement'!$A$274:$A$298='SRB-2 Exhibit'!$H16)*N('Revenue Requirement'!$P$11:$BN$11='SRB-2 Exhibit'!AM$10))/1000 -> 11.59951497 | AN16: =SUMPRODUCT(('Revenue Requirement'!$P$274:$BN$298),N('Revenue Requirement'!$A$274:$A$298='SRB-2 Exhibit'!$H16)*N('Revenue Requirement'!$P$11:$BN$11='SRB-2 Exhibit'!AN$10))/1000 -> 11.88863876 | AO16: =SUMPRODUCT(('Revenue Requirement'!$P$274:$BN$298),N('Revenue Requirement'!$A$274:$A$298='SRB-2 Exhibit'!$H16)*N('Revenue Requirement'!$P$11:$BN$11='SRB-2 Exhibit'!AO$10))/1000 -> 12.18661249 | AP16: =SUMPRODUCT(('Revenue Requirement'!$P$274:$BN$298),N('Revenue Requirement'!$A$274:$A$298='SRB-2 Exhibit'!$H16)*N('Revenue Requirement'!$P$11:$BN$11='SRB-2 Exhibit'!AP$10))/1000 -> 12.49371417 | AQ16: =SUMPRODUCT(('Revenue Requirement'!$P$274:$BN$298),N('Revenue Requirement'!$A$274:$A$298='SRB-2 Exhibit'!$H16)*N('Revenue Requirement'!$P$11:$BN$11='SRB-2 Exhibit'!AQ$10))/1000 -> 12.81023076 | AR16: =SUMPRODUCT(('Revenue Requirement'!$P$274:$BN$298),N('Revenue Requirement'!$A$274:$A$298='SRB-2 Exhibit'!$H16)*N('Revenue Requirement'!$P$11:$BN$11='SRB-2 Exhibit'!AR$10))/1000 -> 13.13645843 | AT16: 228.6186955
E17: Interest Expense(4) | H17: Base | K17: 122.5285492 | L17: 44.42991994 | N17: =SUMPRODUCT(('Revenue Requirement'!$P$480:$BN$504),N('Revenue Requirement'!$A$480:$A$504='SRB-2 Exhibit'!$H17)*N('Revenue Requirement'!$P$11:$BN$11='SRB-2 Exhibit'!N$10))/1000 -> 0.1488844449 | O17: =SUMPRODUCT(('Revenue Requirement'!$P$480:$BN$504),N('Revenue Requirement'!$A$480:$A$504='SRB-2 Exhibit'!$H17)*N('Revenue Requirement'!$P$11:$BN$11='SRB-2 Exhibit'!O$10))/1000 -> 3.728502032 | P17: =SUMPRODUCT(('Revenue Requirement'!$P$480:$BN$504),N('Revenue Requirement'!$A$480:$A$504='SRB-2 Exhibit'!$H17)*N('Revenue Requirement'!$P$11:$BN$11='SRB-2 Exhibit'!P$10))/1000 -> 3.854499436 | Q17: =SUMPRODUCT(('Revenue Requirement'!$P$480:$BN$504),N('Revenue Requirement'!$A$480:$A$504='SRB-2 Exhibit'!$H17)*N('Revenue Requirement'!$P$11:$BN$11='SRB-2 Exhibit'!Q$10))/1000 -> 3.888130658 | R17: =SUMPRODUCT(('Revenue Requirement'!$P$480:$BN$504),N('Revenue Requirement'!$A$480:$A$504='SRB-2 Exhibit'!$H17)*N('Revenue Requirement'!$P$11:$BN$11='SRB-2 Exhibit'!R$10))/1000 -> 3.891595027 | S17: =SUMPRODUCT(('Revenue Requirement'!$P$480:$BN$504),N('Revenue Requirement'!$A$480:$A$504='SRB-2 Exhibit'!$H17)*N('Revenue Requirement'!$P$11:$BN$11='SRB-2 Exhibit'!S$10))/1000 -> 3.971937269 | T17: =SUMPRODUCT(('Revenue Requirement'!$P$480:$BN$504),N('Revenue Requirement'!$A$480:$A$504='SRB-2 Exhibit'!$H17)*N('Revenue Requirement'!$P$11:$BN$11='SRB-2 Exhibit'!T$10))/1000 -> 3.954163204 | U17: =SUMPRODUCT(('Revenue Requirement'!$P$480:$BN$504),N('Revenue Requirement'!$A$480:$A$504='SRB-2 Exhibit'!$H17)*N('Revenue Requirement'!$P$11:$BN$11='SRB-2 Exhibit'!U$10))/1000 -> 3.950104902 | V17: =SUMPRODUCT(('Revenue Requirement'!$P$480:$BN$504),N('Revenue Requirement'!$A$480:$A$504='SRB-2 Exhibit'!$H17)*N('Revenue Requirement'!$P$11:$BN$11='SRB-2 Exhibit'!V$10))/1000 -> 3.967222903 | W17: =SUMPRODUCT(('Revenue Requirement'!$P$480:$BN$504),N('Revenue Requirement'!$A$480:$A$504='SRB-2 Exhibit'!$H17)*N('Revenue Requirement'!$P$11:$BN$11='SRB-2 Exhibit'!W$10))/1000 -> 3.98411524 | X17: =SUMPRODUCT(('Revenue Requirement'!$P$480:$BN$504),N('Revenue Requirement'!$A$480:$A$504='SRB-2 Exhibit'!$H17)*N('Revenue Requirement'!$P$11:$BN$11='SRB-2 Exhibit'!X$10))/1000 -> 3.98884454 | Y17: =SUMPRODUCT(('Revenue Requirement'!$P$480:$BN$504),N('Revenue Requirement'!$A$480:$A$504='SRB-2 Exhibit'!$H17)*N('Revenue Requirement'!$P$11:$BN$11='SRB-2 Exhibit'!Y$10))/1000 -> 3.9982571 | Z17: =SUMPRODUCT(('Revenue Requirement'!$P$480:$BN$504),N('Revenue Requirement'!$A$480:$A$504='SRB-2 Exhibit'!$H17)*N('Revenue Requirement'!$P$11:$BN$11='SRB-2 Exhibit'!Z$10))/1000 -> 4.009689925 | AA17: =SUMPRODUCT(('Revenue Requirement'!$P$480:$BN$504),N('Revenue Requirement'!$A$480:$A$504='SRB-2 Exhibit'!$H17)*N('Revenue Requirement'!$P$11:$BN$11='SRB-2 Exhibit'!AA$10))/1000 -> 4.020842706 | AB17: =SUMPRODUCT(('Revenue Requirement'!$P$480:$BN$504),N('Revenue Requirement'!$A$480:$A$504='SRB-2 Exhibit'!$H17)*N('Revenue Requirement'!$P$11:$BN$11='SRB-2 Exhibit'!AB$10))/1000 -> 4.031652957 | AC17: =SUMPRODUCT(('Revenue Requirement'!$P$480:$BN$504),N('Revenue Requirement'!$A$480:$A$504='SRB-2 Exhibit'!$H17)*N('Revenue Requirement'!$P$11:$BN$11='SRB-2 Exhibit'!AC$10))/1000 -> 4.043148738 | AD17: =SUMPRODUCT(('Revenue Requirement'!$P$480:$BN$504),N('Revenue Requirement'!$A$480:$A$504='SRB-2 Exhibit'!$H17)*N('Revenue Requirement'!$P$11:$BN$11='SRB-2 Exhibit'!AD$10))/1000 -> 4.056933927 | AE17: =SUMPRODUCT(('Revenue Requirement'!$P$480:$BN$504),N('Revenue Requirement'!$A$480:$A$504='SRB-2 Exhibit'!$H17)*N('Revenue Requirement'!$P$11:$BN$11='SRB-2 Exhibit'!AE$10))/1000 -> 4.073297372 | AF17: =SUMPRODUCT(('Revenue Requirement'!$P$480:$BN$504),N('Revenue Requirement'!$A$480:$A$504='SRB-2 Exhibit'!$H17)*N('Revenue Requirement'!$P$11:$BN$11='SRB-2 Exhibit'!AF$10))/1000 -> 4.098817966 | AG17: =SUMPRODUCT(('Revenue Requirement'!$P$480:$BN$504),N('Revenue Requirement'!$A$480:$A$504='SRB-2 Exhibit'!$H17)*N('Revenue Requirement'!$P$11:$BN$11='SRB-2 Exhibit'!AG$10))/1000 -> 4.148083104 | AH17: =SUMPRODUCT(('Revenue Requirement'!$P$480:$BN$504),N('Revenue Requirement'!$A$480:$A$504='SRB-2 Exhibit'!$H17)*N('Revenue Requirement'!$P$11:$BN$11='SRB-2 Exhibit'!AH$10))/1000 -> 4.214680701 | AI17: =SUMPRODUCT(('Revenue Requirement'!$P$480:$BN$504),N('Revenue Requirement'!$A$480:$A$504='SRB-2 Exhibit'!$H17)*N('Revenue Requirement'!$P$11:$BN$11='SRB-2 Exhibit'!AI$10))/1000 -> 4.292791175 | AJ17: =SUMPRODUCT(('Revenue Requirement'!$P$480:$BN$504),N('Revenue Requirement'!$A$480:$A$504='SRB-2 Exhibit'!$H17)*N('Revenue Requirement'!$P$11:$BN$11='SRB-2 Exhibit'!AJ$10))/1000 -> 4.268920985 | AK17: =SUMPRODUCT(('Revenue Requirement'!$P$480:$BN$504),N('Revenue Requirement'!$A$480:$A$504='SRB-2 Exhibit'!$H17)*N('Revenue Requirement'!$P$11:$BN$11='SRB-2 Exhibit'!AK$10))/1000 -> 4.2559608 | AL17: =SUMPRODUCT(('Revenue Requirement'!$P$480:$BN$504),N('Revenue Requirement'!$A$480:$A$504='SRB-2 Exhibit'!$H17)*N('Revenue Requirement'!$P$11:$BN$11='SRB-2 Exhibit'!AL$10))/1000 -> 4.24598095 | AM17: =SUMPRODUCT(('Revenue Requirement'!$P$480:$BN$504),N('Revenue Requirement'!$A$480:$A$504='SRB-2 Exhibit'!$H17)*N('Revenue Requirement'!$P$11:$BN$11='SRB-2 Exhibit'!AM$10))/1000 -> 4.239376395 | AN17: =SUMPRODUCT(('Revenue Requirement'!$P$480:$BN$504),N('Revenue Requirement'!$A$480:$A$504='SRB-2 Exhibit'!$H17)*N('Revenue Requirement'!$P$11:$BN$11='SRB-2 Exhibit'!AN$10))/1000 -> 4.23611293 | AO17: =SUMPRODUCT(('Revenue Requirement'!$P$480:$BN$504),N('Revenue Requirement'!$A$480:$A$504='SRB-2 Exhibit'!$H17)*N('Revenue Requirement'!$P$11:$BN$11='SRB-2 Exhibit'!AO$10))/1000 -> 4.235731123 | AP17: =SUMPRODUCT(('Revenue Requirement'!$P$480:$BN$504),N('Revenue Requirement'!$A$480:$A$504='SRB-2 Exhibit'!$H17)*N('Revenue Requirement'!$P$11:$BN$11='SRB-2 Exhibit'!AP$10))/1000 -> 4.237903223 | AQ17: =SUMPRODUCT(('Revenue Requirement'!$P$480:$BN$504),N('Revenue Requirement'!$A$480:$A$504='SRB-2 Exhibit'!$H17)*N('Revenue Requirement'!$P$11:$BN$11='SRB-2 Exhibit'!AQ$10))/1000 -> 4.242586509 | AR17: =SUMPRODUCT(('Revenue Requirement'!$P$480:$BN$504),N('Revenue Requirement'!$A$480:$A$504='SRB-2 Exhibit'!$H17)*N('Revenue Requirement'!$P$11:$BN$11='SRB-2 Exhibit'!AR$10))/1000 -> 4.249780935 | AT17: 83.20054952
E18: Return on Equity(5) | H18: Base | K18: 390.7822449 | L18: 141.7010482 | N18: =SUMPRODUCT(('Revenue Requirement'!$P$509:$BN$533),N('Revenue Requirement'!$A$509:$A$533='SRB-2 Exhibit'!$H18)*N('Revenue Requirement'!$P$11:$BN$11='SRB-2 Exhibit'!N$10))/1000 -> 0.474839521 | O18: =SUMPRODUCT(('Revenue Requirement'!$P$509:$BN$533),N('Revenue Requirement'!$A$509:$A$533='SRB-2 Exhibit'!$H18)*N('Revenue Requirement'!$P$11:$BN$11='SRB-2 Exhibit'!O$10))/1000 -> 11.89137066 | P18: =SUMPRODUCT(('Revenue Requirement'!$P$509:$BN$533),N('Revenue Requirement'!$A$509:$A$533='SRB-2 Exhibit'!$H18)*N('Revenue Requirement'!$P$11:$BN$11='SRB-2 Exhibit'!P$10))/1000 -> 12.29321618 | Q18: =SUMPRODUCT(('Revenue Requirement'!$P$509:$BN$533),N('Revenue Requirement'!$A$509:$A$533='SRB-2 Exhibit'!$H18)*N('Revenue Requirement'!$P$11:$BN$11='SRB-2 Exhibit'!Q$10))/1000 -> 12.40047676 | R18: =SUMPRODUCT(('Revenue Requirement'!$P$509:$BN$533),N('Revenue Requirement'!$A$509:$A$533='SRB-2 Exhibit'!$H18)*N('Revenue Requirement'!$P$11:$BN$11='SRB-2 Exhibit'!R$10))/1000 -> 12.41152573 | S18: =SUMPRODUCT(('Revenue Requirement'!$P$509:$BN$533),N('Revenue Requirement'!$A$509:$A$533='SRB-2 Exhibit'!$H18)*N('Revenue Requirement'!$P$11:$BN$11='SRB-2 Exhibit'!S$10))/1000 -> 12.66776252 | T18: =SUMPRODUCT(('Revenue Requirement'!$P$509:$BN$533),N('Revenue Requirement'!$A$509:$A$533='SRB-2 Exhibit'!$H18)*N('Revenue Requirement'!$P$11:$BN$11='SRB-2 Exhibit'!T$10))/1000 -> 12.61107541 | U18: =SUMPRODUCT(('Revenue Requirement'!$P$509:$BN$533),N('Revenue Requirement'!$A$509:$A$533='SRB-2 Exhibit'!$H18)*N('Revenue Requirement'!$P$11:$BN$11='SRB-2 Exhibit'!U$10))/1000 -> 12.5981322 | V18: =SUMPRODUCT(('Revenue Requirement'!$P$509:$BN$533),N('Revenue Requirement'!$A$509:$A$533='SRB-2 Exhibit'!$H18)*N('Revenue Requirement'!$P$11:$BN$11='SRB-2 Exhibit'!V$10))/1000 -> 12.65272691 | W18: =SUMPRODUCT(('Revenue Requirement'!$P$509:$BN$533),N('Revenue Requirement'!$A$509:$A$533='SRB-2 Exhibit'!$H18)*N('Revenue Requirement'!$P$11:$BN$11='SRB-2 Exhibit'!W$10))/1000 -> 12.70660191 | X18: =SUMPRODUCT(('Revenue Requirement'!$P$509:$BN$533),N('Revenue Requirement'!$A$509:$A$533='SRB-2 Exhibit'!$H18)*N('Revenue Requirement'!$P$11:$BN$11='SRB-2 Exhibit'!X$10))/1000 -> 12.72168514 | Y18: =SUMPRODUCT(('Revenue Requirement'!$P$509:$BN$533),N('Revenue Requirement'!$A$509:$A$533='SRB-2 Exhibit'!$H18)*N('Revenue Requirement'!$P$11:$BN$11='SRB-2 Exhibit'!Y$10))/1000 -> 12.75170477 | Z18: =SUMPRODUCT(('Revenue Requirement'!$P$509:$BN$533),N('Revenue Requirement'!$A$509:$A$533='SRB-2 Exhibit'!$H18)*N('Revenue Requirement'!$P$11:$BN$11='SRB-2 Exhibit'!Z$10))/1000 -> 12.78816766 | AA18: =SUMPRODUCT(('Revenue Requirement'!$P$509:$BN$533),N('Revenue Requirement'!$A$509:$A$533='SRB-2 Exhibit'!$H18)*N('Revenue Requirement'!$P$11:$BN$11='SRB-2 Exhibit'!AA$10))/1000 -> 12.8237374 | AB18: =SUMPRODUCT(('Revenue Requirement'!$P$509:$BN$533),N('Revenue Requirement'!$A$509:$A$533='SRB-2 Exhibit'!$H18)*N('Revenue Requirement'!$P$11:$BN$11='SRB-2 Exhibit'!AB$10))/1000 -> 12.85821471 | AC18: =SUMPRODUCT(('Revenue Requirement'!$P$509:$BN$533),N('Revenue Requirement'!$A$509:$A$533='SRB-2 Exhibit'!$H18)*N('Revenue Requirement'!$P$11:$BN$11='SRB-2 Exhibit'!AC$10))/1000 -> 12.89487838 | AD18: =SUMPRODUCT(('Revenue Requirement'!$P$509:$BN$533),N('Revenue Requirement'!$A$509:$A$533='SRB-2 Exhibit'!$H18)*N('Revenue Requirement'!$P$11:$BN$11='SRB-2 Exhibit'!AD$10))/1000 -> 12.93884371 | AE18: =SUMPRODUCT(('Revenue Requirement'!$P$509:$BN$533),N('Revenue Requirement'!$A$509:$A$533='SRB-2 Exhibit'!$H18)*N('Revenue Requirement'!$P$11:$BN$11='SRB-2 Exhibit'!AE$10))/1000 -> 12.9910319 | AF18: =SUMPRODUCT(('Revenue Requirement'!$P$509:$BN$533),N('Revenue Requirement'!$A$509:$A$533='SRB-2 Exhibit'!$H18)*N('Revenue Requirement'!$P$11:$BN$11='SRB-2 Exhibit'!AF$10))/1000 -> 13.07242514 | AG18: =SUMPRODUCT(('Revenue Requirement'!$P$509:$BN$533),N('Revenue Requirement'!$A$509:$A$533='SRB-2 Exhibit'!$H18)*N('Revenue Requirement'!$P$11:$BN$11='SRB-2 Exhibit'!AG$10))/1000 -> 13.22954722 | AH18: =SUMPRODUCT(('Revenue Requirement'!$P$509:$BN$533),N('Revenue Requirement'!$A$509:$A$533='SRB-2 Exhibit'!$H18)*N('Revenue Requirement'!$P$11:$BN$11='SRB-2 Exhibit'!AH$10))/1000 -> 13.441948 | AI18: =SUMPRODUCT(('Revenue Requirement'!$P$509:$BN$533),N('Revenue Requirement'!$A$509:$A$533='SRB-2 Exhibit'!$H18)*N('Revenue Requirement'!$P$11:$BN$11='SRB-2 Exhibit'!AI$10))/1000 -> 13.69106697 | AJ18: =SUMPRODUCT(('Revenue Requirement'!$P$509:$BN$533),N('Revenue Requirement'!$A$509:$A$533='SRB-2 Exhibit'!$H18)*N('Revenue Requirement'!$P$11:$BN$11='SRB-2 Exhibit'!AJ$10))/1000 -> 13.61493739 | AK18: =SUMPRODUCT(('Revenue Requirement'!$P$509:$BN$533),N('Revenue Requirement'!$A$509:$A$533='SRB-2 Exhibit'!$H18)*N('Revenue Requirement'!$P$11:$BN$11='SRB-2 Exhibit'!AK$10))/1000 -> 13.57360327 | AL18: =SUMPRODUCT(('Revenue Requirement'!$P$509:$BN$533),N('Revenue Requirement'!$A$509:$A$533='SRB-2 Exhibit'!$H18)*N('Revenue Requirement'!$P$11:$BN$11='SRB-2 Exhibit'!AL$10))/1000 -> 13.54177438 | AM18: =SUMPRODUCT(('Revenue Requirement'!$P$509:$BN$533),N('Revenue Requirement'!$A$509:$A$533='SRB-2 Exhibit'!$H18)*N('Revenue Requirement'!$P$11:$BN$11='SRB-2 Exhibit'!AM$10))/1000 -> 13.52071036 | AN18: =SUMPRODUCT(('Revenue Requirement'!$P$509:$BN$533),N('Revenue Requirement'!$A$509:$A$533='SRB-2 Exhibit'!$H18)*N('Revenue Requirement'!$P$11:$BN$11='SRB-2 Exhibit'!AN$10))/1000 -> 13.51030214 | AO18: =SUMPRODUCT(('Revenue Requirement'!$P$509:$BN$533),N('Revenue Requirement'!$A$509:$A$533='SRB-2 Exhibit'!$H18)*N('Revenue Requirement'!$P$11:$BN$11='SRB-2 Exhibit'!AO$10))/1000 -> 13.50908444 | AP18: =SUMPRODUCT(('Revenue Requirement'!$P$509:$BN$533),N('Revenue Requirement'!$A$509:$A$533='SRB-2 Exhibit'!$H18)*N('Revenue Requirement'!$P$11:$BN$11='SRB-2 Exhibit'!AP$10))/1000 -> 13.51601195 | AQ18: =SUMPRODUCT(('Revenue Requirement'!$P$509:$BN$533),N('Revenue Requirement'!$A$509:$A$533='SRB-2 Exhibit'!$H18)*N('Revenue Requirement'!$P$11:$BN$11='SRB-2 Exhibit'!AQ$10))/1000 -> 13.53094843 | AR18: =SUMPRODUCT(('Revenue Requirement'!$P$509:$BN$533),N('Revenue Requirement'!$A$509:$A$533='SRB-2 Exhibit'!$H18)*N('Revenue Requirement'!$P$11:$BN$11='SRB-2 Exhibit'!AR$10))/1000 -> 13.55389373 | AT18: 265.352832
E19: Income Tax(6) | H19: Base | K19: 132.6686223 | L19: 48.10679884 | N19: =SUMPRODUCT(('Revenue Requirement'!$P$538:$BN$562),N('Revenue Requirement'!$A$538:$A$562='SRB-2 Exhibit'!$H19)*N('Revenue Requirement'!$P$11:$BN$11='SRB-2 Exhibit'!N$10))/1000 -> 0.1612056481 | O19: =SUMPRODUCT(('Revenue Requirement'!$P$538:$BN$562),N('Revenue Requirement'!$A$538:$A$562='SRB-2 Exhibit'!$H19)*N('Revenue Requirement'!$P$11:$BN$11='SRB-2 Exhibit'!O$10))/1000 -> 4.037061004 | P19: =SUMPRODUCT(('Revenue Requirement'!$P$538:$BN$562),N('Revenue Requirement'!$A$538:$A$562='SRB-2 Exhibit'!$H19)*N('Revenue Requirement'!$P$11:$BN$11='SRB-2 Exhibit'!P$10))/1000 -> 4.173485553 | Q19: =SUMPRODUCT(('Revenue Requirement'!$P$538:$BN$562),N('Revenue Requirement'!$A$538:$A$562='SRB-2 Exhibit'!$H19)*N('Revenue Requirement'!$P$11:$BN$11='SRB-2 Exhibit'!Q$10))/1000 -> 4.209899988 | R19: =SUMPRODUCT(('Revenue Requirement'!$P$538:$BN$562),N('Revenue Requirement'!$A$538:$A$562='SRB-2 Exhibit'!$H19)*N('Revenue Requirement'!$P$11:$BN$11='SRB-2 Exhibit'!R$10))/1000 -> 4.213651057 | S19: =SUMPRODUCT(('Revenue Requirement'!$P$538:$BN$562),N('Revenue Requirement'!$A$538:$A$562='SRB-2 Exhibit'!$H19)*N('Revenue Requirement'!$P$11:$BN$11='SRB-2 Exhibit'!S$10))/1000 -> 4.300642168 | T19: =SUMPRODUCT(('Revenue Requirement'!$P$538:$BN$562),N('Revenue Requirement'!$A$538:$A$562='SRB-2 Exhibit'!$H19)*N('Revenue Requirement'!$P$11:$BN$11='SRB-2 Exhibit'!T$10))/1000 -> 4.281397178 | U19: =SUMPRODUCT(('Revenue Requirement'!$P$538:$BN$562),N('Revenue Requirement'!$A$538:$A$562='SRB-2 Exhibit'!$H19)*N('Revenue Requirement'!$P$11:$BN$11='SRB-2 Exhibit'!U$10))/1000 -> 4.277003023 | V19: =SUMPRODUCT(('Revenue Requirement'!$P$538:$BN$562),N('Revenue Requirement'!$A$538:$A$562='SRB-2 Exhibit'!$H19)*N('Revenue Requirement'!$P$11:$BN$11='SRB-2 Exhibit'!V$10))/1000 -> 4.295537655 | W19: =SUMPRODUCT(('Revenue Requirement'!$P$538:$BN$562),N('Revenue Requirement'!$A$538:$A$562='SRB-2 Exhibit'!$H19)*N('Revenue Requirement'!$P$11:$BN$11='SRB-2 Exhibit'!W$10))/1000 -> 4.313827949 | X19: =SUMPRODUCT(('Revenue Requirement'!$P$538:$BN$562),N('Revenue Requirement'!$A$538:$A$562='SRB-2 Exhibit'!$H19)*N('Revenue Requirement'!$P$11:$BN$11='SRB-2 Exhibit'!X$10))/1000 -> 4.31894863 | Y19: =SUMPRODUCT(('Revenue Requirement'!$P$538:$BN$562),N('Revenue Requirement'!$A$538:$A$562='SRB-2 Exhibit'!$H19)*N('Revenue Requirement'!$P$11:$BN$11='SRB-2 Exhibit'!Y$10))/1000 -> 4.329140144 | Z19: =SUMPRODUCT(('Revenue Requirement'!$P$538:$BN$562),N('Revenue Requirement'!$A$538:$A$562='SRB-2 Exhibit'!$H19)*N('Revenue Requirement'!$P$11:$BN$11='SRB-2 Exhibit'!Z$10))/1000 -> 4.341519113 | AA19: =SUMPRODUCT(('Revenue Requirement'!$P$538:$BN$562),N('Revenue Requirement'!$A$538:$A$562='SRB-2 Exhibit'!$H19)*N('Revenue Requirement'!$P$11:$BN$11='SRB-2 Exhibit'!AA$10))/1000 -> 4.353594863 | AB19: =SUMPRODUCT(('Revenue Requirement'!$P$538:$BN$562),N('Revenue Requirement'!$A$538:$A$562='SRB-2 Exhibit'!$H19)*N('Revenue Requirement'!$P$11:$BN$11='SRB-2 Exhibit'!AB$10))/1000 -> 4.365299737 | AC19: =SUMPRODUCT(('Revenue Requirement'!$P$538:$BN$562),N('Revenue Requirement'!$A$538:$A$562='SRB-2 Exhibit'!$H19)*N('Revenue Requirement'!$P$11:$BN$11='SRB-2 Exhibit'!AC$10))/1000 -> 4.377746871 | AD19: =SUMPRODUCT(('Revenue Requirement'!$P$538:$BN$562),N('Revenue Requirement'!$A$538:$A$562='SRB-2 Exhibit'!$H19)*N('Revenue Requirement'!$P$11:$BN$11='SRB-2 Exhibit'!AD$10))/1000 -> 4.392672879 | AE19: =SUMPRODUCT(('Revenue Requirement'!$P$538:$BN$562),N('Revenue Requirement'!$A$538:$A$562='SRB-2 Exhibit'!$H19)*N('Revenue Requirement'!$P$11:$BN$11='SRB-2 Exhibit'!AE$10))/1000 -> 4.41039051 | AF19: =SUMPRODUCT(('Revenue Requirement'!$P$538:$BN$562),N('Revenue Requirement'!$A$538:$A$562='SRB-2 Exhibit'!$H19)*N('Revenue Requirement'!$P$11:$BN$11='SRB-2 Exhibit'!AF$10))/1000 -> 4.438023108 | AG19: =SUMPRODUCT(('Revenue Requirement'!$P$538:$BN$562),N('Revenue Requirement'!$A$538:$A$562='SRB-2 Exhibit'!$H19)*N('Revenue Requirement'!$P$11:$BN$11='SRB-2 Exhibit'!AG$10))/1000 -> 4.491365272 | AH19: =SUMPRODUCT(('Revenue Requirement'!$P$538:$BN$562),N('Revenue Requirement'!$A$538:$A$562='SRB-2 Exhibit'!$H19)*N('Revenue Requirement'!$P$11:$BN$11='SRB-2 Exhibit'!AH$10))/1000 -> 4.563474274 | AI19: =SUMPRODUCT(('Revenue Requirement'!$P$538:$BN$562),N('Revenue Requirement'!$A$538:$A$562='SRB-2 Exhibit'!$H19)*N('Revenue Requirement'!$P$11:$BN$11='SRB-2 Exhibit'!AI$10))/1000 -> 4.648048923 | AJ19: =SUMPRODUCT(('Revenue Requirement'!$P$538:$BN$562),N('Revenue Requirement'!$A$538:$A$562='SRB-2 Exhibit'!$H19)*N('Revenue Requirement'!$P$11:$BN$11='SRB-2 Exhibit'!AJ$10))/1000 -> 4.622203312 | AK19: =SUMPRODUCT(('Revenue Requirement'!$P$538:$BN$562),N('Revenue Requirement'!$A$538:$A$562='SRB-2 Exhibit'!$H19)*N('Revenue Requirement'!$P$11:$BN$11='SRB-2 Exhibit'!AK$10))/1000 -> 4.608170583 | AL19: =SUMPRODUCT(('Revenue Requirement'!$P$538:$BN$562),N('Revenue Requirement'!$A$538:$A$562='SRB-2 Exhibit'!$H19)*N('Revenue Requirement'!$P$11:$BN$11='SRB-2 Exhibit'!AL$10))/1000 -> 4.597364832 | AM19: =SUMPRODUCT(('Revenue Requirement'!$P$538:$BN$562),N('Revenue Requirement'!$A$538:$A$562='SRB-2 Exhibit'!$H19)*N('Revenue Requirement'!$P$11:$BN$11='SRB-2 Exhibit'!AM$10))/1000 -> 4.590213705 | AN19: =SUMPRODUCT(('Revenue Requirement'!$P$538:$BN$562),N('Revenue Requirement'!$A$538:$A$562='SRB-2 Exhibit'!$H19)*N('Revenue Requirement'!$P$11:$BN$11='SRB-2 Exhibit'!AN$10))/1000 -> 4.586680166 | AO19: =SUMPRODUCT(('Revenue Requirement'!$P$538:$BN$562),N('Revenue Requirement'!$A$538:$A$562='SRB-2 Exhibit'!$H19)*N('Revenue Requirement'!$P$11:$BN$11='SRB-2 Exhibit'!AO$10))/1000 -> 4.586266762 | AP19: =SUMPRODUCT(('Revenue Requirement'!$P$538:$BN$562),N('Revenue Requirement'!$A$538:$A$562='SRB-2 Exhibit'!$H19)*N('Revenue Requirement'!$P$11:$BN$11='SRB-2 Exhibit'!AP$10))/1000 -> 4.588618618 | AQ19: =SUMPRODUCT(('Revenue Requirement'!$P$538:$BN$562),N('Revenue Requirement'!$A$538:$A$562='SRB-2 Exhibit'!$H19)*N('Revenue Requirement'!$P$11:$BN$11='SRB-2 Exhibit'!AQ$10))/1000 -> 4.593689478 | AR19: =SUMPRODUCT(('Revenue Requirement'!$P$538:$BN$562),N('Revenue Requirement'!$A$538:$A$562='SRB-2 Exhibit'!$H19)*N('Revenue Requirement'!$P$11:$BN$11='SRB-2 Exhibit'!AR$10))/1000 -> 4.601479292 | AT19: 90.08596244
E20: System Impact(7) | H20: SysImpBase | K20: 399.5323655 | L20: 83.11890092 | N20: =SUMPRODUCT(('Revenue Requirement'!$P$154:$BN$178),N('Revenue Requirement'!$A$154:$A$178='SRB-2 Exhibit'!$H20)*N('Revenue Requirement'!$P$11:$BN$11='SRB-2 Exhibit'!N$10))/1000 -> 0 | O20: =SUMPRODUCT(('Revenue Requirement'!$P$154:$BN$178),N('Revenue Requirement'!$A$154:$A$178='SRB-2 Exhibit'!$H20)*N('Revenue Requirement'!$P$11:$BN$11='SRB-2 Exhibit'!O$10))/1000 -> 0 | P20: =SUMPRODUCT(('Revenue Requirement'!$P$154:$BN$178),N('Revenue Requirement'!$A$154:$A$178='SRB-2 Exhibit'!$H20)*N('Revenue Requirement'!$P$11:$BN$11='SRB-2 Exhibit'!P$10))/1000 -> 0 | Q20: =SUMPRODUCT(('Revenue Requirement'!$P$154:$BN$178),N('Revenue Requirement'!$A$154:$A$178='SRB-2 Exhibit'!$H20)*N('Revenue Requirement'!$P$11:$BN$11='SRB-2 Exhibit'!Q$10))/1000 -> 0 | R20: =SUMPRODUCT(('Revenue Requirement'!$P$154:$BN$178),N('Revenue Requirement'!$A$154:$A$178='SRB-2 Exhibit'!$H20)*N('Revenue Requirement'!$P$11:$BN$11='SRB-2 Exhibit'!R$10))/1000 -> 0 | S20: =SUMPRODUCT(('Revenue Requirement'!$P$154:$BN$178),N('Revenue Requirement'!$A$154:$A$178='SRB-2 Exhibit'!$H20)*N('Revenue Requirement'!$P$11:$BN$11='SRB-2 Exhibit'!S$10))/1000 -> 0 | T20: =SUMPRODUCT(('Revenue Requirement'!$P$154:$BN$178),N('Revenue Requirement'!$A$154:$A$178='SRB-2 Exhibit'!$H20)*N('Revenue Requirement'!$P$11:$BN$11='SRB-2 Exhibit'!T$10))/1000 -> 0 | U20: =SUMPRODUCT(('Revenue Requirement'!$P$154:$BN$178),N('Revenue Requirement'!$A$154:$A$178='SRB-2 Exhibit'!$H20)*N('Revenue Requirement'!$P$11:$BN$11='SRB-2 Exhibit'!U$10))/1000 -> 0 | V20: =SUMPRODUCT(('Revenue Requirement'!$P$154:$BN$178),N('Revenue Requirement'!$A$154:$A$178='SRB-2 Exhibit'!$H20)*N('Revenue Requirement'!$P$11:$BN$11='SRB-2 Exhibit'!V$10))/1000 -> 0 | W20: =SUMPRODUCT(('Revenue Requirement'!$P$154:$BN$178),N('Revenue Requirement'!$A$154:$A$178='SRB-2 Exhibit'!$H20)*N('Revenue Requirement'!$P$11:$BN$11='SRB-2 Exhibit'!W$10))/1000 -> 0 | X20: =SUMPRODUCT(('Revenue Requirement'!$P$154:$BN$178),N('Revenue Requirement'!$A$154:$A$178='SRB-2 Exhibit'!$H20)*N('Revenue Requirement'!$P$11:$BN$11='SRB-2 Exhibit'!X$10))/1000 -> 0 | Y20: =SUMPRODUCT(('Revenue Requirement'!$P$154:$BN$178),N('Revenue Requirement'!$A$154:$A$178='SRB-2 Exhibit'!$H20)*N('Revenue Requirement'!$P$11:$BN$11='SRB-2 Exhibit'!Y$10))/1000 -> 0 | Z20: =SUMPRODUCT(('Revenue Requirement'!$P$154:$BN$178),N('Revenue Requirement'!$A$154:$A$178='SRB-2 Exhibit'!$H20)*N('Revenue Requirement'!$P$11:$BN$11='SRB-2 Exhibit'!Z$10))/1000 -> 0 | AA20: =SUMPRODUCT(('Revenue Requirement'!$P$154:$BN$178),N('Revenue Requirement'!$A$154:$A$178='SRB-2 Exhibit'!$H20)*N('Revenue Requirement'!$P$11:$BN$11='SRB-2 Exhibit'!AA$10))/1000 -> 15.07340616 | AB20: =SUMPRODUCT(('Revenue Requirement'!$P$154:$BN$178),N('Revenue Requirement'!$A$154:$A$178='SRB-2 Exhibit'!$H20)*N('Revenue Requirement'!$P$11:$BN$11='SRB-2 Exhibit'!AB$10))/1000 -> 23.24624107 | AC20: =SUMPRODUCT(('Revenue Requirement'!$P$154:$BN$178),N('Revenue Requirement'!$A$154:$A$178='SRB-2 Exhibit'!$H20)*N('Revenue Requirement'!$P$11:$BN$11='SRB-2 Exhibit'!AC$10))/1000 -> 24.29794611 | AD20: =SUMPRODUCT(('Revenue Requirement'!$P$154:$BN$178),N('Revenue Requirement'!$A$154:$A$178='SRB-2 Exhibit'!$H20)*N('Revenue Requirement'!$P$11:$BN$11='SRB-2 Exhibit'!AD$10))/1000 -> 23.30526752 | AE20: =SUMPRODUCT(('Revenue Requirement'!$P$154:$BN$178),N('Revenue Requirement'!$A$154:$A$178='SRB-2 Exhibit'!$H20)*N('Revenue Requirement'!$P$11:$BN$11='SRB-2 Exhibit'!AE$10))/1000 -> 23.40734309 | AF20: =SUMPRODUCT(('Revenue Requirement'!$P$154:$BN$178),N('Revenue Requirement'!$A$154:$A$178='SRB-2 Exhibit'!$H20)*N('Revenue Requirement'!$P$11:$BN$11='SRB-2 Exhibit'!AF$10))/1000 -> 23.10293266 | AG20: =SUMPRODUCT(('Revenue Requirement'!$P$154:$BN$178),N('Revenue Requirement'!$A$154:$A$178='SRB-2 Exhibit'!$H20)*N('Revenue Requirement'!$P$11:$BN$11='SRB-2 Exhibit'!AG$10))/1000 -> 23.52344927 | AH20: =SUMPRODUCT(('Revenue Requirement'!$P$154:$BN$178),N('Revenue Requirement'!$A$154:$A$178='SRB-2 Exhibit'!$H20)*N('Revenue Requirement'!$P$11:$BN$11='SRB-2 Exhibit'!AH$10))/1000 -> 22.46290806 | AI20: =SUMPRODUCT(('Revenue Requirement'!$P$154:$BN$178),N('Revenue Requirement'!$A$154:$A$178='SRB-2 Exhibit'!$H20)*N('Revenue Requirement'!$P$11:$BN$11='SRB-2 Exhibit'!AI$10))/1000 -> 24.2619619 | AJ20: =SUMPRODUCT(('Revenue Requirement'!$P$154:$BN$178),N('Revenue Requirement'!$A$154:$A$178='SRB-2 Exhibit'!$H20)*N('Revenue Requirement'!$P$11:$BN$11='SRB-2 Exhibit'!AJ$10))/1000 -> 24.42968949 | AK20: =SUMPRODUCT(('Revenue Requirement'!$P$154:$BN$178),N('Revenue Requirement'!$A$154:$A$178='SRB-2 Exhibit'!$H20)*N('Revenue Requirement'!$P$11:$BN$11='SRB-2 Exhibit'!AK$10))/1000 -> 24.88379809 | AL20: =SUMPRODUCT(('Revenue Requirement'!$P$154:$BN$178),N('Revenue Requirement'!$A$154:$A$178='SRB-2 Exhibit'!$H20)*N('Revenue Requirement'!$P$11:$BN$11='SRB-2 Exhibit'!AL$10))/1000 -> 22.05990047 | AM20: =SUMPRODUCT(('Revenue Requirement'!$P$154:$BN$178),N('Revenue Requirement'!$A$154:$A$178='SRB-2 Exhibit'!$H20)*N('Revenue Requirement'!$P$11:$BN$11='SRB-2 Exhibit'!AM$10))/1000 -> 22.57681604 | AN20: =SUMPRODUCT(('Revenue Requirement'!$P$154:$BN$178),N('Revenue Requirement'!$A$154:$A$178='SRB-2 Exhibit'!$H20)*N('Revenue Requirement'!$P$11:$BN$11='SRB-2 Exhibit'!AN$10))/1000 -> 21.26272379 | AO20: =SUMPRODUCT(('Revenue Requirement'!$P$154:$BN$178),N('Revenue Requirement'!$A$154:$A$178='SRB-2 Exhibit'!$H20)*N('Revenue Requirement'!$P$11:$BN$11='SRB-2 Exhibit'!AO$10))/1000 -> 20.86511058 | AP20: =SUMPRODUCT(('Revenue Requirement'!$P$154:$BN$178),N('Revenue Requirement'!$A$154:$A$178='SRB-2 Exhibit'!$H20)*N('Revenue Requirement'!$P$11:$BN$11='SRB-2 Exhibit'!AP$10))/1000 -> 20.49174031 | AQ20: =SUMPRODUCT(('Revenue Requirement'!$P$154:$BN$178),N('Revenue Requirement'!$A$154:$A$178='SRB-2 Exhibit'!$H20)*N('Revenue Requirement'!$P$11:$BN$11='SRB-2 Exhibit'!AQ$10))/1000 -> 21.53445214 | AR20: =SUMPRODUCT(('Revenue Requirement'!$P$154:$BN$178),N('Revenue Requirement'!$A$154:$A$178='SRB-2 Exhibit'!$H20)*N('Revenue Requirement'!$P$11:$BN$11='SRB-2 Exhibit'!AR$10))/1000 -> 18.74667878 | AT20: 399.5323655
E21: Total Incremental Base Rate Revenue Requirements | K21: =+SUM(K14:K20) -> 1634.708736 | L21: 521.5949617 | N21: =+SUM(N14:N20) -> 2.954718103 | O21: =+SUM(O14:O20) -> 36.99561147 | P21: 41.19816699 | Q21: 35.90494971 | R21: 36.29888508 | S21: 37.02500063 | T21: 36.29924638 | U21: 36.83128559 | V21: 37.3870103 | W21: 38.01691606 | X21: 38.20189682 | Y21: 38.49212321 | Z21: 39.11118089 | AA21: 54.81764992 | AB21: 63.63596808 | AC21: 65.35143066 | AD21: 65.05158946 | AE21: 65.87924222 | AF21: 65.38805993 | AG21: 64.62098152 | AH21: 64.40620297 | AI21: 67.2721534 | AJ21: 67.66262663 | AK21: 68.53413292 | AL21: 66.15698926 | AM21: 67.15251957 | AN21: 66.35117681 | AO21: 66.49645648 | AP21: 66.69485832 | AQ21: 68.33847475 | AR21: 66.18123196 | AT21: 1257.595049
E23: Base Rate Revenue from COVB Customers(8) | K23: =SUM(N23:AR23) -> -1984.594234 | L23: =SUMPRODUCT($N23:$AR23,$N$11:$AR$11) -> -648.8389718 | N23: =-Input!R37/1000 -> 0 | O23: =-Input!S37/1000 -> -43.16657906 | P23: =-Input!T37/1000 -> -44.23910127 | Q23: =-Input!U37/1000 -> -44.55786806 | R23: =-Input!V37/1000 -> -49.52199921 | S23: =-Input!W37/1000 -> -53.37933776 | T23: =-Input!X37/1000 -> -54.39339733 | U23: =-Input!Y37/1000 -> -55.39790657 | V23: =-Input!Z37/1000 -> -56.40534673 | W23: =-Input!AA37/1000 -> -57.4146021 | X23: =-Input!AB37/1000 -> -59.03487671 | Y23: =-Input!AC37/1000 -> -60.24349797 | Z23: =-Input!AD37/1000 -> -61.06719789 | AA23: =-Input!AE37/1000 -> -62.05851976 | AB23: =-Input!AF37/1000 -> -63.45196509 | AC23: =-Input!AG37/1000 -> -65.00710988 | AD23: =-Input!AH37/1000 -> -66.61708947 | AE23: =-Input!AI37/1000 -> -67.6621304 | AF23: =-Input!AJ37/1000 -> -69.5636618 | AG23: =-Input!AK37/1000 -> -71.452715 | AH23: =-Input!AL37/1000 -> -72.78126539 | AI23: =-Input!AM37/1000 -> -74.00195099 | AJ23: =-Input!AN37/1000 -> -75.73632388 | AK23: =-Input!AO37/1000 -> -76.8767217 | AL23: =-Input!AP37/1000 -> -78.36725416 | AM23: =-Input!AQ37/1000 -> -79.96393173 | AN23: =-Input!AR37/1000 -> -81.89944238 | AO23: =-Input!AS37/1000 -> -82.9890505 | AP23: =-Input!AT37/1000 -> -84.50214558 | AQ23: =-Input!AU37/1000 -> -85.62652498 | AR23: =-Input!AV37/1000 -> -87.21472039 | AT23: -1467.083219
AT24: 0
E25: Base Rate (Savings)/Cost from COVB Customers(9) | K25: =SUM(N25:AR25) -> -349.8854977 | L25: =SUMPRODUCT($N25:$AR25,$N$11:$AR$11) -> -127.24401 | N25: =N23+N21 -> 2.954718103 | O25: =O23+O21 -> -6.170967597 | P25: -3.040934281 | Q25: -8.652918347 | R25: -13.22311413 | S25: -16.35433713 | T25: -18.09415095 | U25: -18.56662098 | V25: -19.01833643 | W25: -19.39768605 | X25: -20.83297989 | Y25: -21.75137476 | Z25: -21.956017 | AA25: -7.24086984 | AB25: 0.1840029876 | AC25: 0.3443207804 | AD25: -1.565500011 | AE25: -1.782888176 | AF25: -4.175601864 | AG25: -6.831733482 | AH25: -8.375062419 | AI25: -6.729797594 | AJ25: -8.073697256 | AK25: -8.342588783 | AL25: -12.2102649 | AM25: -12.81141216 | AN25: -15.54826558 | AO25: -16.49259402 | AP25: -17.80728726 | AQ25: -17.28805023 | AR25: -21.03348842 | AT25: -209.48817
E27: Clause: Incremental Revenue Requirements(1)
E28: OUC PPA Payments(10) | H28: Clause | K28: =SUM(N28:AR28) -> 21.06402 | L28: =SUMPRODUCT($N28:$AR28,$N$11:$AR$11) -> 18.11524411 | N28: =SUMPRODUCT(('Revenue Requirement'!$P$154:$BN$178),N('Revenue Requirement'!$A$154:$A$178='SRB-2 Exhibit'!$H28)*N('Revenue Requirement'!$P$11:$BN$11='SRB-2 Exhibit'!N$10))/1000+SUMPRODUCT(('Revenue Requirement'!$P$274:$BN$298),N('Revenue Requirement'!$A$274:$A$298='SRB-2 Exhibit'!$H28)*N('Revenue Requirement'!$P$11:$BN$11='SRB-2 Exhibit'!N$10))/1000 -> 0 | O28: =SUMPRODUCT(('Revenue Requirement'!$P$154:$BN$178),N('Revenue Requirement'!$A$154:$A$178='SRB-2 Exhibit'!$H28)*N('Revenue Requirement'!$P$11:$BN$11='SRB-2 Exhibit'!O$10))/1000+SUMPRODUCT(('Revenue Requirement'!$P$274:$BN$298),N('Revenue Requirement'!$A$274:$A$298='SRB-2 Exhibit'!$H28)*N('Revenue Requirement'!$P$11:$BN$11='SRB-2 Exhibit'!O$10))/1000 -> 9.8991 | P28: =SUMPRODUCT(('Revenue Requirement'!$P$154:$BN$178),N('Revenue Requirement'!$A$154:$A$178='SRB-2 Exhibit'!$H28)*N('Revenue Requirement'!$P$11:$BN$11='SRB-2 Exhibit'!P$10))/1000+SUMPRODUCT(('Revenue Requirement'!$P$274:$BN$298),N('Revenue Requirement'!$A$274:$A$298='SRB-2 Exhibit'!$H28)*N('Revenue Requirement'!$P$11:$BN$11='SRB-2 Exhibit'!P$10))/1000 -> 11.16492 | Q28: =SUMPRODUCT(('Revenue Requirement'!$P$154:$BN$178),N('Revenue Requirement'!$A$154:$A$178='SRB-2 Exhibit'!$H28)*N('Revenue Requirement'!$P$11:$BN$11='SRB-2 Exhibit'!Q$10))/1000+SUMPRODUCT(('Revenue Requirement'!$P$274:$BN$298),N('Revenue Requirement'!$A$274:$A$298='SRB-2 Exhibit'!$H28)*N('Revenue Requirement'!$P$11:$BN$11='SRB-2 Exhibit'!Q$10))/1000 -> 0 | R28: =SUMPRODUCT(('Revenue Requirement'!$P$154:$BN$178),N('Revenue Requirement'!$A$154:$A$178='SRB-2 Exhibit'!$H28)*N('Revenue Requirement'!$P$11:$BN$11='SRB-2 Exhibit'!R$10))/1000+SUMPRODUCT(('Revenue Requirement'!$P$274:$BN$298),N('Revenue Requirement'!$A$274:$A$298='SRB-2 Exhibit'!$H28)*N('Revenue Requirement'!$P$11:$BN$11='SRB-2 Exhibit'!R$10))/1000 -> 0 | S28: =SUMPRODUCT(('Revenue Requirement'!$P$154:$BN$178),N('Revenue Requirement'!$A$154:$A$178='SRB-2 Exhibit'!$H28)*N('Revenue Requirement'!$P$11:$BN$11='SRB-2 Exhibit'!S$10))/1000+SUMPRODUCT(('Revenue Requirement'!$P$274:$BN$298),N('Revenue Requirement'!$A$274:$A$298='SRB-2 Exhibit'!$H28)*N('Revenue Requirement'!$P$11:$BN$11='SRB-2 Exhibit'!S$10))/1000 -> 0 | T28: =SUMPRODUCT(('Revenue Requirement'!$P$154:$BN$178),N('Revenue Requirement'!$A$154:$A$178='SRB-2 Exhibit'!$H28)*N('Revenue Requirement'!$P$11:$BN$11='SRB-2 Exhibit'!T$10))/1000+SUMPRODUCT(('Revenue Requirement'!$P$274:$BN$298),N('Revenue Requirement'!$A$274:$A$298='SRB-2 Exhibit'!$H28)*N('Revenue Requirement'!$P$11:$BN$11='SRB-2 Exhibit'!T$10))/1000 -> 0 | U28: =SUMPRODUCT(('Revenue Requirement'!$P$154:$BN$178),N('Revenue Requirement'!$A$154:$A$178='SRB-2 Exhibit'!$H28)*N('Revenue Requirement'!$P$11:$BN$11='SRB-2 Exhibit'!U$10))/1000+SUMPRODUCT(('Revenue Requirement'!$P$274:$BN$298),N('Revenue Requirement'!$A$274:$A$298='SRB-2 Exhibit'!$H28)*N('Revenue Requirement'!$P$11:$BN$11='SRB-2 Exhibit'!U$10))/1000 -> 0 | V28: =SUMPRODUCT(('Revenue Requirement'!$P$154:$BN$178),N('Revenue Requirement'!$A$154:$A$178='SRB-2 Exhibit'!$H28)*N('Revenue Requirement'!$P$11:$BN$11='SRB-2 Exhibit'!V$10))/1000+SUMPRODUCT(('Revenue Requirement'!$P$274:$BN$298),N('Revenue Requirement'!$A$274:$A$298='SRB-2 Exhibit'!$H28)*N('Revenue Requirement'!$P$11:$BN$11='SRB-2 Exhibit'!V$10))/1000 -> 0 | W28: =SUMPRODUCT(('Revenue Requirement'!$P$154:$BN$178),N('Revenue Requirement'!$A$154:$A$178='SRB-2 Exhibit'!$H28)*N('Revenue Requirement'!$P$11:$BN$11='SRB-2 Exhibit'!W$10))/1000+SUMPRODUCT(('Revenue Requirement'!$P$274:$BN$298),N('Revenue Requirement'!$A$274:$A$298='SRB-2 Exhibit'!$H28)*N('Revenue Requirement'!$P$11:$BN$11='SRB-2 Exhibit'!W$10))/1000 -> 0 | X28: =SUMPRODUCT(('Revenue Requirement'!$P$154:$BN$178),N('Revenue Requirement'!$A$154:$A$178='SRB-2 Exhibit'!$H28)*N('Revenue Requirement'!$P$11:$BN$11='SRB-2 Exhibit'!X$10))/1000+SUMPRODUCT(('Revenue Requirement'!$P$274:$BN$298),N('Revenue Requirement'!$A$274:$A$298='SRB-2 Exhibit'!$H28)*N('Revenue Requirement'!$P$11:$BN$11='SRB-2 Exhibit'!X$10))/1000 -> 0 | Y28: =SUMPRODUCT(('Revenue Requirement'!$P$154:$BN$178),N('Revenue Requirement'!$A$154:$A$178='SRB-2 Exhibit'!$H28)*N('Revenue Requirement'!$P$11:$BN$11='SRB-2 Exhibit'!Y$10))/1000+SUMPRODUCT(('Revenue Requirement'!$P$274:$BN$298),N('Revenue Requirement'!$A$274:$A$298='SRB-2 Exhibit'!$H28)*N('Revenue Requirement'!$P$11:$BN$11='SRB-2 Exhibit'!Y$10))/1000 -> 0 | Z28: =SUMPRODUCT(('Revenue Requirement'!$P$154:$BN$178),N('Revenue Requirement'!$A$154:$A$178='SRB-2 Exhibit'!$H28)*N('Revenue Requirement'!$P$11:$BN$11='SRB-2 Exhibit'!Z$10))/1000+SUMPRODUCT(('Revenue Requirement'!$P$274:$BN$298),N('Revenue Requirement'!$A$274:$A$298='SRB-2 Exhibit'!$H28)*N('Revenue Requirement'!$P$11:$BN$11='SRB-2 Exhibit'!Z$10))/1000 -> 0 | AA28: =SUMPRODUCT(('Revenue Requirement'!$P$154:$BN$178),N('Revenue Requirement'!$A$154:$A$178='SRB-2 Exhibit'!$H28)*N('Revenue Requirement'!$P$11:$BN$11='SRB-2 Exhibit'!AA$10))/1000+SUMPRODUCT(('Revenue Requirement'!$P$274:$BN$298),N('Revenue Requirement'!$A$274:$A$298='SRB-2 Exhibit'!$H28)*N('Revenue Requirement'!$P$11:$BN$11='SRB-2 Exhibit'!AA$10))/1000 -> 0 | AB28: =SUMPRODUCT(('Revenue Requirement'!$P$154:$BN$178),N('Revenue Requirement'!$A$154:$A$178='SRB-2 Exhibit'!$H28)*N('Revenue Requirement'!$P$11:$BN$11='SRB-2 Exhibit'!AB$10))/1000+SUMPRODUCT(('Revenue Requirement'!$P$274:$BN$298),N('Revenue Requirement'!$A$274:$A$298='SRB-2 Exhibit'!$H28)*N('Revenue Requirement'!$P$11:$BN$11='SRB-2 Exhibit'!AB$10))/1000 -> 0 | AC28: =SUMPRODUCT(('Revenue Requirement'!$P$154:$BN$178),N('Revenue Requirement'!$A$154:$A$178='SRB-2 Exhibit'!$H28)*N('Revenue Requirement'!$P$11:$BN$11='SRB-2 Exhibit'!AC$10))/1000+SUMPRODUCT(('Revenue Requirement'!$P$274:$BN$298),N('Revenue Requirement'!$A$274:$A$298='SRB-2 Exhibit'!$H28)*N('Revenue Requirement'!$P$11:$BN$11='SRB-2 Exhibit'!AC$10))/1000 -> 0 | AD28: =SUMPRODUCT(('Revenue Requirement'!$P$154:$BN$178),N('Revenue Requirement'!$A$154:$A$178='SRB-2 Exhibit'!$H28)*N('Revenue Requirement'!$P$11:$BN$11='SRB-2 Exhibit'!AD$10))/1000+SUMPRODUCT(('Revenue Requirement'!$P$274:$BN$298),N('Revenue Requirement'!$A$274:$A$298='SRB-2 Exhibit'!$H28)*N('Revenue Requirement'!$P$11:$BN$11='SRB-2 Exhibit'!AD$10))/1000 -> 0 | AE28: =SUMPRODUCT(('Revenue Requirement'!$P$154:$BN$178),N('Revenue Requirement'!$A$154:$A$178='SRB-2 Exhibit'!$H28)*N('Revenue Requirement'!$P$11:$BN$11='SRB-2 Exhibit'!AE$10))/1000+SUMPRODUCT(('Revenue Requirement'!$P$274:$BN$298),N('Revenue Requirement'!$A$274:$A$298='SRB-2 Exhibit'!$H28)*N('Revenue Requirement'!$P$11:$BN$11='SRB-2 Exhibit'!AE$10))/1000 -> 0 | AF28: =SUMPRODUCT(('Revenue Requirement'!$P$154:$BN$178),N('Revenue Requirement'!$A$154:$A$178='SRB-2 Exhibit'!$H28)*N('Revenue Requirement'!$P$11:$BN$11='SRB-2 Exhibit'!AF$10))/1000+SUMPRODUCT(('Revenue Requirement'!$P$274:$BN$298),N('Revenue Requirement'!$A$274:$A$298='SRB-2 Exhibit'!$H28)*N('Revenue Requirement'!$P$11:$BN$11='SRB-2 Exhibit'!AF$10))/1000 -> 0 | AG28: =SUMPRODUCT(('Revenue Requirement'!$P$154:$BN$178),N('Revenue Requirement'!$A$154:$A$178='SRB-2 Exhibit'!$H28)*N('Revenue Requirement'!$P$11:$BN$11='SRB-2 Exhibit'!AG$10))/1000+SUMPRODUCT(('Revenue Requirement'!$P$274:$BN$298),N('Revenue Requirement'!$A$274:$A$298='SRB-2 Exhibit'!$H28)*N('Revenue Requirement'!$P$11:$BN$11='SRB-2 Exhibit'!AG$10))/1000 -> 0 | AH28: =SUMPRODUCT(('Revenue Requirement'!$P$154:$BN$178),N('Revenue Requirement'!$A$154:$A$178='SRB-2 Exhibit'!$H28)*N('Revenue Requirement'!$P$11:$BN$11='SRB-2 Exhibit'!AH$10))/1000+SUMPRODUCT(('Revenue Requirement'!$P$274:$BN$298),N('Revenue Requirement'!$A$274:$A$298='SRB-2 Exhibit'!$H28)*N('Revenue Requirement'!$P$11:$BN$11='SRB-2 Exhibit'!AH$10))/1000 -> 0 | AI28: =SUMPRODUCT(('Revenue Requirement'!$P$154:$BN$178),N('Revenue Requirement'!$A$154:$A$178='SRB-2 Exhibit'!$H28)*N('Revenue Requirement'!$P$11:$BN$11='SRB-2 Exhibit'!AI$10))/1000+SUMPRODUCT(('Revenue Requirement'!$P$274:$BN$298),N('Revenue Requirement'!$A$274:$A$298='SRB-2 Exhibit'!$H28)*N('Revenue Requirement'!$P$11:$BN$11='SRB-2 Exhibit'!AI$10))/1000 -> 0 | AJ28: =SUMPRODUCT(('Revenue Requirement'!$P$154:$BN$178),N('Revenue Requirement'!$A$154:$A$178='SRB-2 Exhibit'!$H28)*N('Revenue Requirement'!$P$11:$BN$11='SRB-2 Exhibit'!AJ$10))/1000+SUMPRODUCT(('Revenue Requirement'!$P$274:$BN$298),N('Revenue Requirement'!$A$274:$A$298='SRB-2 Exhibit'!$H28)*N('Revenue Requirement'!$P$11:$BN$11='SRB-2 Exhibit'!AJ$10))/1000 -> 0 | AK28: =SUMPRODUCT(('Revenue Requirement'!$P$154:$BN$178),N('Revenue Requirement'!$A$154:$A$178='SRB-2 Exhibit'!$H28)*N('Revenue Requirement'!$P$11:$BN$11='SRB-2 Exhibit'!AK$10))/1000+SUMPRODUCT(('Revenue Requirement'!$P$274:$BN$298),N('Revenue Requirement'!$A$274:$A$298='SRB-2 Exhibit'!$H28)*N('Revenue Requirement'!$P$11:$BN$11='SRB-2 Exhibit'!AK$10))/1000 -> 0 | AL28: =SUMPRODUCT(('Revenue Requirement'!$P$154:$BN$178),N('Revenue Requirement'!$A$154:$A$178='SRB-2 Exhibit'!$H28)*N('Revenue Requirement'!$P$11:$BN$11='SRB-2 Exhibit'!AL$10))/1000+SUMPRODUCT(('Revenue Requirement'!$P$274:$BN$298),N('Revenue Requirement'!$A$274:$A$298='SRB-2 Exhibit'!$H28)*N('Revenue Requirement'!$P$11:$BN$11='SRB-2 Exhibit'!AL$10))/1000 -> 0 | AM28: =SUMPRODUCT(('Revenue Requirement'!$P$154:$BN$178),N('Revenue Requirement'!$A$154:$A$178='SRB-2 Exhibit'!$H28)*N('Revenue Requirement'!$P$11:$BN$11='SRB-2 Exhibit'!AM$10))/1000+SUMPRODUCT(('Revenue Requirement'!$P$274:$BN$298),N('Revenue Requirement'!$A$274:$A$298='SRB-2 Exhibit'!$H28)*N('Revenue Requirement'!$P$11:$BN$11='SRB-2 Exhibit'!AM$10))/1000 -> 0 | AN28: =SUMPRODUCT(('Revenue Requirement'!$P$154:$BN$178),N('Revenue Requirement'!$A$154:$A$178='SRB-2 Exhibit'!$H28)*N('Revenue Requirement'!$P$11:$BN$11='SRB-2 Exhibit'!AN$10))/1000+SUMPRODUCT(('Revenue Requirement'!$P$274:$BN$298),N('Revenue Requirement'!$A$274:$A$298='SRB-2 Exhibit'!$H28)*N('Revenue Requirement'!$P$11:$BN$11='SRB-2 Exhibit'!AN$10))/1000 -> 0 | AO28: =SUMPRODUCT(('Revenue Requirement'!$P$154:$BN$178),N('Revenue Requirement'!$A$154:$A$178='SRB-2 Exhibit'!$H28)*N('Revenue Requirement'!$P$11:$BN$11='SRB-2 Exhibit'!AO$10))/1000+SUMPRODUCT(('Revenue Requirement'!$P$274:$BN$298),N('Revenue Requirement'!$A$274:$A$298='SRB-2 Exhibit'!$H28)*N('Revenue Requirement'!$P$11:$BN$11='SRB-2 Exhibit'!AO$10))/1000 -> 0 | AP28: =SUMPRODUCT(('Revenue Requirement'!$P$154:$BN$178),N('Revenue Requirement'!$A$154:$A$178='SRB-2 Exhibit'!$H28)*N('Revenue Requirement'!$P$11:$BN$11='SRB-2 Exhibit'!AP$10))/1000+SUMPRODUCT(('Revenue Requirement'!$P$274:$BN$298),N('Revenue Requirement'!$A$274:$A$298='SRB-2 Exhibit'!$H28)*N('Revenue Requirement'!$P$11:$BN$11='SRB-2 Exhibit'!AP$10))/1000 -> 0 | AQ28: =SUMPRODUCT(('Revenue Requirement'!$P$154:$BN$178),N('Revenue Requirement'!$A$154:$A$178='SRB-2 Exhibit'!$H28)*N('Revenue Requirement'!$P$11:$BN$11='SRB-2 Exhibit'!AQ$10))/1000+SUMPRODUCT(('Revenue Requirement'!$P$274:$BN$298),N('Revenue Requirement'!$A$274:$A$298='SRB-2 Exhibit'!$H28)*N('Revenue Requirement'!$P$11:$BN$11='SRB-2 Exhibit'!AQ$10))/1000 -> 0 | AR28: =SUMPRODUCT(('Revenue Requirement'!$P$154:$BN$178),N('Revenue Requirement'!$A$154:$A$178='SRB-2 Exhibit'!$H28)*N('Revenue Requirement'!$P$11:$BN$11='SRB-2 Exhibit'!AR$10))/1000+SUMPRODUCT(('Revenue Requirement'!$P$274:$BN$298),N('Revenue Requirement'!$A$274:$A$298='SRB-2 Exhibit'!$H28)*N('Revenue Requirement'!$P$11:$BN$11='SRB-2 Exhibit'!AR$10))/1000 -> 0 | AT28: =SUM(Y28:AR28) -> 0
E29: System Impact(11) | H29: SysImpClau | K29: =SUM(N29:AR29) -> 1072.13806 | L29: =SUMPRODUCT($N29:$AR29,$N$11:$AR$11) -> 314.9969995 | N29: =SUMPRODUCT(('Revenue Requirement'!$P$154:$BN$178),N('Revenue Requirement'!$A$154:$A$178='SRB-2 Exhibit'!$H29)*N('Revenue Requirement'!$P$11:$BN$11='SRB-2 Exhibit'!N$10))/1000 -> 0 | O29: =SUMPRODUCT(('Revenue Requirement'!$P$154:$BN$178),N('Revenue Requirement'!$A$154:$A$178='SRB-2 Exhibit'!$H29)*N('Revenue Requirement'!$P$11:$BN$11='SRB-2 Exhibit'!O$10))/1000 -> 20.39940958 | P29: =SUMPRODUCT(('Revenue Requirement'!$P$154:$BN$178),N('Revenue Requirement'!$A$154:$A$178='SRB-2 Exhibit'!$H29)*N('Revenue Requirement'!$P$11:$BN$11='SRB-2 Exhibit'!P$10))/1000 -> 13.76516086 | Q29: =SUMPRODUCT(('Revenue Requirement'!$P$154:$BN$178),N('Revenue Requirement'!$A$154:$A$178='SRB-2 Exhibit'!$H29)*N('Revenue Requirement'!$P$11:$BN$11='SRB-2 Exhibit'!Q$10))/1000 -> 18.22 | R29: =SUMPRODUCT(('Revenue Requirement'!$P$154:$BN$178),N('Revenue Requirement'!$A$154:$A$178='SRB-2 Exhibit'!$H29)*N('Revenue Requirement'!$P$11:$BN$11='SRB-2 Exhibit'!R$10))/1000 -> 17.74 | S29: =SUMPRODUCT(('Revenue Requirement'!$P$154:$BN$178),N('Revenue Requirement'!$A$154:$A$178='SRB-2 Exhibit'!$H29)*N('Revenue Requirement'!$P$11:$BN$11='SRB-2 Exhibit'!S$10))/1000 -> 22.02 | T29: =SUMPRODUCT(('Revenue Requirement'!$P$154:$BN$178),N('Revenue Requirement'!$A$154:$A$178='SRB-2 Exhibit'!$H29)*N('Revenue Requirement'!$P$11:$BN$11='SRB-2 Exhibit'!T$10))/1000 -> 21.02 | U29: =SUMPRODUCT(('Revenue Requirement'!$P$154:$BN$178),N('Revenue Requirement'!$A$154:$A$178='SRB-2 Exhibit'!$H29)*N('Revenue Requirement'!$P$11:$BN$11='SRB-2 Exhibit'!U$10))/1000 -> 23.17 | V29: =SUMPRODUCT(('Revenue Requirement'!$P$154:$BN$178),N('Revenue Requirement'!$A$154:$A$178='SRB-2 Exhibit'!$H29)*N('Revenue Requirement'!$P$11:$BN$11='SRB-2 Exhibit'!V$10))/1000 -> 24.78 | W29: =SUMPRODUCT(('Revenue Requirement'!$P$154:$BN$178),N('Revenue Requirement'!$A$154:$A$178='SRB-2 Exhibit'!$H29)*N('Revenue Requirement'!$P$11:$BN$11='SRB-2 Exhibit'!W$10))/1000 -> 29.56245919 | X29: =SUMPRODUCT(('Revenue Requirement'!$P$154:$BN$178),N('Revenue Requirement'!$A$154:$A$178='SRB-2 Exhibit'!$H29)*N('Revenue Requirement'!$P$11:$BN$11='SRB-2 Exhibit'!X$10))/1000 -> 26.55 | Y29: =SUMPRODUCT(('Revenue Requirement'!$P$154:$BN$178),N('Revenue Requirement'!$A$154:$A$178='SRB-2 Exhibit'!$H29)*N('Revenue Requirement'!$P$11:$BN$11='SRB-2 Exhibit'!Y$10))/1000 -> 29.45 | Z29: =SUMPRODUCT(('Revenue Requirement'!$P$154:$BN$178),N('Revenue Requirement'!$A$154:$A$178='SRB-2 Exhibit'!$H29)*N('Revenue Requirement'!$P$11:$BN$11='SRB-2 Exhibit'!Z$10))/1000 -> 34.16102993 | AA29: =SUMPRODUCT(('Revenue Requirement'!$P$154:$BN$178),N('Revenue Requirement'!$A$154:$A$178='SRB-2 Exhibit'!$H29)*N('Revenue Requirement'!$P$11:$BN$11='SRB-2 Exhibit'!AA$10))/1000 -> 31.23 | AB29: =SUMPRODUCT(('Revenue Requirement'!$P$154:$BN$178),N('Revenue Requirement'!$A$154:$A$178='SRB-2 Exhibit'!$H29)*N('Revenue Requirement'!$P$11:$BN$11='SRB-2 Exhibit'!AB$10))/1000 -> 32.52 | AC29: =SUMPRODUCT(('Revenue Requirement'!$P$154:$BN$178),N('Revenue Requirement'!$A$154:$A$178='SRB-2 Exhibit'!$H29)*N('Revenue Requirement'!$P$11:$BN$11='SRB-2 Exhibit'!AC$10))/1000 -> 31.62 | AD29: =SUMPRODUCT(('Revenue Requirement'!$P$154:$BN$178),N('Revenue Requirement'!$A$154:$A$178='SRB-2 Exhibit'!$H29)*N('Revenue Requirement'!$P$11:$BN$11='SRB-2 Exhibit'!AD$10))/1000 -> 34.77 | AE29: =SUMPRODUCT(('Revenue Requirement'!$P$154:$BN$178),N('Revenue Requirement'!$A$154:$A$178='SRB-2 Exhibit'!$H29)*N('Revenue Requirement'!$P$11:$BN$11='SRB-2 Exhibit'!AE$10))/1000 -> 37.22 | AF29: =SUMPRODUCT(('Revenue Requirement'!$P$154:$BN$178),N('Revenue Requirement'!$A$154:$A$178='SRB-2 Exhibit'!$H29)*N('Revenue Requirement'!$P$11:$BN$11='SRB-2 Exhibit'!AF$10))/1000 -> 38.2 | AG29: =SUMPRODUCT(('Revenue Requirement'!$P$154:$BN$178),N('Revenue Requirement'!$A$154:$A$178='SRB-2 Exhibit'!$H29)*N('Revenue Requirement'!$P$11:$BN$11='SRB-2 Exhibit'!AG$10))/1000 -> 40.31 | AH29: =SUMPRODUCT(('Revenue Requirement'!$P$154:$BN$178),N('Revenue Requirement'!$A$154:$A$178='SRB-2 Exhibit'!$H29)*N('Revenue Requirement'!$P$11:$BN$11='SRB-2 Exhibit'!AH$10))/1000 -> 38.95 | AI29: =SUMPRODUCT(('Revenue Requirement'!$P$154:$BN$178),N('Revenue Requirement'!$A$154:$A$178='SRB-2 Exhibit'!$H29)*N('Revenue Requirement'!$P$11:$BN$11='SRB-2 Exhibit'!AI$10))/1000 -> 41.68 | AJ29: =SUMPRODUCT(('Revenue Requirement'!$P$154:$BN$178),N('Revenue Requirement'!$A$154:$A$178='SRB-2 Exhibit'!$H29)*N('Revenue Requirement'!$P$11:$BN$11='SRB-2 Exhibit'!AJ$10))/1000 -> 44.03 | AK29: =SUMPRODUCT(('Revenue Requirement'!$P$154:$BN$178),N('Revenue Requirement'!$A$154:$A$178='SRB-2 Exhibit'!$H29)*N('Revenue Requirement'!$P$11:$BN$11='SRB-2 Exhibit'!AK$10))/1000 -> 46.55 | AL29: =SUMPRODUCT(('Revenue Requirement'!$P$154:$BN$178),N('Revenue Requirement'!$A$154:$A$178='SRB-2 Exhibit'!$H29)*N('Revenue Requirement'!$P$11:$BN$11='SRB-2 Exhibit'!AL$10))/1000 -> 45.99 | AM29: =SUMPRODUCT(('Revenue Requirement'!$P$154:$BN$178),N('Revenue Requirement'!$A$154:$A$178='SRB-2 Exhibit'!$H29)*N('Revenue Requirement'!$P$11:$BN$11='SRB-2 Exhibit'!AM$10))/1000 -> 47.22 | AN29: =SUMPRODUCT(('Revenue Requirement'!$P$154:$BN$178),N('Revenue Requirement'!$A$154:$A$178='SRB-2 Exhibit'!$H29)*N('Revenue Requirement'!$P$11:$BN$11='SRB-2 Exhibit'!AN$10))/1000 -> 53.07 | AO29: =SUMPRODUCT(('Revenue Requirement'!$P$154:$BN$178),N('Revenue Requirement'!$A$154:$A$178='SRB-2 Exhibit'!$H29)*N('Revenue Requirement'!$P$11:$BN$11='SRB-2 Exhibit'!AO$10))/1000 -> 53.66 | AP29: =SUMPRODUCT(('Revenue Requirement'!$P$154:$BN$178),N('Revenue Requirement'!$A$154:$A$178='SRB-2 Exhibit'!$H29)*N('Revenue Requirement'!$P$11:$BN$11='SRB-2 Exhibit'!AP$10))/1000 -> 56.67 | AQ29: =SUMPRODUCT(('Revenue Requirement'!$P$154:$BN$178),N('Revenue Requirement'!$A$154:$A$178='SRB-2 Exhibit'!$H29)*N('Revenue Requirement'!$P$11:$BN$11='SRB-2 Exhibit'!AQ$10))/1000 -> 60.25 | AR29: =SUMPRODUCT(('Revenue Requirement'!$P$154:$BN$178),N('Revenue Requirement'!$A$154:$A$178='SRB-2 Exhibit'!$H29)*N('Revenue Requirement'!$P$11:$BN$11='SRB-2 Exhibit'!AR$10))/1000 -> 57.36 | AT29: =SUM(Y29:AR29) -> 854.9110299
E30: Total Incremental Clause Revenue Requirements | K30: =+SUM(K28:K29) -> 1093.20208 | L30: =SUMPRODUCT($N30:$AR30,$N$11:$AR$11) -> 333.1122436 | N30: =+SUM(N28:N29) -> 0 | O30: 30.29850958 | P30: 24.93008086 | Q30: 18.22 | R30: 17.74 | S30: 22.02 | T30: 21.02 | U30: 23.17 | V30: 24.78 | W30: 29.56245919 | X30: 26.55 | Y30: 29.45 | Z30: 34.16102993 | AA30: 31.23 | AB30: 32.52 | AC30: 31.62 | AD30: 34.77 | AE30: 37.22 | AF30: 38.2 | AG30: 40.31 | AH30: 38.95 | AI30: 41.68 | AJ30: 44.03 | AK30: 46.55 | AL30: 45.99 | AM30: 47.22 | AN30: 53.07 | AO30: 53.66 | AP30: 56.67 | AQ30: 60.25 | AR30: 57.36 | AT30: 854.9110299
E32: Clause Revenue from COVB customers(12) | K32: =SUM(N32:AR32) -> -1100.009169 | L32: =SUMPRODUCT($N32:$AR32,$N$11:$AR$11) -> -340.992774 | N32: =-Input!R36/1000 -> 0 | O32: =-Input!S36/1000 -> -24.11091118 | P32: =-Input!T36/1000 -> -24.32583336 | Q32: =-Input!U36/1000 -> -24.71741819 | R32: =-Input!V36/1000 -> -24.47959397 | S32: =-Input!W36/1000 -> -25.06927611 | T32: =-Input!X36/1000 -> -25.33002023 | U32: =-Input!Y36/1000 -> -25.50909482 | V32: =-Input!Z36/1000 -> -26.39311091 | W32: =-Input!AA36/1000 -> -27.22137447 | X32: =-Input!AB36/1000 -> -28.05002119 | Y32: =-Input!AC36/1000 -> -29.044356 | Z32: =-Input!AD36/1000 -> -30.146494 | AA32: =-Input!AE36/1000 -> -31.15510025 | AB32: =-Input!AF36/1000 -> -32.23292862 | AC32: =-Input!AG36/1000 -> -33.25421835 | AD32: =-Input!AH36/1000 -> -34.3159789 | AE32: =-Input!AI36/1000 -> -35.81877783 | AF32: =-Input!AJ36/1000 -> -38.44725809 | AG32: =-Input!AK36/1000 -> -39.96442517 | AH32: =-Input!AL36/1000 -> -41.29190487 | AI32: =-Input!AM36/1000 -> -42.41301757 | AJ32: =-Input!AN36/1000 -> -43.72374892 | AK32: =-Input!AO36/1000 -> -45.13777681 | AL32: =-Input!AP36/1000 -> -45.76791702 | AM32: =-Input!AQ36/1000 -> -48.69358217 | AN32: =-Input!AR36/1000 -> -50.94610063 | AO32: =-Input!AS36/1000 -> -52.56404546 | AP32: =-Input!AT36/1000 -> -54.52142933 | AQ32: =-Input!AU36/1000 -> -56.80308338 | AR32: =-Input!AV36/1000 -> -58.56037166 | AT32: -844.802515
E34: Clause (Savings)/Cost from COVB Customers(13) | K34: =SUM(N34:AR34) -> -6.807089906 | L34: =SUMPRODUCT($N34:$AR34,$N$11:$AR$11) -> -7.880530386 | N34: =N32+N30 -> 0 | O34: =O32+O30 -> 6.187598391 | P34: 0.6042474929 | Q34: -6.497418185 | R34: -6.739593973 | S34: -3.049276115 | T34: -4.310020235 | U34: -2.339094823 | V34: -1.613110913 | W34: 2.341084721 | X34: -1.500021187 | Y34: 0.4056440046 | Z34: 4.014535934 | AA34: 0.07489974941 | AB34: 0.2870713817 | AC34: -1.634218351 | AD34: 0.454021101 | AE34: 1.401222172 | AF34: -0.247258093 | AG34: 0.3455748346 | AH34: -2.341904865 | AI34: -0.7330175687 | AJ34: 0.3062510823 | AK34: 1.412223185 | AL34: 0.2220829813 | AM34: -1.473582173 | AN34: 2.123899373 | AO34: 1.095954536 | AP34: 2.148570672 | AQ34: 3.446916623 | AR34: -1.200371658 | AT34: 10.10851492
E36: Total Net Customer (Savings)/Cost(14) | K36: =SUM(N36:AR36) -> -356.6925876 | L36: =SUMPRODUCT($N36:$AR36,$N$11:$AR$11) -> -135.1245404 | N36: =N34+N25 -> 2.954718103 | O36: 0.01663079469 | P36: -2.436686788 | Q36: -15.15033653 | R36: -19.9627081 | S36: -19.40361324 | T36: -22.40417118 | U36: -20.9057158 | V36: -20.63144734 | W36: -17.05660133 | X36: -22.33300108 | Y36: -21.34573076 | Z36: -17.94148106 | AA36: -7.165970091 | AB36: 0.4710743693 | AC36: -1.28989757 | AD36: -1.11147891 | AE36: -0.3816660045 | AF36: -4.422859957 | AG36: -6.486158647 | AH36: -10.71696728 | AI36: -7.462815163 | AJ36: -7.767446174 | AK36: -6.930365598 | AL36: -11.98818192 | AM36: -14.28499434 | AN36: -13.4243662 | AO36: -15.39663948 | AP36: -15.65871659 | AQ36: -13.8411336 | AR36: -22.23386008 | AS36: 0 | AT36: -199.3796551
E38: Check | N38: =ROUND(N36*1000-'Revenue Requirement'!P58,0) -> 0 | O38: =ROUND(O36*1000-'Revenue Requirement'!Q58,0) -> 0 | P38: =ROUND(P36*1000-'Revenue Requirement'!R58,0) -> 0 | Q38: =ROUND(Q36*1000-'Revenue Requirement'!S58,0) -> 0 | R38: =ROUND(R36*1000-'Revenue Requirement'!T58,0) -> 0 | S38: =ROUND(S36*1000-'Revenue Requirement'!U58,0) -> 0 | T38: =ROUND(T36*1000-'Revenue Requirement'!V58,0) -> 0 | U38: =ROUND(U36*1000-'Revenue Requirement'!W58,0) -> 0 | V38: =ROUND(V36*1000-'Revenue Requirement'!X58,0) -> 0 | W38: =ROUND(W36*1000-'Revenue Requirement'!Y58,0) -> 0 | X38: =ROUND(X36*1000-'Revenue Requirement'!Z58,0) -> 0 | Y38: =ROUND(Y36*1000-'Revenue Requirement'!AA58,0) -> 0 | Z38: =ROUND(Z36*1000-'Revenue Requirement'!AB58,0) -> 0 | AA38: =ROUND(AA36*1000-'Revenue Requirement'!AC58,0) -> 0 | AB38: =ROUND(AB36*1000-'Revenue Requirement'!AD58,0) -> 0 | AC38: =ROUND(AC36*1000-'Revenue Requirement'!AE58,0) -> 0 | AD38: =ROUND(AD36*1000-'Revenue Requirement'!AF58,0) -> 0 | AE38: =ROUND(AE36*1000-'Revenue Requirement'!AG58,0) -> 0 | AF38: =ROUND(AF36*1000-'Revenue Requirement'!AH58,0) -> 0 | AG38: =ROUND(AG36*1000-'Revenue Requirement'!AI58,0) -> 0 | AH38: =ROUND(AH36*1000-'Revenue Requirement'!AJ58,0) -> 0 | AI38: =ROUND(AI36*1000-'Revenue Requirement'!AK58,0) -> 0 | AJ38: =ROUND(AJ36*1000-'Revenue Requirement'!AL58,0) -> 0 | AK38: =ROUND(AK36*1000-'Revenue Requirement'!AM58,0) -> 0 | AL38: =ROUND(AL36*1000-'Revenue Requirement'!AN58,0) -> 0 | AM38: =ROUND(AM36*1000-'Revenue Requirement'!AO58,0) -> 0 | AN38: =ROUND(AN36*1000-'Revenue Requirement'!AP58,0) -> 0 | AO38: =ROUND(AO36*1000-'Revenue Requirement'!AQ58,0) -> 0 | AP38: =ROUND(AP36*1000-'Revenue Requirement'!AR58,0) -> 0 | AQ38: =ROUND(AQ36*1000-'Revenue Requirement'!AS58,0) -> 0 | AR38: =ROUND(AR36*1000-'Revenue Requirement'!AT58,0) -> 0 | AS38: =ROUND(AS36*1000-'Revenue Requirement'!AU58,0) -> -35395
D42: 1) | E42: Incremental Revenue Requirement represents the difference between the Revenue Requirement with and without the Transaction.
D43: 2) | E43: Represents FPL's estimated incremental Operations and Maintenance cost for operating COVB’s system.
D44: 3) | E44: Incremental D&A associated with the acquired COVB's assets, incremental capital expenditures to improve COVB's system and the asset acquisition adjustment.
D45: 4) | E45: Interest expense assumes 4.88% cost of debt and 40.4% debt to investor capital ratio.
D46: 5) | E46: Return on Equity assumes 10.55% cost of equity and 59.6% equity to investor capital ratio.
D47: 6) | E47: Income tax assumes blended state and federal tax rate of 25.345%.
D48: 7) | E48: Incremental fixed costs and capital for generation needed to serve Vero's load.
D49: 8) | E49: Base rate revenue from COVB's customers at FPL’s forecasted rates.
D50: 9) | E50: Incremental revenue requirements netted against incremental revenue
D51: 10) | E51: Expenses associated with power purchase agreement with Orlando Utilities Commission
D52: 11) | E52: System impacts include incremental effects on fuel, emissions, variable O&M, short-term PPAs, and gas transportation.
D53: 12) | E53: Clause revenue from COVB's customers at FPL’s forecasted rates.
D54: 13) | E54: Incremental clause revenue requirements netted against incremental clause revenue.
D55: 14) | E55: Total Net Customer Costs / (Savings) reflect the sum of base and clause net revenue requirement.

Sheet Assumptions
E1: FPL 002316
E2: 20170235-EI
A7: GENERAL ASSUMPTIONS
B9: PROJECT TITLE: | D9: Vero Beach
H10: =Input!M13 -> $ thousands
G11: CPVRR: | H11: ='Revenue Requirement'!$K$44 -> -135124.5404 | I11: unfavorable / (favorable)
B13: DATES
B14: Model Start Year | D14: 2018
B15: Discount Date | D15: 2018-01-01
B16: Inflation Base Year | D16: 2018
A19: I) | B19: TAX RATES
B20: State Income Tax Rate | E20: 0.055
B21: Federal Income Tax Rate | E21: 0.21
B22: Blended Income Tax Rate | E22: =((1-E20)*E21)+E20 -> 0.25345
A24: II) | B24: COST OF CAPITAL
D27: ASSETS | E27: WTD COST | F27: UNWTD AFTER | G27: WTD AFTER | H27: WTD PRE
B28: SOURCE | C28: WEIGHT | D28: COST | E28: RATE | F28: TAX RATE | G28: TAX RATE | H28: TAX RATE
B29: DEBT | C29: =1-C30 -> 0.404 | D29: 0.0488 | E29: =C29*D29 -> 0.0197152 | F29: =D29*(1-$E$22) -> 0.03643164 | G29: =E29*(1-$E$22) -> 0.01471838256 | H29: =+E29 -> 0.0197152
B30: COMMON | C30: 0.596 | D30: 0.1055 | E30: =C30*D30 -> 0.062878 | F30: =D30 -> 0.1055 | G30: =E30 -> 0.062878 | H30: =+E30/(1-Tax_Rate) -> 0.08422476726
B31: TOTAL | C31: =SUM(C29:C30) -> 1 | G31: =SUM(G29:G30) -> 0.07759638256 | H31: =SUM(H29:H30) -> 0.1039399673
B33: DISCOUNT RATE ("WACC"): | E33: =G31 -> 0.07759638256
A37: III) | B37: PROPERTY TAXES | E37: 0.01732
B38: PROPERTY INSURANCE | E38: 0.00053
A44: IV) | B44: FEDERAL TAX INCENTIVES
C46: 2016 | D46: =C46+1 -> 2017 | E46: =D46+1 -> 2018 | F46: 2019 | G46: 2020 | H46: 2021 | I46: 2022 | J46: 2023
B47: ITC | C47: 0.3 | D47: 0.3 | E47: 0.3 | F47: 0.3 | G47: 0.3 | H47: 0.3 | I47: 0.26 | J47: 0.22
B48: Bonus | C48: 0.5 | D48: 0.5 | E48: 0 | F48: 0 | G48: 0 | H48: 0 | I48: 0 | J48: 0

Sheet Input
E1: FPL 002317
E2: 20170235-EI
D10: INPUTS | F10: CPVRR: | G10: =G70 -> -135124.5404 | H10: HORIZON: | I10: 30
D11: Period | R11: 0 | S11: =R11+1 -> 1 | T11: =S11+1 -> 2 | U11: 3 | V11: 4 | W11: 5 | X11: 6 | Y11: 7 | Z11: 8 | AA11: 9 | AB11: 10 | AC11: 11 | AD11: 12 | AE11: 13 | AF11: 14 | AG11: 15 | AH11: 16 | AI11: 17 | AJ11: =AI11+1 -> 18 | AK11: 19 | AL11: 20 | AM11: 21 | AN11: 22 | AO11: 23 | AP11: 24 | AQ11: 25 | AR11: 26 | AS11: 27 | AT11: 28 | AU11: 29 | AV11: 30
D13: Year | L13: Data Entry: | M13: $ thousands | P13: =185009.966-3300 -> 181709.966 | R13: =Assumptions!$D$14 -> 2018 | S13: =R13+1 -> 2019 | T13: 2020 | U13: 2021 | V13: 2022 | W13: 2023 | X13: 2024 | Y13: 2025 | Z13: 2026 | AA13: 2027 | AB13: 2028 | AC13: 2029 | AD13: 2030 | AE13: 2031 | AF13: 2032 | AG13: 2033 | AH13: 2034 | AI13: 2035 | AJ13: 2036 | AK13: 2037 | AL13: 2038 | AM13: 2039 | AN13: 2040 | AO13: 2041 | AP13: 2042 | AQ13: 2043 | AR13: 2044 | AS13: 2045 | AT13: 2046 | AU13: 2047 | AV13: 2048
R14: 0 | S14: ='Base and Clause Revenue'!J9 -> 1 | T14: ='Base and Clause Revenue'!K9 -> 1 | U14: ='Base and Clause Revenue'!L9 -> 1 | V14: ='Base and Clause Revenue'!M9 -> 1 | W14: ='Base and Clause Revenue'!N9 -> 1 | X14: ='Base and Clause Revenue'!O9 -> 1 | Y14: ='Base and Clause Revenue'!P9 -> 1 | Z14: ='Base and Clause Revenue'!Q9 -> 1 | AA14: ='Base and Clause Revenue'!R9 -> 1 | AB14: ='Base and Clause Revenue'!S9 -> 1 | AC14: ='Base and Clause Revenue'!T9 -> 1 | AD14: ='Base and Clause Revenue'!U9 -> 1 | AE14: ='Base and Clause Revenue'!V9 -> 1 | AF14: ='Base and Clause Revenue'!W9 -> 1 | AG14: ='Base and Clause Revenue'!X9 -> 1 | AH14: ='Base and Clause Revenue'!Y9 -> 1 | AI14: ='Base and Clause Revenue'!Z9 -> 1 | AJ14: ='Base and Clause Revenue'!AA9 -> 1 | AK14: ='Base and Clause Revenue'!AB9 -> 1 | AL14: ='Base and Clause Revenue'!AC9 -> 1 | AM14: ='Base and Clause Revenue'!AD9 -> 1 | AN14: ='Base and Clause Revenue'!AE9 -> 1 | AO14: ='Base and Clause Revenue'!AF9 -> 1 | AP14: ='Base and Clause Revenue'!AG9 -> 1 | AQ14: ='Base and Clause Revenue'!AH9 -> 1 | AR14: ='Base and Clause Revenue'!AI9 -> 1 | AS14: ='Base and Clause Revenue'!AJ9 -> 1 | AT14: ='Base and Clause Revenue'!AK9 -> 1 | AU14: ='Base and Clause Revenue'!AL9 -> 1 | AV14: ='Base and Clause Revenue'!AM9 -> 1
D15: Item Title | E15: Cash Flow Type | F15: Construction Start Date | G15: Commercial Operations Date (COD) | H15: Asset Type | I15: Book Life | J15: Tax Life | K15: Inflation | L15: Bonus Depreciation | M15: Investment Tax Credit (Solar) | N15: Percent Subject ot Property Tax | P15: Sum | R15: Cash Flows
C16: =C15+1 -> 1 | D16: Acquired Inventory | E16: Capital | F16: 2016-01-01 | G16: 2019-01-01 | H16: Inventory | I16: 5 | J16: 5 | K16: 0 | L16: FALSE | M16: FALSE | N16: 1 | P16: =SUM(R16:BP16) -> 4000 | R16: 0 | S16: 4000 | T16: 0 | U16: 0 | V16: 0 | W16: 0 | X16: 0 | Y16: 0 | Z16: 0 | AA16: 0 | AB16: 0 | AC16: 0 | AD16: 0 | AE16: 0 | AF16: 0 | AG16: 0 | AH16: 0 | AI16: 0 | AJ16: 0 | AK16: 0 | AL16: 0 | AM16: 0 | AN16: 0 | AO16: 0 | AP16: 0 | AQ16: 0 | AR16: 0 | AS16: 0 | AT16: 0 | AU16: 0 | AV16: 0
C17: =C16+1 -> 2 | D17: PP&E - Dist | E17: Capital | F17: 2016-12-01 | G17: =G16 -> 2019-01-01 | H17: Distribution, Lines | I17: 38.75968992 | J17: 20 | K17: 0 | L17: FALSE | M17: FALSE | N17: 1 | P17: =SUM(R17:BP17) -> 52391.80955 | R17: 0 | S17: =('FERC Summary 9-30-2016'!R62+'FERC Summary 9-30-2016'!R68)/1000 -> 52391.80955 | T17: 0 | U17: 0 | V17: 0 | W17: 0 | X17: 0 | Y17: 0 | Z17: 0 | AA17: 0 | AB17: 0 | AC17: 0 | AD17: 0 | AE17: 0 | AF17: 0 | AG17: 0 | AH17: 0 | AI17: 0 | AJ17: 0 | AK17: 0 | AL17: 0 | AM17: 0 | AN17: 0 | AO17: 0 | AP17: 0 | AQ17: 0 | AR17: 0 | AS17: 0 | AT17: 0 | AU17: 0 | AV17: 0
C18: 3 | D18: PP&E - Transmission | E18: Capital | F18: 2016-12-01 | G18: =G17 -> 2019-01-01 | H18: Transmission, Lines | I18: 48.7804878 | J18: 15 | K18: 0 | L18: FALSE | M18: FALSE | N18: 1 | P18: =SUM(R18:BP18) -> 6359.210132 | R18: 0 | S18: ='FERC Summary 9-30-2016'!R49/1000 -> 6359.210132 | T18: 0 | U18: 0 | V18: 0 | W18: 0 | X18: 0 | Y18: 0 | Z18: 0 | AA18: 0 | AB18: 0 | AC18: 0 | AD18: 0 | AE18: 0 | AF18: 0 | AG18: 0 | AH18: 0 | AI18: 0 | AJ18: 0 | AK18: 0 | AL18: 0 | AM18: 0 | AN18: 0 | AO18: 0 | AP18: 0 | AQ18: 0 | AR18: 0 | AS18: 0 | AT18: 0 | AU18: 0 | AV18: 0
C19: 4 | D19: PP&E - General Plant | E19: Capital | F19: 2016-12-01 | G19: 2019-01-01 | H19: Customer Service | I19: 19.49317739 | J19: 5 | K19: 0 | L19: FALSE | M19: FALSE | N19: 1 | P19: 890.0431785 | R19: 0 | S19: ='FERC Summary 9-30-2016'!R80/1000 -> 890.0431785 | T19: 0 | U19: 0 | V19: 0 | W19: 0 | X19: 0 | Y19: 0 | Z19: 0 | AA19: 0 | AB19: 0 | AC19: 0 | AD19: 0 | AE19: 0 | AF19: 0 | AG19: 0 | AH19: 0 | AI19: 0 | AJ19: 0 | AK19: 0 | AL19: 0 | AM19: 0 | AN19: 0 | AO19: 0 | AP19: 0 | AQ19: 0 | AR19: 0 | AS19: 0 | AT19: 0 | AU19: 0 | AV19: 0
C20: 5 | D20: PP&E - Land (included in Trans and Dist) | E20: Land | F20: 2016-12-01 | G20: 2019-01-01 | H20: Transmission, Substation | I20: 30 | K20: 0 | L20: FALSE | M20: FALSE | N20: 1 | P20: 1804.79759 | R20: 0 | S20: =('FERC Summary 9-30-2016'!R38+'FERC Summary 9-30-2016'!R39+'FERC Summary 9-30-2016'!R51)/1000 -> 1804.79759 | T20: 0 | U20: 0 | V20: 0 | W20: 0 | X20: 0 | Y20: 0 | Z20: 0 | AA20: 0 | AB20: 0 | AC20: 0 | AD20: 0 | AE20: 0 | AF20: 0 | AG20: 0 | AH20: 0 | AI20: 0 | AJ20: 0 | AK20: 0 | AL20: 0 | AM20: 0 | AN20: 0 | AO20: 0 | AP20: 0 | AQ20: 0 | AR20: 0 | AS20: 0 | AT20: 0 | AU20: 0 | AV20: 0
C21: 6 | D21: Asset Acquisition Adjustment | E21: Capital | F21: 2016-12-01 | G21: 2019-01-01 | H21: Acquisition Adjustment | I21: 30 | J21: 20 | K21: 0 | L21: FALSE | M21: FALSE | N21: 0 | P21: 114264.1055 | R21: 0 | S21: =P13-SUM(S16:S20,S23) -> 114264.1055 | T21: 0 | U21: 0 | V21: 0 | W21: 0 | X21: 0 | Y21: 0 | Z21: 0 | AA21: 0 | AB21: 0 | AC21: 0 | AD21: 0 | AE21: 0 | AF21: 0 | AG21: 0 | AH21: 0 | AI21: 0 | AJ21: 0 | AK21: 0 | AL21: 0 | AM21: 0 | AN21: 0 | AO21: 0 | AP21: 0 | AQ21: 0 | AR21: 0 | AS21: 0 | AT21: 0 | AU21: 0 | AV21: 0
C22: 7 | D22: Lease Easement Indian River | E22: Operating Expense | F22: 2016-12-01 | G22: 2019-01-01 | H22: Prepaid Easement | I22: 99 | J22: 99 SL | K22: 0.024 | L22: FALSE | M22: FALSE | N22: 0 | P22: 690 | R22: 0 | S22: 23 | T22: =S22*T14 -> 23 | U22: 23 | V22: 23 | W22: 23 | X22: 23 | Y22: 23 | Z22: 23 | AA22: 23 | AB22: 23 | AC22: 23 | AD22: 23 | AE22: 23 | AF22: 23 | AG22: 23 | AH22: 23 | AI22: 23 | AJ22: 23 | AK22: 23 | AL22: 23 | AM22: 23 | AN22: 23 | AO22: 23 | AP22: 23 | AQ22: 23 | AR22: 23 | AS22: 23 | AT22: 23 | AU22: 23 | AV22: 23
C23: 8 | D23: Prepaid Easement Vero Beach | E23: Capital | F23: 2016-12-01 | G23: 2019-01-01 | H23: Prepaid Easement | I23: 99 | J23: 99 SL | K23: 0 | L23: FALSE | M23: FALSE | N23: 0 | P23: 2000 | R23: 0 | S23: 2000 | T23: 0 | U23: 0 | V23: 0 | W23: 0 | X23: 0 | Y23: 0 | Z23: 0 | AA23: 0 | AB23: 0 | AC23: 0 | AD23: 0 | AE23: 0 | AF23: 0 | AG23: 0 | AH23: 0 | AI23: 0 | AJ23: 0 | AK23: 0 | AL23: 0 | AM23: 0 | AN23: 0 | AO23: 0 | AP23: 0 | AQ23: 0 | AR23: 0 | AS23: 0 | AT23: 0 | AU23: 0 | AV23: 0
C24: 9 | D24: OUC PPA Payment - Above Market | E24: Capital | F24: 2016-12-01 | G24: 2019-01-01 | H24: OUC PPA | I24: 1 | J24: 15 | K24: 0 | L24: FALSE | M24: FALSE | N24: 0 | P24: 12904.02 | R24: 0 | S24: ='Monthly Capacity OUC PPA'!O40 -> 5819.1 | T24: ='Monthly Capacity OUC PPA'!P40 -> 7084.92 | U24: 0
C25: 10 | D25: PPA Energy Savings | E25: Operating Savings | F25: 2016-12-01 | G25: 2019-01-01 | H25: Distribution, Lines | I25: 2 | J25: 1 | K25: 0 | L25: FALSE | M25: FALSE | N25: 0 | P25: 6310.722068 | R25: 0 | S25: 3250.640424 | T25: 3060.081644
C26: 11 | D26: Ongoing Distribution Capex | E26: Capital | F26: 2016-12-01 | G26: 2019-01-01 | H26: Distribution, Lines | I26: 38.75968992 | J26: 20 | K26: 0 | L26: FALSE | M26: FALSE | N26: 1 | P26: 290925.5306 | R26: =(SUMIF('PD Cost Summary'!$D$10:$AI$10,Input!R$13,'PD Cost Summary'!$D25:$AI25)/1000) -> 2671.329037 | S26: =(SUMIF('PD Cost Summary'!$D$10:$AI$10,Input!S$13,'PD Cost Summary'!$D25:$AI25)/1000)*S14 -> 860.1561862 | T26: =(SUMIF('PD Cost Summary'!$D$10:$AI$10,Input!T$13,'PD Cost Summary'!$D25:$AI25)/1000)*T14 -> 4454.909803 | U26: =(SUMIF('PD Cost Summary'!$D$10:$AI$10,Input!U$13,'PD Cost Summary'!$D25:$AI25)/1000)*U14 -> 9284.557884 | V26: =(SUMIF('PD Cost Summary'!$D$10:$AI$10,Input!V$13,'PD Cost Summary'!$D25:$AI25)/1000)*V14 -> 9445.99574 | W26: =(SUMIF('PD Cost Summary'!$D$10:$AI$10,Input!W$13,'PD Cost Summary'!$D25:$AI25)/1000)*W14 -> 13405.7279 | X26: =(SUMIF('PD Cost Summary'!$D$10:$AI$10,Input!X$13,'PD Cost Summary'!$D25:$AI25)/1000)*X14 -> 8624.541926 | Y26: =(SUMIF('PD Cost Summary'!$D$10:$AI$10,Input!Y$13,'PD Cost Summary'!$D25:$AI25)/1000)*Y14 -> 8891.948221 | Z26: =(SUMIF('PD Cost Summary'!$D$10:$AI$10,Input!Z$13,'PD Cost Summary'!$D25:$AI25)/1000)*Z14 -> 9167.751418 | AA26: =(SUMIF('PD Cost Summary'!$D$10:$AI$10,Input!AA$13,'PD Cost Summary'!$D25:$AI25)/1000)*AA14 -> 9373.93193 | AB26: =(SUMIF('PD Cost Summary'!$D$10:$AI$10,Input!AB$13,'PD Cost Summary'!$D25:$AI25)/1000)*AB14 -> 9584.354336 | AC26: =(SUMIF('PD Cost Summary'!$D$10:$AI$10,Input!AC$13,'PD Cost Summary'!$D25:$AI25)/1000)*AC14 -> 9882.145519 | AD26: =(SUMIF('PD Cost Summary'!$D$10:$AI$10,Input!AD$13,'PD Cost Summary'!$D25:$AI25)/1000)*AD14 -> 10189.30822 | AE26: =(SUMIF('PD Cost Summary'!$D$10:$AI$10,Input!AE$13,'PD Cost Summary'!$D25:$AI25)/1000)*AE14 -> 10506.14086 | AF26: =(SUMIF('PD Cost Summary'!$D$10:$AI$10,Input!AF$13,'PD Cost Summary'!$D25:$AI25)/1000)*AF14 -> 10832.9515 | AG26: =(SUMIF('PD Cost Summary'!$D$10:$AI$10,Input!AG$13,'PD Cost Summary'!$D25:$AI25)/1000)*AG14 -> 11170.05808 | AH26: =(SUMIF('PD Cost Summary'!$D$10:$AI$10,Input!AH$13,'PD Cost Summary'!$D25:$AI25)/1000)*AH14 -> 11517.78882 | AI26: =(SUMIF('PD Cost Summary'!$D$10:$AI$10,Input!AI$13,'PD Cost Summary'!$D25:$AI25)/1000)*AI14 -> 11876.4825 | AJ26: =(SUMIF('PD Cost Summary'!$D$10:$AI$10,Input!AJ$13,'PD Cost Summary'!$D25:$AI25)/1000)*AJ14 -> 12246.4888 | AK26: =(SUMIF('PD Cost Summary'!$D$10:$AI$10,Input!AK$13,'PD Cost Summary'!$D25:$AI25)/1000)*AK14 -> 12628.16871 | AL26: =(SUMIF('PD Cost Summary'!$D$10:$AI$10,Input!AL$13,'PD Cost Summary'!$D25:$AI25)/1000)*AL14 -> 13021.89484 | AM26: =(SUMIF('PD Cost Summary'!$D$10:$AI$10,Input!AM$13,'PD Cost Summary'!$D25:$AI25)/1000)*AM14 -> 13428.05183 | AN26: =(SUMIF('PD Cost Summary'!$D$10:$AI$10,Input!AN$13,'PD Cost Summary'!$D25:$AI25)/1000)*AN14 -> 7593.842549 | AO26: =(SUMIF('PD Cost Summary'!$D$10:$AI$10,Input!AO$13,'PD Cost Summary'!$D25:$AI25)/1000)*AO14 -> 7838.469387 | AP26: =(SUMIF('PD Cost Summary'!$D$10:$AI$10,Input!AP$13,'PD Cost Summary'!$D25:$AI25)/1000)*AP14 -> 8091.129223 | AQ26: =(SUMIF('PD Cost Summary'!$D$10:$AI$10,Input!AQ$13,'PD Cost Summary'!$D25:$AI25)/1000)*AQ14 -> 8352.089989 | AR26: =(SUMIF('PD Cost Summary'!$D$10:$AI$10,Input!AR$13,'PD Cost Summary'!$D25:$AI25)/1000)*AR14 -> 8621.628662 | AS26: =(SUMIF('PD Cost Summary'!$D$10:$AI$10,Input!AS$13,'PD Cost Summary'!$D25:$AI25)/1000)*AS14 -> 8900.031577 | AT26: =(SUMIF('PD Cost Summary'!$D$10:$AI$10,Input!AT$13,'PD Cost Summary'!$D25:$AI25)/1000)*AT14 -> 9187.594742 | AU26: =(SUMIF('PD Cost Summary'!$D$10:$AI$10,Input!AU$13,'PD Cost Summary'!$D25:$AI25)/1000)*AU14 -> 9484.624169 | AV26: =(SUMIF('PD Cost Summary'!$D$10:$AI$10,Input!AV$13,'PD Cost Summary'!$D25:$AI25)/1000)*AV14 -> 9791.436216
C27: 12 | D27: Ongoing Transmission Capex | E27: Capital | F27: 2016-12-01 | G27: 2019-01-01 | H27: Transmission, Lines | I27: 48.7804878 | J27: 15 | K27: 0 | L27: FALSE | M27: FALSE | N27: 1 | P27: 87881.66852 | R27: =(SUMIF('PD Cost Summary'!$D$10:$AI$10,Input!R$13,'PD Cost Summary'!$D27:$AI27)/1000) -> 23.46153846 | S27: =(SUMIF('PD Cost Summary'!$D$10:$AI$10,Input!S$13,'PD Cost Summary'!$D27:$AI27)/1000)*S14 -> 1303.426441 | T27: =(SUMIF('PD Cost Summary'!$D$10:$AI$10,Input!T$13,'PD Cost Summary'!$D27:$AI27)/1000)*T14 -> 10934.08505 | U27: =(SUMIF('PD Cost Summary'!$D$10:$AI$10,Input!U$13,'PD Cost Summary'!$D27:$AI27)/1000)*U14 -> 2906.916369 | V27: =(SUMIF('PD Cost Summary'!$D$10:$AI$10,Input!V$13,'PD Cost Summary'!$D27:$AI27)/1000)*V14 -> 2041.31503 | W27: =(SUMIF('PD Cost Summary'!$D$10:$AI$10,Input!W$13,'PD Cost Summary'!$D27:$AI27)/1000)*W14 -> 2081.250261 | X27: =(SUMIF('PD Cost Summary'!$D$10:$AI$10,Input!X$13,'PD Cost Summary'!$D27:$AI27)/1000)*X14 -> 1673.485879 | Y27: =(SUMIF('PD Cost Summary'!$D$10:$AI$10,Input!Y$13,'PD Cost Summary'!$D27:$AI27)/1000)*Y14 -> 1817.06205 | Z27: =(SUMIF('PD Cost Summary'!$D$10:$AI$10,Input!Z$13,'PD Cost Summary'!$D27:$AI27)/1000)*Z14 -> 2737.137222 | AA27: =(SUMIF('PD Cost Summary'!$D$10:$AI$10,Input!AA$13,'PD Cost Summary'!$D27:$AI27)/1000)*AA14 -> 2797.417687 | AB27: =(SUMIF('PD Cost Summary'!$D$10:$AI$10,Input!AB$13,'PD Cost Summary'!$D27:$AI27)/1000)*AB14 -> 2191.278022 | AC27: =(SUMIF('PD Cost Summary'!$D$10:$AI$10,Input!AC$13,'PD Cost Summary'!$D27:$AI27)/1000)*AC14 -> 2246.059972 | AD27: =(SUMIF('PD Cost Summary'!$D$10:$AI$10,Input!AD$13,'PD Cost Summary'!$D27:$AI27)/1000)*AD14 -> 2302.211472 | AE27: =(SUMIF('PD Cost Summary'!$D$10:$AI$10,Input!AE$13,'PD Cost Summary'!$D27:$AI27)/1000)*AE14 -> 2359.766758 | AF27: =(SUMIF('PD Cost Summary'!$D$10:$AI$10,Input!AF$13,'PD Cost Summary'!$D27:$AI27)/1000)*AF14 -> 2418.760927 | AG27: =(SUMIF('PD Cost Summary'!$D$10:$AI$10,Input!AG$13,'PD Cost Summary'!$D27:$AI27)/1000)*AG14 -> 2479.229951 | AH27: =(SUMIF('PD Cost Summary'!$D$10:$AI$10,Input!AH$13,'PD Cost Summary'!$D27:$AI27)/1000)*AH14 -> 2541.210699 | AI27: =(SUMIF('PD Cost Summary'!$D$10:$AI$10,Input!AI$13,'PD Cost Summary'!$D27:$AI27)/1000)*AI14 -> 2604.740967 | AJ27: =(SUMIF('PD Cost Summary'!$D$10:$AI$10,Input!AJ$13,'PD Cost Summary'!$D27:$AI27)/1000)*AJ14 -> 2669.859491 | AK27: =(SUMIF('PD Cost Summary'!$D$10:$AI$10,Input!AK$13,'PD Cost Summary'!$D27:$AI27)/1000)*AK14 -> 2736.605978 | AL27: =(SUMIF('PD Cost Summary'!$D$10:$AI$10,Input!AL$13,'PD Cost Summary'!$D27:$AI27)/1000)*AL14 -> 2805.021128 | AM27: =(SUMIF('PD Cost Summary'!$D$10:$AI$10,Input!AM$13,'PD Cost Summary'!$D27:$AI27)/1000)*AM14 -> 2875.146656 | AN27: =(SUMIF('PD Cost Summary'!$D$10:$AI$10,Input!AN$13,'PD Cost Summary'!$D27:$AI27)/1000)*AN14 -> 2947.025322 | AO27: =(SUMIF('PD Cost Summary'!$D$10:$AI$10,Input!AO$13,'PD Cost Summary'!$D27:$AI27)/1000)*AO14 -> 3020.700955 | AP27: =(SUMIF('PD Cost Summary'!$D$10:$AI$10,Input!AP$13,'PD Cost Summary'!$D27:$AI27)/1000)*AP14 -> 3096.218479 | AQ27: =(SUMIF('PD Cost Summary'!$D$10:$AI$10,Input!AQ$13,'PD Cost Summary'!$D27:$AI27)/1000)*AQ14 -> 3173.623941 | AR27: =(SUMIF('PD Cost Summary'!$D$10:$AI$10,Input!AR$13,'PD Cost Summary'!$D27:$AI27)/1000)*AR14 -> 3252.96454 | AS27: =(SUMIF('PD Cost Summary'!$D$10:$AI$10,Input!AS$13,'PD Cost Summary'!$D27:$AI27)/1000)*AS14 -> 3334.288653 | AT27: =(SUMIF('PD Cost Summary'!$D$10:$AI$10,Input!AT$13,'PD Cost Summary'!$D27:$AI27)/1000)*AT14 -> 3417.64587 | AU27: =(SUMIF('PD Cost Summary'!$D$10:$AI$10,Input!AU$13,'PD Cost Summary'!$D27:$AI27)/1000)*AU14 -> 3503.087016 | AV27: =(SUMIF('PD Cost Summary'!$D$10:$AI$10,Input!AV$13,'PD Cost Summary'!$D27:$AI27)/1000)*AV14 -> 3590.664192
C28: 13 | D28: Customer Serivce O&M | E28: Operating Expense | F28: 2016-12-01 | G28: 2019-01-01 | H28: Solar | I28: 30 | J28: 5 | K28: 0 | L28: FALSE | M28: FALSE | N28: 1 | P28: 26364.19998 | R28: ='Customer Service'!F27/1000 -> 669.8774253 | S28: =(SUMIF('Customer Service'!$H$9:$AL$9,Input!S$13,'Customer Service'!$H$27:$AL$27)/1000)*S14 -> 391.5766236 | T28: =(SUMIF('Customer Service'!$H$9:$AL$9,Input!T$13,'Customer Service'!$H$27:$AL$27)/1000)*T14 -> 990.4569161 | U28: =(SUMIF('Customer Service'!$H$9:$AL$9,Input!U$13,'Customer Service'!$H$27:$AL$27)/1000)*U14 -> 655.0719696 | V28: =(SUMIF('Customer Service'!$H$9:$AL$9,Input!V$13,'Customer Service'!$H$27:$AL$27)/1000)*V14 -> 614.5084152 | W28: =(SUMIF('Customer Service'!$H$9:$AL$9,Input!W$13,'Customer Service'!$H$27:$AL$27)/1000)*W14 -> 639.8671401 | X28: =(SUMIF('Customer Service'!$H$9:$AL$9,Input!X$13,'Customer Service'!$H$27:$AL$27)/1000)*X14 -> 655.8638186 | Y28: =(SUMIF('Customer Service'!$H$9:$AL$9,Input!Y$13,'Customer Service'!$H$27:$AL$27)/1000)*Y14 -> 672.260414 | Z28: =(SUMIF('Customer Service'!$H$9:$AL$9,Input!Z$13,'Customer Service'!$H$27:$AL$27)/1000)*Z14 -> 689.0669244 | AA28: =(SUMIF('Customer Service'!$H$9:$AL$9,Input!AA$13,'Customer Service'!$H$27:$AL$27)/1000)*AA14 -> 706.2935975 | AB28: =(SUMIF('Customer Service'!$H$9:$AL$9,Input!AB$13,'Customer Service'!$H$27:$AL$27)/1000)*AB14 -> 723.9509374 | AC28: =(SUMIF('Customer Service'!$H$9:$AL$9,Input!AC$13,'Customer Service'!$H$27:$AL$27)/1000)*AC14 -> 742.0497109 | AD28: =(SUMIF('Customer Service'!$H$9:$AL$9,Input!AD$13,'Customer Service'!$H$27:$AL$27)/1000)*AD14 -> 760.6009536 | AE28: =(SUMIF('Customer Service'!$H$9:$AL$9,Input!AE$13,'Customer Service'!$H$27:$AL$27)/1000)*AE14 -> 779.6159775 | AF28: =(SUMIF('Customer Service'!$H$9:$AL$9,Input!AF$13,'Customer Service'!$H$27:$AL$27)/1000)*AF14 -> 799.1063769 | AG28: =(SUMIF('Customer Service'!$H$9:$AL$9,Input!AG$13,'Customer Service'!$H$27:$AL$27)/1000)*AG14 -> 819.0840363 | AH28: =(SUMIF('Customer Service'!$H$9:$AL$9,Input!AH$13,'Customer Service'!$H$27:$AL$27)/1000)*AH14 -> 839.5611372 | AI28: =(SUMIF('Customer Service'!$H$9:$AL$9,Input!AI$13,'Customer Service'!$H$27:$AL$27)/1000)*AI14 -> 860.5501657 | AJ28: =(SUMIF('Customer Service'!$H$9:$AL$9,Input!AJ$13,'Customer Service'!$H$27:$AL$27)/1000)*AJ14 -> 882.0639198 | AK28: =(SUMIF('Customer Service'!$H$9:$AL$9,Input!AK$13,'Customer Service'!$H$27:$AL$27)/1000)*AK14 -> 904.1155178 | AL28: =(SUMIF('Customer Service'!$H$9:$AL$9,Input!AL$13,'Customer Service'!$H$27:$AL$27)/1000)*AL14 -> 926.7184057 | AM28: =(SUMIF('Customer Service'!$H$9:$AL$9,Input!AM$13,'Customer Service'!$H$27:$AL$27)/1000)*AM14 -> 949.8863659 | AN28: =(SUMIF('Customer Service'!$H$9:$AL$9,Input!AN$13,'Customer Service'!$H$27:$AL$27)/1000)*AN14 -> 973.633525 | AO28: =(SUMIF('Customer Service'!$H$9:$AL$9,Input!AO$13,'Customer Service'!$H$27:$AL$27)/1000)*AO14 -> 997.9743632 | AP28: =(SUMIF('Customer Service'!$H$9:$AL$9,Input!AP$13,'Customer Service'!$H$27:$AL$27)/1000)*AP14 -> 1022.923722 | AQ28: =(SUMIF('Customer Service'!$H$9:$AL$9,Input!AQ$13,'Customer Service'!$H$27:$AL$27)/1000)*AQ14 -> 1048.496815 | AR28: =(SUMIF('Customer Service'!$H$9:$AL$9,Input!AR$13,'Customer Service'!$H$27:$AL$27)/1000)*AR14 -> 1074.709236 | AS28: =(SUMIF('Customer Service'!$H$9:$AL$9,Input!AS$13,'Customer Service'!$H$27:$AL$27)/1000)*AS14 -> 1101.576967 | AT28: =(SUMIF('Customer Service'!$H$9:$AL$9,Input!AT$13,'Customer Service'!$H$27:$AL$27)/1000)*AT14 -> 1129.116391 | AU28: =(SUMIF('Customer Service'!$H$9:$AL$9,Input!AU$13,'Customer Service'!$H$27:$AL$27)/1000)*AU14 -> 1157.3443 | AV28: =(SUMIF('Customer Service'!$H$9:$AL$9,Input!AV$13,'Customer Service'!$H$27:$AL$27)/1000)*AV14 -> 1186.277908
C29: 14 | D29: Ongoing Distribution O&M | E29: Operating Expense | F29: 2016-12-01 | G29: 2019-01-01 | H29: Solar | I29: 30 | J29: 5 | K29: 0 | L29: FALSE | M29: FALSE | N29: 1 | P29: 86137.41046 | R29: =((SUMIF('PD Cost Summary'!$D$10:$AI$10,Input!R$13,'PD Cost Summary'!$D24:$AI24)/1000)) -> 183.1045444 | S29: =((SUMIF('PD Cost Summary'!$D$10:$AI$10,Input!S$13,'PD Cost Summary'!$D24:$AI24)/1000)+(4632)*S14) -> 5464.581571 | T29: =((SUMIF('PD Cost Summary'!$D$10:$AI$10,Input!T$13,'PD Cost Summary'!$D24:$AI24)/1000)+(4632)*T14) -> 7063.241469 | U29: =((SUMIF('PD Cost Summary'!$D$10:$AI$10,Input!U$13,'PD Cost Summary'!$D24:$AI24)/1000))*U14 -> 2359.566982 | V29: =((SUMIF('PD Cost Summary'!$D$10:$AI$10,Input!V$13,'PD Cost Summary'!$D24:$AI24)/1000))*V14 -> 2362.315379 | W29: =((SUMIF('PD Cost Summary'!$D$10:$AI$10,Input!W$13,'PD Cost Summary'!$D24:$AI24)/1000))*W14 -> 1993.901913 | X29: =((SUMIF('PD Cost Summary'!$D$10:$AI$10,Input!X$13,'PD Cost Summary'!$D24:$AI24)/1000))*X14 -> 1848.05727 | Y29: =((SUMIF('PD Cost Summary'!$D$10:$AI$10,Input!Y$13,'PD Cost Summary'!$D24:$AI24)/1000))*Y14 -> 1904.461301 | Z29: =((SUMIF('PD Cost Summary'!$D$10:$AI$10,Input!Z$13,'PD Cost Summary'!$D24:$AI24)/1000))*Z14 -> 1962.630536 | AA29: =((SUMIF('PD Cost Summary'!$D$10:$AI$10,Input!AA$13,'PD Cost Summary'!$D24:$AI24)/1000))*AA14 -> 2022.621473 | AB29: =((SUMIF('PD Cost Summary'!$D$10:$AI$10,Input!AB$13,'PD Cost Summary'!$D24:$AI24)/1000))*AB14 -> 2084.492455 | AC29: =((SUMIF('PD Cost Summary'!$D$10:$AI$10,Input!AC$13,'PD Cost Summary'!$D24:$AI24)/1000))*AC14 -> 2148.30373 | AD29: =((SUMIF('PD Cost Summary'!$D$10:$AI$10,Input!AD$13,'PD Cost Summary'!$D24:$AI24)/1000))*AD14 -> 2214.117513 | AE29: =((SUMIF('PD Cost Summary'!$D$10:$AI$10,Input!AE$13,'PD Cost Summary'!$D24:$AI24)/1000))*AE14 -> 2281.998052 | AF29: =((SUMIF('PD Cost Summary'!$D$10:$AI$10,Input!AF$13,'PD Cost Summary'!$D24:$AI24)/1000))*AF14 -> 2352.011697 | AG29: =((SUMIF('PD Cost Summary'!$D$10:$AI$10,Input!AG$13,'PD Cost Summary'!$D24:$AI24)/1000))*AG14 -> 2424.226967 | AH29: =((SUMIF('PD Cost Summary'!$D$10:$AI$10,Input!AH$13,'PD Cost Summary'!$D24:$AI24)/1000))*AH14 -> 2498.714624 | AI29: =((SUMIF('PD Cost Summary'!$D$10:$AI$10,Input!AI$13,'PD Cost Summary'!$D24:$AI24)/1000))*AI14 -> 2575.547748 | AJ29: =((SUMIF('PD Cost Summary'!$D$10:$AI$10,Input!AJ$13,'PD Cost Summary'!$D24:$AI24)/1000))*AJ14 -> 2654.801813 | AK29: =((SUMIF('PD Cost Summary'!$D$10:$AI$10,Input!AK$13,'PD Cost Summary'!$D24:$AI24)/1000))*AK14 -> 2736.554765 | AL29: =((SUMIF('PD Cost Summary'!$D$10:$AI$10,Input!AL$13,'PD Cost Summary'!$D24:$AI24)/1000))*AL14 -> 2820.887108 | AM29: =((SUMIF('PD Cost Summary'!$D$10:$AI$10,Input!AM$13,'PD Cost Summary'!$D24:$AI24)/1000))*AM14 -> 2907.881986 | AN29: =((SUMIF('PD Cost Summary'!$D$10:$AI$10,Input!AN$13,'PD Cost Summary'!$D24:$AI24)/1000))*AN14 -> 2870.009066 | AO29: =((SUMIF('PD Cost Summary'!$D$10:$AI$10,Input!AO$13,'PD Cost Summary'!$D24:$AI24)/1000))*AO14 -> 2958.76097 | AP29: =((SUMIF('PD Cost Summary'!$D$10:$AI$10,Input!AP$13,'PD Cost Summary'!$D24:$AI24)/1000))*AP14 -> 3050.326731 | AQ29: =((SUMIF('PD Cost Summary'!$D$10:$AI$10,Input!AQ$13,'PD Cost Summary'!$D24:$AI24)/1000))*AQ14 -> 3144.797522 | AR29: =((SUMIF('PD Cost Summary'!$D$10:$AI$10,Input!AR$13,'PD Cost Summary'!$D24:$AI24)/1000))*AR14 -> 3242.267524 | AS29: =((SUMIF('PD Cost Summary'!$D$10:$AI$10,Input!AS$13,'PD Cost Summary'!$D24:$AI24)/1000))*AS14 -> 3342.834028 | AT29: =((SUMIF('PD Cost Summary'!$D$10:$AI$10,Input!AT$13,'PD Cost Summary'!$D24:$AI24)/1000))*AT14 -> 3446.597538 | AU29: =((SUMIF('PD Cost Summary'!$D$10:$AI$10,Input!AU$13,'PD Cost Summary'!$D24:$AI24)/1000))*AU14 -> 3553.66188 | AV29: =((SUMIF('PD Cost Summary'!$D$10:$AI$10,Input!AV$13,'PD Cost Summary'!$D24:$AI24)/1000))*AV14 -> 3664.134309
C30: 15 | D30: Ongoing Transmission O&M | E30: Operating Expense | F30: 2016-12-01 | G30: 2019-01-01 | H30: Solar | I30: 30 | J30: 5 | K30: 0 | L30: FALSE | M30: FALSE | N30: 1 | P30: 35416.51462 | R30: =(SUMIF('PD Cost Summary'!$D$10:$AI$10,Input!R$13,'PD Cost Summary'!$D26:$AI26)/1000) -> 95 | S30: =(SUMIF('PD Cost Summary'!$D$10:$AI$10,Input!S$13,'PD Cost Summary'!$D26:$AI26)/1000)*S14 -> 294.6496406 | T30: =(SUMIF('PD Cost Summary'!$D$10:$AI$10,Input!T$13,'PD Cost Summary'!$D26:$AI26)/1000)*T14 -> 1770.64549 | U30: =(SUMIF('PD Cost Summary'!$D$10:$AI$10,Input!U$13,'PD Cost Summary'!$D26:$AI26)/1000)*U14 -> 956.4515342 | V30: =(SUMIF('PD Cost Summary'!$D$10:$AI$10,Input!V$13,'PD Cost Summary'!$D26:$AI26)/1000)*V14 -> 937.2255144 | W30: =(SUMIF('PD Cost Summary'!$D$10:$AI$10,Input!W$13,'PD Cost Summary'!$D26:$AI26)/1000)*W14 -> 980.6374284 | X30: =(SUMIF('PD Cost Summary'!$D$10:$AI$10,Input!X$13,'PD Cost Summary'!$D26:$AI26)/1000)*X14 -> 893.1174397 | Y30: =(SUMIF('PD Cost Summary'!$D$10:$AI$10,Input!Y$13,'PD Cost Summary'!$D26:$AI26)/1000)*Y14 -> 989.9911532 | Z30: =(SUMIF('PD Cost Summary'!$D$10:$AI$10,Input!Z$13,'PD Cost Summary'!$D26:$AI26)/1000)*Z14 -> 939.7589649 | AA30: =(SUMIF('PD Cost Summary'!$D$10:$AI$10,Input!AA$13,'PD Cost Summary'!$D26:$AI26)/1000)*AA14 -> 956.4351492 | AB30: =(SUMIF('PD Cost Summary'!$D$10:$AI$10,Input!AB$13,'PD Cost Summary'!$D26:$AI26)/1000)*AB14 -> 978.6386386 | AC30: =(SUMIF('PD Cost Summary'!$D$10:$AI$10,Input!AC$13,'PD Cost Summary'!$D26:$AI26)/1000)*AC14 -> 1003.104605 | AD30: =(SUMIF('PD Cost Summary'!$D$10:$AI$10,Input!AD$13,'PD Cost Summary'!$D26:$AI26)/1000)*AD14 -> 1028.18222 | AE30: =(SUMIF('PD Cost Summary'!$D$10:$AI$10,Input!AE$13,'PD Cost Summary'!$D26:$AI26)/1000)*AE14 -> 1053.886775 | AF30: =(SUMIF('PD Cost Summary'!$D$10:$AI$10,Input!AF$13,'PD Cost Summary'!$D26:$AI26)/1000)*AF14 -> 1080.233945 | AG30: =(SUMIF('PD Cost Summary'!$D$10:$AI$10,Input!AG$13,'PD Cost Summary'!$D26:$AI26)/1000)*AG14 -> 1107.239793 | AH30: =(SUMIF('PD Cost Summary'!$D$10:$AI$10,Input!AH$13,'PD Cost Summary'!$D26:$AI26)/1000)*AH14 -> 1134.920788 | AI30: =(SUMIF('PD Cost Summary'!$D$10:$AI$10,Input!AI$13,'PD Cost Summary'!$D26:$AI26)/1000)*AI14 -> 1163.293808 | AJ30: =(SUMIF('PD Cost Summary'!$D$10:$AI$10,Input!AJ$13,'PD Cost Summary'!$D26:$AI26)/1000)*AJ14 -> 1192.376153 | AK30: =(SUMIF('PD Cost Summary'!$D$10:$AI$10,Input!AK$13,'PD Cost Summary'!$D26:$AI26)/1000)*AK14 -> 1222.185557 | AL30: =(SUMIF('PD Cost Summary'!$D$10:$AI$10,Input!AL$13,'PD Cost Summary'!$D26:$AI26)/1000)*AL14 -> 1252.740196 | AM30: =(SUMIF('PD Cost Summary'!$D$10:$AI$10,Input!AM$13,'PD Cost Summary'!$D26:$AI26)/1000)*AM14 -> 1284.0587 | AN30: =(SUMIF('PD Cost Summary'!$D$10:$AI$10,Input!AN$13,'PD Cost Summary'!$D26:$AI26)/1000)*AN14 -> 1316.160168 | AO30: =(SUMIF('PD Cost Summary'!$D$10:$AI$10,Input!AO$13,'PD Cost Summary'!$D26:$AI26)/1000)*AO14 -> 1349.064172 | AP30: =(SUMIF('PD Cost Summary'!$D$10:$AI$10,Input!AP$13,'PD Cost Summary'!$D26:$AI26)/1000)*AP14 -> 1382.790777 | AQ30: =(SUMIF('PD Cost Summary'!$D$10:$AI$10,Input!AQ$13,'PD Cost Summary'!$D26:$AI26)/1000)*AQ14 -> 1417.360546 | AR30: =(SUMIF('PD Cost Summary'!$D$10:$AI$10,Input!AR$13,'PD Cost Summary'!$D26:$AI26)/1000)*AR14 -> 1452.79456 | AS30: =(SUMIF('PD Cost Summary'!$D$10:$AI$10,Input!AS$13,'PD Cost Summary'!$D26:$AI26)/1000)*AS14 -> 1489.114424 | AT30: =(SUMIF('PD Cost Summary'!$D$10:$AI$10,Input!AT$13,'PD Cost Summary'!$D26:$AI26)/1000)*AT14 -> 1526.342284 | AU30: =(SUMIF('PD Cost Summary'!$D$10:$AI$10,Input!AU$13,'PD Cost Summary'!$D26:$AI26)/1000)*AU14 -> 1564.500841 | AV30: =(SUMIF('PD Cost Summary'!$D$10:$AI$10,Input!AV$13,'PD Cost Summary'!$D26:$AI26)/1000)*AV14 -> 1603.613362
C31: 16 | D31: Dark Fiber Lease | E31: Operating Expense | F31: 2016-12-01 | G31: 2019-01-01 | H31: Solar | I31: 30 | J31: 5 | K31: 0.024 | L31: FALSE | M31: FALSE | N31: 1 | P31: 5160 | R31: 0 | S31: 172 | T31: 172 | U31: 172 | V31: 172 | W31: 172 | X31: 172 | Y31: 172 | Z31: 172 | AA31: 172 | AB31: 172 | AC31: 172 | AD31: 172 | AE31: 172 | AF31: 172 | AG31: 172 | AH31: 172 | AI31: 172 | AJ31: 172 | AK31: 172 | AL31: 172 | AM31: 172 | AN31: 172 | AO31: 172 | AP31: 172 | AQ31: 172 | AR31: 172 | AS31: 172 | AT31: 172 | AU31: 172 | AV31: 172
C32: 17 | D32: OUC PPA Payment - At Market | E32: Operating Expense | F32: 2016-12-01 | G32: 2019-01-01 | H32: Solar | I32: 30 | J32: 5 | K32: 0 | L32: FALSE | M32: FALSE | N32: 1 | P32: 8160 | R32: 0 | S32: ='Monthly Capacity OUC PPA'!O38 -> 4080 | T32: ='Monthly Capacity OUC PPA'!P38 -> 4080 | U32: 0 | V32: 0 | W32: 0 | X32: 0 | Y32: 0 | Z32: 0 | AA32: 0 | AB32: 0 | AC32: 0 | AD32: 0 | AE32: 0 | AF32: 0 | AG32: 0 | AH32: 0 | AI32: 0 | AJ32: 0 | AK32: 0 | AL32: 0 | AM32: 0 | AN32: 0 | AO32: 0 | AP32: 0 | AQ32: 0 | AR32: 0 | AS32: 0 | AT32: 0 | AU32: 0 | AV32: 0
C33: 18 | D33: Transaction Cost | E33: Operating Expense | F33: 2016-12-01 | G33: 2019-01-01 | H33: Transaction Cost | I33: 5 | J33: 1 | K33: 0 | L33: FALSE | M33: FALSE | N33: 1 | P33: 750 | R33: 750 | S33: 0 | T33: 0 | U33: 0 | V33: 0 | W33: 0 | X33: 0 | Y33: 0 | Z33: 0 | AA33: 0 | AB33: 0 | AC33: 0 | AD33: 0 | AE33: 0 | AF33: 0 | AG33: 0 | AH33: 0 | AI33: 0 | AJ33: 0 | AK33: 0 | AL33: 0 | AM33: 0 | AN33: 0 | AO33: 0 | AP33: 0 | AQ33: 0 | AR33: 0 | AS33: 0 | AT33: 0 | AU33: 0 | AV33: 0
C34: 19 | D34: System Impact Short Term PPAs | E34: Operating Expense | F34: 2016-12-01 | G34: 2019-01-01 | H34: Solar | I34: 30 | J34: 5 | K34: 0 | L34: FALSE | M34: FALSE | N34: 1 | P34: =SUM(R34:BP34) -> 10438.78162 | R34: =(SUMIF('RAP SUMMARY'!$B$15:$B$90,Input!R$13,'RAP SUMMARY'!$O$15:$O$90)*1000)*R14 -> 0 | S34: =(SUMIF('RAP SUMMARY'!$B$15:$B$90,Input!S$13,'RAP SUMMARY'!$O$15:$O$90)*1000)*S14 -> 2920.05 | T34: =(SUMIF('RAP SUMMARY'!$B$15:$B$90,Input!T$13,'RAP SUMMARY'!$O$15:$O$90)*1000)*T14 -> 875.2425 | U34: =(SUMIF('RAP SUMMARY'!$B$15:$B$90,Input!U$13,'RAP SUMMARY'!$O$15:$O$90)*1000)*U14 -> 0 | V34: =(SUMIF('RAP SUMMARY'!$B$15:$B$90,Input!V$13,'RAP SUMMARY'!$O$15:$O$90)*1000)*V14 -> 0 | W34: =(SUMIF('RAP SUMMARY'!$B$15:$B$90,Input!W$13,'RAP SUMMARY'!$O$15:$O$90)*1000)*W14 -> 0 | X34: =(SUMIF('RAP SUMMARY'!$B$15:$B$90,Input!X$13,'RAP SUMMARY'!$O$15:$O$90)*1000)*X14 -> 0 | Y34: =(SUMIF('RAP SUMMARY'!$B$15:$B$90,Input!Y$13,'RAP SUMMARY'!$O$15:$O$90)*1000)*Y14 -> 0 | Z34: =(SUMIF('RAP SUMMARY'!$B$15:$B$90,Input!Z$13,'RAP SUMMARY'!$O$15:$O$90)*1000)*Z14 -> 0 | AA34: =(SUMIF('RAP SUMMARY'!$B$15:$B$90,Input!AA$13,'RAP SUMMARY'!$O$15:$O$90)*1000)*AA14 -> 3542.459194 | AB34: =(SUMIF('RAP SUMMARY'!$B$15:$B$90,Input!AB$13,'RAP SUMMARY'!$O$15:$O$90)*1000)*AB14 -> 0 | AC34: =(SUMIF('RAP SUMMARY'!$B$15:$B$90,Input!AC$13,'RAP SUMMARY'!$O$15:$O$90)*1000)*AC14 -> 0 | AD34: =(SUMIF('RAP SUMMARY'!$B$15:$B$90,Input!AD$13,'RAP SUMMARY'!$O$15:$O$90)*1000)*AD14 -> 3101.029929 | AE34: =(SUMIF('RAP SUMMARY'!$B$15:$B$90,Input!AE$13,'RAP SUMMARY'!$O$15:$O$90)*1000)*AE14 -> 0 | AF34: =(SUMIF('RAP SUMMARY'!$B$15:$B$90,Input!AF$13,'RAP SUMMARY'!$O$15:$O$90)*1000)*AF14 -> 0 | AG34: =(SUMIF('RAP SUMMARY'!$B$15:$B$90,Input!AG$13,'RAP SUMMARY'!$O$15:$O$90)*1000)*AG14 -> 0 | AH34: =(SUMIF('RAP SUMMARY'!$B$15:$B$90,Input!AH$13,'RAP SUMMARY'!$O$15:$O$90)*1000)*AH14 -> 0 | AI34: =(SUMIF('RAP SUMMARY'!$B$15:$B$90,Input!AI$13,'RAP SUMMARY'!$O$15:$O$90)*1000)*AI14 -> 0 | AJ34: =(SUMIF('RAP SUMMARY'!$B$15:$B$90,Input!AJ$13,'RAP SUMMARY'!$O$15:$O$90)*1000)*AJ14 -> 0 | AK34: =(SUMIF('RAP SUMMARY'!$B$15:$B$90,Input!AK$13,'RAP SUMMARY'!$O$15:$O$90)*1000)*AK14 -> 0 | AL34: =(SUMIF('RAP SUMMARY'!$B$15:$B$90,Input!AL$13,'RAP SUMMARY'!$O$15:$O$90)*1000)*AL14 -> 0 | AM34: =(SUMIF('RAP SUMMARY'!$B$15:$B$90,Input!AM$13,'RAP SUMMARY'!$O$15:$O$90)*1000)*AM14 -> 0 | AN34: =(SUMIF('RAP SUMMARY'!$B$15:$B$90,Input!AN$13,'RAP SUMMARY'!$O$15:$O$90)*1000)*AN14 -> 0 | AO34: =(SUMIF('RAP SUMMARY'!$B$15:$B$90,Input!AO$13,'RAP SUMMARY'!$O$15:$O$90)*1000)*AO14 -> 0 | AP34: =(SUMIF('RAP SUMMARY'!$B$15:$B$90,Input!AP$13,'RAP SUMMARY'!$O$15:$O$90)*1000)*AP14 -> 0 | AQ34: =(SUMIF('RAP SUMMARY'!$B$15:$B$90,Input!AQ$13,'RAP SUMMARY'!$O$15:$O$90)*1000)*AQ14 -> 0 | AR34: =(SUMIF('RAP SUMMARY'!$B$15:$B$90,Input!AR$13,'RAP SUMMARY'!$O$15:$O$90)*1000)*AR14 -> 0 | AS34: =(SUMIF('RAP SUMMARY'!$B$15:$B$90,Input!AS$13,'RAP SUMMARY'!$O$15:$O$90)*1000)*AS14 -> 0 | AT34: =(SUMIF('RAP SUMMARY'!$B$15:$B$90,Input!AT$13,'RAP SUMMARY'!$O$15:$O$90)*1000)*AT14 -> 0 | AU34: =(SUMIF('RAP SUMMARY'!$B$15:$B$90,Input!AU$13,'RAP SUMMARY'!$O$15:$O$90)*1000)*AU14 -> 0 | AV34: =(SUMIF('RAP SUMMARY'!$B$15:$B$90,Input!AV$13,'RAP SUMMARY'!$O$15:$O$90)*1000)*AV14 -> 0
C35: 20 | D35: Customer Service Capital | E35: Capital | F35: 2016-12-01 | G35: 2019-01-01 | H35: Customer Service | I35: 19.49317739 | J35: 5 | K35: 0 | L35: FALSE | M35: FALSE | N35: 1 | P35: 7247.909689 | R35: ='Customer Service'!F41/1000 -> 5123.691348 | S35: ='Customer Service'!I41/1000 -> 2124.218341 | T35: 0 | U35: 0 | V35: 0 | W35: 0 | X35: 0 | Y35: 0 | Z35: 0 | AA35: 0 | AB35: 0 | AC35: 0 | AD35: 0 | AE35: 0 | AF35: 0 | AG35: 0 | AH35: 0 | AI35: 0 | AJ35: 0 | AK35: 0 | AL35: 0 | AM35: 0 | AN35: 0 | AO35: 0 | AP35: 0 | AQ35: 0 | AR35: 0 | AS35: 0 | AT35: 0 | AU35: 0 | AV35: 0
C36: 21 | D36: Vero Revenue - Fuel Other Clauses | E36: Operating Savings | F36: 2016-12-01 | G36: 2019-01-01 | H36: Solar | I36: 30 | J36: 5 | K36: 0 | L36: FALSE | M36: FALSE | N36: 1 | P36: 1100009.169 | R36: =SUMIF('Base and Clause Revenue'!$I$11:$AM$11,Input!R$13,'Base and Clause Revenue'!$I$69:$AM$69)*R14 -> 0 | S36: =SUMIF('Base and Clause Revenue'!$I$11:$AM$11,Input!S$13,'Base and Clause Revenue'!$I$69:$AM$69) -> 24110.91118 | T36: =SUMIF('Base and Clause Revenue'!$I$11:$AM$11,Input!T$13,'Base and Clause Revenue'!$I$69:$AM$69) -> 24325.83336 | U36: =SUMIF('Base and Clause Revenue'!$I$11:$AM$11,Input!U$13,'Base and Clause Revenue'!$I$69:$AM$69) -> 24717.41819 | V36: =SUMIF('Base and Clause Revenue'!$I$11:$AM$11,Input!V$13,'Base and Clause Revenue'!$I$69:$AM$69) -> 24479.59397 | W36: =SUMIF('Base and Clause Revenue'!$I$11:$AM$11,Input!W$13,'Base and Clause Revenue'!$I$69:$AM$69) -> 25069.27611 | X36: =SUMIF('Base and Clause Revenue'!$I$11:$AM$11,Input!X$13,'Base and Clause Revenue'!$I$69:$AM$69) -> 25330.02023 | Y36: =SUMIF('Base and Clause Revenue'!$I$11:$AM$11,Input!Y$13,'Base and Clause Revenue'!$I$69:$AM$69) -> 25509.09482 | Z36: =SUMIF('Base and Clause Revenue'!$I$11:$AM$11,Input!Z$13,'Base and Clause Revenue'!$I$69:$AM$69) -> 26393.11091 | AA36: =SUMIF('Base and Clause Revenue'!$I$11:$AM$11,Input!AA$13,'Base and Clause Revenue'!$I$69:$AM$69) -> 27221.37447 | AB36: =SUMIF('Base and Clause Revenue'!$I$11:$AM$11,Input!AB$13,'Base and Clause Revenue'!$I$69:$AM$69) -> 28050.02119 | AC36: =SUMIF('Base and Clause Revenue'!$I$11:$AM$11,Input!AC$13,'Base and Clause Revenue'!$I$69:$AM$69) -> 29044.356 | AD36: =SUMIF('Base and Clause Revenue'!$I$11:$AM$11,Input!AD$13,'Base and Clause Revenue'!$I$69:$AM$69) -> 30146.494 | AE36: =SUMIF('Base and Clause Revenue'!$I$11:$AM$11,Input!AE$13,'Base and Clause Revenue'!$I$69:$AM$69) -> 31155.10025 | AF36: =SUMIF('Base and Clause Revenue'!$I$11:$AM$11,Input!AF$13,'Base and Clause Revenue'!$I$69:$AM$69) -> 32232.92862 | AG36: =SUMIF('Base and Clause Revenue'!$I$11:$AM$11,Input!AG$13,'Base and Clause Revenue'!$I$69:$AM$69) -> 33254.21835 | AH36: =SUMIF('Base and Clause Revenue'!$I$11:$AM$11,Input!AH$13,'Base and Clause Revenue'!$I$69:$AM$69) -> 34315.9789 | AI36: =SUMIF('Base and Clause Revenue'!$I$11:$AM$11,Input!AI$13,'Base and Clause Revenue'!$I$69:$AM$69) -> 35818.77783 | AJ36: =SUMIF('Base and Clause Revenue'!$I$11:$AM$11,Input!AJ$13,'Base and Clause Revenue'!$I$69:$AM$69) -> 38447.25809 | AK36: =SUMIF('Base and Clause Revenue'!$I$11:$AM$11,Input!AK$13,'Base and Clause Revenue'!$I$69:$AM$69) -> 39964.42517 | AL36: =SUMIF('Base and Clause Revenue'!$I$11:$AM$11,Input!AL$13,'Base and Clause Revenue'!$I$69:$AM$69) -> 41291.90487 | AM36: =SUMIF('Base and Clause Revenue'!$I$11:$AM$11,Input!AM$13,'Base and Clause Revenue'!$I$69:$AM$69) -> 42413.01757 | AN36: =SUMIF('Base and Clause Revenue'!$I$11:$AM$11,Input!AN$13,'Base and Clause Revenue'!$I$69:$AM$69) -> 43723.74892 | AO36: =SUMIF('Base and Clause Revenue'!$I$11:$AM$11,Input!AO$13,'Base and Clause Revenue'!$I$69:$AM$69) -> 45137.77681 | AP36: =SUMIF('Base and Clause Revenue'!$I$11:$AM$11,Input!AP$13,'Base and Clause Revenue'!$I$69:$AM$69) -> 45767.91702 | AQ36: =SUMIF('Base and Clause Revenue'!$I$11:$AM$11,Input!AQ$13,'Base and Clause Revenue'!$I$69:$AM$69) -> 48693.58217 | AR36: =SUMIF('Base and Clause Revenue'!$I$11:$AM$11,Input!AR$13,'Base and Clause Revenue'!$I$69:$AM$69) -> 50946.10063 | AS36: =SUMIF('Base and Clause Revenue'!$I$11:$AM$11,Input!AS$13,'Base and Clause Revenue'!$I$69:$AM$69) -> 52564.04546 | AT36: =SUMIF('Base and Clause Revenue'!$I$11:$AM$11,Input!AT$13,'Base and Clause Revenue'!$I$69:$AM$69) -> 54521.42933 | AU36: =SUMIF('Base and Clause Revenue'!$I$11:$AM$11,Input!AU$13,'Base and Clause Revenue'!$I$69:$AM$69) -> 56803.08338 | AV36: =SUMIF('Base and Clause Revenue'!$I$11:$AM$11,Input!AV$13,'Base and Clause Revenue'!$I$69:$AM$69) -> 58560.37166
C37: 22 | D37: Vero Revenue - Base Rates | E37: Operating Savings | F37: 2016-12-01 | G37: 2019-01-01 | H37: Solar | I37: 30 | J37: 5 | K37: 0 | L37: FALSE | M37: FALSE | N37: 1 | P37: 1984594.234 | R37: =SUMIF('Base and Clause Revenue'!$I$11:$AM$11,Input!R$13,'Base and Clause Revenue'!$I$62:$AM$62)*R14 -> 0 | S37: =SUMIF('Base and Clause Revenue'!$I$11:$AM$11,Input!S$13,'Base and Clause Revenue'!$I$62:$AM$62) -> 43166.57906 | T37: =SUMIF('Base and Clause Revenue'!$I$11:$AM$11,Input!T$13,'Base and Clause Revenue'!$I$62:$AM$62) -> 44239.10127 | U37: =SUMIF('Base and Clause Revenue'!$I$11:$AM$11,Input!U$13,'Base and Clause Revenue'!$I$62:$AM$62) -> 44557.86806 | V37: =SUMIF('Base and Clause Revenue'!$I$11:$AM$11,Input!V$13,'Base and Clause Revenue'!$I$62:$AM$62) -> 49521.99921 | W37: =SUMIF('Base and Clause Revenue'!$I$11:$AM$11,Input!W$13,'Base and Clause Revenue'!$I$62:$AM$62) -> 53379.33776 | X37: =SUMIF('Base and Clause Revenue'!$I$11:$AM$11,Input!X$13,'Base and Clause Revenue'!$I$62:$AM$62) -> 54393.39733 | Y37: =SUMIF('Base and Clause Revenue'!$I$11:$AM$11,Input!Y$13,'Base and Clause Revenue'!$I$62:$AM$62) -> 55397.90657 | Z37: =SUMIF('Base and Clause Revenue'!$I$11:$AM$11,Input!Z$13,'Base and Clause Revenue'!$I$62:$AM$62) -> 56405.34673 | AA37: =SUMIF('Base and Clause Revenue'!$I$11:$AM$11,Input!AA$13,'Base and Clause Revenue'!$I$62:$AM$62) -> 57414.6021 | AB37: =SUMIF('Base and Clause Revenue'!$I$11:$AM$11,Input!AB$13,'Base and Clause Revenue'!$I$62:$AM$62) -> 59034.87671 | AC37: =SUMIF('Base and Clause Revenue'!$I$11:$AM$11,Input!AC$13,'Base and Clause Revenue'!$I$62:$AM$62) -> 60243.49797 | AD37: =SUMIF('Base and Clause Revenue'!$I$11:$AM$11,Input!AD$13,'Base and Clause Revenue'!$I$62:$AM$62) -> 61067.19789 | AE37: =SUMIF('Base and Clause Revenue'!$I$11:$AM$11,Input!AE$13,'Base and Clause Revenue'!$I$62:$AM$62) -> 62058.51976 | AF37: =SUMIF('Base and Clause Revenue'!$I$11:$AM$11,Input!AF$13,'Base and Clause Revenue'!$I$62:$AM$62) -> 63451.96509 | AG37: =SUMIF('Base and Clause Revenue'!$I$11:$AM$11,Input!AG$13,'Base and Clause Revenue'!$I$62:$AM$62) -> 65007.10988 | AH37: =SUMIF('Base and Clause Revenue'!$I$11:$AM$11,Input!AH$13,'Base and Clause Revenue'!$I$62:$AM$62) -> 66617.08947 | AI37: =SUMIF('Base and Clause Revenue'!$I$11:$AM$11,Input!AI$13,'Base and Clause Revenue'!$I$62:$AM$62) -> 67662.1304 | AJ37: =SUMIF('Base and Clause Revenue'!$I$11:$AM$11,Input!AJ$13,'Base and Clause Revenue'!$I$62:$AM$62) -> 69563.6618 | AK37: =SUMIF('Base and Clause Revenue'!$I$11:$AM$11,Input!AK$13,'Base and Clause Revenue'!$I$62:$AM$62) -> 71452.715 | AL37: =SUMIF('Base and Clause Revenue'!$I$11:$AM$11,Input!AL$13,'Base and Clause Revenue'!$I$62:$AM$62) -> 72781.26539 | AM37: =SUMIF('Base and Clause Revenue'!$I$11:$AM$11,Input!AM$13,'Base and Clause Revenue'!$I$62:$AM$62) -> 74001.95099 | AN37: =SUMIF('Base and Clause Revenue'!$I$11:$AM$11,Input!AN$13,'Base and Clause Revenue'!$I$62:$AM$62) -> 75736.32388 | AO37: =SUMIF('Base and Clause Revenue'!$I$11:$AM$11,Input!AO$13,'Base and Clause Revenue'!$I$62:$AM$62) -> 76876.7217 | AP37: =SUMIF('Base and Clause Revenue'!$I$11:$AM$11,Input!AP$13,'Base and Clause Revenue'!$I$62:$AM$62) -> 78367.25416 | AQ37: =SUMIF('Base and Clause Revenue'!$I$11:$AM$11,Input!AQ$13,'Base and Clause Revenue'!$I$62:$AM$62) -> 79963.93173 | AR37: =SUMIF('Base and Clause Revenue'!$I$11:$AM$11,Input!AR$13,'Base and Clause Revenue'!$I$62:$AM$62) -> 81899.44238 | AS37: =SUMIF('Base and Clause Revenue'!$I$11:$AM$11,Input!AS$13,'Base and Clause Revenue'!$I$62:$AM$62) -> 82989.0505 | AT37: =SUMIF('Base and Clause Revenue'!$I$11:$AM$11,Input!AT$13,'Base and Clause Revenue'!$I$62:$AM$62) -> 84502.14558 | AU37: =SUMIF('Base and Clause Revenue'!$I$11:$AM$11,Input!AU$13,'Base and Clause Revenue'!$I$62:$AM$62) -> 85626.52498 | AV37: =SUMIF('Base and Clause Revenue'!$I$11:$AM$11,Input!AV$13,'Base and Clause Revenue'!$I$62:$AM$62) -> 87214.72039
C38: 23 | D38: System Impact Fixed Cost | E38: Operating Expense | F38: 2016-12-01 | G38: 2019-01-01 | H38: Solar | I38: 30 | J38: 5 | K38: 0 | L38: FALSE | M38: FALSE | N38: 1 | P38: 399532.3655 | R38: =(SUMIF('RAP SUMMARY'!$B$15:$B$90,Input!R$13,'RAP SUMMARY'!$N$15:$N$90)*1000)*R14 -> 0 | S38: =(SUMIF('RAP SUMMARY'!$B$15:$B$90,Input!S$13,'RAP SUMMARY'!$N$15:$N$90)*1000)*S14 -> 0 | T38: =(SUMIF('RAP SUMMARY'!$B$15:$B$90,Input!T$13,'RAP SUMMARY'!$N$15:$N$90)*1000)*T14 -> 0 | U38: =(SUMIF('RAP SUMMARY'!$B$15:$B$90,Input!U$13,'RAP SUMMARY'!$N$15:$N$90)*1000)*U14 -> 0 | V38: =(SUMIF('RAP SUMMARY'!$B$15:$B$90,Input!V$13,'RAP SUMMARY'!$N$15:$N$90)*1000)*V14 -> 0 | W38: =(SUMIF('RAP SUMMARY'!$B$15:$B$90,Input!W$13,'RAP SUMMARY'!$N$15:$N$90)*1000)*W14 -> 0 | X38: =(SUMIF('RAP SUMMARY'!$B$15:$B$90,Input!X$13,'RAP SUMMARY'!$N$15:$N$90)*1000)*X14 -> 0 | Y38: =(SUMIF('RAP SUMMARY'!$B$15:$B$90,Input!Y$13,'RAP SUMMARY'!$N$15:$N$90)*1000)*Y14 -> 0 | Z38: =(SUMIF('RAP SUMMARY'!$B$15:$B$90,Input!Z$13,'RAP SUMMARY'!$N$15:$N$90)*1000)*Z14 -> 0 | AA38: =(SUMIF('RAP SUMMARY'!$B$15:$B$90,Input!AA$13,'RAP SUMMARY'!$N$15:$N$90)*1000)*AA14 -> 0 | AB38: =(SUMIF('RAP SUMMARY'!$B$15:$B$90,Input!AB$13,'RAP SUMMARY'!$N$15:$N$90)*1000)*AB14 -> 0 | AC38: =(SUMIF('RAP SUMMARY'!$B$15:$B$90,Input!AC$13,'RAP SUMMARY'!$N$15:$N$90)*1000)*AC14 -> 0 | AD38: =(SUMIF('RAP SUMMARY'!$B$15:$B$90,Input!AD$13,'RAP SUMMARY'!$N$15:$N$90)*1000)*AD14 -> 0 | AE38: =(SUMIF('RAP SUMMARY'!$B$15:$B$90,Input!AE$13,'RAP SUMMARY'!$N$15:$N$90)*1000)*AE14 -> 15073.40616 | AF38: =(SUMIF('RAP SUMMARY'!$B$15:$B$90,Input!AF$13,'RAP SUMMARY'!$N$15:$N$90)*1000)*AF14 -> 23246.24107 | AG38: =(SUMIF('RAP SUMMARY'!$B$15:$B$90,Input!AG$13,'RAP SUMMARY'!$N$15:$N$90)*1000)*AG14 -> 24297.94611 | AH38: =(SUMIF('RAP SUMMARY'!$B$15:$B$90,Input!AH$13,'RAP SUMMARY'!$N$15:$N$90)*1000)*AH14 -> 23305.26752 | AI38: =(SUMIF('RAP SUMMARY'!$B$15:$B$90,Input!AI$13,'RAP SUMMARY'!$N$15:$N$90)*1000)*AI14 -> 23407.34309 | AJ38: =(SUMIF('RAP SUMMARY'!$B$15:$B$90,Input!AJ$13,'RAP SUMMARY'!$N$15:$N$90)*1000)*AJ14 -> 23102.93266 | AK38: =(SUMIF('RAP SUMMARY'!$B$15:$B$90,Input!AK$13,'RAP SUMMARY'!$N$15:$N$90)*1000)*AK14 -> 23523.44927 | AL38: =(SUMIF('RAP SUMMARY'!$B$15:$B$90,Input!AL$13,'RAP SUMMARY'!$N$15:$N$90)*1000)*AL14 -> 22462.90806 | AM38: =(SUMIF('RAP SUMMARY'!$B$15:$B$90,Input!AM$13,'RAP SUMMARY'!$N$15:$N$90)*1000)*AM14 -> 24261.9619 | AN38: =(SUMIF('RAP SUMMARY'!$B$15:$B$90,Input!AN$13,'RAP SUMMARY'!$N$15:$N$90)*1000)*AN14 -> 24429.68949 | AO38: =(SUMIF('RAP SUMMARY'!$B$15:$B$90,Input!AO$13,'RAP SUMMARY'!$N$15:$N$90)*1000)*AO14 -> 24883.79809 | AP38: =(SUMIF('RAP SUMMARY'!$B$15:$B$90,Input!AP$13,'RAP SUMMARY'!$N$15:$N$90)*1000)*AP14 -> 22059.90047 | AQ38: =(SUMIF('RAP SUMMARY'!$B$15:$B$90,Input!AQ$13,'RAP SUMMARY'!$N$15:$N$90)*1000)*AQ14 -> 22576.81604 | AR38: =(SUMIF('RAP SUMMARY'!$B$15:$B$90,Input!AR$13,'RAP SUMMARY'!$N$15:$N$90)*1000)*AR14 -> 21262.72379 | AS38: =(SUMIF('RAP SUMMARY'!$B$15:$B$90,Input!AS$13,'RAP SUMMARY'!$N$15:$N$90)*1000)*AS14 -> 20865.11058 | AT38: =(SUMIF('RAP SUMMARY'!$B$15:$B$90,Input!AT$13,'RAP SUMMARY'!$N$15:$N$90)*1000)*AT14 -> 20491.74031 | AU38: =(SUMIF('RAP SUMMARY'!$B$15:$B$90,Input!AU$13,'RAP SUMMARY'!$N$15:$N$90)*1000)*AU14 -> 21534.45214 | AV38: =(SUMIF('RAP SUMMARY'!$B$15:$B$90,Input!AV$13,'RAP SUMMARY'!$N$15:$N$90)*1000)*AV14 -> 18746.67878
C39: 24 | D39: System Impact VOM, Emissions | E39: Operating Expense | F39: 2016-12-01 | G39: 2019-01-01 | H39: Solar | I39: 30 | J39: 5 | K39: 0 | L39: FALSE | M39: FALSE | N39: 1 | P39: 144720 | R39: =(SUMIF('RAP SUMMARY'!$B$15:$B$90,Input!R$13,'RAP SUMMARY'!$AF$15:$AF$90))*R14 -> 0 | S39: =(SUMIF('RAP SUMMARY'!$B$15:$B$90,Input!S$13,'RAP SUMMARY'!$AF$15:$AF$90))*S14 -> 260 | T39: =(SUMIF('RAP SUMMARY'!$B$15:$B$90,Input!T$13,'RAP SUMMARY'!$AF$15:$AF$90))*T14 -> 240 | U39: =(SUMIF('RAP SUMMARY'!$B$15:$B$90,Input!U$13,'RAP SUMMARY'!$AF$15:$AF$90))*U14 -> 270 | V39: =(SUMIF('RAP SUMMARY'!$B$15:$B$90,Input!V$13,'RAP SUMMARY'!$AF$15:$AF$90))*V14 -> -220 | W39: =(SUMIF('RAP SUMMARY'!$B$15:$B$90,Input!W$13,'RAP SUMMARY'!$AF$15:$AF$90))*W14 -> 520 | X39: =(SUMIF('RAP SUMMARY'!$B$15:$B$90,Input!X$13,'RAP SUMMARY'!$AF$15:$AF$90))*X14 -> -470 | Y39: =(SUMIF('RAP SUMMARY'!$B$15:$B$90,Input!Y$13,'RAP SUMMARY'!$AF$15:$AF$90))*Y14 -> -320 | Z39: =(SUMIF('RAP SUMMARY'!$B$15:$B$90,Input!Z$13,'RAP SUMMARY'!$AF$15:$AF$90))*Z14 -> -50 | AA39: =(SUMIF('RAP SUMMARY'!$B$15:$B$90,Input!AA$13,'RAP SUMMARY'!$AF$15:$AF$90))*AA14 -> 370 | AB39: =(SUMIF('RAP SUMMARY'!$B$15:$B$90,Input!AB$13,'RAP SUMMARY'!$AF$15:$AF$90))*AB14 -> 70 | AC39: =(SUMIF('RAP SUMMARY'!$B$15:$B$90,Input!AC$13,'RAP SUMMARY'!$AF$15:$AF$90))*AC14 -> 2460 | AD39: =(SUMIF('RAP SUMMARY'!$B$15:$B$90,Input!AD$13,'RAP SUMMARY'!$AF$15:$AF$90))*AD14 -> 390 | AE39: =(SUMIF('RAP SUMMARY'!$B$15:$B$90,Input!AE$13,'RAP SUMMARY'!$AF$15:$AF$90))*AE14 -> 2160 | AF39: =(SUMIF('RAP SUMMARY'!$B$15:$B$90,Input!AF$13,'RAP SUMMARY'!$AF$15:$AF$90))*AF14 -> 3260 | AG39: =(SUMIF('RAP SUMMARY'!$B$15:$B$90,Input!AG$13,'RAP SUMMARY'!$AF$15:$AF$90))*AG14 -> 1590 | AH39: =(SUMIF('RAP SUMMARY'!$B$15:$B$90,Input!AH$13,'RAP SUMMARY'!$AF$15:$AF$90))*AH14 -> 5530 | AI39: =(SUMIF('RAP SUMMARY'!$B$15:$B$90,Input!AI$13,'RAP SUMMARY'!$AF$15:$AF$90))*AI14 -> 5580 | AJ39: =(SUMIF('RAP SUMMARY'!$B$15:$B$90,Input!AJ$13,'RAP SUMMARY'!$AF$15:$AF$90))*AJ14 -> 4050 | AK39: =(SUMIF('RAP SUMMARY'!$B$15:$B$90,Input!AK$13,'RAP SUMMARY'!$AF$15:$AF$90))*AK14 -> 4990 | AL39: =(SUMIF('RAP SUMMARY'!$B$15:$B$90,Input!AL$13,'RAP SUMMARY'!$AF$15:$AF$90))*AL14 -> 4350 | AM39: =(SUMIF('RAP SUMMARY'!$B$15:$B$90,Input!AM$13,'RAP SUMMARY'!$AF$15:$AF$90))*AM14 -> 7710 | AN39: =(SUMIF('RAP SUMMARY'!$B$15:$B$90,Input!AN$13,'RAP SUMMARY'!$AF$15:$AF$90))*AN14 -> 7180 | AO39: =(SUMIF('RAP SUMMARY'!$B$15:$B$90,Input!AO$13,'RAP SUMMARY'!$AF$15:$AF$90))*AO14 -> 9960 | AP39: =(SUMIF('RAP SUMMARY'!$B$15:$B$90,Input!AP$13,'RAP SUMMARY'!$AF$15:$AF$90))*AP14 -> 5940 | AQ39: =(SUMIF('RAP SUMMARY'!$B$15:$B$90,Input!AQ$13,'RAP SUMMARY'!$AF$15:$AF$90))*AQ14 -> 6830 | AR39: =(SUMIF('RAP SUMMARY'!$B$15:$B$90,Input!AR$13,'RAP SUMMARY'!$AF$15:$AF$90))*AR14 -> 13050 | AS39: =(SUMIF('RAP SUMMARY'!$B$15:$B$90,Input!AS$13,'RAP SUMMARY'!$AF$15:$AF$90))*AS14 -> 10720 | AT39: =(SUMIF('RAP SUMMARY'!$B$15:$B$90,Input!AT$13,'RAP SUMMARY'!$AF$15:$AF$90))*AT14 -> 15010 | AU39: =(SUMIF('RAP SUMMARY'!$B$15:$B$90,Input!AU$13,'RAP SUMMARY'!$AF$15:$AF$90))*AU14 -> 18040 | AV39: =(SUMIF('RAP SUMMARY'!$B$15:$B$90,Input!AV$13,'RAP SUMMARY'!$AF$15:$AF$90))*AV14 -> 15250
C40: 25 | D40: System Impact Fuel | E40: Operating Expense | F40: 2016-12-01 | G40: 2019-01-01 | H40: Solar | I40: 30 | J40: 5 | K40: 0 | L40: FALSE | M40: FALSE | N40: 1 | P40: 923290 | R40: =SUMIF('RAP SUMMARY'!$B$15:$B$90,Input!R$13,'RAP SUMMARY'!$Q$15:$Q$90)*1000*R14 -> 0 | S40: =SUMIF('RAP SUMMARY'!$B$15:$B$90,Input!S$13,'RAP SUMMARY'!$Q$15:$Q$90)*1000*S14 -> 20470 | T40: =SUMIF('RAP SUMMARY'!$B$15:$B$90,Input!T$13,'RAP SUMMARY'!$Q$15:$Q$90)*1000*T14 -> 15710 | U40: =SUMIF('RAP SUMMARY'!$B$15:$B$90,Input!U$13,'RAP SUMMARY'!$Q$15:$Q$90)*1000*U14 -> 17950 | V40: =SUMIF('RAP SUMMARY'!$B$15:$B$90,Input!V$13,'RAP SUMMARY'!$Q$15:$Q$90)*1000*V14 -> 17960 | W40: =SUMIF('RAP SUMMARY'!$B$15:$B$90,Input!W$13,'RAP SUMMARY'!$Q$15:$Q$90)*1000*W14 -> 21500 | X40: =SUMIF('RAP SUMMARY'!$B$15:$B$90,Input!X$13,'RAP SUMMARY'!$Q$15:$Q$90)*1000*X14 -> 21490 | Y40: =SUMIF('RAP SUMMARY'!$B$15:$B$90,Input!Y$13,'RAP SUMMARY'!$Q$15:$Q$90)*1000*Y14 -> 23490 | Z40: =SUMIF('RAP SUMMARY'!$B$15:$B$90,Input!Z$13,'RAP SUMMARY'!$Q$15:$Q$90)*1000*Z14 -> 24830 | AA40: =SUMIF('RAP SUMMARY'!$B$15:$B$90,Input!AA$13,'RAP SUMMARY'!$Q$15:$Q$90)*1000*AA14 -> 25650 | AB40: =SUMIF('RAP SUMMARY'!$B$15:$B$90,Input!AB$13,'RAP SUMMARY'!$Q$15:$Q$90)*1000*AB14 -> 26480 | AC40: =SUMIF('RAP SUMMARY'!$B$15:$B$90,Input!AC$13,'RAP SUMMARY'!$Q$15:$Q$90)*1000*AC14 -> 26990 | AD40: =SUMIF('RAP SUMMARY'!$B$15:$B$90,Input!AD$13,'RAP SUMMARY'!$Q$15:$Q$90)*1000*AD14 -> 30670 | AE40: =SUMIF('RAP SUMMARY'!$B$15:$B$90,Input!AE$13,'RAP SUMMARY'!$Q$15:$Q$90)*1000*AE14 -> 29070 | AF40: =SUMIF('RAP SUMMARY'!$B$15:$B$90,Input!AF$13,'RAP SUMMARY'!$Q$15:$Q$90)*1000*AF14 -> 29260 | AG40: =SUMIF('RAP SUMMARY'!$B$15:$B$90,Input!AG$13,'RAP SUMMARY'!$Q$15:$Q$90)*1000*AG14 -> 30030 | AH40: =SUMIF('RAP SUMMARY'!$B$15:$B$90,Input!AH$13,'RAP SUMMARY'!$Q$15:$Q$90)*1000*AH14 -> 29240 | AI40: =SUMIF('RAP SUMMARY'!$B$15:$B$90,Input!AI$13,'RAP SUMMARY'!$Q$15:$Q$90)*1000*AI14 -> 31640 | AJ40: =SUMIF('RAP SUMMARY'!$B$15:$B$90,Input!AJ$13,'RAP SUMMARY'!$Q$15:$Q$90)*1000*AJ14 -> 34150 | AK40: =SUMIF('RAP SUMMARY'!$B$15:$B$90,Input!AK$13,'RAP SUMMARY'!$Q$15:$Q$90)*1000*AK14 -> 35320 | AL40: =SUMIF('RAP SUMMARY'!$B$15:$B$90,Input!AL$13,'RAP SUMMARY'!$Q$15:$Q$90)*1000*AL14 -> 34600 | AM40: =SUMIF('RAP SUMMARY'!$B$15:$B$90,Input!AM$13,'RAP SUMMARY'!$Q$15:$Q$90)*1000*AM14 -> 33970 | AN40: =SUMIF('RAP SUMMARY'!$B$15:$B$90,Input!AN$13,'RAP SUMMARY'!$Q$15:$Q$90)*1000*AN14 -> 36850 | AO40: =SUMIF('RAP SUMMARY'!$B$15:$B$90,Input!AO$13,'RAP SUMMARY'!$Q$15:$Q$90)*1000*AO14 -> 36590 | AP40: =SUMIF('RAP SUMMARY'!$B$15:$B$90,Input!AP$13,'RAP SUMMARY'!$Q$15:$Q$90)*1000*AP14 -> 40050 | AQ40: =SUMIF('RAP SUMMARY'!$B$15:$B$90,Input!AQ$13,'RAP SUMMARY'!$Q$15:$Q$90)*1000*AQ14 -> 40390 | AR40: =SUMIF('RAP SUMMARY'!$B$15:$B$90,Input!AR$13,'RAP SUMMARY'!$Q$15:$Q$90)*1000*AR14 -> 40020 | AS40: =SUMIF('RAP SUMMARY'!$B$15:$B$90,Input!AS$13,'RAP SUMMARY'!$Q$15:$Q$90)*1000*AS14 -> 42940 | AT40: =SUMIF('RAP SUMMARY'!$B$15:$B$90,Input!AT$13,'RAP SUMMARY'!$Q$15:$Q$90)*1000*AT14 -> 41660 | AU40: =SUMIF('RAP SUMMARY'!$B$15:$B$90,Input!AU$13,'RAP SUMMARY'!$Q$15:$Q$90)*1000*AU14 -> 42210 | AV40: =SUMIF('RAP SUMMARY'!$B$15:$B$90,Input!AV$13,'RAP SUMMARY'!$Q$15:$Q$90)*1000*AV14 -> 42110
D41: ="Total "&D15 -> Total Item Title | O41: =SUM(O16:O40) -> 0 | P41: 5312242.492 | R41: =SUM(R16:R40) -> 9516.463893 | S41: =SUM(S16:S40) -> 296420.8555 | T41: =SUM(T16:T40) -> 125023.5175 | U41: 103852.851 | V41: 107337.9533 | W41: 119764.9985 | X41: 114633.4839 | Y41: 118547.7245 | Z41: 123269.8027 | AA41: 130250.1356 | AB41: 129392.6123 | AC41: 134954.5175 | AD41: 142064.1422 | AE41: 156693.4346 | AF41: 169129.1992 | AG41: 172374.1132 | AH41: 177735.532 | AI41: 183383.8665 | AJ41: 189154.4427 | AK41: 195673.22 | AL41: 196508.34 | AM41: 203996.956 | AN41: 203815.4329 | AO41: 209808.2665 | AP41: 209023.4606 | AQ41: 215785.6988 | AR41: 225017.6313 | AS41: 228441.0522 | AT41: 235087.612 | AU41: 243672.2787 | AV41: 241912.8968
D44: Item Title | E44: Cash Flow Type | G44: =$I$10&"-YEAR CPVRR" -> 30-YEAR CPVRR
C45: =C44+1 -> 1 | D45: =D16 -> Acquired Inventory | E45: =E16 -> Capital | G45: ='Revenue Requirement'!K19 -> 4115.783968
C46: =C45+1 -> 2 | D46: =D17 -> PP&E - Dist | E46: Capital | G46: ='Revenue Requirement'!K20 -> 65549.89118
C47: 3 | D47: PP&E - Transmission | E47: Capital | G47: ='Revenue Requirement'!K21 -> 7859.609635
C48: 4 | D48: PP&E - General Plant | E48: Capital | G48: ='Revenue Requirement'!K22 -> 1013.810439
C49: 5 | D49: PP&E - Land (included in Trans and Dist) | E49: Land | G49: ='Revenue Requirement'!K23 -> 2438.267771
C50: 6 | D50: Asset Acquisition Adjustment | E50: Capital | G50: ='Revenue Requirement'!K24 -> 126263.4711
C51: 7 | D51: Lease Easement Indian River | E51: Operating Expense | G51: ='Revenue Requirement'!K25 -> 331.5909178
C52: 8 | D52: Prepaid Easement Vero Beach | E52: Capital | G52: ='Revenue Requirement'!K26 -> 2312.037088
C53: 9 | D53: OUC PPA Payment - Above Market | E53: Capital | G53: ='Revenue Requirement'!K27 -> 12379.9623
C54: 10 | D54: PPA Energy Savings | E54: Operating Savings | G54: ='Revenue Requirement'!K28 -> -5445.670607
C55: 11 | D55: Ongoing Distribution Capex | E55: Capital | G55: ='Revenue Requirement'!K29 -> 122038.487
C56: 12 | D56: Ongoing Transmission Capex | E56: Capital | G56: ='Revenue Requirement'!K30 -> 39519.66904
C57: 13 | D57: Customer Serivce O&M | E57: Operating Expense | G57: ='Revenue Requirement'!K31 -> 9082.783589
C58: 14 | D58: Ongoing Distribution O&M | E58: Operating Expense | G58: ='Revenue Requirement'!K32 -> 33093.39769
C59: 15 | D59: Ongoing Transmission O&M | E59: Operating Expense | G59: ='Revenue Requirement'!K33 -> 11908.57064
C60: 16 | D60: Dark Fiber Lease | E60: Operating Expense | G60: ='Revenue Requirement'!K34 -> 2479.723386
C61: 17 | D61: OUC PPA Payment - At Market | E61: Operating Expense | G61: ='Revenue Requirement'!K35 -> 7033.501999
C62: 18 | D62: Transaction Cost | E62: Operating Expense | G62: ='Revenue Requirement'!K36 -> 722.5662317
C63: 19 | D63: System Impact Short Term PPAs | E63: Operating Expense | G63: ='Revenue Requirement'!K37 -> 6296.937947
C64: 20 | D64: Customer Service Capital | E64: Capital | G64: ='Revenue Requirement'!K38 -> 8448.180895
C65: 21 | D65: Vero Revenue - Fuel Other Clauses | E65: Operating Savings | G65: ='Revenue Requirement'!K39 -> -340992.774
C66: 22 | D66: Vero Revenue - Base Rates | E66: Operating Savings | G66: ='Revenue Requirement'!K40 -> -648838.9718
C67: 23 | D67: System Impact Fixed Cost | E67: Operating Expense | G67: ='Revenue Requirement'!K41 -> 83118.90092
C68: 24 | D68: System Impact VOM, Emissions | E68: Operating Expense | G68: ='Revenue Requirement'!K42 -> 25423.5086
C69: 25 | D69: System Impact Fuel | E69: Operating Expense | G69: ='Revenue Requirement'!K43 -> 288722.2235
D70: Total | G70: =SUM(G45:G69) -> -135124.5404
D77: Sales Calculation

Sheet Revenue Requirement
E1: FPL 002318
E2: 20170235-EI
D9: REVENUE REQUIREMENT | E9: =Input!$M$13 -> $ thousands | K9: =K44 -> -135124.5404
D10: Period | E10: Type | H10: Input | I10: Input | K10: PV | L10: SUM | P10: 0 | Q10: =P10+1 -> 1 | R10: =Q10+1 -> 2 | S10: 3 | T10: 4 | U10: 5 | V10: 6 | W10: 7 | X10: 8 | Y10: 9 | Z10: 10 | AA10: 11 | AB10: 12 | AC10: 13 | AD10: 14 | AE10: 15 | AF10: 16 | AG10: 17 | AH10: =AG10+1 -> 18 | AI10: 19 | AJ10: 20 | AK10: 21 | AL10: 22 | AM10: 23 | AN10: 24 | AO10: 25 | AP10: 26 | AQ10: 27 | AR10: 28 | AS10: 29 | AT10: 30 | AU10: 31 | AV10: 32 | AW10: 33 | AX10: =AW10+1 -> 34 | AY10: 35 | AZ10: 36 | BA10: 37 | BB10: 38 | BC10: 39 | BD10: 40 | BE10: 41 | BF10: 42 | BG10: 43 | BH10: 44 | BI10: 45 | BJ10: 46 | BK10: 47 | BL10: 48 | BM10: 49 | BN10: =BM10+1 -> 50
D11: Year | N11: DAY 1 Accounting | P11: =Input!R13 -> 2018 | Q11: =P11+1 -> 2019 | R11: 2020 | S11: 2021 | T11: 2022 | U11: 2023 | V11: 2024 | W11: 2025 | X11: 2026 | Y11: 2027 | Z11: 2028 | AA11: 2029 | AB11: 2030 | AC11: 2031 | AD11: 2032 | AE11: 2033 | AF11: 2034 | AG11: 2035 | AH11: 2036 | AI11: 2037 | AJ11: 2038 | AK11: 2039 | AL11: 2040 | AM11: 2041 | AN11: 2042 | AO11: 2043 | AP11: 2044 | AQ11: 2045 | AR11: 2046 | AS11: 2047 | AT11: 2048 | AU11: 2049 | AV11: 2050 | AW11: 2051 | AX11: 2052 | AY11: 2053 | AZ11: 2054 | BA11: 2055 | BB11: 2056 | BC11: 2057 | BD11: 2058 | BE11: 2059 | BF11: 2060 | BG11: 2061 | BH11: 2062 | BI11: 2063 | BJ11: 2064 | BK11: 2065 | BL11: 2066 | BM11: 2067 | BN11: =BM11+1 -> 2068
D12: Discount Date | H12: =Assumptions!$D$15 -> 2018-01-01 | P12: =IF(P$11<=YEAR($H12),AVERAGE(DATE(P$11,MONTH($H12),DAY($H12)),DATE(P$11,12,31)),DATE(P$11,7,1)) -> 2018-07-02 | Q12: =IF(Q$11<=YEAR($H12),AVERAGE(DATE(Q$11,MONTH($H12),DAY($H12)),DATE(Q$11,12,31)),DATE(Q$11,7,1)) -> 2019-07-01 | R12: 2020-07-01 | S12: 2021-07-01 | T12: 2022-07-01 | U12: 2023-07-01 | V12: 2024-07-01 | W12: 2025-07-01 | X12: 2026-07-01 | Y12: 2027-07-01 | Z12: 2028-07-01 | AA12: 2029-07-01 | AB12: 2030-07-01 | AC12: 2031-07-01 | AD12: 2032-07-01 | AE12: 2033-07-01 | AF12: 2034-07-01 | AG12: 2035-07-01 | AH12: 2036-07-01 | AI12: 2037-07-01 | AJ12: 2038-07-01 | AK12: 2039-07-01 | AL12: 2040-07-01 | AM12: 2041-07-01 | AN12: 2042-07-01 | AO12: 2043-07-01 | AP12: 2044-07-01 | AQ12: 2045-07-01 | AR12: 2046-07-01 | AS12: 2047-07-01 | AT12: 2048-07-01 | AU12: 2049-07-01 | AV12: 2050-07-01 | AW12: 2051-07-01 | AX12: 2052-07-01 | AY12: 2053-07-01 | AZ12: 2054-07-01 | BA12: 2055-07-01 | BB12: 2056-07-01 | BC12: 2057-07-01 | BD12: 2058-07-01 | BE12: 2059-07-01 | BF12: 2060-07-01 | BG12: 2061-07-01 | BH12: 2062-07-01 | BI12: 2063-07-01 | BJ12: 2064-07-01 | BK12: 2065-07-01 | BL12: 2066-07-01 | BM12: 2067-07-01 | BN12: 2068-07-01
D13: CPVRR Horizon | H13: =Input!I10 -> 30 | P13: =IF(P10<=$H$13,1,0) -> 1 | Q13: =IF(Q10<=$H$13,1,0) -> 1 | R13: 1 | S13: 1 | T13: 1 | U13: 1 | V13: 1 | W13: 1 | X13: 1 | Y13: 1 | Z13: 1 | AA13: 1 | AB13: 1 | AC13: 1 | AD13: 1 | AE13: 1 | AF13: 1 | AG13: 1 | AH13: 1 | AI13: 1 | AJ13: 1 | AK13: 1 | AL13: 1 | AM13: 1 | AN13: 1 | AO13: 1 | AP13: 1 | AQ13: 1 | AR13: 1 | AS13: 1 | AT13: 1 | AU13: 0 | AV13: 0 | AW13: 0 | AX13: 0 | AY13: 0 | AZ13: 0 | BA13: 0 | BB13: 0 | BC13: 0 | BD13: 0 | BE13: 0 | BF13: 0 | BG13: 0 | BH13: 0 | BI13: 0 | BJ13: 0 | BK13: 0 | BL13: 0 | BM13: 0 | BN13: 0
D14: Discount Factor | F14: code | H14: =Assumptions!$E$33 -> 0.07759638256 | P14: =(1+$H14)^(($H$12-P$12)/365) -> 0.9634216422 | Q14: 0.8942299144 | R14: 0.8296676343 | S14: 0.7699242942 | T14: 0.7144829982 | U14: 0.6630339613 | V14: 0.6151637395 | W14: 0.5708665595 | X14: 0.5297591647 | Y14: 0.4916118626 | Z14: 0.4561181017 | AA14: 0.4232736014 | AB14: 0.3927941929 | AC14: 0.3645095689 | AD14: 0.3381924345 | AE14: 0.3138396156 | AF14: 0.2912404131 | AG14: 0.2702685512 | AH14: 0.2507555002 | AI14: 0.2326989068 | AJ14: 0.2159425464 | AK14: 0.2003927907 | AL14: 0.1859246822 | AM14: 0.1725364758 | AN14: 0.1601123376 | AO14: 0.1485828462 | AP14: 0.1378553508 | AQ14: 0.1279285575 | AR14: 0.1187165803 | AS14: 0.1101679462 | AT14: 0.1022139584 | AU14: 0.09485365771 | AV14: 0.08802336315 | AW14: 0.08168490965 | AX14: 0.07578736146 | AY14: 0.0703300073 | AZ14: 0.06526563047 | BA14: 0.06056593316 | BB14: 0.05619314862 | BC14: 0.0521467495 | BD14: 0.04839172657 | BE14: 0.0449070982 | BF14: 0.04166486194 | BG14: 0.03866462677 | BH14: 0.03588043482 | BI14: 0.03329672909 | BJ14: 0.03089274694 | BK14: 0.02866819845 | BL14: 0.02660383694 | BM14: 0.02468812755 | BN14: 0.02290567565
D16: REVENUE REQUIREMENT - UNFAVORABLE/(FAVORABLE)
D18: Revenue Requirement - unfavorable/(favorable) | K18: CPVRR | L18: SUM
C19: =C18+1 -> 1 | D19: =INDEX(D$66:D$90,$C19,1) -> Acquired Inventory | E19: Capital | F19: =MATCH(E19,lookups!$C$100:$C$105,0) -> 4 | K19: =SUMPRODUCT(P19:BN19,$P$14:$BN$14,$P$13:$BN$13) -> 4115.783968 | L19: =SUM(P19:BN19) -> 5246.636206 | P19: =P154+P274+P567+P1387+P954+P1208 -> 0 | Q19: 1245.583882 | R19: 1141.829448 | S19: 1038.496511 | T19: 945.9539067 | U19: 857.4576769 | V19: 17.31478096 | W19: -1.624783351e-14 | X19: -1.624783351e-14 | Y19: -1.624783351e-14 | Z19: -1.624783351e-14 | AA19: -1.624783351e-14 | AB19: -1.624783351e-14 | AC19: -1.624783351e-14 | AD19: -1.624783351e-14 | AE19: -1.624783351e-14 | AF19: -1.624783351e-14 | AG19: -1.624783351e-14 | AH19: -1.624783351e-14 | AI19: -1.624783351e-14 | AJ19: -1.624783351e-14 | AK19: -1.624783351e-14 | AL19: -1.624783351e-14 | AM19: -1.624783351e-14 | AN19: -1.624783351e-14 | AO19: -1.624783351e-14 | AP19: -1.624783351e-14 | AQ19: -1.624783351e-14 | AR19: -1.624783351e-14 | AS19: -1.624783351e-14 | AT19: -1.624783351e-14 | AU19: -1.624783351e-14 | AV19: =AV154+AV274+AV567+AV1387+AV954+AV1208 -> -1.624783351e-14 | AW19: -1.624783351e-14 | AX19: -1.624783351e-14 | AY19: -1.624783351e-14 | AZ19: -1.624783351e-14 | BA19: -1.624783351e-14 | BB19: -1.624783351e-14 | BC19: -1.624783351e-14 | BD19: -1.624783351e-14 | BE19: -1.624783351e-14 | BF19: -1.624783351e-14 | BG19: -1.624783351e-14 | BH19: -1.624783351e-14 | BI19: -1.624783351e-14 | BJ19: -1.624783351e-14 | BK19: -1.624783351e-14 | BL19: -1.624783351e-14 | BM19: -1.624783351e-14 | BN19: -1.624783351e-14
C20: =C19+1 -> 2 | D20: PP&E - Dist | E20: Capital | F20: =MATCH(E20,lookups!$C$100:$C$105,0) -> 4 | K20: =SUMPRODUCT(P20:BN20,$P$14:$BN$14,$P$13:$BN$13) -> 65549.89118 | L20: =SUM(P20:BN20) -> 125474.8712 | P20: =P155+P275+P568+P1388+P955+P1209 -> 0 | Q20: 9189.753591 | R20: 8883.985467 | S20: 8533.890291 | T20: 8190.985895 | U20: 7854.734005 | V20: 7524.637754 | W20: 7200.234779 | X20: 6881.097222 | Y20: 6564.899465 | Z20: 6249.122665 | AA20: 5933.345865 | AB20: 5617.627618 | AC20: 5302.567224 | AD20: 4987.506829 | AE20: 4672.446435 | AF20: 4357.386041 | AG20: 4042.325647 | AH20: 2787.375897 | AI20: 638.1367494 | AJ20: 560.8690258 | AK20: 514.6879329 | AL20: 499.2919349 | AM20: 499.2919349 | AN20: 499.2919349 | AO20: 499.2919349 | AP20: 499.2919349 | AQ20: 499.2919349 | AR20: 499.2919349 | AS20: 499.2919349 | AT20: 499.2919349 | AU20: 499.2919349 | AV20: =AV155+AV275+AV568+AV1388+AV955+AV1209 -> 499.2919349 | AW20: 499.2919349 | AX20: 499.2919349 | AY20: 499.2919349 | AZ20: 499.2919349 | BA20: 499.2919349 | BB20: 499.2919349 | BC20: 499.2919349 | BD20: 5.205215027e-12 | BE20: 5.205215027e-12 | BF20: 5.205215027e-12 | BG20: 5.205215027e-12 | BH20: 5.205215027e-12 | BI20: 5.205215027e-12 | BJ20: 5.205215027e-12 | BK20: 5.205215027e-12 | BL20: 5.205215027e-12 | BM20: 5.205215027e-12 | BN20: 5.205215027e-12
C21: 3 | D21: PP&E - Transmission | E21: Capital | F21: =MATCH(E21,lookups!$C$100:$C$105,0) -> 4 | K21: 7859.609635 | L21: 14445.01134 | P21: =P156+P276+P569+P1389+P956+P1210 -> 0 | Q21: 1414.356229 | R21: 1349.999338 | S21: 1280.410988 | T21: 1212.330357 | U21: 1145.606674 | V21: 1080.114295 | W21: 1015.484666 | X21: 951.1314533 | Y21: 886.769864 | Z21: 467.366051 | AA21: 139.9560618 | AB21: 129.0453459 | AC21: 119.1530306 | AD21: 109.2607153 | AE21: 99.36840006 | AF21: 91.94706955 | AG21: 89.47608479 | AH21: 89.47608479 | AI21: 89.47608479 | AJ21: 89.47608479 | AK21: 89.47608479 | AL21: 89.47608479 | AM21: 89.47608479 | AN21: 89.47608479 | AO21: 89.47608479 | AP21: 89.47608479 | AQ21: 89.47608479 | AR21: 89.47608479 | AS21: 89.47608479 | AT21: 89.47608479 | AU21: 89.47608479 | AV21: =AV156+AV276+AV569+AV1389+AV956+AV1210 -> 89.47608479 | AW21: 89.47608479 | AX21: 89.47608479 | AY21: 89.47608479 | AZ21: 89.47608479 | BA21: 89.47608479 | BB21: 89.47608479 | BC21: 89.47608479 | BD21: 89.47608479 | BE21: 89.47608479 | BF21: 89.47608479 | BG21: 89.47608479 | BH21: 89.47608479 | BI21: 89.47608479 | BJ21: 89.47608479 | BK21: 89.47608479 | BL21: 89.47608479 | BM21: 89.47608479 | BN21: -7.695564782e-13
C22: 4 | D22: PP&E - General Plant | E22: Capital | F22: =MATCH(E22,lookups!$C$100:$C$105,0) -> 4 | K22: 1013.810439 | L22: 1279.346828 | P22: =P157+P277+P570+P1390+P957+P1211 -> 0 | Q22: 883.6750445 | R22: 114.2857074 | S22: 23.72269512 | T22: 20.04245753 | U22: 17.34137144 | V22: 15.31555688 | W22: 14.64028535 | X22: 14.64028535 | Y22: 14.64028535 | Z22: 14.64028535 | AA22: 14.64028535 | AB22: 14.64028535 | AC22: 14.64028535 | AD22: 14.64028535 | AE22: 14.64028535 | AF22: 14.64028535 | AG22: 14.64028535 | AH22: 14.64028535 | AI22: 14.64028535 | AJ22: 14.64028535 | AK22: -4.634325241e-14 | AL22: -4.634325241e-14 | AM22: -4.634325241e-14 | AN22: -4.634325241e-14 | AO22: -4.634325241e-14 | AP22: -4.634325241e-14 | AQ22: -4.634325241e-14 | AR22: -4.634325241e-14 | AS22: -4.634325241e-14 | AT22: -4.634325241e-14 | AU22: -4.634325241e-14 | AV22: =AV157+AV277+AV570+AV1390+AV957+AV1211 -> -4.634325241e-14 | AW22: -4.634325241e-14 | AX22: -4.634325241e-14 | AY22: -4.634325241e-14 | AZ22: -4.634325241e-14 | BA22: -4.634325241e-14 | BB22: -4.634325241e-14 | BC22: -4.634325241e-14 | BD22: -4.634325241e-14 | BE22: -4.634325241e-14 | BF22: -4.634325241e-14 | BG22: -4.634325241e-14 | BH22: -4.634325241e-14 | BI22: -4.634325241e-14 | BJ22: -4.634325241e-14 | BK22: -4.634325241e-14 | BL22: -4.634325241e-14 | BM22: -4.634325241e-14 | BN22: -4.634325241e-14
C23: 5 | D23: PP&E - Land (included in Trans and Dist) | E23: Land | F23: =MATCH(E23,lookups!$C$100:$C$105,0) -> 3 | K23: 2438.267771 | L23: 6813.993421 | P23: =P158+P278+P571+P1391+P958+P1212 -> 0 | Q23: 219.8062394 | R23: 219.8062394 | S23: 219.8062394 | T23: 219.8062394 | U23: 219.8062394 | V23: 219.8062394 | W23: 219.8062394 | X23: 219.8062394 | Y23: 219.8062394 | Z23: 219.8062394 | AA23: 219.8062394 | AB23: 219.8062394 | AC23: 219.8062394 | AD23: 219.8062394 | AE23: 219.8062394 | AF23: 219.8062394 | AG23: 219.8062394 | AH23: 219.8062394 | AI23: 219.8062394 | AJ23: 219.8062394 | AK23: 219.8062394 | AL23: 219.8062394 | AM23: 219.8062394 | AN23: 219.8062394 | AO23: 219.8062394 | AP23: 219.8062394 | AQ23: 219.8062394 | AR23: 219.8062394 | AS23: 219.8062394 | AT23: 219.8062394 | AU23: 219.8062394 | AV23: =AV158+AV278+AV571+AV1391+AV958+AV1212 -> 0 | AW23: 0 | AX23: 0 | AY23: 0 | AZ23: 0 | BA23: 0 | BB23: 0 | BC23: 0 | BD23: 0 | BE23: 0 | BF23: 0 | BG23: 0 | BH23: 0 | BI23: 0 | BJ23: 0 | BK23: 0 | BL23: 0 | BM23: 0 | BN23: 0
C24: 6 | D24: Asset Acquisition Adjustment | E24: Capital | F24: =MATCH(E24,lookups!$C$100:$C$105,0) -> 4 | K24: 126263.4711 | L24: 277342.5796 | P24: =P159+P279+P572+P1392+P959+P1213 -> 0 | Q24: 15541.75633 | R24: 15079.09792 | S24: 14572.38632 | T24: 14081.35747 | U24: 13604.83743 | V24: 13141.74255 | W24: 12691.06444 | X24: 12251.86997 | Y24: 11819.08706 | Z24: 11387.22224 | AA24: 10955.35742 | AB24: 10523.49261 | AC24: 10091.62779 | AD24: 9659.762969 | AE24: 9227.89815 | AF24: 8796.033331 | AG24: 8364.168513 | AH24: 7932.303694 | AI24: 7500.438876 | AJ24: 7068.574057 | AK24: 6670.287195 | AL24: 6339.141198 | AM24: 6041.573157 | AN24: 5744.005116 | AO24: 5446.437075 | AP24: 5150.8877 | AQ24: 4855.338326 | AR24: 4559.788951 | AS24: 4264.239576 | AT24: 3968.690201 | AU24: 12.11199519 | AV24: =AV159+AV279+AV572+AV1392+AV959+AV1213 -> -2.336361864e-12 | AW24: -2.336361864e-12 | AX24: -2.336361864e-12 | AY24: -2.336361864e-12 | AZ24: -2.336361864e-12 | BA24: -2.336361864e-12 | BB24: -2.336361864e-12 | BC24: -2.336361864e-12 | BD24: -2.336361864e-12 | BE24: -2.336361864e-12 | BF24: -2.336361864e-12 | BG24: -2.336361864e-12 | BH24: -2.336361864e-12 | BI24: -2.336361864e-12 | BJ24: -2.336361864e-12 | BK24: -2.336361864e-12 | BL24: -2.336361864e-12 | BM24: -2.336361864e-12 | BN24: -2.336361864e-12
C25: 7 | D25: Lease Easement Indian River | E25: Operating Expense | F25: =MATCH(E25,lookups!$C$100:$C$105,0) -> 2 | K25: 331.5909178 | L25: 1017.677971 | P25: =P160+P280+P573+P1393+P960+P1214 -> 0 | Q25: 23.552 | R25: 24.117248 | S25: 24.69606195 | T25: 25.28876744 | U25: 25.89569786 | V25: 26.51719461 | W25: 27.15360728 | X25: 27.80529385 | Y25: 28.4726209 | Z25: 29.15596381 | AA25: 29.85570694 | AB25: 30.5722439 | AC25: 31.30597776 | AD25: 32.05732122 | AE25: 32.82669693 | AF25: 33.61453766 | AG25: 34.42128656 | AH25: 35.24739744 | AI25: 36.09333498 | AJ25: 36.95957502 | AK25: 37.84660482 | AL25: 38.75492333 | AM25: 39.68504149 | AN25: 40.63748249 | AO25: 41.61278207 | AP25: 42.61148884 | AQ25: 43.63416457 | AR25: 44.68138452 | AS25: 45.75373775 | AT25: 46.85182746 | AU25: 0 | AV25: =AV160+AV280+AV573+AV1393+AV960+AV1214 -> 0 | AW25: 0 | AX25: 0 | AY25: 0 | AZ25: 0 | BA25: 0 | BB25: 0 | BC25: 0 | BD25: 0 | BE25: 0 | BF25: 0 | BG25: 0 | BH25: 0 | BI25: 0 | BJ25: 0 | BK25: 0 | BL25: 0 | BM25: 0 | BN25: 0
C26: 8 | D26: Prepaid Easement Vero Beach | E26: Capital | F26: =MATCH(E26,lookups!$C$100:$C$105,0) -> 4 | K26: 2312.037088 | L26: 8819.234927 | P26: =P161+P281+P574+P1394+P961+P1215 -> 0 | Q26: 228.0920561 | R26: 225.9815517 | S26: 223.8710473 | T26: 221.7605429 | U26: 219.6500385 | V26: 217.5395341 | W26: 215.4290297 | X26: 213.3185253 | Y26: 211.208021 | Z26: 209.0975166 | AA26: 206.9870122 | AB26: 204.8765078 | AC26: 202.7660034 | AD26: 200.655499 | AE26: 198.5449946 | AF26: 196.4344902 | AG26: 194.3239858 | AH26: 192.2134815 | AI26: 190.1029771 | AJ26: 187.9924727 | AK26: 185.8819683 | AL26: 183.7714639 | AM26: 181.6609595 | AN26: 179.5504551 | AO26: 177.4399507 | AP26: 175.3294463 | AQ26: 173.218942 | AR26: 171.1084376 | AS26: 168.9979332 | AT26: 166.8874288 | AU26: 164.7769244 | AV26: =AV161+AV281+AV574+AV1394+AV961+AV1215 -> 162.66642 | AW26: 160.5559156 | AX26: 158.4454112 | AY26: 156.3349068 | AZ26: 154.2244024 | BA26: 152.1138981 | BB26: 150.0033937 | BC26: 147.8928893 | BD26: 145.7823849 | BE26: 143.6718805 | BF26: 141.5613761 | BG26: 139.4508717 | BH26: 137.3403673 | BI26: 135.2298629 | BJ26: 133.1193586 | BK26: 131.0088542 | BL26: 128.8983498 | BM26: 126.7878454 | BN26: 124.677341
C27: 9 | D27: OUC PPA Payment - Above Market | E27: Capital | F27: =MATCH(E27,lookups!$C$100:$C$105,0) -> 4 | K27: 12379.9623 | L27: 14954.55715 | P27: =P162+P282+P575+P1395+P962+P1216 -> 0 | Q27: 5888.083179 | R27: 7299.977026 | S27: 277.5308175 | T27: 249.7587528 | U27: 224.7771826 | V27: 201.7508569 | W27: 179.3509688 | X27: 156.9320977 | Y27: 134.5132266 | Z27: 112.0943555 | AA27: 89.67548439 | AB27: 67.25661329 | AC27: 44.8377422 | AD27: 22.4188711 | AE27: 5.599972036 | AF27: 1.255514408e-13 | AG27: 1.255514408e-13 | AH27: 1.255514408e-13 | AI27: 1.255514408e-13 | AJ27: 1.255514408e-13 | AK27: 1.255514408e-13 | AL27: 1.255514408e-13 | AM27: 1.255514408e-13 | AN27: 1.255514408e-13 | AO27: 1.255514408e-13 | AP27: 1.255514408e-13 | AQ27: 1.255514408e-13 | AR27: 1.255514408e-13 | AS27: 1.255514408e-13 | AT27: 1.255514408e-13 | AU27: 1.255514408e-13 | AV27: =AV162+AV282+AV575+AV1395+AV962+AV1216 -> 1.255514408e-13 | AW27: 1.255514408e-13 | AX27: 1.255514408e-13 | AY27: 1.255514408e-13 | AZ27: 1.255514408e-13 | BA27: 1.255514408e-13 | BB27: 1.255514408e-13 | BC27: 1.255514408e-13 | BD27: 1.255514408e-13 | BE27: 1.255514408e-13 | BF27: 1.255514408e-13 | BG27: 1.255514408e-13 | BH27: 1.255514408e-13 | BI27: 1.255514408e-13 | BJ27: 1.255514408e-13 | BK27: 1.255514408e-13 | BL27: 1.255514408e-13 | BM27: 1.255514408e-13 | BN27: 1.255514408e-13
C28: 10 | D28: PPA Energy Savings | E28: Operating Savings | F28: =MATCH(E28,lookups!$C$100:$C$105,0) -> 1 | K28: -5445.670607 | L28: -6310.722068 | P28: =P163+P283+P576+P1396+P963+P1217 -> 0 | Q28: -3250.640424 | R28: -3060.081644 | S28: 0 | T28: 0 | U28: 0 | V28: 0 | W28: 0 | X28: 0 | Y28: 0 | Z28: 0 | AA28: 0 | AB28: 0 | AC28: 0 | AD28: 0 | AE28: 0 | AF28: 0 | AG28: 0 | AH28: 0 | AI28: 0 | AJ28: 0 | AK28: 0 | AL28: 0 | AM28: 0 | AN28: 0 | AO28: 0 | AP28: 0 | AQ28: 0 | AR28: 0 | AS28: 0 | AT28: 0 | AU28: 0 | AV28: =AV163+AV283+AV576+AV1396+AV963+AV1217 -> 0 | AW28: 0 | AX28: 0 | AY28: 0 | AZ28: 0 | BA28: 0 | BB28: 0 | BC28: 0 | BD28: 0 | BE28: 0 | BF28: 0 | BG28: 0 | BH28: 0 | BI28: 0 | BJ28: 0 | BK28: 0 | BL28: 0 | BM28: 0 | BN28: 0
C29: 11 | D29: Ongoing Distribution Capex | E29: Capital | F29: =MATCH(E29,lookups!$C$100:$C$105,0) -> 4 | K29: 122038.487 | L29: 841765.3243 | P29: =P164+P284+P577+P1397+P964+P1218 -> 390.2679004 | Q29: 505.4946801 | R29: 1141.506289 | S29: 2465.733699 | T29: 3776.008254 | U29: 5625.32634 | V29: 6722.345826 | W29: 7822.925425 | X29: 8930.580287 | Y29: 10034.62961 | Z29: 11135.3661 | AA29: 12244.90866 | AB29: 13363.40274 | AC29: 14490.80557 | AD29: 15627.13068 | AE29: 16772.61456 | AF29: 17927.54485 | AG29: 19092.22297 | AH29: 20266.96782 | AI29: 21452.11344 | AJ29: 22648.79071 | AK29: 23858.39447 | AL29: 24168.51062 | AM29: 24493.10724 | AN29: 24838.8421 | AO29: 25207.92279 | AP29: 25600.89986 | AQ29: 26015.83571 | AR29: 26451.23865 | AS29: 26907.12797 | AT29: 27383.75648 | AU29: 26404.90575 | AV29: =AV164+AV284+AV577+AV1397+AV964+AV1218 -> 25440.9255 | AW29: 24495.32132 | AX29: 23568.9083 | AY29: 22663.16219 | AZ29: 21777.50142 | BA29: 20913.13063 | BB29: 20051.41671 | BC29: 19160.48795 | BD29: 18312.26734 | BE29: 17377.78406 | BF29: 16363.7122 | BG29: 15356.35148 | BH29: 14323.4704 | BI29: 13435.0272 | BJ29: 12571.1494 | BK29: 11733.07521 | BL29: 10923.34563 | BM29: 10142.26296 | BN29: 9388.7963
C30: 12 | D30: Ongoing Transmission Capex | E30: Capital | F30: =MATCH(E30,lookups!$C$100:$C$105,0) -> 4 | K30: 39519.66904 | L30: 263515.2178 | P30: =P165+P285+P578+P1398+P965+P1219 -> 3.304229576 | Q30: 186.7828996 | R30: 1721.5544 | S30: 2082.930231 | T30: 2306.359726 | U30: 2529.03646 | V30: 2688.561402 | W30: 2864.262452 | X30: 3164.766853 | Y30: 3464.432009 | Z30: 3668.214387 | AA30: 3871.659235 | AB30: 4075.217022 | AC30: 4278.891727 | AD30: 4482.664123 | AE30: 4686.451642 | AF30: 4890.676822 | AG30: 5100.055784 | AH30: 5319.46172 | AI30: 5546.04866 | AJ30: 5776.036099 | AK30: 6008.957164 | AL30: 6244.562487 | AM30: 6483.159574 | AN30: 6725.540456 | AO30: 6971.870545 | AP30: 7221.719114 | AQ30: 7474.911422 | AR30: 7731.531063 | AS30: 7991.663721 | AT30: 8255.39722 | AU30: 8004.484377 | AV30: =AV165+AV285+AV578+AV1398+AV965+AV1219 -> 7758.626848 | AW30: 7519.671979 | AX30: 7286.919736 | AY30: 7059.739843 | AZ30: 6837.558984 | BA30: 6620.002812 | BB30: 6407.026969 | BC30: 6198.750809 | BD30: 5995.300201 | BE30: 5797.252731 | BF30: 5608.181408 | BG30: 5425.433013 | BH30: 5248.756572 | BI30: 5078.291549 | BJ30: 4912.598885 | BK30: 4748.965066 | BL30: 4586.223141 | BM30: 4418.531566 | BN30: 4186.220632
C31: 13 | D31: Customer Serivce O&M | E31: Operating Expense | F31: =MATCH(E31,lookups!$C$100:$C$105,0) -> 2 | K31: 9082.783589 | L31: 26364.19998 | P31: =P166+P286+P579+P1399+P966+P1220 -> 669.8774253 | Q31: 391.5766236 | R31: 990.4569161 | S31: 655.0719696 | T31: 614.5084152 | U31: 639.8671401 | V31: 655.8638186 | W31: 672.260414 | X31: 689.0669244 | Y31: 706.2935975 | Z31: 723.9509374 | AA31: 742.0497109 | AB31: 760.6009536 | AC31: 779.6159775 | AD31: 799.1063769 | AE31: 819.0840363 | AF31: 839.5611372 | AG31: 860.5501657 | AH31: 882.0639198 | AI31: 904.1155178 | AJ31: 926.7184057 | AK31: 949.8863659 | AL31: 973.633525 | AM31: 997.9743632 | AN31: 1022.923722 | AO31: 1048.496815 | AP31: 1074.709236 | AQ31: 1101.576967 | AR31: 1129.116391 | AS31: 1157.3443 | AT31: 1186.277908 | AU31: 0 | AV31: =AV166+AV286+AV579+AV1399+AV966+AV1220 -> 0 | AW31: 0 | AX31: 0 | AY31: 0 | AZ31: 0 | BA31: 0 | BB31: 0 | BC31: 0 | BD31: 0 | BE31: 0 | BF31: 0 | BG31: 0 | BH31: 0 | BI31: 0 | BJ31: 0 | BK31: 0 | BL31: 0 | BM31: 0 | BN31: 0
C32: 14 | D32: Ongoing Distribution O&M | E32: Operating Expense | F32: =MATCH(E32,lookups!$C$100:$C$105,0) -> 2 | K32: 33093.39769 | L32: 86137.41046 | P32: =P167+P287+P580+P1400+P967+P1221 -> 183.1045444 | Q32: 5464.581571 | R32: 7063.241469 | S32: 2359.566982 | T32: 2362.315379 | U32: 1993.901913 | V32: 1848.05727 | W32: 1904.461301 | X32: 1962.630536 | Y32: 2022.621473 | Z32: 2084.492455 | AA32: 2148.30373 | AB32: 2214.117513 | AC32: 2281.998052 | AD32: 2352.011697 | AE32: 2424.226967 | AF32: 2498.714624 | AG32: 2575.547748 | AH32: 2654.801813 | AI32: 2736.554765 | AJ32: 2820.887108 | AK32: 2907.881986 | AL32: 2870.009066 | AM32: 2958.76097 | AN32: 3050.326731 | AO32: 3144.797522 | AP32: 3242.267524 | AQ32: 3342.834028 | AR32: 3446.597538 | AS32: 3553.66188 | AT32: 3664.134309 | AU32: 0 | AV32: =AV167+AV287+AV580+AV1400+AV967+AV1221 -> 0 | AW32: 0 | AX32: 0 | AY32: 0 | AZ32: 0 | BA32: 0 | BB32: 0 | BC32: 0 | BD32: 0 | BE32: 0 | BF32: 0 | BG32: 0 | BH32: 0 | BI32: 0 | BJ32: 0 | BK32: 0 | BL32: 0 | BM32: 0 | BN32: 0
C33: 15 | D33: Ongoing Transmission O&M | E33: Operating Expense | F33: =MATCH(E33,lookups!$C$100:$C$105,0) -> 2 | K33: 11908.57064 | L33: 35416.51462 | P33: =P168+P288+P581+P1401+P968+P1222 -> 95 | Q33: 294.6496406 | R33: 1770.64549 | S33: 956.4515342 | T33: 937.2255144 | U33: 980.6374284 | V33: 893.1174397 | W33: 989.9911532 | X33: 939.7589649 | Y33: 956.4351492 | Z33: 978.6386386 | AA33: 1003.104605 | AB33: 1028.18222 | AC33: 1053.886775 | AD33: 1080.233945 | AE33: 1107.239793 | AF33: 1134.920788 | AG33: 1163.293808 | AH33: 1192.376153 | AI33: 1222.185557 | AJ33: 1252.740196 | AK33: 1284.0587 | AL33: 1316.160168 | AM33: 1349.064172 | AN33: 1382.790777 | AO33: 1417.360546 | AP33: 1452.79456 | AQ33: 1489.114424 | AR33: 1526.342284 | AS33: 1564.500841 | AT33: 1603.613362 | AU33: 0 | AV33: =AV168+AV288+AV581+AV1401+AV968+AV1222 -> 0 | AW33: 0 | AX33: 0 | AY33: 0 | AZ33: 0 | BA33: 0 | BB33: 0 | BC33: 0 | BD33: 0 | BE33: 0 | BF33: 0 | BG33: 0 | BH33: 0 | BI33: 0 | BJ33: 0 | BK33: 0 | BL33: 0 | BM33: 0 | BN33: 0
C34: 16 | D34: Dark Fiber Lease | E34: Operating Expense | F34: =MATCH(E34,lookups!$C$100:$C$105,0) -> 2 | K34: 2479.723386 | L34: 7610.461352 | P34: =P169+P289+P582+P1402+P969+P1223 -> 0 | Q34: 176.128 | R34: 180.355072 | S34: 184.6835937 | T34: 189.116 | U34: 193.654784 | V34: 198.3024988 | W34: 203.0617588 | X34: 207.935241 | Y34: 212.9256868 | Z34: 218.0359032 | AA34: 223.2687649 | AB34: 228.6272153 | AC34: 234.1142684 | AD34: 239.7330109 | AE34: 245.4866031 | AF34: 251.3782816 | AG34: 257.4113604 | AH34: 263.589233 | AI34: 269.9153746 | AJ34: 276.3933436 | AK34: 283.0267839 | AL34: 289.8194267 | AM34: 296.7750929 | AN34: 303.8976951 | AO34: 311.1912398 | AP34: 318.6598296 | AQ34: 326.3076655 | AR34: 334.1390495 | AS34: 342.1583866 | AT34: 350.3701879 | AU34: 0 | AV34: =AV169+AV289+AV582+AV1402+AV969+AV1223 -> 0 | AW34: 0 | AX34: 0 | AY34: 0 | AZ34: 0 | BA34: 0 | BB34: 0 | BC34: 0 | BD34: 0 | BE34: 0 | BF34: 0 | BG34: 0 | BH34: 0 | BI34: 0 | BJ34: 0 | BK34: 0 | BL34: 0 | BM34: 0 | BN34: 0
C35: 17 | D35: OUC PPA Payment - At Market | E35: Operating Expense | F35: =MATCH(E35,lookups!$C$100:$C$105,0) -> 2 | K35: 7033.501999 | L35: 8160 | P35: =P170+P290+P583+P1403+P970+P1224 -> 0 | Q35: 4080 | R35: 4080 | S35: 0 | T35: 0 | U35: 0 | V35: 0 | W35: 0 | X35: 0 | Y35: 0 | Z35: 0 | AA35: 0 | AB35: 0 | AC35: 0 | AD35: 0 | AE35: 0 | AF35: 0 | AG35: 0 | AH35: 0 | AI35: 0 | AJ35: 0 | AK35: 0 | AL35: 0 | AM35: 0 | AN35: 0 | AO35: 0 | AP35: 0 | AQ35: 0 | AR35: 0 | AS35: 0 | AT35: 0 | AU35: 0 | AV35: =AV170+AV290+AV583+AV1403+AV970+AV1224 -> 0 | AW35: 0 | AX35: 0 | AY35: 0 | AZ35: 0 | BA35: 0 | BB35: 0 | BC35: 0 | BD35: 0 | BE35: 0 | BF35: 0 | BG35: 0 | BH35: 0 | BI35: 0 | BJ35: 0 | BK35: 0 | BL35: 0 | BM35: 0 | BN35: 0
C36: 18 | D36: Transaction Cost | E36: Operating Expense | F36: =MATCH(E36,lookups!$C$100:$C$105,0) -> 2 | K36: 722.5662317 | L36: 750 | P36: =P171+P291+P584+P1404+P971+P1225 -> 750 | Q36: 0 | R36: 0 | S36: 0 | T36: 0 | U36: 0 | V36: 0 | W36: 0 | X36: 0 | Y36: 0 | Z36: 0 | AA36: 0 | AB36: 0 | AC36: 0 | AD36: 0 | AE36: 0 | AF36: 0 | AG36: 0 | AH36: 0 | AI36: 0 | AJ36: 0 | AK36: 0 | AL36: 0 | AM36: 0 | AN36: 0 | AO36: 0 | AP36: 0 | AQ36: 0 | AR36: 0 | AS36: 0 | AT36: 0 | AU36: 0 | AV36: =AV171+AV291+AV584+AV1404+AV971+AV1225 -> 0 | AW36: 0 | AX36: 0 | AY36: 0 | AZ36: 0 | BA36: 0 | BB36: 0 | BC36: 0 | BD36: 0 | BE36: 0 | BF36: 0 | BG36: 0 | BH36: 0 | BI36: 0 | BJ36: 0 | BK36: 0 | BL36: 0 | BM36: 0 | BN36: 0
C37: 19 | D37: System Impact Short Term PPAs | E37: Operating Expense | F37: =MATCH(E37,lookups!$C$100:$C$105,0) -> 2 | K37: 6296.937947 | L37: 10438.78162 | P37: =P172+P292+P585+P1405+P972+P1226 -> 0 | Q37: 2920.05 | R37: 875.2425 | S37: 0 | T37: 0 | U37: 0 | V37: 0 | W37: 0 | X37: 0 | Y37: 3542.459194 | Z37: 0 | AA37: 0 | AB37: 3101.029929 | AC37: 0 | AD37: 0 | AE37: 0 | AF37: 0 | AG37: 0 | AH37: 0 | AI37: 0 | AJ37: 0 | AK37: 0 | AL37: 0 | AM37: 0 | AN37: 0 | AO37: 0 | AP37: 0 | AQ37: 0 | AR37: 0 | AS37: 0 | AT37: 0 | AU37: 0 | AV37: =AV172+AV292+AV585+AV1405+AV972+AV1226 -> 0 | AW37: 0 | AX37: 0 | AY37: 0 | AZ37: 0 | BA37: 0 | BB37: 0 | BC37: 0 | BD37: 0 | BE37: 0 | BF37: 0 | BG37: 0 | BH37: 0 | BI37: 0 | BJ37: 0 | BK37: 0 | BL37: 0 | BM37: 0 | BN37: 0
C38: 20 | D38: Customer Service Capital | E38: Capital | F38: =MATCH(E38,lookups!$C$100:$C$105,0) -> 4 | K38: 8448.180895 | L38: 14549.02639 | P38: =P173+P293+P586+P1406+P973+P1227 -> 863.1640031 | Q38: 1160.839499 | R38: 1076.247404 | S38: 1005.70073 | T38: 946.0674049 | U38: 892.470246 | V38: 848.2593619 | W38: 811.1590667 | X38: 775.6704059 | Y38: 740.1817451 | Z38: 704.6930842 | AA38: 669.2044234 | AB38: 633.7157626 | AC38: 598.2271017 | AD38: 562.7384409 | AE38: 527.2497801 | AF38: 493.6634433 | AG38: 463.6552521 | AH38: 434.8035384 | AI38: 277.9043885 | AJ38: 63.411304 | AK38: 5.319319131e-13 | AL38: 5.319319131e-13 | AM38: 5.319319131e-13 | AN38: 5.319319131e-13 | AO38: 5.319319131e-13 | AP38: 5.319319131e-13 | AQ38: 5.319319131e-13 | AR38: 5.319319131e-13 | AS38: 5.319319131e-13 | AT38: 5.319319131e-13 | AU38: 5.319319131e-13 | AV38: =AV173+AV293+AV586+AV1406+AV973+AV1227 -> 5.319319131e-13 | AW38: 5.319319131e-13 | AX38: 5.319319131e-13 | AY38: 5.319319131e-13 | AZ38: 5.319319131e-13 | BA38: 5.319319131e-13 | BB38: 5.319319131e-13 | BC38: 5.319319131e-13 | BD38: 5.319319131e-13 | BE38: 5.319319131e-13 | BF38: 5.319319131e-13 | BG38: 5.319319131e-13 | BH38: 5.319319131e-13 | BI38: 5.319319131e-13 | BJ38: 5.319319131e-13 | BK38: 5.319319131e-13 | BL38: 5.319319131e-13 | BM38: 5.319319131e-13 | BN38: 5.319319131e-13
C39: 21 | D39: Vero Revenue - Fuel Other Clauses | E39: Operating Savings | F39: =MATCH(E39,lookups!$C$100:$C$105,0) -> 1 | K39: -340992.774 | L39: -1100009.169 | P39: =P174+P294+P587+P1407+P974+P1228 -> 0 | Q39: -24110.91118 | R39: -24325.83336 | S39: -24717.41819 | T39: -24479.59397 | U39: -25069.27611 | V39: -25330.02023 | W39: -25509.09482 | X39: -26393.11091 | Y39: -27221.37447 | Z39: -28050.02119 | AA39: -29044.356 | AB39: -30146.494 | AC39: -31155.10025 | AD39: -32232.92862 | AE39: -33254.21835 | AF39: -34315.9789 | AG39: -35818.77783 | AH39: -38447.25809 | AI39: -39964.42517 | AJ39: -41291.90487 | AK39: -42413.01757 | AL39: -43723.74892 | AM39: -45137.77681 | AN39: -45767.91702 | AO39: -48693.58217 | AP39: -50946.10063 | AQ39: -52564.04546 | AR39: -54521.42933 | AS39: -56803.08338 | AT39: -58560.37166 | AU39: 0 | AV39: =AV174+AV294+AV587+AV1407+AV974+AV1228 -> 0 | AW39: 0 | AX39: 0 | AY39: 0 | AZ39: 0 | BA39: 0 | BB39: 0 | BC39: 0 | BD39: 0 | BE39: 0 | BF39: 0 | BG39: 0 | BH39: 0 | BI39: 0 | BJ39: 0 | BK39: 0 | BL39: 0 | BM39: 0 | BN39: 0
C40: 22 | D40: Vero Revenue - Base Rates | E40: Operating Savings | F40: =MATCH(E40,lookups!$C$100:$C$105,0) -> 1 | K40: -648838.9718 | L40: -1984594.234 | P40: =P175+P295+P588+P1408+P975+P1229 -> 0 | Q40: -43166.57906 | R40: -44239.10127 | S40: -44557.86806 | T40: -49521.99921 | U40: -53379.33776 | V40: -54393.39733 | W40: -55397.90657 | X40: -56405.34673 | Y40: -57414.6021 | Z40: -59034.87671 | AA40: -60243.49797 | AB40: -61067.19789 | AC40: -62058.51976 | AD40: -63451.96509 | AE40: -65007.10988 | AF40: -66617.08947 | AG40: -67662.1304 | AH40: -69563.6618 | AI40: -71452.715 | AJ40: -72781.26539 | AK40: -74001.95099 | AL40: -75736.32388 | AM40: -76876.7217 | AN40: -78367.25416 | AO40: -79963.93173 | AP40: -81899.44238 | AQ40: -82989.0505 | AR40: -84502.14558 | AS40: -85626.52498 | AT40: -87214.72039 | AU40: 0 | AV40: =AV175+AV295+AV588+AV1408+AV975+AV1229 -> 0 | AW40: 0 | AX40: 0 | AY40: 0 | AZ40: 0 | BA40: 0 | BB40: 0 | BC40: 0 | BD40: 0 | BE40: 0 | BF40: 0 | BG40: 0 | BH40: 0 | BI40: 0 | BJ40: 0 | BK40: 0 | BL40: 0 | BM40: 0 | BN40: 0
C41: 23 | D41: System Impact Fixed Cost | E41: Operating Expense | F41: =MATCH(E41,lookups!$C$100:$C$105,0) -> 2 | K41: 83118.90092 | L41: 399532.3655 | P41: =P176+P296+P589+P1409+P976+P1230 -> 0 | Q41: 0 | R41: 0 | S41: 0 | T41: 0 | U41: 0 | V41: 0 | W41: 0 | X41: 0 | Y41: 0 | Z41: 0 | AA41: 0 | AB41: 0 | AC41: 15073.40616 | AD41: 23246.24107 | AE41: 24297.94611 | AF41: 23305.26752 | AG41: 23407.34309 | AH41: 23102.93266 | AI41: 23523.44927 | AJ41: 22462.90806 | AK41: 24261.9619 | AL41: 24429.68949 | AM41: 24883.79809 | AN41: 22059.90047 | AO41: 22576.81604 | AP41: 21262.72379 | AQ41: 20865.11058 | AR41: 20491.74031 | AS41: 21534.45214 | AT41: 18746.67878 | AU41: 0 | AV41: =AV176+AV296+AV589+AV1409+AV976+AV1230 -> 0 | AW41: 0 | AX41: 0 | AY41: 0 | AZ41: 0 | BA41: 0 | BB41: 0 | BC41: 0 | BD41: 0 | BE41: 0 | BF41: 0 | BG41: 0 | BH41: 0 | BI41: 0 | BJ41: 0 | BK41: 0 | BL41: 0 | BM41: 0 | BN41: 0
C42: 24 | D42: System Impact VOM, Emissions | E42: Operating Expense | F42: =MATCH(E42,lookups!$C$100:$C$105,0) -> 2 | K42: 25423.5086 | L42: 144720 | P42: =P177+P297+P590+P1410+P977+P1231 -> 0 | Q42: 260 | R42: 240 | S42: 270 | T42: -220 | U42: 520 | V42: -470 | W42: -320 | X42: -50 | Y42: 370 | Z42: 70 | AA42: 2460 | AB42: 390 | AC42: 2160 | AD42: 3260 | AE42: 1590 | AF42: 5530 | AG42: 5580 | AH42: 4050 | AI42: 4990 | AJ42: 4350 | AK42: 7710 | AL42: 7180 | AM42: 9960 | AN42: 5940 | AO42: 6830 | AP42: 13050 | AQ42: 10720 | AR42: 15010 | AS42: 18040 | AT42: 15250 | AU42: 0 | AV42: =AV177+AV297+AV590+AV1410+AV977+AV1231 -> 0 | AW42: 0 | AX42: 0 | AY42: 0 | AZ42: 0 | BA42: 0 | BB42: 0 | BC42: 0 | BD42: 0 | BE42: 0 | BF42: 0 | BG42: 0 | BH42: 0 | BI42: 0 | BJ42: 0 | BK42: 0 | BL42: 0 | BM42: 0 | BN42: 0
C43: 25 | D43: System Impact Fuel | E43: Operating Expense | F43: =MATCH(E43,lookups!$C$100:$C$105,0) -> 2 | K43: 288722.2235 | L43: 923290 | P43: =P178+P298+P591+P1411+P978+P1232 -> 0 | Q43: 20470 | R43: 15710 | S43: 17950 | T43: 17960 | U43: 21500 | V43: 21490 | W43: 23490 | X43: 24830 | Y43: 25650 | Z43: 26480 | AA43: 26990 | AB43: 30670 | AC43: 29070 | AD43: 29260 | AE43: 30030 | AF43: 29240 | AG43: 31640 | AH43: 34150 | AI43: 35320 | AJ43: 34600 | AK43: 33970 | AL43: 36850 | AM43: 36590 | AN43: 40050 | AO43: 40390 | AP43: 40020 | AQ43: 42940 | AR43: 41660 | AS43: 42210 | AT43: 42110 | AU43: 0 | AV43: =AV178+AV298+AV591+AV1411+AV978+AV1232 -> 0 | AW43: 0 | AX43: 0 | AY43: 0 | AZ43: 0 | BA43: 0 | BB43: 0 | BC43: 0 | BD43: 0 | BE43: 0 | BF43: 0 | BG43: 0 | BH43: 0 | BI43: 0 | BJ43: 0 | BK43: 0 | BL43: 0 | BM43: 0 | BN43: 0
D44: ="Total "&D18 -> Total Revenue Requirement - unfavorable/(favorable) | K44: -135124.5404 | L44: 126729.0854 | P44: =SUM(P19:P43) -> 2954.718103 | Q44: 16.63079469 | R44: -2436.686788 | S44: -15150.33653 | T44: -19962.7081 | U44: -19403.61324 | V44: -22404.17118 | W44: -20905.7158 | X44: -20631.44734 | Y44: -17056.60133 | Z44: -22333.00108 | AA44: -21345.73076 | AB44: -17941.48106 | AC44: -7165.970091 | AD44: 471.0743693 | AE44: -1289.89757 | AF44: -1111.47891 | AG44: -381.6660045 | AH44: -4422.859957 | AI44: -6486.158647 | AJ44: -10716.96728 | AK44: -7462.815163 | AL44: -7767.446174 | AM44: -6930.365598 | AN44: -11988.18192 | AO44: -14284.99434 | AP44: -13424.3662 | AQ44: -15396.63948 | AR44: -15658.71659 | AS44: -13841.1336 | AT44: -22233.86008 | AU44: 35394.85331 | AV44: =SUM(AV19:AV43) -> 33950.98678 | AW44: 32764.31723 | AX44: 31603.04147 | AY44: 30468.00496 | AZ44: 29358.05283 | BA44: 28274.01536 | BB44: 27197.21509 | BC44: 26095.89967 | BD44: 24542.82601 | BE44: 23408.18476 | BF44: 22202.93107 | BG44: 21010.71145 | BH44: 19799.04342 | BI44: 18738.02469 | BJ44: 17706.34372 | BK44: 16702.52521 | BL44: 15727.9432 | BM44: 14777.05845 | BN44: 13699.69427
D46: Vero Revenue Requirement | K46: =SUMPRODUCT(P46:BN46,$P$14:$BN$14,$P$13:$BN$13) -> 854707.2053 | L46: =SUM(P46:BN46) -> 3211332.489 | P46: =SUM(P19:P38)+P42+P43+P41 -> 2954.718103 | Q46: =SUM(Q19:Q38)+Q42+Q43+Q41 -> 67294.12104 | R46: 66128.24784 | S46: 54124.94971 | T46: 54038.88508 | U46: 59045.00063 | V46: 57319.24638 | W46: 60001.28559 | X46: 62167.0103 | Y46: 67579.37525 | Z46: 64751.89682 | AA46: 67942.12321 | AB46: 73272.21082 | AC46: 86047.64992 | AD46: 96155.96808 | AE46: 96971.43066 | AF46: 99821.58946 | AG46: 103099.2422 | AH46: 103588.0599 | AI46: 104930.9815 | AJ46: 103356.203 | AK46: 108952.1534 | AL46: 111692.6266 | AM46: 115084.1329 | AN46: 112146.9893 | AO46: 114372.5196 | AP46: 119421.1768 | AQ46: 120156.4565 | AR46: 123364.8583 | AS46: 128588.4748 | AT46: 123541.232 | AU46: 35394.85331 | AV46: 33950.98678 | AW46: 32764.31723 | AX46: 31603.04147 | AY46: 30468.00496 | AZ46: 29358.05283 | BA46: 28274.01536 | BB46: 27197.21509 | BC46: 26095.89967 | BD46: 24542.82601 | BE46: 23408.18476 | BF46: 22202.93107 | BG46: 21010.71145 | BH46: 19799.04342 | BI46: 18738.02469 | BJ46: 17706.34372 | BK46: 16702.52521 | BL46: 15727.9432 | BM46: 14777.05845 | BN46: 13699.69427
D48: Revenue Requirement - unfavorable/(favorable) | K48: CPVRR | L48: SUM
D49: Operating Savings | F49: =MATCH(D49,lookups!$C$100:$C$105,0) -> 1 | K49: =SUMPRODUCT(P49:BN49,$P$14:$BN$14,$P$13:$BN$13) -> -995277.4163 | L49: =SUM(P49:BN49) -> -3090914.125 | P49: =SUMIF($F$154:$F$178,$F49,P$154:P$178) -> 0 | Q49: -70528.13067 | R49: -71625.01628 | S49: -69275.28624 | T49: -74001.59319 | U49: -78448.61387 | V49: -79723.41757 | W49: -80907.00139 | X49: -82798.45764 | Y49: -84635.97658 | Z49: =SUMIF($F$154:$F$178,$F49,Z$154:Z$178) -> -87084.8979 | AA49: -89287.85397 | AB49: -91213.69188 | AC49: -93213.62001 | AD49: -95684.89371 | AE49: -98261.32823 | AF49: -100933.0684 | AG49: -103480.9082 | AH49: -108010.9199 | AI49: -111417.1402 | AJ49: =SUMIF($F$154:$F$178,$F49,AJ$154:AJ$178) -> -114073.1703 | AK49: -116414.9686 | AL49: -119460.0728 | AM49: -122014.4985 | AN49: -124135.1712 | AO49: -128657.5139 | AP49: -132845.543 | AQ49: -135553.096 | AR49: -139023.5749 | AS49: -142429.6084 | AT49: =SUMIF($F$154:$F$178,$F49,AT$154:AT$178) -> -145775.092 | AU49: 0 | AV49: 0 | AW49: 0 | AX49: 0 | AY49: 0 | AZ49: 0 | BA49: 0 | BB49: 0 | BC49: 0 | BD49: =SUMIF($F$154:$F$178,$F49,BD$154:BD$178) -> 0 | BE49: 0 | BF49: 0 | BG49: 0 | BH49: 0 | BI49: 0 | BJ49: 0 | BK49: 0 | BL49: 0 | BM49: 0 | BN49: 0
D50: Operating Expense | F50: =MATCH(D50,lookups!$C$100:$C$105,0) -> 2 | K50: 468213.7054 | L50: 1643437.412 | P50: 1697.98197 | Q50: 34080.53783 | R50: =SUMIF($F$154:$F$178,$F50,R$154:R$178) -> 30934.0587 | S50: 22400.47014 | T50: 21868.45408 | U50: 25853.95696 | V50: 24641.85822 | W50: 26966.92823 | X50: 28607.19696 | Y50: 33489.20772 | Z50: 30584.2739 | AA50: 33596.58252 | AB50: 38423.13007 | AC50: 50684.32721 | AD50: 60269.38342 | AE50: 60546.8102 | AF50: 62833.45689 | AG50: 65518.56746 | AH50: 66331.01117 | AI50: 69002.31381 | AJ50: 66726.60669 | AK50: 71404.66234 | AL50: 73948.06659 | AM50: 77076.05773 | AN50: 73850.47687 | AO50: 75760.27495 | AP50: 80463.76643 | AQ50: 80828.57782 | AR50: 83642.61696 | AS50: 88447.87129 | AT50: 82957.92638 | AU50: 0 | AV50: 0 | AW50: 0 | AX50: 0 | AY50: 0 | AZ50: 0 | BA50: 0 | BB50: 0 | BC50: 0 | BD50: 0 | BE50: 0 | BF50: 0 | BG50: 0 | BH50: 0 | BI50: 0 | BJ50: 0 | BK50: 0 | BL50: 0 | BM50: 0 | BN50: 0
D51: Property Tax and Insurance | K51: 31486.81094 | L51: 167230.594 | P51: =P979 -> 139.5599023 | Q51: =Q979 -> 1421.812826 | R51: 1671.448168 | S51: 1830.778373 | T51: 1972.911758 | U51: 2181.420862 | V51: 2304.651881 | W51: 2416.354707 | X51: 2558.924044 | Y51: 2701.026098 | Z51: 2830.723977 | AA51: 2961.499561 | AB51: 3094.685441 | AC51: 3230.695481 | AD51: 3367.890247 | AE51: 3506.307752 | AF51: 3647.889573 | AG51: 3794.352057 | AH51: 3943.31538 | AI51: 4093.666271 | AJ51: 4234.878724 | AK51: 4389.327886 | AL51: 4455.907082 | AM51: 4523.592394 | AN51: 4592.420472 | AO51: 4662.429196 | AP51: 4735.676384 | AQ51: 4810.18384 | AR51: 4885.993394 | AS51: 4963.148283 | AT51: 5041.693198 | AU51: =AU979 -> 4875.544456 | AV51: 4666.288773 | AW51: 4501.763316 | AX51: 4339.276646 | AY51: 4181.04855 | AZ51: 4027.170043 | BA51: 3879.45114 | BB51: 3735.721166 | BC51: 3586.548601 | BD51: 2948.779404 | BE51: 2802.250645 | BF51: 2646.808276 | BG51: 2496.47489 | BH51: 2337.45134 | BI51: 2201.095111 | BJ51: 2069.387983 | BK51: 1942.502809 | BL51: 1821.177991 | BM51: 1705.50951 | BN51: 1501.178164
D52: Depreciation | K52: 126214.5925 | L52: 512003.1675 | P52: =P299 -> 332.2466168 | Q52: =Q299 -> 15385.47711 | R52: 16261.62146 | S52: 9395.193785 | T52: 9680.747433 | U52: 10069.28084 | V52: 9526.100485 | W52: 9792.762521 | X52: 10085.40182 | Y52: 10384.59633 | Z52: 10307.42063 | AA52: 10304.93912 | AB52: 10615.0186 | AC52: 10934.45226 | AD52: 11263.527 | AE52: 11602.53872 | AF52: 11951.79249 | AG52: 12311.60293 | AH52: 11704.46717 | AI52: 9966.005832 | AJ52: 10174.61458 | AK52: 10526.2561 | AL52: 10782.59126 | AM52: 11046.74814 | AN52: 11318.97175 | AO52: 11599.51497 | AP52: 11888.63876 | AQ52: 12186.61249 | AR52: 12493.71417 | AS52: 12810.23076 | AT52: 13136.45843 | AU52: 9327.654914 | AV52: 9327.654914 | AW52: 9327.654914 | AX52: 9327.654914 | AY52: 9327.654914 | AZ52: 9327.654914 | BA52: 9327.654914 | BB52: 9311.092674 | BC52: 9253.401657 | BD52: 9208.922155 | BE52: 9064.041664 | BF52: 8823.499155 | BG52: 8555.242126 | BH52: 8239.017699 | BI52: 8014.846598 | BJ52: 7783.724355 | BK52: 7545.918049 | BL52: 7302.660409 | BM52: 7047.296958 | BN52: 6720.374989
D53: Interest Expense | K53: 44429.91994 | L53: 169757.151 | P53: =P505 -> 148.8844449 | Q53: =Q505 -> 3728.502032 | R53: =R505 -> 3854.499436 | S53: 3888.130658 | T53: 3891.595027 | U53: 3971.937269 | V53: 3954.163204 | W53: 3950.104902 | X53: 3967.222903 | Y53: 3984.11524 | Z53: 3988.84454 | AA53: 3998.2571 | AB53: 4009.689925 | AC53: 4020.842706 | AD53: 4031.652957 | AE53: 4043.148738 | AF53: 4056.933927 | AG53: 4073.297372 | AH53: 4098.817966 | AI53: 4148.083104 | AJ53: 4214.680701 | AK53: 4292.791175 | AL53: 4268.920985 | AM53: 4255.9608 | AN53: 4245.98095 | AO53: 4239.376395 | AP53: 4236.11293 | AQ53: 4235.731123 | AR53: 4237.903223 | AS53: 4242.586509 | AT53: 4249.780935 | AU53: 4019.605804 | AV53: 3785.426399 | AW53: 3591.547415 | AX53: 3402.098379 | AY53: 3216.818607 | AZ53: 3035.471787 | BA53: 2857.872079 | BB53: 2684.030005 | BC53: 2514.371524 | BD53: 2349.194559 | BE53: 2189.251391 | BF53: 2035.75032 | BG53: 1889.009322 | BH53: 1749.326108 | BI53: 1616.457797 | BJ53: 1489.590881 | BK53: 1368.362084 | BL53: 1252.658149 | BM53: 1142.672408 | BN53: 1039.086798
D54: Return on Equity | K54: 141701.0482 | L54: 541409.1736 | P54: =P534 -> 474.839521 | Q54: =Q534 -> 11891.37066 | R54: 12293.21618 | S54: 12400.47676 | T54: 12411.52573 | U54: 12667.76252 | V54: 12611.07541 | W54: 12598.1322 | X54: 12652.72691 | Y54: 12706.60191 | Z54: 12721.68514 | AA54: 12751.70477 | AB54: 12788.16766 | AC54: 12823.7374 | AD54: 12858.21471 | AE54: 12894.87838 | AF54: 12938.84371 | AG54: 12991.0319 | AH54: 13072.42514 | AI54: 13229.54722 | AJ54: 13441.948 | AK54: 13691.06697 | AL54: 13614.93739 | AM54: 13573.60327 | AN54: 13541.77438 | AO54: 13520.71036 | AP54: 13510.30214 | AQ54: 13509.08444 | AR54: 13516.01195 | AS54: 13530.94843 | AT54: 13553.89373 | AU54: 12819.79253 | AV54: 12072.92044 | AW54: 11454.57912 | AX54: 10850.36631 | AY54: 10259.4506 | AZ54: 9681.078305 | BA54: 9114.656741 | BB54: 8560.219457 | BC54: 8019.124974 | BD54: 7492.323459 | BE54: 6982.214179 | BF54: 6492.650777 | BG54: 6024.647387 | BH54: 5579.153498 | BI54: 5155.394484 | BJ54: 4750.77582 | BK54: 4364.138893 | BL54: 3995.1225 | BM54: 3644.343232 | BN54: 3313.976004
D55: Income Tax | K55: 48106.79884 | L55: 183805.713 | P55: =P563 -> 161.2056481 | Q55: =Q563 -> 4037.061004 | R55: 4173.485553 | S55: 4209.899988 | T55: 4213.651057 | U55: 4300.642168 | V55: 4281.397178 | W55: 4277.003023 | X55: 4295.537655 | Y55: 4313.827949 | Z55: 4318.94863 | AA55: 4329.140144 | AB55: 4341.519113 | AC55: 4353.594863 | AD55: 4365.299737 | AE55: 4377.746871 | AF55: 4392.672879 | AG55: 4410.39051 | AH55: 4438.023108 | AI55: 4491.365272 | AJ55: 4563.474274 | AK55: 4648.048923 | AL55: 4622.203312 | AM55: 4608.170583 | AN55: 4597.364832 | AO55: 4590.213705 | AP55: 4586.680166 | AQ55: 4586.266762 | AR55: 4588.618618 | AS55: 4593.689478 | AT55: 4601.479292 | AU55: 4352.255599 | AV55: 4098.696251 | AW55: 3888.772459 | AX55: 3683.645223 | AY55: 3483.032287 | AZ55: 3286.67778 | BA55: 3094.380485 | BB55: 2906.151793 | BC55: 2722.452916 | BD55: 2543.60643 | BE55: 2370.426875 | BF55: 2204.222543 | BG55: 2045.337727 | BH55: 1894.094775 | BI55: 1750.230704 | BJ55: 1612.864686 | BK55: 1481.603379 | BL55: 1356.324154 | BM55: 1237.236343 | BN55: 1125.078318
D56: AFUDC Perm Tax Difference | K56: 0 | L56: 0 | P56: =P1233 -> 0 | Q56: =Q1233 -> 0 | R56: 0 | S56: 0 | T56: 0 | U56: 0 | V56: 0 | W56: 0 | X56: 0 | Y56: 0 | Z56: 0 | AA56: 0 | AB56: 0 | AC56: 0 | AD56: 0 | AE56: 0 | AF56: 0 | AG56: 0 | AH56: 0 | AI56: 0 | AJ56: 0 | AK56: 0 | AL56: 0 | AM56: 0 | AN56: 0 | AO56: 0 | AP56: 0 | AQ56: 0 | AR56: 0 | AS56: 0 | AT56: 0 | AU56: 0 | AV56: 0 | AW56: 0 | AX56: 0 | AY56: 0 | AZ56: 0 | BA56: 0 | BB56: 0 | BC56: 0 | BD56: 0 | BE56: 0 | BF56: 0 | BG56: 0 | BH56: 0 | BI56: 0 | BJ56: 0 | BK56: 0 | BL56: 0 | BM56: 0 | BN56: 0
D57: ITC Normalization | K57: 0 | L57: 0 | P57: =P1412 -> 0 | Q57: =Q1412 -> 0 | R57: 0 | S57: 0 | T57: 0 | U57: 0 | V57: 0 | W57: 0 | X57: 0 | Y57: 0 | Z57: 0 | AA57: 0 | AB57: 0 | AC57: 0 | AD57: 0 | AE57: 0 | AF57: 0 | AG57: 0 | AH57: 0 | AI57: 0 | AJ57: 0 | AK57: 0 | AL57: 0 | AM57: 0 | AN57: 0 | AO57: 0 | AP57: 0 | AQ57: 0 | AR57: 0 | AS57: 0 | AT57: 0 | AU57: 0 | AV57: =AV1412 -> 0 | AW57: 0 | AX57: 0 | AY57: 0 | AZ57: 0 | BA57: 0 | BB57: 0 | BC57: 0 | BD57: 0 | BE57: 0 | BF57: 0 | BG57: 0 | BH57: 0 | BI57: 0 | BJ57: 0 | BK57: 0 | BL57: 0 | BM57: 0 | BN57: 0
D58: ="Total "&D48 -> Total Revenue Requirement - unfavorable/(favorable) | K58: -135124.5404 | L58: 126729.0854 | P58: =SUM(P49:P57) -> 2954.718103 | Q58: 16.63079469 | R58: -2436.686788 | S58: -15150.33653 | T58: -19962.7081 | U58: -19403.61324 | V58: -22404.17118 | W58: -20905.7158 | X58: -20631.44734 | Y58: -17056.60133 | Z58: -22333.00108 | AA58: -21345.73076 | AB58: -17941.48106 | AC58: -7165.970091 | AD58: 471.0743693 | AE58: -1289.89757 | AF58: -1111.47891 | AG58: -381.6660045 | AH58: -4422.859957 | AI58: -6486.158647 | AJ58: -10716.96728 | AK58: -7462.815163 | AL58: -7767.446174 | AM58: -6930.365598 | AN58: -11988.18192 | AO58: -14284.99434 | AP58: -13424.3662 | AQ58: -15396.63948 | AR58: -15658.71659 | AS58: -13841.1336 | AT58: -22233.86008 | AU58: 35394.85331 | AV58: =SUM(AV49:AV57) -> 33950.98678 | AW58: 32764.31723 | AX58: 31603.04147 | AY58: 30468.00496 | AZ58: 29358.05283 | BA58: 28274.01536 | BB58: 27197.21509 | BC58: 26095.89967 | BD58: 24542.82601 | BE58: 23408.18476 | BF58: 22202.93107 | BG58: 21010.71145 | BH58: 19799.04342 | BI58: 18738.02469 | BJ58: 17706.34372 | BK58: 16702.52521 | BL58: 15727.9432 | BM58: 14777.05845 | BN58: 13699.69427
D59: check | K59: =K58-K44 -> 0 | L59: =L58-L44 -> -1.89174898e-10 | P59: =P58-P44 -> 0 | Q59: -1.273292582e-11 | R59: 8.185452316e-12 | S59: 0 | T59: 0 | U59: 0 | V59: 0 | W59: 0 | X59: 0 | Y59: 0 | Z59: 0 | AA59: 0 | AB59: 0 | AC59: -1.364242053e-11 | AD59: -1.364242053e-11 | AE59: -1.546140993e-11 | AF59: 1.909938874e-11 | AG59: -5.456968211e-12 | AH59: -2.364686225e-11 | AI59: 0 | AJ59: 0 | AK59: 8.185452316e-12 | AL59: -2.091837814e-11 | AM59: -1.000444172e-11 | AN59: -1.455191523e-11 | AO59: 0 | AP59: 0 | AQ59: 0 | AR59: 0 | AS59: 0 | AT59: 0 | AU59: 0 | AV59: =AV58-AV44 -> 0 | AW59: 0 | AX59: 0 | AY59: 0 | AZ59: 0 | BA59: 0 | BB59: 0 | BC59: 0 | BD59: 0 | BE59: 0 | BF59: 0 | BG59: 0 | BH59: 0 | BI59: 0 | BJ59: 0 | BK59: 0 | BL59: 0 | BM59: 0 | BN59: 0
D61: Cumulative CPVRR | K61: =BN61 -> -107613.324 | P61: =SUMPRODUCT($P44:P44,$P$14:P$14) -> 2846.639367 | Q61: =SUMPRODUCT($P44:Q44,$P$14:Q$14) -> 2861.511121 | R61: =SUMPRODUCT($P44:R44,$P$14:R$14) -> 839.8709576 | S61: =SUMPRODUCT($P44:S44,$P$14:S$14) -> -10824.7412 | T61: =SUMPRODUCT($P44:T44,$P$14:T$14) -> -25087.75674 | U61: =SUMPRODUCT($P44:U44,$P$14:U$14) -> -37953.0113 | V61: =SUMPRODUCT($P44:V44,$P$14:V$14) -> -51735.24502 | W61: =SUMPRODUCT($P44:W44,$P$14:W$14) -> -63669.61908 | X61: =SUMPRODUCT($P44:X44,$P$14:X$14) -> -74599.31739 | Y61: =SUMPRODUCT($P44:Y44,$P$14:Y$14) -> -82984.54493 | Z61: =SUMPRODUCT($P44:Z44,$P$14:Z$14) -> -93171.03099 | AA61: =SUMPRODUCT($P44:AA44,$P$14:AA$14) -> -102206.1153 | AB61: =SUMPRODUCT($P44:AB44,$P$14:AB$14) -> -109253.4249 | AC61: =SUMPRODUCT($P44:AC44,$P$14:AC$14) -> -111865.4896 | AD61: =SUMPRODUCT($P44:AD44,$P$14:AD$14) -> -111706.1758 | AE61: =SUMPRODUCT($P44:AE44,$P$14:AE$14) -> -112110.9967 | AF61: =SUMPRODUCT($P44:AF44,$P$14:AF$14) -> -112434.7043 | AG61: =SUMPRODUCT($P44:AG44,$P$14:AG$14) -> -112537.8566 | AH61: =SUMPRODUCT($P44:AH44,$P$14:AH$14) -> -113646.9131 | AI61: =SUMPRODUCT($P44:AI44,$P$14:AI$14) -> -115156.2351 | AJ61: =SUMPRODUCT($P44:AJ44,$P$14:AJ$14) -> -117470.4843 | AK61: =SUMPRODUCT($P44:AK44,$P$14:AK$14) -> -118965.9787 | AL61: =SUMPRODUCT($P44:AL44,$P$14:AL$14) -> -120410.1386 | AM61: =SUMPRODUCT($P44:AM44,$P$14:AM$14) -> -121605.8795 | AN61: =SUMPRODUCT($P44:AN44,$P$14:AN$14) -> -123525.3353 | AO61: =SUMPRODUCT($P44:AO44,$P$14:AO$14) -> -125647.8404 | AP61: =SUMPRODUCT($P44:AP44,$P$14:AP$14) -> -127498.4612 | AQ61: =SUMPRODUCT($P44:AQ44,$P$14:AQ$14) -> -129468.131 | AR61: =SUMPRODUCT($P44:AR44,$P$14:AR$14) -> -131327.0803 | AS61: =SUMPRODUCT($P44:AS44,$P$14:AS$14) -> -132851.9296 | AT61: =SUMPRODUCT($P44:AT44,$P$14:AT$14) -> -135124.5404 | AU61: =SUMPRODUCT($P44:AU44,$P$14:AU$14) -> -131767.2091 | AV61: =SUMPRODUCT($P44:AV44,$P$14:AV$14) -> -128778.7291 | AW61: =SUMPRODUCT($P44:AW44,$P$14:AW$14) -> -126102.3788 | AX61: =SUMPRODUCT($P44:AX44,$P$14:AX$14) -> -123707.2677 | AY61: =SUMPRODUCT($P44:AY44,$P$14:AY$14) -> -121564.4527 | AZ61: =SUMPRODUCT($P44:AZ44,$P$14:AZ$14) -> -119648.3808 | BA61: =SUMPRODUCT($P44:BA44,$P$14:BA$14) -> -117935.9387 | BB61: =SUMPRODUCT($P44:BB44,$P$14:BB$14) -> -116407.6416 | BC61: =SUMPRODUCT($P44:BC44,$P$14:BC$14) -> -115046.8252 | BD61: =SUMPRODUCT($P44:BD44,$P$14:BD$14) -> -113859.1555 | BE61: =SUMPRODUCT($P44:BE44,$P$14:BE$14) -> -112807.9618 | BF61: =SUMPRODUCT($P44:BF44,$P$14:BF$14) -> -111882.8798 | BG61: =SUMPRODUCT($P44:BG44,$P$14:BG$14) -> -111070.5085 | BH61: =SUMPRODUCT($P44:BH44,$P$14:BH$14) -> -110360.1102 | BI61: =SUMPRODUCT($P44:BI44,$P$14:BI$14) -> -109736.1952 | BJ61: =SUMPRODUCT($P44:BJ44,$P$14:BJ$14) -> -109189.1977 | BK61: =SUMPRODUCT($P44:BK44,$P$14:BK$14) -> -108710.3663 | BL61: =SUMPRODUCT($P44:BL44,$P$14:BL$14) -> -108291.9427 | BM61: =SUMPRODUCT($P44:BM44,$P$14:BM$14) -> -107927.1248 | BN61: =SUMPRODUCT($P44:BN44,$P$14:BN$14) -> -107613.324
D63: CASH FLOWS
D65: Cash Flow, Unescalated | I65: Sign Flip
C66: =C65+1 -> 1 | D66: =Input!D16 -> Acquired Inventory | E66: =Input!E16 -> Capital | F66: =MATCH(E66,lookups!$C$100:$C$105,0) -> 4 | H66: =IF(Input!$E16=lookups!$C$100,"Sign Flip"," ... ") -> ... | I66: =IF(Input!$E16=lookups!$C$100,-1,1) -> 1 | K66: =SUMPRODUCT(P66:BN66,$P$14:$BN$14) -> 3576.919658 | L66: =SUM(P66:BN66) -> 4000 | P66: =Input!R16*$I66 -> 0 | Q66: =Input!S16*$I66 -> 4000 | R66: =Input!T16*$I66 -> 0 | S66: =Input!U16*$I66 -> 0 | T66: =Input!V16*$I66 -> 0 | U66: =Input!W16*$I66 -> 0 | V66: =Input!X16*$I66 -> 0 | W66: =Input!Y16*$I66 -> 0 | X66: =Input!Z16*$I66 -> 0 | Y66: =Input!AA16*$I66 -> 0 | Z66: =Input!AB16*$I66 -> 0 | AA66: =Input!AC16*$I66 -> 0 | AB66: =Input!AD16*$I66 -> 0 | AC66: =Input!AE16*$I66 -> 0 | AD66: =Input!AF16*$I66 -> 0 | AE66: =Input!AG16*$I66 -> 0 | AF66: =Input!AH16*$I66 -> 0 | AG66: =Input!AI16*$I66 -> 0 | AH66: =Input!AJ16*$I66 -> 0 | AI66: =Input!AK16*$I66 -> 0 | AJ66: =Input!AL16*$I66 -> 0 | AK66: =Input!AM16*$I66 -> 0 | AL66: =Input!AN16*$I66 -> 0 | AM66: =Input!AO16*$I66 -> 0 | AN66: =Input!AP16*$I66 -> 0 | AO66: =Input!AQ16*$I66 -> 0 | AP66: =Input!AR16*$I66 -> 0 | AQ66: =Input!AS16*$I66 -> 0 | AR66: =Input!AT16*$I66 -> 0 | AS66: =Input!AU16*$I66 -> 0 | AT66: =Input!AV16*$I66 -> 0 | AU66: =Input!AW16*$I66 -> 0 | AV66: =Input!AX16*$I66 -> 0 | AW66: =Input!AY16*$I66 -> 0 | AX66: =Input!AZ16*$I66 -> 0 | AY66: =Input!BA16*$I66 -> 0 | AZ66: =Input!BB16*$I66 -> 0 | BA66: =Input!BC16*$I66 -> 0 | BB66: =Input!BD16*$I66 -> 0 | BC66: =Input!BE16*$I66 -> 0 | BD66: =Input!BF16*$I66 -> 0 | BE66: =Input!BG16*$I66 -> 0 | BF66: =Input!BH16*$I66 -> 0 | BG66: =Input!BI16*$I66 -> 0 | BH66: =Input!BJ16*$I66 -> 0 | BI66: =Input!BK16*$I66 -> 0 | BJ66: =Input!BL16*$I66 -> 0 | BK66: =Input!BM16*$I66 -> 0 | BL66: =Input!BN16*$I66 -> 0 | BM66: =Input!BO16*$I66 -> 0 | BN66: =Input!BP16*$I66 -> 0
C67: =C66+1 -> 2 | D67: =Input!D17 -> PP&E - Dist | E67: =Input!E17 -> Capital | F67: =MATCH(E67,lookups!$C$100:$C$105,0) -> 4 | H67: =IF(Input!$E17=lookups!$C$100,"Sign Flip"," ... ") -> ... | I67: =IF(Input!$E17=lookups!$C$100,-1,1) -> 1 | K67: =SUMPRODUCT(P67:BN67,$P$14:$BN$14) -> 46850.32337 | L67: =SUM(P67:BN67) -> 52391.80955 | P67: =Input!R17*$I67 -> 0 | Q67: =Input!S17*$I67 -> 52391.80955 | R67: =Input!T17*$I67 -> 0 | S67: =Input!U17*$I67 -> 0 | T67: =Input!V17*$I67 -> 0 | U67: =Input!W17*$I67 -> 0 | V67: =Input!X17*$I67 -> 0 | W67: =Input!Y17*$I67 -> 0 | X67: =Input!Z17*$I67 -> 0 | Y67: =Input!AA17*$I67 -> 0 | Z67: =Input!AB17*$I67 -> 0 | AA67: =Input!AC17*$I67 -> 0 | AB67: =Input!AD17*$I67 -> 0 | AC67: =Input!AE17*$I67 -> 0 | AD67: =Input!AF17*$I67 -> 0 | AE67: =Input!AG17*$I67 -> 0 | AF67: =Input!AH17*$I67 -> 0 | AG67: =Input!AI17*$I67 -> 0 | AH67: =Input!AJ17*$I67 -> 0 | AI67: =Input!AK17*$I67 -> 0 | AJ67: =Input!AL17*$I67 -> 0 | AK67: =Input!AM17*$I67 -> 0 | AL67: =Input!AN17*$I67 -> 0 | AM67: =Input!AO17*$I67 -> 0 | AN67: =Input!AP17*$I67 -> 0 | AO67: =Input!AQ17*$I67 -> 0 | AP67: =Input!AR17*$I67 -> 0 | AQ67: =Input!AS17*$I67 -> 0 | AR67: =Input!AT17*$I67 -> 0 | AS67: =Input!AU17*$I67 -> 0 | AT67: =Input!AV17*$I67 -> 0 | AU67: =Input!AW17*$I67 -> 0 | AV67: =Input!AX17*$I67 -> 0 | AW67: =Input!AY17*$I67 -> 0 | AX67: =Input!AZ17*$I67 -> 0 | AY67: =Input!BA17*$I67 -> 0 | AZ67: =Input!BB17*$I67 -> 0 | BA67: =Input!BC17*$I67 -> 0 | BB67: =Input!BD17*$I67 -> 0 | BC67: =Input!BE17*$I67 -> 0 | BD67: =Input!BF17*$I67 -> 0 | BE67: =Input!BG17*$I67 -> 0 | BF67: =Input!BH17*$I67 -> 0 | BG67: =Input!BI17*$I67 -> 0 | BH67: =Input!BJ17*$I67 -> 0 | BI67: =Input!BK17*$I67 -> 0 | BJ67: =Input!BL17*$I67 -> 0 | BK67: =Input!BM17*$I67 -> 0 | BL67: =Input!BN17*$I67 -> 0 | BM67: =Input!BO17*$I67 -> 0 | BN67: =Input!BP17*$I67 -> 0
C68: 3 | D68: =Input!D18 -> PP&E - Transmission | E68: =Input!E18 -> Capital | F68: =MATCH(E68,lookups!$C$100:$C$105,0) -> 4 | H68: =IF(Input!$E18=lookups!$C$100,"Sign Flip"," ... ") -> ... | I68: =IF(Input!$E18=lookups!$C$100,-1,1) -> 1 | K68: 5686.595933 | L68: 6359.210132 | P68: =Input!R18*$I68 -> 0 | Q68: =Input!S18*$I68 -> 6359.210132 | R68: =Input!T18*$I68 -> 0 | S68: =Input!U18*$I68 -> 0 | T68: =Input!V18*$I68 -> 0 | U68: =Input!W18*$I68 -> 0 | V68: =Input!X18*$I68 -> 0 | W68: =Input!Y18*$I68 -> 0 | X68: =Input!Z18*$I68 -> 0 | Y68: =Input!AA18*$I68 -> 0 | Z68: =Input!AB18*$I68 -> 0 | AA68: =Input!AC18*$I68 -> 0 | AB68: =Input!AD18*$I68 -> 0 | AC68: =Input!AE18*$I68 -> 0 | AD68: =Input!AF18*$I68 -> 0 | AE68: =Input!AG18*$I68 -> 0 | AF68: =Input!AH18*$I68 -> 0 | AG68: =Input!AI18*$I68 -> 0 | AH68: =Input!AJ18*$I68 -> 0 | AI68: =Input!AK18*$I68 -> 0 | AJ68: =Input!AL18*$I68 -> 0 | AK68: =Input!AM18*$I68 -> 0 | AL68: =Input!AN18*$I68 -> 0 | AM68: =Input!AO18*$I68 -> 0 | AN68: =Input!AP18*$I68 -> 0 | AO68: =Input!AQ18*$I68 -> 0 | AP68: =Input!AR18*$I68 -> 0 | AQ68: =Input!AS18*$I68 -> 0 | AR68: =Input!AT18*$I68 -> 0 | AS68: =Input!AU18*$I68 -> 0 | AT68: =Input!AV18*$I68 -> 0 | AU68: =Input!AW18*$I68 -> 0 | AV68: =Input!AX18*$I68 -> 0 | AW68: =Input!AY18*$I68 -> 0 | AX68: =Input!AZ18*$I68 -> 0 | AY68: =Input!BA18*$I68 -> 0 | AZ68: =Input!BB18*$I68 -> 0 | BA68: =Input!BC18*$I68 -> 0 | BB68: =Input!BD18*$I68 -> 0 | BC68: =Input!BE18*$I68 -> 0 | BD68: =Input!BF18*$I68 -> 0 | BE68: =Input!BG18*$I68 -> 0 | BF68: =Input!BH18*$I68 -> 0 | BG68: =Input!BI18*$I68 -> 0 | BH68: =Input!BJ18*$I68 -> 0 | BI68: =Input!BK18*$I68 -> 0 | BJ68: =Input!BL18*$I68 -> 0 | BK68: =Input!BM18*$I68 -> 0 | BL68: =Input!BN18*$I68 -> 0 | BM68: =Input!BO18*$I68 -> 0 | BN68: =Input!BP18*$I68 -> 0
C69: 4 | D69: =Input!D19 -> PP&E - General Plant | E69: =Input!E19 -> Capital | F69: =MATCH(E69,lookups!$C$100:$C$105,0) -> 4 | H69: =IF(Input!$E19=lookups!$C$100,"Sign Flip"," ... ") -> ... | I69: =IF(Input!$E19=lookups!$C$100,-1,1) -> 1 | K69: 795.9032354 | L69: 890.0431785 | P69: =Input!R19*$I69 -> 0 | Q69: =Input!S19*$I69 -> 890.0431785 | R69: =Input!T19*$I69 -> 0 | S69: =Input!U19*$I69 -> 0 | T69: =Input!V19*$I69 -> 0 | U69: =Input!W19*$I69 -> 0 | V69: =Input!X19*$I69 -> 0 | W69: =Input!Y19*$I69 -> 0 | X69: =Input!Z19*$I69 -> 0 | Y69: =Input!AA19*$I69 -> 0 | Z69: =Input!AB19*$I69 -> 0 | AA69: =Input!AC19*$I69 -> 0 | AB69: =Input!AD19*$I69 -> 0 | AC69: =Input!AE19*$I69 -> 0 | AD69: =Input!AF19*$I69 -> 0 | AE69: =Input!AG19*$I69 -> 0 | AF69: =Input!AH19*$I69 -> 0 | AG69: =Input!AI19*$I69 -> 0 | AH69: =Input!AJ19*$I69 -> 0 | AI69: =Input!AK19*$I69 -> 0 | AJ69: =Input!AL19*$I69 -> 0 | AK69: =Input!AM19*$I69 -> 0 | AL69: =Input!AN19*$I69 -> 0 | AM69: =Input!AO19*$I69 -> 0 | AN69: =Input!AP19*$I69 -> 0 | AO69: =Input!AQ19*$I69 -> 0 | AP69: =Input!AR19*$I69 -> 0 | AQ69: =Input!AS19*$I69 -> 0 | AR69: =Input!AT19*$I69 -> 0 | AS69: =Input!AU19*$I69 -> 0 | AT69: =Input!AV19*$I69 -> 0 | AU69: =Input!AW19*$I69 -> 0 | AV69: =Input!AX19*$I69 -> 0 | AW69: =Input!AY19*$I69 -> 0 | AX69: =Input!AZ19*$I69 -> 0 | AY69: =Input!BA19*$I69 -> 0 | AZ69: =Input!BB19*$I69 -> 0 | BA69: =Input!BC19*$I69 -> 0 | BB69: =Input!BD19*$I69 -> 0 | BC69: =Input!BE19*$I69 -> 0 | BD69: =Input!BF19*$I69 -> 0 | BE69: =Input!BG19*$I69 -> 0 | BF69: =Input!BH19*$I69 -> 0 | BG69: =Input!BI19*$I69 -> 0 | BH69: =Input!BJ19*$I69 -> 0 | BI69: =Input!BK19*$I69 -> 0 | BJ69: =Input!BL19*$I69 -> 0 | BK69: =Input!BM19*$I69 -> 0 | BL69: =Input!BN19*$I69 -> 0 | BM69: =Input!BO19*$I69 -> 0 | BN69: =Input!BP19*$I69 -> 0
C70: 5 | D70: =Input!D20 -> PP&E - Land (included in Trans and Dist) | E70: =Input!E20 -> Land | F70: =MATCH(E70,lookups!$C$100:$C$105,0) -> 3 | H70: =IF(Input!$E20=lookups!$C$100,"Sign Flip"," ... ") -> ... | I70: =IF(Input!$E20=lookups!$C$100,-1,1) -> 1 | K70: 1613.903994 | L70: 1804.79759 | P70: =Input!R20*$I70 -> 0 | Q70: =Input!S20*$I70 -> 1804.79759 | R70: =Input!T20*$I70 -> 0 | S70: =Input!U20*$I70 -> 0 | T70: =Input!V20*$I70 -> 0 | U70: =Input!W20*$I70 -> 0 | V70: =Input!X20*$I70 -> 0 | W70: =Input!Y20*$I70 -> 0 | X70: =Input!Z20*$I70 -> 0 | Y70: =Input!AA20*$I70 -> 0 | Z70: =Input!AB20*$I70 -> 0 | AA70: =Input!AC20*$I70 -> 0 | AB70: =Input!AD20*$I70 -> 0 | AC70: =Input!AE20*$I70 -> 0 | AD70: =Input!AF20*$I70 -> 0 | AE70: =Input!AG20*$I70 -> 0 | AF70: =Input!AH20*$I70 -> 0 | AG70: =Input!AI20*$I70 -> 0 | AH70: =Input!AJ20*$I70 -> 0 | AI70: =Input!AK20*$I70 -> 0 | AJ70: =Input!AL20*$I70 -> 0 | AK70: =Input!AM20*$I70 -> 0 | AL70: =Input!AN20*$I70 -> 0 | AM70: =Input!AO20*$I70 -> 0 | AN70: =Input!AP20*$I70 -> 0 | AO70: =Input!AQ20*$I70 -> 0 | AP70: =Input!AR20*$I70 -> 0 | AQ70: =Input!AS20*$I70 -> 0 | AR70: =Input!AT20*$I70 -> 0 | AS70: =Input!AU20*$I70 -> 0 | AT70: =Input!AV20*$I70 -> 0 | AU70: =Input!AW20*$I70 -> 0 | AV70: =Input!AX20*$I70 -> 0 | AW70: =Input!AY20*$I70 -> 0 | AX70: =Input!AZ20*$I70 -> 0 | AY70: =Input!BA20*$I70 -> 0 | AZ70: =Input!BB20*$I70 -> 0 | BA70: =Input!BC20*$I70 -> 0 | BB70: =Input!BD20*$I70 -> 0 | BC70: =Input!BE20*$I70 -> 0 | BD70: =Input!BF20*$I70 -> 0 | BE70: =Input!BG20*$I70 -> 0 | BF70: =Input!BH20*$I70 -> 0 | BG70: =Input!BI20*$I70 -> 0 | BH70: =Input!BJ20*$I70 -> 0 | BI70: =Input!BK20*$I70 -> 0 | BJ70: =Input!BL20*$I70 -> 0 | BK70: =Input!BM20*$I70 -> 0 | BL70: =Input!BN20*$I70 -> 0 | BM70: =Input!BO20*$I70 -> 0 | BN70: =Input!BP20*$I70 -> 0
C71: 6 | D71: =Input!D21 -> Asset Acquisition Adjustment | E71: =Input!E21 -> Capital | F71: =MATCH(E71,lookups!$C$100:$C$105,0) -> 4 | H71: =IF(Input!$E21=lookups!$C$100,"Sign Flip"," ... ") -> ... | I71: =IF(Input!$E21=lookups!$C$100,-1,1) -> 1 | K71: 102178.3813 | L71: 114264.1055 | P71: =Input!R21*$I71 -> 0 | Q71: =Input!S21*$I71 -> 114264.1055 | R71: =Input!T21*$I71 -> 0 | S71: =Input!U21*$I71 -> 0 | T71: =Input!V21*$I71 -> 0 | U71: =Input!W21*$I71 -> 0 | V71: =Input!X21*$I71 -> 0 | W71: =Input!Y21*$I71 -> 0 | X71: =Input!Z21*$I71 -> 0 | Y71: =Input!AA21*$I71 -> 0 | Z71: =Input!AB21*$I71 -> 0 | AA71: =Input!AC21*$I71 -> 0 | AB71: =Input!AD21*$I71 -> 0 | AC71: =Input!AE21*$I71 -> 0 | AD71: =Input!AF21*$I71 -> 0 | AE71: =Input!AG21*$I71 -> 0 | AF71: =Input!AH21*$I71 -> 0 | AG71: =Input!AI21*$I71 -> 0 | AH71: =Input!AJ21*$I71 -> 0 | AI71: =Input!AK21*$I71 -> 0 | AJ71: =Input!AL21*$I71 -> 0 | AK71: =Input!AM21*$I71 -> 0 | AL71: =Input!AN21*$I71 -> 0 | AM71: =Input!AO21*$I71 -> 0 | AN71: =Input!AP21*$I71 -> 0 | AO71: =Input!AQ21*$I71 -> 0 | AP71: =Input!AR21*$I71 -> 0 | AQ71: =Input!AS21*$I71 -> 0 | AR71: =Input!AT21*$I71 -> 0 | AS71: =Input!AU21*$I71 -> 0 | AT71: =Input!AV21*$I71 -> 0 | AU71: =Input!AW21*$I71 -> 0 | AV71: =Input!AX21*$I71 -> 0 | AW71: =Input!AY21*$I71 -> 0 | AX71: =Input!AZ21*$I71 -> 0 | AY71: =Input!BA21*$I71 -> 0 | AZ71: =Input!BB21*$I71 -> 0 | BA71: =Input!BC21*$I71 -> 0 | BB71: =Input!BD21*$I71 -> 0 | BC71: =Input!BE21*$I71 -> 0 | BD71: =Input!BF21*$I71 -> 0 | BE71: =Input!BG21*$I71 -> 0 | BF71: =Input!BH21*$I71 -> 0 | BG71: =Input!BI21*$I71 -> 0 | BH71: =Input!BJ21*$I71 -> 0 | BI71: =Input!BK21*$I71 -> 0 | BJ71: =Input!BL21*$I71 -> 0 | BK71: =Input!BM21*$I71 -> 0 | BL71: =Input!BN21*$I71 -> 0 | BM71: =Input!BO21*$I71 -> 0 | BN71: =Input!BP21*$I71 -> 0
C72: 7 | D72: =Input!D22 -> Lease Easement Indian River | E72: =Input!E22 -> Operating Expense | F72: =MATCH(E72,lookups!$C$100:$C$105,0) -> 2 | H72: =IF(Input!$E22=lookups!$C$100,"Sign Flip"," ... ") -> ... | I72: =IF(Input!$E22=lookups!$C$100,-1,1) -> 1 | K72: 255.134517 | L72: 690 | P72: =Input!R22*$I72 -> 0 | Q72: =Input!S22*$I72 -> 23 | R72: =Input!T22*$I72 -> 23 | S72: =Input!U22*$I72 -> 23 | T72: =Input!V22*$I72 -> 23 | U72: =Input!W22*$I72 -> 23 | V72: =Input!X22*$I72 -> 23 | W72: =Input!Y22*$I72 -> 23 | X72: =Input!Z22*$I72 -> 23 | Y72: =Input!AA22*$I72 -> 23 | Z72: =Input!AB22*$I72 -> 23 | AA72: =Input!AC22*$I72 -> 23 | AB72: =Input!AD22*$I72 -> 23 | AC72: =Input!AE22*$I72 -> 23 | AD72: =Input!AF22*$I72 -> 23 | AE72: =Input!AG22*$I72 -> 23 | AF72: =Input!AH22*$I72 -> 23 | AG72: =Input!AI22*$I72 -> 23 | AH72: =Input!AJ22*$I72 -> 23 | AI72: =Input!AK22*$I72 -> 23 | AJ72: =Input!AL22*$I72 -> 23 | AK72: =Input!AM22*$I72 -> 23 | AL72: =Input!AN22*$I72 -> 23 | AM72: =Input!AO22*$I72 -> 23 | AN72: =Input!AP22*$I72 -> 23 | AO72: =Input!AQ22*$I72 -> 23 | AP72: =Input!AR22*$I72 -> 23 | AQ72: =Input!AS22*$I72 -> 23 | AR72: =Input!AT22*$I72 -> 23 | AS72: =Input!AU22*$I72 -> 23 | AT72: =Input!AV22*$I72 -> 23 | AU72: =Input!AW22*$I72 -> 0 | AV72: =Input!AX22*$I72 -> 0 | AW72: =Input!AY22*$I72 -> 0 | AX72: =Input!AZ22*$I72 -> 0 | AY72: =Input!BA22*$I72 -> 0 | AZ72: =Input!BB22*$I72 -> 0 | BA72: =Input!BC22*$I72 -> 0 | BB72: =Input!BD22*$I72 -> 0 | BC72: =Input!BE22*$I72 -> 0 | BD72: =Input!BF22*$I72 -> 0 | BE72: =Input!BG22*$I72 -> 0 | BF72: =Input!BH22*$I72 -> 0 | BG72: =Input!BI22*$I72 -> 0 | BH72: =Input!BJ22*$I72 -> 0 | BI72: =Input!BK22*$I72 -> 0 | BJ72: =Input!BL22*$I72 -> 0 | BK72: =Input!BM22*$I72 -> 0 | BL72: =Input!BN22*$I72 -> 0 | BM72: =Input!BO22*$I72 -> 0 | BN72: =Input!BP22*$I72 -> 0
C73: 8 | D73: =Input!D23 -> Prepaid Easement Vero Beach | E73: =Input!E23 -> Capital | F73: =MATCH(E73,lookups!$C$100:$C$105,0) -> 4 | H73: =IF(Input!$E23=lookups!$C$100,"Sign Flip"," ... ") -> ... | I73: =IF(Input!$E23=lookups!$C$100,-1,1) -> 1 | K73: 1788.459829 | L73: 2000 | P73: =Input!R23*$I73 -> 0 | Q73: =Input!S23*$I73 -> 2000 | R73: =Input!T23*$I73 -> 0 | S73: =Input!U23*$I73 -> 0 | T73: =Input!V23*$I73 -> 0 | U73: =Input!W23*$I73 -> 0 | V73: =Input!X23*$I73 -> 0 | W73: =Input!Y23*$I73 -> 0 | X73: =Input!Z23*$I73 -> 0 | Y73: =Input!AA23*$I73 -> 0 | Z73: =Input!AB23*$I73 -> 0 | AA73: =Input!AC23*$I73 -> 0 | AB73: =Input!AD23*$I73 -> 0 | AC73: =Input!AE23*$I73 -> 0 | AD73: =Input!AF23*$I73 -> 0 | AE73: =Input!AG23*$I73 -> 0 | AF73: =Input!AH23*$I73 -> 0 | AG73: =Input!AI23*$I73 -> 0 | AH73: =Input!AJ23*$I73 -> 0 | AI73: =Input!AK23*$I73 -> 0 | AJ73: =Input!AL23*$I73 -> 0 | AK73: =Input!AM23*$I73 -> 0 | AL73: =Input!AN23*$I73 -> 0 | AM73: =Input!AO23*$I73 -> 0 | AN73: =Input!AP23*$I73 -> 0 | AO73: =Input!AQ23*$I73 -> 0 | AP73: =Input!AR23*$I73 -> 0 | AQ73: =Input!AS23*$I73 -> 0 | AR73: =Input!AT23*$I73 -> 0 | AS73: =Input!AU23*$I73 -> 0 | AT73: =Input!AV23*$I73 -> 0 | AU73: =Input!AW23*$I73 -> 0 | AV73: =Input!AX23*$I73 -> 0 | AW73: =Input!AY23*$I73 -> 0 | AX73: =Input!AZ23*$I73 -> 0 | AY73: =Input!BA23*$I73 -> 0 | AZ73: =Input!BB23*$I73 -> 0 | BA73: =Input!BC23*$I73 -> 0 | BB73: =Input!BD23*$I73 -> 0 | BC73: =Input!BE23*$I73 -> 0 | BD73: =Input!BF23*$I73 -> 0 | BE73: =Input!BG23*$I73 -> 0 | BF73: =Input!BH23*$I73 -> 0 | BG73: =Input!BI23*$I73 -> 0 | BH73: =Input!BJ23*$I73 -> 0 | BI73: =Input!BK23*$I73 -> 0 | BJ73: =Input!BL23*$I73 -> 0 | BK73: =Input!BM23*$I73 -> 0 | BL73: =Input!BN23*$I73 -> 0 | BM73: =Input!BO23*$I73 -> 0 | BN73: =Input!BP23*$I73 -> 0
C74: 9 | D74: =Input!D24 -> OUC PPA Payment - Above Market | E74: =Input!E24 -> Capital | F74: =MATCH(E74,lookups!$C$100:$C$105,0) -> 4 | H74: =IF(Input!$E24=lookups!$C$100,"Sign Flip"," ... ") -> ... | I74: =IF(Input!$E24=lookups!$C$100,-1,1) -> 1 | K74: 11081.74211 | L74: 12904.02 | P74: =Input!R24*$I74 -> 0 | Q74: =Input!S24*$I74 -> 5819.1 | R74: =Input!T24*$I74 -> 7084.92 | S74: =Input!U24*$I74 -> 0 | T74: =Input!V24*$I74 -> 0 | U74: =Input!W24*$I74 -> 0 | V74: =Input!X24*$I74 -> 0 | W74: =Input!Y24*$I74 -> 0 | X74: =Input!Z24*$I74 -> 0 | Y74: =Input!AA24*$I74 -> 0 | Z74: =Input!AB24*$I74 -> 0 | AA74: =Input!AC24*$I74 -> 0 | AB74: =Input!AD24*$I74 -> 0 | AC74: =Input!AE24*$I74 -> 0 | AD74: =Input!AF24*$I74 -> 0 | AE74: =Input!AG24*$I74 -> 0 | AF74: =Input!AH24*$I74 -> 0 | AG74: =Input!AI24*$I74 -> 0 | AH74: =Input!AJ24*$I74 -> 0 | AI74: =Input!AK24*$I74 -> 0 | AJ74: =Input!AL24*$I74 -> 0 | AK74: =Input!AM24*$I74 -> 0 | AL74: =Input!AN24*$I74 -> 0 | AM74: =Input!AO24*$I74 -> 0 | AN74: =Input!AP24*$I74 -> 0 | AO74: =Input!AQ24*$I74 -> 0 | AP74: =Input!AR24*$I74 -> 0 | AQ74: =Input!AS24*$I74 -> 0 | AR74: =Input!AT24*$I74 -> 0 | AS74: =Input!AU24*$I74 -> 0 | AT74: =Input!AV24*$I74 -> 0 | AU74: =Input!AW24*$I74 -> 0 | AV74: =Input!AX24*$I74 -> 0 | AW74: =Input!AY24*$I74 -> 0 | AX74: =Input!AZ24*$I74 -> 0 | AY74: =Input!BA24*$I74 -> 0 | AZ74: =Input!BB24*$I74 -> 0 | BA74: =Input!BC24*$I74 -> 0 | BB74: =Input!BD24*$I74 -> 0 | BC74: =Input!BE24*$I74 -> 0 | BD74: =Input!BF24*$I74 -> 0 | BE74: =Input!BG24*$I74 -> 0 | BF74: =Input!BH24*$I74 -> 0 | BG74: =Input!BI24*$I74 -> 0 | BH74: =Input!BJ24*$I74 -> 0 | BI74: =Input!BK24*$I74 -> 0 | BJ74: =Input!BL24*$I74 -> 0 | BK74: =Input!BM24*$I74 -> 0 | BL74: =Input!BN24*$I74 -> 0 | BM74: =Input!BO24*$I74 -> 0 | BN74: =Input!BP24*$I74 -> 0
C75: 10 | D75: =Input!D25 -> PPA Energy Savings | E75: =Input!E25 -> Operating Savings | F75: =MATCH(E75,lookups!$C$100:$C$105,0) -> 1 | H75: =IF(Input!$E25=lookups!$C$100,"Sign Flip"," ... ") -> Sign Flip | I75: =IF(Input!$E25=lookups!$C$100,-1,1) -> -1 | K75: -5445.670607 | L75: -6310.722068 | P75: =Input!R25*$I75 -> 0 | Q75: =Input!S25*$I75 -> -3250.640424 | R75: =Input!T25*$I75 -> -3060.081644 | S75: =Input!U25*$I75 -> 0 | T75: =Input!V25*$I75 -> 0 | U75: =Input!W25*$I75 -> 0 | V75: =Input!X25*$I75 -> 0 | W75: =Input!Y25*$I75 -> 0 | X75: =Input!Z25*$I75 -> 0 | Y75: =Input!AA25*$I75 -> 0 | Z75: =Input!AB25*$I75 -> 0 | AA75: =Input!AC25*$I75 -> 0 | AB75: =Input!AD25*$I75 -> 0 | AC75: =Input!AE25*$I75 -> 0 | AD75: =Input!AF25*$I75 -> 0 | AE75: =Input!AG25*$I75 -> 0 | AF75: =Input!AH25*$I75 -> 0 | AG75: =Input!AI25*$I75 -> 0 | AH75: =Input!AJ25*$I75 -> 0 | AI75: =Input!AK25*$I75 -> 0 | AJ75: =Input!AL25*$I75 -> 0 | AK75: =Input!AM25*$I75 -> 0 | AL75: =Input!AN25*$I75 -> 0 | AM75: =Input!AO25*$I75 -> 0 | AN75: =Input!AP25*$I75 -> 0 | AO75: =Input!AQ25*$I75 -> 0 | AP75: =Input!AR25*$I75 -> 0 | AQ75: =Input!AS25*$I75 -> 0 | AR75: =Input!AT25*$I75 -> 0 | AS75: =Input!AU25*$I75 -> 0 | AT75: =Input!AV25*$I75 -> 0 | AU75: =Input!AW25*$I75 -> 0 | AV75: =Input!AX25*$I75 -> 0 | AW75: =Input!AY25*$I75 -> 0 | AX75: =Input!AZ25*$I75 -> 0 | AY75: =Input!BA25*$I75 -> 0 | AZ75: =Input!BB25*$I75 -> 0 | BA75: =Input!BC25*$I75 -> 0 | BB75: =Input!BD25*$I75 -> 0 | BC75: =Input!BE25*$I75 -> 0 | BD75: =Input!BF25*$I75 -> 0 | BE75: =Input!BG25*$I75 -> 0 | BF75: =Input!BH25*$I75 -> 0 | BG75: =Input!BI25*$I75 -> 0 | BH75: =Input!BJ25*$I75 -> 0 | BI75: =Input!BK25*$I75 -> 0 | BJ75: =Input!BL25*$I75 -> 0 | BK75: =Input!BM25*$I75 -> 0 | BL75: =Input!BN25*$I75 -> 0 | BM75: =Input!BO25*$I75 -> 0 | BN75: =Input!BP25*$I75 -> 0
C76: 11 | D76: =Input!D26 -> Ongoing Distribution Capex | E76: =Input!E26 -> Capital | F76: =MATCH(E76,lookups!$C$100:$C$105,0) -> 4 | H76: =IF(Input!$E26=lookups!$C$100,"Sign Flip"," ... ") -> ... | I76: =IF(Input!$E26=lookups!$C$100,-1,1) -> 1 | K76: 102067.8835 | L76: 290925.5306 | P76: =Input!R26*$I76 -> 2671.329037 | Q76: =Input!S26*$I76 -> 860.1561862 | R76: =Input!T26*$I76 -> 4454.909803 | S76: =Input!U26*$I76 -> 9284.557884 | T76: =Input!V26*$I76 -> 9445.99574 | U76: =Input!W26*$I76 -> 13405.7279 | V76: =Input!X26*$I76 -> 8624.541926 | W76: =Input!Y26*$I76 -> 8891.948221 | X76: =Input!Z26*$I76 -> 9167.751418 | Y76: =Input!AA26*$I76 -> 9373.93193 | Z76: =Input!AB26*$I76 -> 9584.354336 | AA76: =Input!AC26*$I76 -> 9882.145519 | AB76: =Input!AD26*$I76 -> 10189.30822 | AC76: =Input!AE26*$I76 -> 10506.14086 | AD76: =Input!AF26*$I76 -> 10832.9515 | AE76: =Input!AG26*$I76 -> 11170.05808 | AF76: =Input!AH26*$I76 -> 11517.78882 | AG76: =Input!AI26*$I76 -> 11876.4825 | AH76: =Input!AJ26*$I76 -> 12246.4888 | AI76: =Input!AK26*$I76 -> 12628.16871 | AJ76: =Input!AL26*$I76 -> 13021.89484 | AK76: =Input!AM26*$I76 -> 13428.05183 | AL76: =Input!AN26*$I76 -> 7593.842549 | AM76: =Input!AO26*$I76 -> 7838.469387 | AN76: =Input!AP26*$I76 -> 8091.129223 | AO76: =Input!AQ26*$I76 -> 8352.089989 | AP76: =Input!AR26*$I76 -> 8621.628662 | AQ76: =Input!AS26*$I76 -> 8900.031577 | AR76: =Input!AT26*$I76 -> 9187.594742 | AS76: =Input!AU26*$I76 -> 9484.624169 | AT76: =Input!AV26*$I76 -> 9791.436216 | AU76: =Input!AW26*$I76 -> 0 | AV76: =Input!AX26*$I76 -> 0 | AW76: =Input!AY26*$I76 -> 0 | AX76: =Input!AZ26*$I76 -> 0 | AY76: =Input!BA26*$I76 -> 0 | AZ76: =Input!BB26*$I76 -> 0 | BA76: =Input!BC26*$I76 -> 0 | BB76: =Input!BD26*$I76 -> 0 | BC76: =Input!BE26*$I76 -> 0 | BD76: =Input!BF26*$I76 -> 0 | BE76: =Input!BG26*$I76 -> 0 | BF76: =Input!BH26*$I76 -> 0 | BG76: =Input!BI26*$I76 -> 0 | BH76: =Input!BJ26*$I76 -> 0 | BI76: =Input!BK26*$I76 -> 0 | BJ76: =Input!BL26*$I76 -> 0 | BK76: =Input!BM26*$I76 -> 0 | BL76: =Input!BN26*$I76 -> 0 | BM76: =Input!BO26*$I76 -> 0 | BN76: =Input!BP26*$I76 -> 0
C77: 12 | D77: =Input!D27 -> Ongoing Transmission Capex | E77: =Input!E27 -> Capital | F77: =MATCH(E77,lookups!$C$100:$C$105,0) -> 4 | H77: =IF(Input!$E27=lookups!$C$100,"Sign Flip"," ... ") -> ... | I77: =IF(Input!$E27=lookups!$C$100,-1,1) -> 1 | K77: 33541.41856 | L77: 87881.66852 | P77: =Input!R27*$I77 -> 23.46153846 | Q77: =Input!S27*$I77 -> 1303.426441 | R77: =Input!T27*$I77 -> 10934.08505 | S77: =Input!U27*$I77 -> 2906.916369 | T77: =Input!V27*$I77 -> 2041.31503 | U77: =Input!W27*$I77 -> 2081.250261 | V77: =Input!X27*$I77 -> 1673.485879 | W77: =Input!Y27*$I77 -> 1817.06205 | X77: =Input!Z27*$I77 -> 2737.137222 | Y77: =Input!AA27*$I77 -> 2797.417687 | Z77: =Input!AB27*$I77 -> 2191.278022 | AA77: =Input!AC27*$I77 -> 2246.059972 | AB77: =Input!AD27*$I77 -> 2302.211472 | AC77: =Input!AE27*$I77 -> 2359.766758 | AD77: =Input!AF27*$I77 -> 2418.760927 | AE77: =Input!AG27*$I77 -> 2479.229951 | AF77: =Input!AH27*$I77 -> 2541.210699 | AG77: =Input!AI27*$I77 -> 2604.740967 | AH77: =Input!AJ27*$I77 -> 2669.859491 | AI77: =Input!AK27*$I77 -> 2736.605978 | AJ77: =Input!AL27*$I77 -> 2805.021128 | AK77: =Input!AM27*$I77 -> 2875.146656 | AL77: =Input!AN27*$I77 -> 2947.025322 | AM77: =Input!AO27*$I77 -> 3020.700955 | AN77: =Input!AP27*$I77 -> 3096.218479 | AO77: =Input!AQ27*$I77 -> 3173.623941 | AP77: =Input!AR27*$I77 -> 3252.96454 | AQ77: =Input!AS27*$I77 -> 3334.288653 | AR77: =Input!AT27*$I77 -> 3417.64587 | AS77: =Input!AU27*$I77 -> 3503.087016 | AT77: =Input!AV27*$I77 -> 3590.664192 | AU77: =Input!AW27*$I77 -> 0 | AV77: =Input!AX27*$I77 -> 0 | AW77: =Input!AY27*$I77 -> 0 | AX77: =Input!AZ27*$I77 -> 0 | AY77: =Input!BA27*$I77 -> 0 | AZ77: =Input!BB27*$I77 -> 0 | BA77: =Input!BC27*$I77 -> 0 | BB77: =Input!BD27*$I77 -> 0 | BC77: =Input!BE27*$I77 -> 0 | BD77: =Input!BF27*$I77 -> 0 | BE77: =Input!BG27*$I77 -> 0 | BF77: =Input!BH27*$I77 -> 0 | BG77: =Input!BI27*$I77 -> 0 | BH77: =Input!BJ27*$I77 -> 0 | BI77: =Input!BK27*$I77 -> 0 | BJ77: =Input!BL27*$I77 -> 0 | BK77: =Input!BM27*$I77 -> 0 | BL77: =Input!BN27*$I77 -> 0 | BM77: =Input!BO27*$I77 -> 0 | BN77: =Input!BP27*$I77 -> 0
C78: 13 | D78: =Input!D28 -> Customer Serivce O&M | E78: =Input!E28 -> Operating Expense | F78: =MATCH(E78,lookups!$C$100:$C$105,0) -> 2 | H78: =IF(Input!$E28=lookups!$C$100,"Sign Flip"," ... ") -> ... | I78: =IF(Input!$E28=lookups!$C$100,-1,1) -> 1 | K78: 9082.783589 | L78: 26364.19998 | P78: =Input!R28*$I78 -> 669.8774253 | Q78: =Input!S28*$I78 -> 391.5766236 | R78: =Input!T28*$I78 -> 990.4569161 | S78: =Input!U28*$I78 -> 655.0719696 | T78: =Input!V28*$I78 -> 614.5084152 | U78: =Input!W28*$I78 -> 639.8671401 | V78: =Input!X28*$I78 -> 655.8638186 | W78: =Input!Y28*$I78 -> 672.260414 | X78: =Input!Z28*$I78 -> 689.0669244 | Y78: =Input!AA28*$I78 -> 706.2935975 | Z78: =Input!AB28*$I78 -> 723.9509374 | AA78: =Input!AC28*$I78 -> 742.0497109 | AB78: =Input!AD28*$I78 -> 760.6009536 | AC78: =Input!AE28*$I78 -> 779.6159775 | AD78: =Input!AF28*$I78 -> 799.1063769 | AE78: =Input!AG28*$I78 -> 819.0840363 | AF78: =Input!AH28*$I78 -> 839.5611372 | AG78: =Input!AI28*$I78 -> 860.5501657 | AH78: =Input!AJ28*$I78 -> 882.0639198 | AI78: =Input!AK28*$I78 -> 904.1155178 | AJ78: =Input!AL28*$I78 -> 926.7184057 | AK78: =Input!AM28*$I78 -> 949.8863659 | AL78: =Input!AN28*$I78 -> 973.633525 | AM78: =Input!AO28*$I78 -> 997.9743632 | AN78: =Input!AP28*$I78 -> 1022.923722 | AO78: =Input!AQ28*$I78 -> 1048.496815 | AP78: =Input!AR28*$I78 -> 1074.709236 | AQ78: =Input!AS28*$I78 -> 1101.576967 | AR78: =Input!AT28*$I78 -> 1129.116391 | AS78: =Input!AU28*$I78 -> 1157.3443 | AT78: =Input!AV28*$I78 -> 1186.277908 | AU78: =Input!AW28*$I78 -> 0 | AV78: =Input!AX28*$I78 -> 0 | AW78: =Input!AY28*$I78 -> 0 | AX78: =Input!AZ28*$I78 -> 0 | AY78: =Input!BA28*$I78 -> 0 | AZ78: =Input!BB28*$I78 -> 0 | BA78: =Input!BC28*$I78 -> 0 | BB78: =Input!BD28*$I78 -> 0 | BC78: =Input!BE28*$I78 -> 0 | BD78: =Input!BF28*$I78 -> 0 | BE78: =Input!BG28*$I78 -> 0 | BF78: =Input!BH28*$I78 -> 0 | BG78: =Input!BI28*$I78 -> 0 | BH78: =Input!BJ28*$I78 -> 0 | BI78: =Input!BK28*$I78 -> 0 | BJ78: =Input!BL28*$I78 -> 0 | BK78: =Input!BM28*$I78 -> 0 | BL78: =Input!BN28*$I78 -> 0 | BM78: =Input!BO28*$I78 -> 0 | BN78: =Input!BP28*$I78 -> 0
C79: 14 | D79: =Input!D29 -> Ongoing Distribution O&M | E79: =Input!E29 -> Operating Expense | F79: =MATCH(E79,lookups!$C$100:$C$105,0) -> 2 | H79: =IF(Input!$E29=lookups!$C$100,"Sign Flip"," ... ") -> ... | I79: =IF(Input!$E29=lookups!$C$100,-1,1) -> 1 | K79: 33093.39769 | L79: 86137.41046 | P79: =Input!R29*$I79 -> 183.1045444 | Q79: =Input!S29*$I79 -> 5464.581571 | R79: =Input!T29*$I79 -> 7063.241469 | S79: =Input!U29*$I79 -> 2359.566982 | T79: =Input!V29*$I79 -> 2362.315379 | U79: =Input!W29*$I79 -> 1993.901913 | V79: =Input!X29*$I79 -> 1848.05727 | W79: =Input!Y29*$I79 -> 1904.461301 | X79: =Input!Z29*$I79 -> 1962.630536 | Y79: =Input!AA29*$I79 -> 2022.621473 | Z79: =Input!AB29*$I79 -> 2084.492455 | AA79: =Input!AC29*$I79 -> 2148.30373 | AB79: =Input!AD29*$I79 -> 2214.117513 | AC79: =Input!AE29*$I79 -> 2281.998052 | AD79: =Input!AF29*$I79 -> 2352.011697 | AE79: =Input!AG29*$I79 -> 2424.226967 | AF79: =Input!AH29*$I79 -> 2498.714624 | AG79: =Input!AI29*$I79 -> 2575.547748 | AH79: =Input!AJ29*$I79 -> 2654.801813 | AI79: =Input!AK29*$I79 -> 2736.554765 | AJ79: =Input!AL29*$I79 -> 2820.887108 | AK79: =Input!AM29*$I79 -> 2907.881986 | AL79: =Input!AN29*$I79 -> 2870.009066 | AM79: =Input!AO29*$I79 -> 2958.76097 | AN79: =Input!AP29*$I79 -> 3050.326731 | AO79: =Input!AQ29*$I79 -> 3144.797522 | AP79: =Input!AR29*$I79 -> 3242.267524 | AQ79: =Input!AS29*$I79 -> 3342.834028 | AR79: =Input!AT29*$I79 -> 3446.597538 | AS79: =Input!AU29*$I79 -> 3553.66188 | AT79: =Input!AV29*$I79 -> 3664.134309 | AU79: =Input!AW29*$I79 -> 0 | AV79: =Input!AX29*$I79 -> 0 | AW79: =Input!AY29*$I79 -> 0 | AX79: =Input!AZ29*$I79 -> 0 | AY79: =Input!BA29*$I79 -> 0 | AZ79: =Input!BB29*$I79 -> 0 | BA79: =Input!BC29*$I79 -> 0 | BB79: =Input!BD29*$I79 -> 0 | BC79: =Input!BE29*$I79 -> 0 | BD79: =Input!BF29*$I79 -> 0 | BE79: =Input!BG29*$I79 -> 0 | BF79: =Input!BH29*$I79 -> 0 | BG79: =Input!BI29*$I79 -> 0 | BH79: =Input!BJ29*$I79 -> 0 | BI79: =Input!BK29*$I79 -> 0 | BJ79: =Input!BL29*$I79 -> 0 | BK79: =Input!BM29*$I79 -> 0 | BL79: =Input!BN29*$I79 -> 0 | BM79: =Input!BO29*$I79 -> 0 | BN79: =Input!BP29*$I79 -> 0
C80: 15 | D80: =Input!D30 -> Ongoing Transmission O&M | E80: =Input!E30 -> Operating Expense | F80: =MATCH(E80,lookups!$C$100:$C$105,0) -> 2 | H80: =IF(Input!$E30=lookups!$C$100,"Sign Flip"," ... ") -> ... | I80: =IF(Input!$E30=lookups!$C$100,-1,1) -> 1 | K80: 11908.57064 | L80: 35416.51462 | P80: =Input!R30*$I80 -> 95 | Q80: =Input!S30*$I80 -> 294.6496406 | R80: =Input!T30*$I80 -> 1770.64549 | S80: =Input!U30*$I80 -> 956.4515342 | T80: =Input!V30*$I80 -> 937.2255144 | U80: =Input!W30*$I80 -> 980.6374284 | V80: =Input!X30*$I80 -> 893.1174397 | W80: =Input!Y30*$I80 -> 989.9911532 | X80: =Input!Z30*$I80 -> 939.7589649 | Y80: =Input!AA30*$I80 -> 956.4351492 | Z80: =Input!AB30*$I80 -> 978.6386386 | AA80: =Input!AC30*$I80 -> 1003.104605 | AB80: =Input!AD30*$I80 -> 1028.18222 | AC80: =Input!AE30*$I80 -> 1053.886775 | AD80: =Input!AF30*$I80 -> 1080.233945 | AE80: =Input!AG30*$I80 -> 1107.239793 | AF80: =Input!AH30*$I80 -> 1134.920788 | AG80: =Input!AI30*$I80 -> 1163.293808 | AH80: =Input!AJ30*$I80 -> 1192.376153 | AI80: =Input!AK30*$I80 -> 1222.185557 | AJ80: =Input!AL30*$I80 -> 1252.740196 | AK80: =Input!AM30*$I80 -> 1284.0587 | AL80: =Input!AN30*$I80 -> 1316.160168 | AM80: =Input!AO30*$I80 -> 1349.064172 | AN80: =Input!AP30*$I80 -> 1382.790777 | AO80: =Input!AQ30*$I80 -> 1417.360546 | AP80: =Input!AR30*$I80 -> 1452.79456 | AQ80: =Input!AS30*$I80 -> 1489.114424 | AR80: =Input!AT30*$I80 -> 1526.342284 | AS80: =Input!AU30*$I80 -> 1564.500841 | AT80: =Input!AV30*$I80 -> 1603.613362 | AU80: =Input!AW30*$I80 -> 0 | AV80: =Input!AX30*$I80 -> 0 | AW80: =Input!AY30*$I80 -> 0 | AX80: =Input!AZ30*$I80 -> 0 | AY80: =Input!BA30*$I80 -> 0 | AZ80: =Input!BB30*$I80 -> 0 | BA80: =Input!BC30*$I80 -> 0 | BB80: =Input!BD30*$I80 -> 0 | BC80: =Input!BE30*$I80 -> 0 | BD80: =Input!BF30*$I80 -> 0 | BE80: =Input!BG30*$I80 -> 0 | BF80: =Input!BH30*$I80 -> 0 | BG80: =Input!BI30*$I80 -> 0 | BH80: =Input!BJ30*$I80 -> 0 | BI80: =Input!BK30*$I80 -> 0 | BJ80: =Input!BL30*$I80 -> 0 | BK80: =Input!BM30*$I80 -> 0 | BL80: =Input!BN30*$I80 -> 0 | BM80: =Input!BO30*$I80 -> 0 | BN80: =Input!BP30*$I80 -> 0
C81: 16 | D81: =Input!D31 -> Dark Fiber Lease | E81: =Input!E31 -> Operating Expense | F81: =MATCH(E81,lookups!$C$100:$C$105,0) -> 2 | H81: =IF(Input!$E31=lookups!$C$100,"Sign Flip"," ... ") -> ... | I81: =IF(Input!$E31=lookups!$C$100,-1,1) -> 1 | K81: 1907.962475 | L81: 5160 | P81: =Input!R31*$I81 -> 0 | Q81: =Input!S31*$I81 -> 172 | R81: =Input!T31*$I81 -> 172 | S81: =Input!U31*$I81 -> 172 | T81: =Input!V31*$I81 -> 172 | U81: =Input!W31*$I81 -> 172 | V81: =Input!X31*$I81 -> 172 | W81: =Input!Y31*$I81 -> 172 | X81: =Input!Z31*$I81 -> 172 | Y81: =Input!AA31*$I81 -> 172 | Z81: =Input!AB31*$I81 -> 172 | AA81: =Input!AC31*$I81 -> 172 | AB81: =Input!AD31*$I81 -> 172 | AC81: =Input!AE31*$I81 -> 172 | AD81: =Input!AF31*$I81 -> 172 | AE81: =Input!AG31*$I81 -> 172 | AF81: =Input!AH31*$I81 -> 172 | AG81: =Input!AI31*$I81 -> 172 | AH81: =Input!AJ31*$I81 -> 172 | AI81: =Input!AK31*$I81 -> 172 | AJ81: =Input!AL31*$I81 -> 172 | AK81: =Input!AM31*$I81 -> 172 | AL81: =Input!AN31*$I81 -> 172 | AM81: =Input!AO31*$I81 -> 172 | AN81: =Input!AP31*$I81 -> 172 | AO81: =Input!AQ31*$I81 -> 172 | AP81: =Input!AR31*$I81 -> 172 | AQ81: =Input!AS31*$I81 -> 172 | AR81: =Input!AT31*$I81 -> 172 | AS81: =Input!AU31*$I81 -> 172 | AT81: =Input!AV31*$I81 -> 172 | AU81: =Input!AW31*$I81 -> 0 | AV81: =Input!AX31*$I81 -> 0 | AW81: =Input!AY31*$I81 -> 0 | AX81: =Input!AZ31*$I81 -> 0 | AY81: =Input!BA31*$I81 -> 0 | AZ81: =Input!BB31*$I81 -> 0 | BA81: =Input!BC31*$I81 -> 0 | BB81: =Input!BD31*$I81 -> 0 | BC81: =Input!BE31*$I81 -> 0 | BD81: =Input!BF31*$I81 -> 0 | BE81: =Input!BG31*$I81 -> 0 | BF81: =Input!BH31*$I81 -> 0 | BG81: =Input!BI31*$I81 -> 0 | BH81: =Input!BJ31*$I81 -> 0 | BI81: =Input!BK31*$I81 -> 0 | BJ81: =Input!BL31*$I81 -> 0 | BK81: =Input!BM31*$I81 -> 0 | BL81: =Input!BN31*$I81 -> 0 | BM81: =Input!BO31*$I81 -> 0 | BN81: =Input!BP31*$I81 -> 0
C82: 17 | D82: =Input!D32 -> OUC PPA Payment - At Market | E82: =Input!E32 -> Operating Expense | F82: =MATCH(E82,lookups!$C$100:$C$105,0) -> 2 | H82: =IF(Input!$E32=lookups!$C$100,"Sign Flip"," ... ") -> ... | I82: =IF(Input!$E32=lookups!$C$100,-1,1) -> 1 | K82: 7033.501999 | L82: 8160 | P82: =Input!R32*$I82 -> 0 | Q82: =Input!S32*$I82 -> 4080 | R82: =Input!T32*$I82 -> 4080 | S82: =Input!U32*$I82 -> 0 | T82: =Input!V32*$I82 -> 0 | U82: =Input!W32*$I82 -> 0 | V82: =Input!X32*$I82 -> 0 | W82: =Input!Y32*$I82 -> 0 | X82: =Input!Z32*$I82 -> 0 | Y82: =Input!AA32*$I82 -> 0 | Z82: =Input!AB32*$I82 -> 0 | AA82: =Input!AC32*$I82 -> 0 | AB82: =Input!AD32*$I82 -> 0 | AC82: =Input!AE32*$I82 -> 0 | AD82: =Input!AF32*$I82 -> 0 | AE82: =Input!AG32*$I82 -> 0 | AF82: =Input!AH32*$I82 -> 0 | AG82: =Input!AI32*$I82 -> 0 | AH82: =Input!AJ32*$I82 -> 0 | AI82: =Input!AK32*$I82 -> 0 | AJ82: =Input!AL32*$I82 -> 0 | AK82: =Input!AM32*$I82 -> 0 | AL82: =Input!AN32*$I82 -> 0 | AM82: =Input!AO32*$I82 -> 0 | AN82: =Input!AP32*$I82 -> 0 | AO82: =Input!AQ32*$I82 -> 0 | AP82: =Input!AR32*$I82 -> 0 | AQ82: =Input!AS32*$I82 -> 0 | AR82: =Input!AT32*$I82 -> 0 | AS82: =Input!AU32*$I82 -> 0 | AT82: =Input!AV32*$I82 -> 0 | AU82: =Input!AW32*$I82 -> 0 | AV82: =Input!AX32*$I82 -> 0 | AW82: =Input!AY32*$I82 -> 0 | AX82: =Input!AZ32*$I82 -> 0 | AY82: =Input!BA32*$I82 -> 0 | AZ82: =Input!BB32*$I82 -> 0 | BA82: =Input!BC32*$I82 -> 0 | BB82: =Input!BD32*$I82 -> 0 | BC82: =Input!BE32*$I82 -> 0 | BD82: =Input!BF32*$I82 -> 0 | BE82: =Input!BG32*$I82 -> 0 | BF82: =Input!BH32*$I82 -> 0 | BG82: =Input!BI32*$I82 -> 0 | BH82: =Input!BJ32*$I82 -> 0 | BI82: =Input!BK32*$I82 -> 0 | BJ82: =Input!BL32*$I82 -> 0 | BK82: =Input!BM32*$I82 -> 0 | BL82: =Input!BN32*$I82 -> 0 | BM82: =Input!BO32*$I82 -> 0 | BN82: =Input!BP32*$I82 -> 0
C83: 18 | D83: =Input!D33 -> Transaction Cost | E83: =Input!E33 -> Operating Expense | F83: =MATCH(E83,lookups!$C$100:$C$105,0) -> 2 | H83: =IF(Input!$E33=lookups!$C$100,"Sign Flip"," ... ") -> ... | I83: =IF(Input!$E33=lookups!$C$100,-1,1) -> 1 | K83: 722.5662317 | L83: 750 | P83: =Input!R33*$I83 -> 750 | Q83: =Input!S33*$I83 -> 0 | R83: =Input!T33*$I83 -> 0 | S83: =Input!U33*$I83 -> 0 | T83: =Input!V33*$I83 -> 0 | U83: =Input!W33*$I83 -> 0 | V83: =Input!X33*$I83 -> 0 | W83: =Input!Y33*$I83 -> 0 | X83: =Input!Z33*$I83 -> 0 | Y83: =Input!AA33*$I83 -> 0 | Z83: =Input!AB33*$I83 -> 0 | AA83: =Input!AC33*$I83 -> 0 | AB83: =Input!AD33*$I83 -> 0 | AC83: =Input!AE33*$I83 -> 0 | AD83: =Input!AF33*$I83 -> 0 | AE83: =Input!AG33*$I83 -> 0 | AF83: =Input!AH33*$I83 -> 0 | AG83: =Input!AI33*$I83 -> 0 | AH83: =Input!AJ33*$I83 -> 0 | AI83: =Input!AK33*$I83 -> 0 | AJ83: =Input!AL33*$I83 -> 0 | AK83: =Input!AM33*$I83 -> 0 | AL83: =Input!AN33*$I83 -> 0 | AM83: =Input!AO33*$I83 -> 0 | AN83: =Input!AP33*$I83 -> 0 | AO83: =Input!AQ33*$I83 -> 0 | AP83: =Input!AR33*$I83 -> 0 | AQ83: =Input!AS33*$I83 -> 0 | AR83: =Input!AT33*$I83 -> 0 | AS83: =Input!AU33*$I83 -> 0 | AT83: =Input!AV33*$I83 -> 0 | AU83: =Input!AW33*$I83 -> 0 | AV83: =Input!AX33*$I83 -> 0 | AW83: =Input!AY33*$I83 -> 0 | AX83: =Input!AZ33*$I83 -> 0 | AY83: =Input!BA33*$I83 -> 0 | AZ83: =Input!BB33*$I83 -> 0 | BA83: =Input!BC33*$I83 -> 0 | BB83: =Input!BD33*$I83 -> 0 | BC83: =Input!BE33*$I83 -> 0 | BD83: =Input!BF33*$I83 -> 0 | BE83: =Input!BG33*$I83 -> 0 | BF83: =Input!BH33*$I83 -> 0 | BG83: =Input!BI33*$I83 -> 0 | BH83: =Input!BJ33*$I83 -> 0 | BI83: =Input!BK33*$I83 -> 0 | BJ83: =Input!BL33*$I83 -> 0 | BK83: =Input!BM33*$I83 -> 0 | BL83: =Input!BN33*$I83 -> 0 | BM83: =Input!BO33*$I83 -> 0 | BN83: =Input!BP33*$I83 -> 0
C84: 19 | D84: =Input!D34 -> System Impact Short Term PPAs | E84: =Input!E34 -> Operating Expense | F84: =MATCH(E84,lookups!$C$100:$C$105,0) -> 2 | H84: =IF(Input!$E34=lookups!$C$100,"Sign Flip"," ... ") -> ... | I84: =IF(Input!$E34=lookups!$C$100,-1,1) -> 1 | K84: 6296.937947 | L84: 10438.78162 | P84: =Input!R34*$I84 -> 0 | Q84: =Input!S34*$I84 -> 2920.05 | R84: =Input!T34*$I84 -> 875.2425 | S84: =Input!U34*$I84 -> 0 | T84: =Input!V34*$I84 -> 0 | U84: =Input!W34*$I84 -> 0 | V84: =Input!X34*$I84 -> 0 | W84: =Input!Y34*$I84 -> 0 | X84: =Input!Z34*$I84 -> 0 | Y84: =Input!AA34*$I84 -> 3542.459194 | Z84: =Input!AB34*$I84 -> 0 | AA84: =Input!AC34*$I84 -> 0 | AB84: =Input!AD34*$I84 -> 3101.029929 | AC84: =Input!AE34*$I84 -> 0 | AD84: =Input!AF34*$I84 -> 0 | AE84: =Input!AG34*$I84 -> 0 | AF84: =Input!AH34*$I84 -> 0 | AG84: =Input!AI34*$I84 -> 0 | AH84: =Input!AJ34*$I84 -> 0 | AI84: =Input!AK34*$I84 -> 0 | AJ84: =Input!AL34*$I84 -> 0 | AK84: =Input!AM34*$I84 -> 0 | AL84: =Input!AN34*$I84 -> 0 | AM84: =Input!AO34*$I84 -> 0 | AN84: =Input!AP34*$I84 -> 0 | AO84: =Input!AQ34*$I84 -> 0 | AP84: =Input!AR34*$I84 -> 0 | AQ84: =Input!AS34*$I84 -> 0 | AR84: =Input!AT34*$I84 -> 0 | AS84: =Input!AU34*$I84 -> 0 | AT84: =Input!AV34*$I84 -> 0 | AU84: =Input!AW34*$I84 -> 0 | AV84: =Input!AX34*$I84 -> 0 | AW84: =Input!AY34*$I84 -> 0 | AX84: =Input!AZ34*$I84 -> 0 | AY84: =Input!BA34*$I84 -> 0 | AZ84: =Input!BB34*$I84 -> 0 | BA84: =Input!BC34*$I84 -> 0 | BB84: =Input!BD34*$I84 -> 0 | BC84: =Input!BE34*$I84 -> 0 | BD84: =Input!BF34*$I84 -> 0 | BE84: =Input!BG34*$I84 -> 0 | BF84: =Input!BH34*$I84 -> 0 | BG84: =Input!BI34*$I84 -> 0 | BH84: =Input!BJ34*$I84 -> 0 | BI84: =Input!BK34*$I84 -> 0 | BJ84: =Input!BL34*$I84 -> 0 | BK84: =Input!BM34*$I84 -> 0 | BL84: =Input!BN34*$I84 -> 0 | BM84: =Input!BO34*$I84 -> 0 | BN84: =Input!BP34*$I84 -> 0
C85: 20 | D85: =Input!D35 -> Customer Service Capital | E85: =Input!E35 -> Capital | F85: =MATCH(E85,lookups!$C$100:$C$105,0) -> 4 | H85: =IF(Input!$E35=lookups!$C$100,"Sign Flip"," ... ") -> ... | I85: =IF(Input!$E35=lookups!$C$100,-1,1) -> 1 | K85: 6835.814718 | L85: 7247.909689 | P85: =Input!R35*$I85 -> 5123.691348 | Q85: =Input!S35*$I85 -> 2124.218341 | R85: =Input!T35*$I85 -> 0 | S85: =Input!U35*$I85 -> 0 | T85: =Input!V35*$I85 -> 0 | U85: =Input!W35*$I85 -> 0 | V85: =Input!X35*$I85 -> 0 | W85: =Input!Y35*$I85 -> 0 | X85: =Input!Z35*$I85 -> 0 | Y85: =Input!AA35*$I85 -> 0 | Z85: =Input!AB35*$I85 -> 0 | AA85: =Input!AC35*$I85 -> 0 | AB85: =Input!AD35*$I85 -> 0 | AC85: =Input!AE35*$I85 -> 0 | AD85: =Input!AF35*$I85 -> 0 | AE85: =Input!AG35*$I85 -> 0 | AF85: =Input!AH35*$I85 -> 0 | AG85: =Input!AI35*$I85 -> 0 | AH85: =Input!AJ35*$I85 -> 0 | AI85: =Input!AK35*$I85 -> 0 | AJ85: =Input!AL35*$I85 -> 0 | AK85: =Input!AM35*$I85 -> 0 | AL85: =Input!AN35*$I85 -> 0 | AM85: =Input!AO35*$I85 -> 0 | AN85: =Input!AP35*$I85 -> 0 | AO85: =Input!AQ35*$I85 -> 0 | AP85: =Input!AR35*$I85 -> 0 | AQ85: =Input!AS35*$I85 -> 0 | AR85: =Input!AT35*$I85 -> 0 | AS85: =Input!AU35*$I85 -> 0 | AT85: =Input!AV35*$I85 -> 0 | AU85: =Input!AW35*$I85 -> 0 | AV85: =Input!AX35*$I85 -> 0 | AW85: =Input!AY35*$I85 -> 0 | AX85: =Input!AZ35*$I85 -> 0 | AY85: =Input!BA35*$I85 -> 0 | AZ85: =Input!BB35*$I85 -> 0 | BA85: =Input!BC35*$I85 -> 0 | BB85: =Input!BD35*$I85 -> 0 | BC85: =Input!BE35*$I85 -> 0 | BD85: =Input!BF35*$I85 -> 0 | BE85: =Input!BG35*$I85 -> 0 | BF85: =Input!BH35*$I85 -> 0 | BG85: =Input!BI35*$I85 -> 0 | BH85: =Input!BJ35*$I85 -> 0 | BI85: =Input!BK35*$I85 -> 0 | BJ85: =Input!BL35*$I85 -> 0 | BK85: =Input!BM35*$I85 -> 0 | BL85: =Input!BN35*$I85 -> 0 | BM85: =Input!BO35*$I85 -> 0 | BN85: =Input!BP35*$I85 -> 0
C86: 21 | D86: =Input!D36 -> Vero Revenue - Fuel Other Clauses | E86: =Input!E36 -> Operating Savings | F86: =MATCH(E86,lookups!$C$100:$C$105,0) -> 1 | H86: =IF(Input!$E36=lookups!$C$100,"Sign Flip"," ... ") -> Sign Flip | I86: =IF(Input!$E36=lookups!$C$100,-1,1) -> -1 | K86: -340992.774 | L86: -1100009.169 | P86: =Input!R36*$I86 -> 0 | Q86: =Input!S36*$I86 -> -24110.91118 | R86: =Input!T36*$I86 -> -24325.83336 | S86: =Input!U36*$I86 -> -24717.41819 | T86: =Input!V36*$I86 -> -24479.59397 | U86: =Input!W36*$I86 -> -25069.27611 | V86: =Input!X36*$I86 -> -25330.02023 | W86: =Input!Y36*$I86 -> -25509.09482 | X86: =Input!Z36*$I86 -> -26393.11091 | Y86: =Input!AA36*$I86 -> -27221.37447 | Z86: =Input!AB36*$I86 -> -28050.02119 | AA86: =Input!AC36*$I86 -> -29044.356 | AB86: =Input!AD36*$I86 -> -30146.494 | AC86: =Input!AE36*$I86 -> -31155.10025 | AD86: =Input!AF36*$I86 -> -32232.92862 | AE86: =Input!AG36*$I86 -> -33254.21835 | AF86: =Input!AH36*$I86 -> -34315.9789 | AG86: =Input!AI36*$I86 -> -35818.77783 | AH86: =Input!AJ36*$I86 -> -38447.25809 | AI86: =Input!AK36*$I86 -> -39964.42517 | AJ86: =Input!AL36*$I86 -> -41291.90487 | AK86: =Input!AM36*$I86 -> -42413.01757 | AL86: =Input!AN36*$I86 -> -43723.74892 | AM86: =Input!AO36*$I86 -> -45137.77681 | AN86: =Input!AP36*$I86 -> -45767.91702 | AO86: =Input!AQ36*$I86 -> -48693.58217 | AP86: =Input!AR36*$I86 -> -50946.10063 | AQ86: =Input!AS36*$I86 -> -52564.04546 | AR86: =Input!AT36*$I86 -> -54521.42933 | AS86: =Input!AU36*$I86 -> -56803.08338 | AT86: =Input!AV36*$I86 -> -58560.37166 | AU86: =Input!AW36*$I86 -> 0 | AV86: =Input!AX36*$I86 -> 0 | AW86: =Input!AY36*$I86 -> 0 | AX86: =Input!AZ36*$I86 -> 0 | AY86: =Input!BA36*$I86 -> 0 | AZ86: =Input!BB36*$I86 -> 0 | BA86: =Input!BC36*$I86 -> 0 | BB86: =Input!BD36*$I86 -> 0 | BC86: =Input!BE36*$I86 -> 0 | BD86: =Input!BF36*$I86 -> 0 | BE86: =Input!BG36*$I86 -> 0 | BF86: =Input!BH36*$I86 -> 0 | BG86: =Input!BI36*$I86 -> 0 | BH86: =Input!BJ36*$I86 -> 0 | BI86: =Input!BK36*$I86 -> 0 | BJ86: =Input!BL36*$I86 -> 0 | BK86: =Input!BM36*$I86 -> 0 | BL86: =Input!BN36*$I86 -> 0 | BM86: =Input!BO36*$I86 -> 0 | BN86: =Input!BP36*$I86 -> 0
C87: 22 | D87: =Input!D37 -> Vero Revenue - Base Rates | E87: =Input!E37 -> Operating Savings | F87: =MATCH(E87,lookups!$C$100:$C$105,0) -> 1 | H87: =IF(Input!$E37=lookups!$C$100,"Sign Flip"," ... ") -> Sign Flip | I87: =IF(Input!$E37=lookups!$C$100,-1,1) -> -1 | K87: -648838.9718 | L87: -1984594.234 | P87: =Input!R37*$I87 -> 0 | Q87: =Input!S37*$I87 -> -43166.57906 | R87: =Input!T37*$I87 -> -44239.10127 | S87: =Input!U37*$I87 -> -44557.86806 | T87: =Input!V37*$I87 -> -49521.99921 | U87: =Input!W37*$I87 -> -53379.33776 | V87: =Input!X37*$I87 -> -54393.39733 | W87: =Input!Y37*$I87 -> -55397.90657 | X87: =Input!Z37*$I87 -> -56405.34673 | Y87: =Input!AA37*$I87 -> -57414.6021 | Z87: =Input!AB37*$I87 -> -59034.87671 | AA87: =Input!AC37*$I87 -> -60243.49797 | AB87: =Input!AD37*$I87 -> -61067.19789 | AC87: =Input!AE37*$I87 -> -62058.51976 | AD87: =Input!AF37*$I87 -> -63451.96509 | AE87: =Input!AG37*$I87 -> -65007.10988 | AF87: =Input!AH37*$I87 -> -66617.08947 | AG87: =Input!AI37*$I87 -> -67662.1304 | AH87: =Input!AJ37*$I87 -> -69563.6618 | AI87: =Input!AK37*$I87 -> -71452.715 | AJ87: =Input!AL37*$I87 -> -72781.26539 | AK87: =Input!AM37*$I87 -> -74001.95099 | AL87: =Input!AN37*$I87 -> -75736.32388 | AM87: =Input!AO37*$I87 -> -76876.7217 | AN87: =Input!AP37*$I87 -> -78367.25416 | AO87: =Input!AQ37*$I87 -> -79963.93173 | AP87: =Input!AR37*$I87 -> -81899.44238 | AQ87: =Input!AS37*$I87 -> -82989.0505 | AR87: =Input!AT37*$I87 -> -84502.14558 | AS87: =Input!AU37*$I87 -> -85626.52498 | AT87: =Input!AV37*$I87 -> -87214.72039 | AU87: =Input!AW37*$I87 -> 0 | AV87: =Input!AX37*$I87 -> 0 | AW87: =Input!AY37*$I87 -> 0 | AX87: =Input!AZ37*$I87 -> 0 | AY87: =Input!BA37*$I87 -> 0 | AZ87: =Input!BB37*$I87 -> 0 | BA87: =Input!BC37*$I87 -> 0 | BB87: =Input!BD37*$I87 -> 0 | BC87: =Input!BE37*$I87 -> 0 | BD87: =Input!BF37*$I87 -> 0 | BE87: =Input!BG37*$I87 -> 0 | BF87: =Input!BH37*$I87 -> 0 | BG87: =Input!BI37*$I87 -> 0 | BH87: =Input!BJ37*$I87 -> 0 | BI87: =Input!BK37*$I87 -> 0 | BJ87: =Input!BL37*$I87 -> 0 | BK87: =Input!BM37*$I87 -> 0 | BL87: =Input!BN37*$I87 -> 0 | BM87: =Input!BO37*$I87 -> 0 | BN87: =Input!BP37*$I87 -> 0
C88: 23 | D88: =Input!D38 -> System Impact Fixed Cost | E88: =Input!E38 -> Operating Expense | F88: =MATCH(E88,lookups!$C$100:$C$105,0) -> 2 | H88: =IF(Input!$E38=lookups!$C$100,"Sign Flip"," ... ") -> ... | I88: =IF(Input!$E38=lookups!$C$100,-1,1) -> 1 | K88: 83118.90092 | L88: 399532.3655 | P88: =Input!R38*$I88 -> 0 | Q88: =Input!S38*$I88 -> 0 | R88: =Input!T38*$I88 -> 0 | S88: =Input!U38*$I88 -> 0 | T88: =Input!V38*$I88 -> 0 | U88: =Input!W38*$I88 -> 0 | V88: =Input!X38*$I88 -> 0 | W88: =Input!Y38*$I88 -> 0 | X88: =Input!Z38*$I88 -> 0 | Y88: =Input!AA38*$I88 -> 0 | Z88: =Input!AB38*$I88 -> 0 | AA88: =Input!AC38*$I88 -> 0 | AB88: =Input!AD38*$I88 -> 0 | AC88: =Input!AE38*$I88 -> 15073.40616 | AD88: =Input!AF38*$I88 -> 23246.24107 | AE88: =Input!AG38*$I88 -> 24297.94611 | AF88: =Input!AH38*$I88 -> 23305.26752 | AG88: =Input!AI38*$I88 -> 23407.34309 | AH88: =Input!AJ38*$I88 -> 23102.93266 | AI88: =Input!AK38*$I88 -> 23523.44927 | AJ88: =Input!AL38*$I88 -> 22462.90806 | AK88: =Input!AM38*$I88 -> 24261.9619 | AL88: =Input!AN38*$I88 -> 24429.68949 | AM88: =Input!AO38*$I88 -> 24883.79809 | AN88: =Input!AP38*$I88 -> 22059.90047 | AO88: =Input!AQ38*$I88 -> 22576.81604 | AP88: =Input!AR38*$I88 -> 21262.72379 | AQ88: =Input!AS38*$I88 -> 20865.11058 | AR88: =Input!AT38*$I88 -> 20491.74031 | AS88: =Input!AU38*$I88 -> 21534.45214 | AT88: =Input!AV38*$I88 -> 18746.67878 | AU88: =Input!AW38*$I88 -> 0 | AV88: =Input!AX38*$I88 -> 0 | AW88: =Input!AY38*$I88 -> 0 | AX88: =Input!AZ38*$I88 -> 0 | AY88: =Input!BA38*$I88 -> 0 | AZ88: =Input!BB38*$I88 -> 0 | BA88: =Input!BC38*$I88 -> 0 | BB88: =Input!BD38*$I88 -> 0 | BC88: =Input!BE38*$I88 -> 0 | BD88: =Input!BF38*$I88 -> 0 | BE88: =Input!BG38*$I88 -> 0 | BF88: =Input!BH38*$I88 -> 0 | BG88: =Input!BI38*$I88 -> 0 | BH88: =Input!BJ38*$I88 -> 0 | BI88: =Input!BK38*$I88 -> 0 | BJ88: =Input!BL38*$I88 -> 0 | BK88: =Input!BM38*$I88 -> 0 | BL88: =Input!BN38*$I88 -> 0 | BM88: =Input!BO38*$I88 -> 0 | BN88: =Input!BP38*$I88 -> 0
C89: 24 | D89: =Input!D39 -> System Impact VOM, Emissions | E89: =Input!E39 -> Operating Expense | F89: =MATCH(E89,lookups!$C$100:$C$105,0) -> 2 | H89: =IF(Input!$E39=lookups!$C$100,"Sign Flip"," ... ") -> ... | I89: =IF(Input!$E39=lookups!$C$100,-1,1) -> 1 | K89: 25423.5086 | L89: 144720 | P89: =Input!R39*$I89 -> 0 | Q89: =Input!S39*$I89 -> 260 | R89: =Input!T39*$I89 -> 240 | S89: =Input!U39*$I89 -> 270 | T89: =Input!V39*$I89 -> -220 | U89: =Input!W39*$I89 -> 520 | V89: =Input!X39*$I89 -> -470 | W89: =Input!Y39*$I89 -> -320 | X89: =Input!Z39*$I89 -> -50 | Y89: =Input!AA39*$I89 -> 370 | Z89: =Input!AB39*$I89 -> 70 | AA89: =Input!AC39*$I89 -> 2460 | AB89: =Input!AD39*$I89 -> 390 | AC89: =Input!AE39*$I89 -> 2160 | AD89: =Input!AF39*$I89 -> 3260 | AE89: =Input!AG39*$I89 -> 1590 | AF89: =Input!AH39*$I89 -> 5530 | AG89: =Input!AI39*$I89 -> 5580 | AH89: =Input!AJ39*$I89 -> 4050 | AI89: =Input!AK39*$I89 -> 4990 | AJ89: =Input!AL39*$I89 -> 4350 | AK89: =Input!AM39*$I89 -> 7710 | AL89: =Input!AN39*$I89 -> 7180 | AM89: =Input!AO39*$I89 -> 9960 | AN89: =Input!AP39*$I89 -> 5940 | AO89: =Input!AQ39*$I89 -> 6830 | AP89: =Input!AR39*$I89 -> 13050 | AQ89: =Input!AS39*$I89 -> 10720 | AR89: =Input!AT39*$I89 -> 15010 | AS89: =Input!AU39*$I89 -> 18040 | AT89: =Input!AV39*$I89 -> 15250 | AU89: =Input!AW39*$I89 -> 0 | AV89: =Input!AX39*$I89 -> 0 | AW89: =Input!AY39*$I89 -> 0 | AX89: =Input!AZ39*$I89 -> 0 | AY89: =Input!BA39*$I89 -> 0 | AZ89: =Input!BB39*$I89 -> 0 | BA89: =Input!BC39*$I89 -> 0 | BB89: =Input!BD39*$I89 -> 0 | BC89: =Input!BE39*$I89 -> 0 | BD89: =Input!BF39*$I89 -> 0 | BE89: =Input!BG39*$I89 -> 0 | BF89: =Input!BH39*$I89 -> 0 | BG89: =Input!BI39*$I89 -> 0 | BH89: =Input!BJ39*$I89 -> 0 | BI89: =Input!BK39*$I89 -> 0 | BJ89: =Input!BL39*$I89 -> 0 | BK89: =Input!BM39*$I89 -> 0 | BL89: =Input!BN39*$I89 -> 0 | BM89: =Input!BO39*$I89 -> 0 | BN89: =Input!BP39*$I89 -> 0
C90: 25 | D90: =Input!D40 -> System Impact Fuel | E90: =Input!E40 -> Operating Expense | F90: =MATCH(E90,lookups!$C$100:$C$105,0) -> 2 | H90: =IF(Input!$E40=lookups!$C$100,"Sign Flip"," ... ") -> ... | I90: =IF(Input!$E40=lookups!$C$100,-1,1) -> 1 | K90: 288722.2235 | L90: 923290 | P90: =Input!R40*$I90 -> 0 | Q90: =Input!S40*$I90 -> 20470 | R90: =Input!T40*$I90 -> 15710 | S90: =Input!U40*$I90 -> 17950 | T90: =Input!V40*$I90 -> 17960 | U90: =Input!W40*$I90 -> 21500 | V90: =Input!X40*$I90 -> 21490 | W90: =Input!Y40*$I90 -> 23490 | X90: =Input!Z40*$I90 -> 24830 | Y90: =Input!AA40*$I90 -> 25650 | Z90: =Input!AB40*$I90 -> 26480 | AA90: =Input!AC40*$I90 -> 26990 | AB90: =Input!AD40*$I90 -> 30670 | AC90: =Input!AE40*$I90 -> 29070 | AD90: =Input!AF40*$I90 -> 29260 | AE90: =Input!AG40*$I90 -> 30030 | AF90: =Input!AH40*$I90 -> 29240 | AG90: =Input!AI40*$I90 -> 31640 | AH90: =Input!AJ40*$I90 -> 34150 | AI90: =Input!AK40*$I90 -> 35320 | AJ90: =Input!AL40*$I90 -> 34600 | AK90: =Input!AM40*$I90 -> 33970 | AL90: =Input!AN40*$I90 -> 36850 | AM90: =Input!AO40*$I90 -> 36590 | AN90: =Input!AP40*$I90 -> 40050 | AO90: =Input!AQ40*$I90 -> 40390 | AP90: =Input!AR40*$I90 -> 40020 | AQ90: =Input!AS40*$I90 -> 42940 | AR90: =Input!AT40*$I90 -> 41660 | AS90: =Input!AU40*$I90 -> 42210 | AT90: =Input!AV40*$I90 -> 42110 | AU90: =Input!AW40*$I90 -> 0 | AV90: =Input!AX40*$I90 -> 0 | AW90: =Input!AY40*$I90 -> 0 | AX90: =Input!AZ40*$I90 -> 0 | AY90: =Input!BA40*$I90 -> 0 | AZ90: =Input!BB40*$I90 -> 0 | BA90: =Input!BC40*$I90 -> 0 | BB90: =Input!BD40*$I90 -> 0 | BC90: =Input!BE40*$I90 -> 0 | BD90: =Input!BF40*$I90 -> 0 | BE90: =Input!BG40*$I90 -> 0 | BF90: =Input!BH40*$I90 -> 0 | BG90: =Input!BI40*$I90 -> 0 | BH90: =Input!BJ40*$I90 -> 0 | BI90: =Input!BK40*$I90 -> 0 | BJ90: =Input!BL40*$I90 -> 0 | BK90: =Input!BM40*$I90 -> 0 | BL90: =Input!BN40*$I90 -> 0 | BM90: =Input!BO40*$I90 -> 0 | BN90: =Input!BP40*$I90 -> 0
D91: ="Total "&D65 -> Total Cash Flow, Unescalated | K91: -211694.5819 | L91: -869585.7583 | P91: =SUM(P66:P90) -> 9516.463893 | Q91: =SUM(Q66:Q90) -> 155364.5941 | R91: =SUM(R66:R90) -> -18226.51504 | S91: -34697.7215 | T91: -40665.23311 | U91: -37132.22923 | V91: -44813.35123 | W91: -43266.27825 | X91: -42327.11257 | Y91: -39021.81755 | Z91: -44777.18351 | AA91: -43621.19043 | AB91: -40363.24158 | AC91: -29733.80543 | AD91: -22240.58819 | AE91: -24148.5433 | AF91: -24130.60478 | AG91: -23577.94995 | AH91: -26867.39705 | AI91: -27161.06037 | AJ91: -31638.00051 | AK91: -28832.98112 | AL91: -35104.71269 | AM91: -34220.73058 | AN91: -39246.88177 | AO91: -41529.32905 | AP91: -40673.4547 | AQ91: -42665.13974 | AR91: -42959.53777 | AS91: -41186.93801 | AT91: -49637.28727 | AU91: 0 | AV91: 0 | AW91: 0 | AX91: 0 | AY91: 0 | AZ91: 0 | BA91: 0 | BB91: 0 | BC91: 0 | BD91: 0 | BE91: 0 | BF91: 0 | BG91: 0 | BH91: 0 | BI91: 0 | BJ91: 0 | BK91: 0 | BL91: 0 | BM91: 0 | BN91: 0
D94: Escalation Factors | H94: Inflation | I94: Base Year
C95: =C94+1 -> 1 | D95: =INDEX(D$66:D$90,$C95,1) -> Acquired Inventory | E95: =INDEX(E$66:E$90,$C95,1) -> Capital | F95: 4 | H95: =Input!K16 -> 0 | I95: =Assumptions!$D$16 -> 2018 | P95: =IF(ISNUMBER($H95),(1+$H95)^(P$11-$I95),INDEX(lookups!$F$79:$BU$90,MATCH($H95,lookups!$C$79:$C$90,0),MATCH(P$11,lookups!$F$78:$BU$78,0))/INDEX(lookups!$F$79:$BU$90,MATCH($H95,lookups!$C$79:$C$90,0),MATCH($I95,lookups!$F$78:$BU$78,0))) -> 1 | Q95: =IF(ISNUMBER($H95),(1+$H95)^(Q$11-$I95),INDEX(lookups!$F$79:$BU$90,MATCH($H95,lookups!$C$79:$C$90,0),MATCH(Q$11,lookups!$F$78:$BU$78,0))/INDEX(lookups!$F$79:$BU$90,MATCH($H95,lookups!$C$79:$C$90,0),MATCH($I95,lookups!$F$78:$BU$78,0))) -> 1 | R95: =IF(ISNUMBER($H95),(1+$H95)^(R$11-$I95),INDEX(lookups!$F$79:$BU$90,MATCH($H95,lookups!$C$79:$C$90,0),MATCH(R$11,lookups!$F$78:$BU$78,0))/INDEX(lookups!$F$79:$BU$90,MATCH($H95,lookups!$C$79:$C$90,0),MATCH($I95,lookups!$F$78:$BU$78,0))) -> 1 | S95: =IF(ISNUMBER($H95),(1+$H95)^(S$11-$I95),INDEX(lookups!$F$79:$BU$90,MATCH($H95,lookups!$C$79:$C$90,0),MATCH(S$11,lookups!$F$78:$BU$78,0))/INDEX(lookups!$F$79:$BU$90,MATCH($H95,lookups!$C$79:$C$90,0),MATCH($I95,lookups!$F$78:$BU$78,0))) -> 1 | T95: =IF(ISNUMBER($H95),(1+$H95)^(T$11-$I95),INDEX(lookups!$F$79:$BU$90,MATCH($H95,lookups!$C$79:$C$90,0),MATCH(T$11,lookups!$F$78:$BU$78,0))/INDEX(lookups!$F$79:$BU$90,MATCH($H95,lookups!$C$79:$C$90,0),MATCH($I95,lookups!$F$78:$BU$78,0))) -> 1 | U95: =IF(ISNUMBER($H95),(1+$H95)^(U$11-$I95),INDEX(lookups!$F$79:$BU$90,MATCH($H95,lookups!$C$79:$C$90,0),MATCH(U$11,lookups!$F$78:$BU$78,0))/INDEX(lookups!$F$79:$BU$90,MATCH($H95,lookups!$C$79:$C$90,0),MATCH($I95,lookups!$F$78:$BU$78,0))) -> 1 | V95: =IF(ISNUMBER($H95),(1+$H95)^(V$11-$I95),INDEX(lookups!$F$79:$BU$90,MATCH($H95,lookups!$C$79:$C$90,0),MATCH(V$11,lookups!$F$78:$BU$78,0))/INDEX(lookups!$F$79:$BU$90,MATCH($H95,lookups!$C$79:$C$90,0),MATCH($I95,lookups!$F$78:$BU$78,0))) -> 1 | W95: =IF(ISNUMBER($H95),(1+$H95)^(W$11-$I95),INDEX(lookups!$F$79:$BU$90,MATCH($H95,lookups!$C$79:$C$90,0),MATCH(W$11,lookups!$F$78:$BU$78,0))/INDEX(lookups!$F$79:$BU$90,MATCH($H95,lookups!$C$79:$C$90,0),MATCH($I95,lookups!$F$78:$BU$78,0))) -> 1 | X95: =IF(ISNUMBER($H95),(1+$H95)^(X$11-$I95),INDEX(lookups!$F$79:$BU$90,MATCH($H95,lookups!$C$79:$C$90,0),MATCH(X$11,lookups!$F$78:$BU$78,0))/INDEX(lookups!$F$79:$BU$90,MATCH($H95,lookups!$C$79:$C$90,0),MATCH($I95,lookups!$F$78:$BU$78,0))) -> 1 | Y95: =IF(ISNUMBER($H95),(1+$H95)^(Y$11-$I95),INDEX(lookups!$F$79:$BU$90,MATCH($H95,lookups!$C$79:$C$90,0),MATCH(Y$11,lookups!$F$78:$BU$78,0))/INDEX(lookups!$F$79:$BU$90,MATCH($H95,lookups!$C$79:$C$90,0),MATCH($I95,lookups!$F$78:$BU$78,0))) -> 1 | Z95: =IF(ISNUMBER($H95),(1+$H95)^(Z$11-$I95),INDEX(lookups!$F$79:$BU$90,MATCH($H95,lookups!$C$79:$C$90,0),MATCH(Z$11,lookups!$F$78:$BU$78,0))/INDEX(lookups!$F$79:$BU$90,MATCH($H95,lookups!$C$79:$C$90,0),MATCH($I95,lookups!$F$78:$BU$78,0))) -> 1 | AA95: =IF(ISNUMBER($H95),(1+$H95)^(AA$11-$I95),INDEX(lookups!$F$79:$BU$90,MATCH($H95,lookups!$C$79:$C$90,0),MATCH(AA$11,lookups!$F$78:$BU$78,0))/INDEX(lookups!$F$79:$BU$90,MATCH($H95,lookups!$C$79:$C$90,0),MATCH($I95,lookups!$F$78:$BU$78,0))) -> 1 | AB95: =IF(ISNUMBER($H95),(1+$H95)^(AB$11-$I95),INDEX(lookups!$F$79:$BU$90,MATCH($H95,lookups!$C$79:$C$90,0),MATCH(AB$11,lookups!$F$78:$BU$78,0))/INDEX(lookups!$F$79:$BU$90,MATCH($H95,lookups!$C$79:$C$90,0),MATCH($I95,lookups!$F$78:$BU$78,0))) -> 1 | AC95: =IF(ISNUMBER($H95),(1+$H95)^(AC$11-$I95),INDEX(lookups!$F$79:$BU$90,MATCH($H95,lookups!$C$79:$C$90,0),MATCH(AC$11,lookups!$F$78:$BU$78,0))/INDEX(lookups!$F$79:$BU$90,MATCH($H95,lookups!$C$79:$C$90,0),MATCH($I95,lookups!$F$78:$BU$78,0))) -> 1 | AD95: =IF(ISNUMBER($H95),(1+$H95)^(AD$11-$I95),INDEX(lookups!$F$79:$BU$90,MATCH($H95,lookups!$C$79:$C$90,0),MATCH(AD$11,lookups!$F$78:$BU$78,0))/INDEX(lookups!$F$79:$BU$90,MATCH($H95,lookups!$C$79:$C$90,0),MATCH($I95,lookups!$F$78:$BU$78,0))) -> 1 | AE95: =IF(ISNUMBER($H95),(1+$H95)^(AE$11-$I95),INDEX(lookups!$F$79:$BU$90,MATCH($H95,lookups!$C$79:$C$90,0),MATCH(AE$11,lookups!$F$78:$BU$78,0))/INDEX(lookups!$F$79:$BU$90,MATCH($H95,lookups!$C$79:$C$90,0),MATCH($I95,lookups!$F$78:$BU$78,0))) -> 1 | AF95: =IF(ISNUMBER($H95),(1+$H95)^(AF$11-$I95),INDEX(lookups!$F$79:$BU$90,MATCH($H95,lookups!$C$79:$C$90,0),MATCH(AF$11,lookups!$F$78:$BU$78,0))/INDEX(lookups!$F$79:$BU$90,MATCH($H95,lookups!$C$79:$C$90,0),MATCH($I95,lookups!$F$78:$BU$78,0))) -> 1 | AG95: =IF(ISNUMBER($H95),(1+$H95)^(AG$11-$I95),INDEX(lookups!$F$79:$BU$90,MATCH($H95,lookups!$C$79:$C$90,0),MATCH(AG$11,lookups!$F$78:$BU$78,0))/INDEX(lookups!$F$79:$BU$90,MATCH($H95,lookups!$C$79:$C$90,0),MATCH($I95,lookups!$F$78:$BU$78,0))) -> 1 | AH95: =IF(ISNUMBER($H95),(1+$H95)^(AH$11-$I95),INDEX(lookups!$F$79:$BU$90,MATCH($H95,lookups!$C$79:$C$90,0),MATCH(AH$11,lookups!$F$78:$BU$78,0))/INDEX(lookups!$F$79:$BU$90,MATCH($H95,lookups!$C$79:$C$90,0),MATCH($I95,lookups!$F$78:$BU$78,0))) -> 1 | AI95: =IF(ISNUMBER($H95),(1+$H95)^(AI$11-$I95),INDEX(lookups!$F$79:$BU$90,MATCH($H95,lookups!$C$79:$C$90,0),MATCH(AI$11,lookups!$F$78:$BU$78,0))/INDEX(lookups!$F$79:$BU$90,MATCH($H95,lookups!$C$79:$C$90,0),MATCH($I95,lookups!$F$78:$BU$78,0))) -> 1 | AJ95: =IF(ISNUMBER($H95),(1+$H95)^(AJ$11-$I95),INDEX(lookups!$F$79:$BU$90,MATCH($H95,lookups!$C$79:$C$90,0),MATCH(AJ$11,lookups!$F$78:$BU$78,0))/INDEX(lookups!$F$79:$BU$90,MATCH($H95,lookups!$C$79:$C$90,0),MATCH($I95,lookups!$F$78:$BU$78,0))) -> 1 | AK95: =IF(ISNUMBER($H95),(1+$H95)^(AK$11-$I95),INDEX(lookups!$F$79:$BU$90,MATCH($H95,lookups!$C$79:$C$90,0),MATCH(AK$11,lookups!$F$78:$BU$78,0))/INDEX(lookups!$F$79:$BU$90,MATCH($H95,lookups!$C$79:$C$90,0),MATCH($I95,lookups!$F$78:$BU$78,0))) -> 1 | AL95: =IF(ISNUMBER($H95),(1+$H95)^(AL$11-$I95),INDEX(lookups!$F$79:$BU$90,MATCH($H95,lookups!$C$79:$C$90,0),MATCH(AL$11,lookups!$F$78:$BU$78,0))/INDEX(lookups!$F$79:$BU$90,MATCH($H95,lookups!$C$79:$C$90,0),MATCH($I95,lookups!$F$78:$BU$78,0))) -> 1 | AM95: =IF(ISNUMBER($H95),(1+$H95)^(AM$11-$I95),INDEX(lookups!$F$79:$BU$90,MATCH($H95,lookups!$C$79:$C$90,0),MATCH(AM$11,lookups!$F$78:$BU$78,0))/INDEX(lookups!$F$79:$BU$90,MATCH($H95,lookups!$C$79:$C$90,0),MATCH($I95,lookups!$F$78:$BU$78,0))) -> 1 | AN95: =IF(ISNUMBER($H95),(1+$H95)^(AN$11-$I95),INDEX(lookups!$F$79:$BU$90,MATCH($H95,lookups!$C$79:$C$90,0),MATCH(AN$11,lookups!$F$78:$BU$78,0))/INDEX(lookups!$F$79:$BU$90,MATCH($H95,lookups!$C$79:$C$90,0),MATCH($I95,lookups!$F$78:$BU$78,0))) -> 1 | AO95: =IF(ISNUMBER($H95),(1+$H95)^(AO$11-$I95),INDEX(lookups!$F$79:$BU$90,MATCH($H95,lookups!$C$79:$C$90,0),MATCH(AO$11,lookups!$F$78:$BU$78,0))/INDEX(lookups!$F$79:$BU$90,MATCH($H95,lookups!$C$79:$C$90,0),MATCH($I95,lookups!$F$78:$BU$78,0))) -> 1 | AP95: =IF(ISNUMBER($H95),(1+$H95)^(AP$11-$I95),INDEX(lookups!$F$79:$BU$90,MATCH($H95,lookups!$C$79:$C$90,0),MATCH(AP$11,lookups!$F$78:$BU$78,0))/INDEX(lookups!$F$79:$BU$90,MATCH($H95,lookups!$C$79:$C$90,0),MATCH($I95,lookups!$F$78:$BU$78,0))) -> 1 | AQ95: =IF(ISNUMBER($H95),(1+$H95)^(AQ$11-$I95),INDEX(lookups!$F$79:$BU$90,MATCH($H95,lookups!$C$79:$C$90,0),MATCH(AQ$11,lookups!$F$78:$BU$78,0))/INDEX(lookups!$F$79:$BU$90,MATCH($H95,lookups!$C$79:$C$90,0),MATCH($I95,lookups!$F$78:$BU$78,0))) -> 1 | AR95: =IF(ISNUMBER($H95),(1+$H95)^(AR$11-$I95),INDEX(lookups!$F$79:$BU$90,MATCH($H95,lookups!$C$79:$C$90,0),MATCH(AR$11,lookups!$F$78:$BU$78,0))/INDEX(lookups!$F$79:$BU$90,MATCH($H95,lookups!$C$79:$C$90,0),MATCH($I95,lookups!$F$78:$BU$78,0))) -> 1 | AS95: =IF(ISNUMBER($H95),(1+$H95)^(AS$11-$I95),INDEX(lookups!$F$79:$BU$90,MATCH($H95,lookups!$C$79:$C$90,0),MATCH(AS$11,lookups!$F$78:$BU$78,0))/INDEX(lookups!$F$79:$BU$90,MATCH($H95,lookups!$C$79:$C$90,0),MATCH($I95,lookups!$F$78:$BU$78,0))) -> 1 | AT95: =IF(ISNUMBER($H95),(1+$H95)^(AT$11-$I95),INDEX(lookups!$F$79:$BU$90,MATCH($H95,lookups!$C$79:$C$90,0),MATCH(AT$11,lookups!$F$78:$BU$78,0))/INDEX(lookups!$F$79:$BU$90,MATCH($H95,lookups!$C$79:$C$90,0),MATCH($I95,lookups!$F$78:$BU$78,0))) -> 1 | AU95: =IF(ISNUMBER($H95),(1+$H95)^(AU$11-$I95),INDEX(lookups!$F$79:$BU$90,MATCH($H95,lookups!$C$79:$C$90,0),MATCH(AU$11,lookups!$F$78:$BU$78,0))/INDEX(lookups!$F$79:$BU$90,MATCH($H95,lookups!$C$79:$C$90,0),MATCH($I95,lookups!$F$78:$BU$78,0))) -> 1 | AV95: =IF(ISNUMBER($H95),(1+$H95)^(AV$11-$I95),INDEX(lookups!$F$79:$BU$90,MATCH($H95,lookups!$C$79:$C$90,0),MATCH(AV$11,lookups!$F$78:$BU$78,0))/INDEX(lookups!$F$79:$BU$90,MATCH($H95,lookups!$C$79:$C$90,0),MATCH($I95,lookups!$F$78:$BU$78,0))) -> 1 | AW95: =IF(ISNUMBER($H95),(1+$H95)^(AW$11-$I95),INDEX(lookups!$F$79:$BU$90,MATCH($H95,lookups!$C$79:$C$90,0),MATCH(AW$11,lookups!$F$78:$BU$78,0))/INDEX(lookups!$F$79:$BU$90,MATCH($H95,lookups!$C$79:$C$90,0),MATCH($I95,lookups!$F$78:$BU$78,0))) -> 1 | AX95: =IF(ISNUMBER($H95),(1+$H95)^(AX$11-$I95),INDEX(lookups!$F$79:$BU$90,MATCH($H95,lookups!$C$79:$C$90,0),MATCH(AX$11,lookups!$F$78:$BU$78,0))/INDEX(lookups!$F$79:$BU$90,MATCH($H95,lookups!$C$79:$C$90,0),MATCH($I95,lookups!$F$78:$BU$78,0))) -> 1 | AY95: =IF(ISNUMBER($H95),(1+$H95)^(AY$11-$I95),INDEX(lookups!$F$79:$BU$90,MATCH($H95,lookups!$C$79:$C$90,0),MATCH(AY$11,lookups!$F$78:$BU$78,0))/INDEX(lookups!$F$79:$BU$90,MATCH($H95,lookups!$C$79:$C$90,0),MATCH($I95,lookups!$F$78:$BU$78,0))) -> 1 | AZ95: =IF(ISNUMBER($H95),(1+$H95)^(AZ$11-$I95),INDEX(lookups!$F$79:$BU$90,MATCH($H95,lookups!$C$79:$C$90,0),MATCH(AZ$11,lookups!$F$78:$BU$78,0))/INDEX(lookups!$F$79:$BU$90,MATCH($H95,lookups!$C$79:$C$90,0),MATCH($I95,lookups!$F$78:$BU$78,0))) -> 1 | BA95: =IF(ISNUMBER($H95),(1+$H95)^(BA$11-$I95),INDEX(lookups!$F$79:$BU$90,MATCH($H95,lookups!$C$79:$C$90,0),MATCH(BA$11,lookups!$F$78:$BU$78,0))/INDEX(lookups!$F$79:$BU$90,MATCH($H95,lookups!$C$79:$C$90,0),MATCH($I95,lookups!$F$78:$BU$78,0))) -> 1 | BB95: =IF(ISNUMBER($H95),(1+$H95)^(BB$11-$I95),INDEX(lookups!$F$79:$BU$90,MATCH($H95,lookups!$C$79:$C$90,0),MATCH(BB$11,lookups!$F$78:$BU$78,0))/INDEX(lookups!$F$79:$BU$90,MATCH($H95,lookups!$C$79:$C$90,0),MATCH($I95,lookups!$F$78:$BU$78,0))) -> 1 | BC95: =IF(ISNUMBER($H95),(1+$H95)^(BC$11-$I95),INDEX(lookups!$F$79:$BU$90,MATCH($H95,lookups!$C$79:$C$90,0),MATCH(BC$11,lookups!$F$78:$BU$78,0))/INDEX(lookups!$F$79:$BU$90,MATCH($H95,lookups!$C$79:$C$90,0),MATCH($I95,lookups!$F$78:$BU$78,0))) -> 1 | BD95: =IF(ISNUMBER($H95),(1+$H95)^(BD$11-$I95),INDEX(lookups!$F$79:$BU$90,MATCH($H95,lookups!$C$79:$C$90,0),MATCH(BD$11,lookups!$F$78:$BU$78,0))/INDEX(lookups!$F$79:$BU$90,MATCH($H95,lookups!$C$79:$C$90,0),MATCH($I95,lookups!$F$78:$BU$78,0))) -> 1 | BE95: =IF(ISNUMBER($H95),(1+$H95)^(BE$11-$I95),INDEX(lookups!$F$79:$BU$90,MATCH($H95,lookups!$C$79:$C$90,0),MATCH(BE$11,lookups!$F$78:$BU$78,0))/INDEX(lookups!$F$79:$BU$90,MATCH($H95,lookups!$C$79:$C$90,0),MATCH($I95,lookups!$F$78:$BU$78,0))) -> 1 | BF95: =IF(ISNUMBER($H95),(1+$H95)^(BF$11-$I95),INDEX(lookups!$F$79:$BU$90,MATCH($H95,lookups!$C$79:$C$90,0),MATCH(BF$11,lookups!$F$78:$BU$78,0))/INDEX(lookups!$F$79:$BU$90,MATCH($H95,lookups!$C$79:$C$90,0),MATCH($I95,lookups!$F$78:$BU$78,0))) -> 1 | BG95: =IF(ISNUMBER($H95),(1+$H95)^(BG$11-$I95),INDEX(lookups!$F$79:$BU$90,MATCH($H95,lookups!$C$79:$C$90,0),MATCH(BG$11,lookups!$F$78:$BU$78,0))/INDEX(lookups!$F$79:$BU$90,MATCH($H95,lookups!$C$79:$C$90,0),MATCH($I95,lookups!$F$78:$BU$78,0))) -> 1 | BH95: =IF(ISNUMBER($H95),(1+$H95)^(BH$11-$I95),INDEX(lookups!$F$79:$BU$90,MATCH($H95,lookups!$C$79:$C$90,0),MATCH(BH$11,lookups!$F$78:$BU$78,0))/INDEX(lookups!$F$79:$BU$90,MATCH($H95,lookups!$C$79:$C$90,0),MATCH($I95,lookups!$F$78:$BU$78,0))) -> 1 | BI95: =IF(ISNUMBER($H95),(1+$H95)^(BI$11-$I95),INDEX(lookups!$F$79:$BU$90,MATCH($H95,lookups!$C$79:$C$90,0),MATCH(BI$11,lookups!$F$78:$BU$78,0))/INDEX(lookups!$F$79:$BU$90,MATCH($H95,lookups!$C$79:$C$90,0),MATCH($I95,lookups!$F$78:$BU$78,0))) -> 1 | BJ95: =IF(ISNUMBER($H95),(1+$H95)^(BJ$11-$I95),INDEX(lookups!$F$79:$BU$90,MATCH($H95,lookups!$C$79:$C$90,0),MATCH(BJ$11,lookups!$F$78:$BU$78,0))/INDEX(lookups!$F$79:$BU$90,MATCH($H95,lookups!$C$79:$C$90,0),MATCH($I95,lookups!$F$78:$BU$78,0))) -> 1 | BK95: =IF(ISNUMBER($H95),(1+$H95)^(BK$11-$I95),INDEX(lookups!$F$79:$BU$90,MATCH($H95,lookups!$C$79:$C$90,0),MATCH(BK$11,lookups!$F$78:$BU$78,0))/INDEX(lookups!$F$79:$BU$90,MATCH($H95,lookups!$C$79:$C$90,0),MATCH($I95,lookups!$F$78:$BU$78,0))) -> 1 | BL95: =IF(ISNUMBER($H95),(1+$H95)^(BL$11-$I95),INDEX(lookups!$F$79:$BU$90,MATCH($H95,lookups!$C$79:$C$90,0),MATCH(BL$11,lookups!$F$78:$BU$78,0))/INDEX(lookups!$F$79:$BU$90,MATCH($H95,lookups!$C$79:$C$90,0),MATCH($I95,lookups!$F$78:$BU$78,0))) -> 1 | BM95: =IF(ISNUMBER($H95),(1+$H95)^(BM$11-$I95),INDEX(lookups!$F$79:$BU$90,MATCH($H95,lookups!$C$79:$C$90,0),MATCH(BM$11,lookups!$F$78:$BU$78,0))/INDEX(lookups!$F$79:$BU$90,MATCH($H95,lookups!$C$79:$C$90,0),MATCH($I95,lookups!$F$78:$BU$78,0))) -> 1 | BN95: =IF(ISNUMBER($H95),(1+$H95)^(BN$11-$I95),INDEX(lookups!$F$79:$BU$90,MATCH($H95,lookups!$C$79:$C$90,0),MATCH(BN$11,lookups!$F$78:$BU$78,0))/INDEX(lookups!$F$79:$BU$90,MATCH($H95,lookups!$C$79:$C$90,0),MATCH($I95,lookups!$F$78:$BU$78,0))) -> 1
C96: =C95+1 -> 2 | D96: =INDEX(D$66:D$90,$C96,1) -> PP&E - Dist | E96: Capital | F96: 4 | H96: =Input!K17 -> 0 | I96: =Assumptions!$D$16 -> 2018 | P96: =(1+$H96)^(P$11-$I96) -> 1 | Q96: =(1+$H96)^(Q$11-$I96) -> 1 | R96: 1 | S96: 1 | T96: 1 | U96: 1 | V96: 1 | W96: 1 | X96: 1 | Y96: 1 | Z96: 1 | AA96: 1 | AB96: 1 | AC96: 1 | AD96: 1 | AE96: 1 | AF96: 1 | AG96: =(1+$H96)^(AG$11-$I96) -> 1 | AH96: 1 | AI96: 1 | AJ96: 1 | AK96: 1 | AL96: 1 | AM96: 1 | AN96: 1 | AO96: 1 | AP96: 1 | AQ96: 1 | AR96: 1 | AS96: 1 | AT96: 1 | AU96: 1 | AV96: 1 | AW96: =(1+$H96)^(AW$11-$I96) -> 1 | AX96: 1 | AY96: 1 | AZ96: 1 | BA96: 1 | BB96: 1 | BC96: 1 | BD96: 1 | BE96: 1 | BF96: 1 | BG96: 1 | BH96: 1 | BI96: 1 | BJ96: 1 | BK96: 1 | BL96: 1 | BM96: =(1+$H96)^(BM$11-$I96) -> 1 | BN96: 1
C97: 3 | D97: PP&E - Transmission | E97: Capital | F97: 4 | H97: =Input!K18 -> 0 | I97: =Assumptions!$D$16 -> 2018 | P97: 1 | Q97: 1 | R97: 1 | S97: 1 | T97: 1 | U97: 1 | V97: 1 | W97: 1 | X97: 1 | Y97: 1 | Z97: 1 | AA97: 1 | AB97: 1 | AC97: 1 | AD97: 1 | AE97: 1 | AF97: 1 | AG97: 1 | AH97: 1 | AI97: 1 | AJ97: 1 | AK97: 1 | AL97: 1 | AM97: 1 | AN97: 1 | AO97: 1 | AP97: 1 | AQ97: 1 | AR97: 1 | AS97: 1 | AT97: 1 | AU97: 1 | AV97: 1 | AW97: 1 | AX97: 1 | AY97: 1 | AZ97: 1 | BA97: 1 | BB97: 1 | BC97: 1 | BD97: 1 | BE97: 1 | BF97: 1 | BG97: 1 | BH97: 1 | BI97: 1 | BJ97: 1 | BK97: 1 | BL97: 1 | BM97: 1 | BN97: 1
C98: 4 | D98: PP&E - General Plant | E98: Capital | F98: 4 | H98: =Input!K19 -> 0 | I98: =Assumptions!$D$16 -> 2018 | P98: 1 | Q98: 1 | R98: 1 | S98: 1 | T98: 1 | U98: 1 | V98: 1 | W98: 1 | X98: 1 | Y98: 1 | Z98: 1 | AA98: 1 | AB98: 1 | AC98: 1 | AD98: 1 | AE98: 1 | AF98: 1 | AG98: 1 | AH98: 1 | AI98: 1 | AJ98: 1 | AK98: 1 | AL98: 1 | AM98: 1 | AN98: 1 | AO98: 1 | AP98: 1 | AQ98: 1 | AR98: 1 | AS98: 1 | AT98: 1 | AU98: 1 | AV98: 1 | AW98: 1 | AX98: 1 | AY98: 1 | AZ98: 1 | BA98: 1 | BB98: 1 | BC98: 1 | BD98: 1 | BE98: 1 | BF98: 1 | BG98: 1 | BH98: 1 | BI98: 1 | BJ98: 1 | BK98: 1 | BL98: 1 | BM98: 1 | BN98: 1
C99: 5 | D99: PP&E - Land (included in Trans and Dist) | E99: Land | F99: 3 | H99: =Input!K20 -> 0 | I99: =Assumptions!$D$16 -> 2018 | P99: 1 | Q99: 1 | R99: 1 | S99: 1 | T99: 1 | U99: 1 | V99: 1 | W99: 1 | X99: 1 | Y99: 1 | Z99: 1 | AA99: 1 | AB99: 1 | AC99: 1 | AD99: 1 | AE99: 1 | AF99: 1 | AG99: 1 | AH99: 1 | AI99: 1 | AJ99: 1 | AK99: 1 | AL99: 1 | AM99: 1 | AN99: 1 | AO99: 1 | AP99: 1 | AQ99: 1 | AR99: 1 | AS99: 1 | AT99: 1 | AU99: 1 | AV99: 1 | AW99: 1 | AX99: 1 | AY99: 1 | AZ99: 1 | BA99: 1 | BB99: 1 | BC99: 1 | BD99: 1 | BE99: 1 | BF99: 1 | BG99: 1 | BH99: 1 | BI99: 1 | BJ99: 1 | BK99: 1 | BL99: 1 | BM99: 1 | BN99: 1
C100: 6 | D100: Asset Acquisition Adjustment | E100: Capital | F100: 4 | H100: =Input!K21 -> 0 | I100: =Assumptions!$D$16 -> 2018 | P100: 1 | Q100: 1 | R100: 1 | S100: 1 | T100: 1 | U100: 1 | V100: 1 | W100: 1 | X100: 1 | Y100: 1 | Z100: 1 | AA100: 1 | AB100: 1 | AC100: 1 | AD100: 1 | AE100: 1 | AF100: 1 | AG100: 1 | AH100: 1 | AI100: 1 | AJ100: 1 | AK100: 1 | AL100: 1 | AM100: 1 | AN100: 1 | AO100: 1 | AP100: 1 | AQ100: 1 | AR100: 1 | AS100: 1 | AT100: 1 | AU100: 1 | AV100: 1 | AW100: 1 | AX100: 1 | AY100: 1 | AZ100: 1 | BA100: 1 | BB100: 1 | BC100: 1 | BD100: 1 | BE100: 1 | BF100: 1 | BG100: 1 | BH100: 1 | BI100: 1 | BJ100: 1 | BK100: 1 | BL100: 1 | BM100: 1 | BN100: 1
C101: 7 | D101: Lease Easement Indian River | E101: Operating Expense | F101: 2 | H101: =Input!K22 -> 0.024 | I101: =Assumptions!$D$16 -> 2018 | P101: 1 | Q101: 1.024 | R101: 1.048576 | S101: 1.073741824 | T101: 1.099511628 | U101: 1.125899907 | V101: 1.152921505 | W101: 1.180591621 | X101: 1.20892582 | Y101: 1.237940039 | Z101: 1.2676506 | AA101: 1.298074215 | AB101: 1.329227996 | AC101: 1.361129468 | AD101: 1.393796575 | AE101: 1.427247693 | AF101: 1.461501637 | AG101: 1.496577677 | AH101: 1.532495541 | AI101: 1.569275434 | AJ101: 1.606938044 | AK101: 1.645504557 | AL101: 1.684996667 | AM101: 1.725436587 | AN101: 1.766847065 | AO101: 1.809251394 | AP101: 1.852673428 | AQ101: 1.89713759 | AR101: 1.942668892 | AS101: 1.989292946 | AT101: 2.037035976 | AU101: 2.08592484 | AV101: 2.135987036 | AW101: 2.187250725 | AX101: 2.239744742 | AY101: 2.293498616 | AZ101: 2.348542583 | BA101: 2.404907605 | BB101: 2.462625387 | BC101: 2.521728397 | BD101: 2.582249878 | BE101: 2.644223875 | BF101: 2.707685248 | BG101: 2.772669694 | BH101: 2.839213767 | BI101: 2.907354897 | BJ101: 2.977131415 | BK101: 3.048582569 | BL101: 3.12174855 | BM101: 3.196670516 | BN101: 3.273390608
C102: 8 | D102: Prepaid Easement Vero Beach | E102: Capital | F102: 4 | H102: =Input!K23 -> 0 | I102: =Assumptions!$D$16 -> 2018 | P102: 1 | Q102: 1 | R102: 1 | S102: 1 | T102: 1 | U102: 1 | V102: 1 | W102: 1 | X102: 1 | Y102: 1 | Z102: 1 | AA102: 1 | AB102: 1 | AC102: 1 | AD102: 1 | AE102: 1 | AF102: 1 | AG102: 1 | AH102: 1 | AI102: 1 | AJ102: 1 | AK102: 1 | AL102: 1 | AM102: 1 | AN102: 1 | AO102: 1 | AP102: 1 | AQ102: 1 | AR102: 1 | AS102: 1 | AT102: 1 | AU102: 1 | AV102: 1 | AW102: 1 | AX102: 1 | AY102: 1 | AZ102: 1 | BA102: 1 | BB102: 1 | BC102: 1 | BD102: 1 | BE102: 1 | BF102: 1 | BG102: 1 | BH102: 1 | BI102: 1 | BJ102: 1 | BK102: 1 | BL102: 1 | BM102: 1 | BN102: 1
C103: 9 | D103: OUC PPA Payment - Above Market | E103: Capital | F103: 4 | H103: =Input!K24 -> 0 | I103: =Assumptions!$D$16 -> 2018 | P103: 1 | Q103: 1 | R103: 1 | S103: 1 | T103: 1 | U103: 1 | V103: 1 | W103: 1 | X103: 1 | Y103: 1 | Z103: 1 | AA103: 1 | AB103: 1 | AC103: 1 | AD103: 1 | AE103: 1 | AF103: 1 | AG103: 1 | AH103: 1 | AI103: 1 | AJ103: 1 | AK103: 1 | AL103: 1 | AM103: 1 | AN103: 1 | AO103: 1 | AP103: 1 | AQ103: 1 | AR103: 1 | AS103: 1 | AT103: 1 | AU103: 1 | AV103: 1 | AW103: 1 | AX103: 1 | AY103: 1 | AZ103: 1 | BA103: 1 | BB103: 1 | BC103: 1 | BD103: 1 | BE103: 1 | BF103: 1 | BG103: 1 | BH103: 1 | BI103: 1 | BJ103: 1 | BK103: 1 | BL103: 1 | BM103: 1 | BN103: 1
C104: 10 | D104: PPA Energy Savings | E104: Operating Savings | F104: 1 | H104: =Input!K25 -> 0 | I104: =Assumptions!$D$16 -> 2018 | P104: 1 | Q104: 1 | R104: 1 | S104: 1 | T104: 1 | U104: 1 | V104: 1 | W104: 1 | X104: 1 | Y104: 1 | Z104: 1 | AA104: 1 | AB104: 1 | AC104: 1 | AD104: 1 | AE104: 1 | AF104: 1 | AG104: 1 | AH104: 1 | AI104: 1 | AJ104: 1 | AK104: 1 | AL104: 1 | AM104: 1 | AN104: 1 | AO104: 1 | AP104: 1 | AQ104: 1 | AR104: 1 | AS104: 1 | AT104: 1 | AU104: 1 | AV104: 1 | AW104: 1 | AX104: 1 | AY104: 1 | AZ104: 1 | BA104: 1 | BB104: 1 | BC104: 1 | BD104: 1 | BE104: 1 | BF104: 1 | BG104: 1 | BH104: 1 | BI104: 1 | BJ104: 1 | BK104: 1 | BL104: 1 | BM104: 1 | BN104: 1
C105: 11 | D105: Ongoing Distribution Capex | E105: Capital | F105: 4 | H105: =Input!K26 -> 0 | I105: =Assumptions!$D$16 -> 2018 | P105: 1 | Q105: 1 | R105: 1 | S105: 1 | T105: 1 | U105: 1 | V105: 1 | W105: 1 | X105: 1 | Y105: 1 | Z105: 1 | AA105: 1 | AB105: 1 | AC105: 1 | AD105: 1 | AE105: 1 | AF105: 1 | AG105: 1 | AH105: 1 | AI105: 1 | AJ105: 1 | AK105: 1 | AL105: 1 | AM105: 1 | AN105: 1 | AO105: 1 | AP105: 1 | AQ105: 1 | AR105: 1 | AS105: 1 | AT105: 1 | AU105: 1 | AV105: 1 | AW105: 1 | AX105: 1 | AY105: 1 | AZ105: 1 | BA105: 1 | BB105: 1 | BC105: 1 | BD105: 1 | BE105: 1 | BF105: 1 | BG105: 1 | BH105: 1 | BI105: 1 | BJ105: 1 | BK105: 1 | BL105: 1 | BM105: 1 | BN105: 1
C106: 12 | D106: Ongoing Transmission Capex | E106: Capital | F106: 4 | H106: =Input!K27 -> 0 | I106: =Assumptions!$D$16 -> 2018 | P106: 1 | Q106: 1 | R106: 1 | S106: 1 | T106: 1 | U106: 1 | V106: 1 | W106: 1 | X106: 1 | Y106: 1 | Z106: 1 | AA106: 1 | AB106: 1 | AC106: 1 | AD106: 1 | AE106: 1 | AF106: 1 | AG106: 1 | AH106: 1 | AI106: 1 | AJ106: 1 | AK106: 1 | AL106: 1 | AM106: 1 | AN106: 1 | AO106: 1 | AP106: 1 | AQ106: 1 | AR106: 1 | AS106: 1 | AT106: 1 | AU106: 1 | AV106: 1 | AW106: 1 | AX106: 1 | AY106: 1 | AZ106: 1 | BA106: 1 | BB106: 1 | BC106: 1 | BD106: 1 | BE106: 1 | BF106: 1 | BG106: 1 | BH106: 1 | BI106: 1 | BJ106: 1 | BK106: 1 | BL106: 1 | BM106: 1 | BN106: 1
C107: 13 | D107: Customer Serivce O&M | E107: Operating Expense | F107: 2 | H107: =Input!K28 -> 0 | I107: =Assumptions!$D$16 -> 2018 | P107: 1 | Q107: 1 | R107: 1 | S107: 1 | T107: 1 | U107: 1 | V107: 1 | W107: 1 | X107: 1 | Y107: 1 | Z107: 1 | AA107: 1 | AB107: 1 | AC107: 1 | AD107: 1 | AE107: 1 | AF107: 1 | AG107: 1 | AH107: 1 | AI107: 1 | AJ107: 1 | AK107: 1 | AL107: 1 | AM107: 1 | AN107: 1 | AO107: 1 | AP107: 1 | AQ107: 1 | AR107: 1 | AS107: 1 | AT107: 1 | AU107: 1 | AV107: 1 | AW107: 1 | AX107: 1 | AY107: 1 | AZ107: 1 | BA107: 1 | BB107: 1 | BC107: 1 | BD107: 1 | BE107: 1 | BF107: 1 | BG107: 1 | BH107: 1 | BI107: 1 | BJ107: 1 | BK107: 1 | BL107: 1 | BM107: 1 | BN107: 1
C108: 14 | D108: Ongoing Distribution O&M | E108: Operating Expense | F108: 2 | H108: =Input!K29 -> 0 | I108: =Assumptions!$D$16 -> 2018 | P108: 1 | Q108: 1 | R108: 1 | S108: 1 | T108: 1 | U108: 1 | V108: 1 | W108: 1 | X108: 1 | Y108: 1 | Z108: 1 | AA108: 1 | AB108: 1 | AC108: 1 | AD108: 1 | AE108: 1 | AF108: 1 | AG108: 1 | AH108: 1 | AI108: 1 | AJ108: 1 | AK108: 1 | AL108: 1 | AM108: 1 | AN108: 1 | AO108: 1 | AP108: 1 | AQ108: 1 | AR108: 1 | AS108: 1 | AT108: 1 | AU108: 1 | AV108: 1 | AW108: 1 | AX108: 1 | AY108: 1 | AZ108: 1 | BA108: 1 | BB108: 1 | BC108: 1 | BD108: 1 | BE108: 1 | BF108: 1 | BG108: 1 | BH108: 1 | BI108: 1 | BJ108: 1 | BK108: 1 | BL108: 1 | BM108: 1 | BN108: 1
C109: 15 | D109: Ongoing Transmission O&M | E109: Operating Expense | F109: 2 | H109: =Input!K30 -> 0 | I109: =Assumptions!$D$16 -> 2018 | P109: 1 | Q109: 1 | R109: 1 | S109: 1 | T109: 1 | U109: 1 | V109: 1 | W109: 1 | X109: 1 | Y109: 1 | Z109: 1 | AA109: 1 | AB109: 1 | AC109: 1 | AD109: 1 | AE109: 1 | AF109: 1 | AG109: 1 | AH109: 1 | AI109: 1 | AJ109: 1 | AK109: 1 | AL109: 1 | AM109: 1 | AN109: 1 | AO109: 1 | AP109: 1 | AQ109: 1 | AR109: 1 | AS109: 1 | AT109: 1 | AU109: 1 | AV109: 1 | AW109: 1 | AX109: 1 | AY109: 1 | AZ109: 1 | BA109: 1 | BB109: 1 | BC109: 1 | BD109: 1 | BE109: 1 | BF109: 1 | BG109: 1 | BH109: 1 | BI109: 1 | BJ109: 1 | BK109: 1 | BL109: 1 | BM109: 1 | BN109: 1
C110: 16 | D110: Dark Fiber Lease | E110: Operating Expense | F110: 2 | H110: =Input!K31 -> 0.024 | I110: =Assumptions!$D$16 -> 2018 | P110: 1 | Q110: 1.024 | R110: 1.048576 | S110: 1.073741824 | T110: 1.099511628 | U110: 1.125899907 | V110: 1.152921505 | W110: 1.180591621 | X110: 1.20892582 | Y110: 1.237940039 | Z110: 1.2676506 | AA110: 1.298074215 | AB110: 1.329227996 | AC110: 1.361129468 | AD110: 1.393796575 | AE110: 1.427247693 | AF110: =(1+$H110)^(AF$11-$I110) -> 1.461501637 | AG110: 1.496577677 | AH110: 1.532495541 | AI110: 1.569275434 | AJ110: 1.606938044 | AK110: 1.645504557 | AL110: 1.684996667 | AM110: 1.725436587 | AN110: 1.766847065 | AO110: 1.809251394 | AP110: 1.852673428 | AQ110: 1.89713759 | AR110: 1.942668892 | AS110: 1.989292946 | AT110: 2.037035976 | AU110: 2.08592484 | AV110: =(1+$H110)^(AV$11-$I110) -> 2.135987036 | AW110: 2.187250725 | AX110: 2.239744742 | AY110: 2.293498616 | AZ110: 2.348542583 | BA110: 2.404907605 | BB110: 2.462625387 | BC110: 2.521728397 | BD110: 2.582249878 | BE110: 2.644223875 | BF110: 2.707685248 | BG110: 2.772669694 | BH110: 2.839213767 | BI110: 2.907354897 | BJ110: 2.977131415 | BK110: 3.048582569 | BL110: =(1+$H110)^(BL$11-$I110) -> 3.12174855 | BM110: 3.196670516 | BN110: 3.273390608
C111: 17 | D111: OUC PPA Payment - At Market | E111: Operating Expense | F111: 2 | H111: =Input!K32 -> 0 | I111: =Assumptions!$D$16 -> 2018 | P111: 1 | Q111: =(1+$H111)^(Q$11-$I111) -> 1 | R111: 1 | S111: 1 | T111: 1 | U111: 1 | V111: 1 | W111: 1 | X111: 1 | Y111: 1 | Z111: 1 | AA111: 1 | AB111: 1 | AC111: 1 | AD111: 1 | AE111: 1 | AF111: 1 | AG111: 1 | AH111: 1 | AI111: 1 | AJ111: 1 | AK111: 1 | AL111: 1 | AM111: 1 | AN111: 1 | AO111: 1 | AP111: 1 | AQ111: 1 | AR111: 1 | AS111: 1 | AT111: 1 | AU111: 1 | AV111: 1 | AW111: 1 | AX111: 1 | AY111: 1 | AZ111: 1 | BA111: 1 | BB111: 1 | BC111: 1 | BD111: 1 | BE111: 1 | BF111: 1 | BG111: 1 | BH111: 1 | BI111: 1 | BJ111: 1 | BK111: 1 | BL111: 1 | BM111: 1 | BN111: 1
C112: 18 | D112: Transaction Cost | E112: Operating Expense | F112: 2 | H112: =Input!K33 -> 0 | I112: =Assumptions!$D$16 -> 2018 | P112: =(1+$H112)^(P$11-$I112) -> 1 | Q112: 1 | R112: 1 | S112: 1 | T112: 1 | U112: 1 | V112: 1 | W112: 1 | X112: 1 | Y112: 1 | Z112: 1 | AA112: 1 | AB112: 1 | AC112: 1 | AD112: 1 | AE112: 1 | AF112: 1 | AG112: 1 | AH112: 1 | AI112: 1 | AJ112: 1 | AK112: 1 | AL112: 1 | AM112: 1 | AN112: 1 | AO112: 1 | AP112: 1 | AQ112: 1 | AR112: 1 | AS112: 1 | AT112: 1 | AU112: 1 | AV112: 1 | AW112: 1 | AX112: 1 | AY112: 1 | AZ112: 1 | BA112: 1 | BB112: 1 | BC112: 1 | BD112: 1 | BE112: 1 | BF112: 1 | BG112: 1 | BH112: 1 | BI112: 1 | BJ112: 1 | BK112: 1 | BL112: 1 | BM112: 1 | BN112: 1
C113: 19 | D113: System Impact Short Term PPAs | E113: Operating Expense | F113: 2 | H113: =Input!K34 -> 0 | I113: =Assumptions!$D$16 -> 2018 | P113: 1 | Q113: 1 | R113: 1 | S113: 1 | T113: 1 | U113: 1 | V113: 1 | W113: 1 | X113: 1 | Y113: 1 | Z113: 1 | AA113: 1 | AB113: 1 | AC113: 1 | AD113: 1 | AE113: 1 | AF113: 1 | AG113: 1 | AH113: 1 | AI113: 1 | AJ113: 1 | AK113: 1 | AL113: 1 | AM113: 1 | AN113: 1 | AO113: 1 | AP113: 1 | AQ113: 1 | AR113: 1 | AS113: 1 | AT113: 1 | AU113: 1 | AV113: 1 | AW113: 1 | AX113: 1 | AY113: 1 | AZ113: 1 | BA113: 1 | BB113: 1 | BC113: 1 | BD113: 1 | BE113: 1 | BF113: 1 | BG113: 1 | BH113: 1 | BI113: 1 | BJ113: 1 | BK113: 1 | BL113: 1 | BM113: 1 | BN113: 1
C114: 20 | D114: Customer Service Capital | E114: Capital | F114: 4 | H114: =Input!K35 -> 0 | I114: =Assumptions!$D$16 -> 2018 | P114: 1 | Q114: 1 | R114: 1 | S114: 1 | T114: 1 | U114: 1 | V114: 1 | W114: 1 | X114: 1 | Y114: 1 | Z114: 1 | AA114: 1 | AB114: 1 | AC114: 1 | AD114: 1 | AE114: 1 | AF114: 1 | AG114: 1 | AH114: 1 | AI114: 1 | AJ114: 1 | AK114: 1 | AL114: 1 | AM114: 1 | AN114: 1 | AO114: 1 | AP114: 1 | AQ114: 1 | AR114: 1 | AS114: 1 | AT114: 1 | AU114: 1 | AV114: 1 | AW114: 1 | AX114: 1 | AY114: 1 | AZ114: 1 | BA114: 1 | BB114: 1 | BC114: 1 | BD114: 1 | BE114: 1 | BF114: 1 | BG114: 1 | BH114: 1 | BI114: 1 | BJ114: 1 | BK114: 1 | BL114: 1 | BM114: 1 | BN114: 1
C115: 21 | D115: Vero Revenue - Fuel Other Clauses | E115: Operating Savings | F115: 1 | H115: =Input!K36 -> 0 | I115: =Assumptions!$D$16 -> 2018 | P115: 1 | Q115: 1 | R115: 1 | S115: 1 | T115: 1 | U115: 1 | V115: 1 | W115: 1 | X115: 1 | Y115: 1 | Z115: 1 | AA115: 1 | AB115: 1 | AC115: 1 | AD115: 1 | AE115: 1 | AF115: 1 | AG115: 1 | AH115: 1 | AI115: 1 | AJ115: 1 | AK115: 1 | AL115: 1 | AM115: 1 | AN115: 1 | AO115: 1 | AP115: 1 | AQ115: 1 | AR115: 1 | AS115: 1 | AT115: 1 | AU115: 1 | AV115: 1 | AW115: 1 | AX115: 1 | AY115: 1 | AZ115: 1 | BA115: 1 | BB115: 1 | BC115: 1 | BD115: 1 | BE115: 1 | BF115: 1 | BG115: 1 | BH115: 1 | BI115: 1 | BJ115: 1 | BK115: 1 | BL115: 1 | BM115: 1 | BN115: 1
C116: 22 | D116: Vero Revenue - Base Rates | E116: Operating Savings | F116: 1 | H116: =Input!K37 -> 0 | I116: =Assumptions!$D$16 -> 2018 | P116: 1 | Q116: 1 | R116: 1 | S116: 1 | T116: 1 | U116: 1 | V116: 1 | W116: 1 | X116: 1 | Y116: 1 | Z116: 1 | AA116: 1 | AB116: 1 | AC116: 1 | AD116: 1 | AE116: 1 | AF116: 1 | AG116: 1 | AH116: 1 | AI116: 1 | AJ116: 1 | AK116: 1 | AL116: 1 | AM116: 1 | AN116: 1 | AO116: 1 | AP116: 1 | AQ116: 1 | AR116: 1 | AS116: 1 | AT116: 1 | AU116: 1 | AV116: 1 | AW116: 1 | AX116: 1 | AY116: 1 | AZ116: 1 | BA116: 1 | BB116: 1 | BC116: 1 | BD116: 1 | BE116: 1 | BF116: 1 | BG116: 1 | BH116: 1 | BI116: 1 | BJ116: 1 | BK116: 1 | BL116: 1 | BM116: 1 | BN116: 1
C117: 23 | D117: System Impact Fixed Cost | E117: Operating Expense | F117: 2 | H117: =Input!K38 -> 0 | I117: =Assumptions!$D$16 -> 2018 | P117: 1 | Q117: 1 | R117: 1 | S117: 1 | T117: 1 | U117: 1 | V117: 1 | W117: 1 | X117: 1 | Y117: 1 | Z117: 1 | AA117: 1 | AB117: 1 | AC117: 1 | AD117: 1 | AE117: 1 | AF117: 1 | AG117: 1 | AH117: 1 | AI117: 1 | AJ117: 1 | AK117: 1 | AL117: 1 | AM117: 1 | AN117: 1 | AO117: 1 | AP117: 1 | AQ117: 1 | AR117: 1 | AS117: 1 | AT117: 1 | AU117: 1 | AV117: 1 | AW117: 1 | AX117: 1 | AY117: 1 | AZ117: 1 | BA117: 1 | BB117: 1 | BC117: 1 | BD117: 1 | BE117: 1 | BF117: 1 | BG117: 1 | BH117: 1 | BI117: 1 | BJ117: 1 | BK117: 1 | BL117: 1 | BM117: 1 | BN117: 1
C118: 24 | D118: System Impact VOM, Emissions | E118: Operating Expense | F118: 2 | H118: =Input!K39 -> 0 | I118: =Assumptions!$D$16 -> 2018 | P118: 1 | Q118: 1 | R118: 1 | S118: 1 | T118: 1 | U118: 1 | V118: 1 | W118: 1 | X118: 1 | Y118: 1 | Z118: 1 | AA118: 1 | AB118: 1 | AC118: 1 | AD118: 1 | AE118: 1 | AF118: 1 | AG118: 1 | AH118: 1 | AI118: 1 | AJ118: 1 | AK118: 1 | AL118: 1 | AM118: 1 | AN118: 1 | AO118: 1 | AP118: 1 | AQ118: 1 | AR118: 1 | AS118: 1 | AT118: 1 | AU118: 1 | AV118: 1 | AW118: 1 | AX118: 1 | AY118: 1 | AZ118: 1 | BA118: 1 | BB118: 1 | BC118: 1 | BD118: 1 | BE118: 1 | BF118: 1 | BG118: 1 | BH118: 1 | BI118: 1 | BJ118: 1 | BK118: 1 | BL118: 1 | BM118: 1 | BN118: 1
C119: 25 | D119: System Impact Fuel | E119: Operating Expense | F119: 2 | H119: =Input!K40 -> 0 | I119: =Assumptions!$D$16 -> 2018 | P119: 1 | Q119: 1 | R119: 1 | S119: 1 | T119: 1 | U119: 1 | V119: 1 | W119: 1 | X119: 1 | Y119: 1 | Z119: 1 | AA119: 1 | AB119: 1 | AC119: 1 | AD119: 1 | AE119: 1 | AF119: 1 | AG119: 1 | AH119: 1 | AI119: 1 | AJ119: 1 | AK119: 1 | AL119: 1 | AM119: 1 | AN119: 1 | AO119: 1 | AP119: 1 | AQ119: 1 | AR119: 1 | AS119: 1 | AT119: 1 | AU119: 1 | AV119: 1 | AW119: 1 | AX119: 1 | AY119: 1 | AZ119: 1 | BA119: 1 | BB119: 1 | BC119: 1 | BD119: 1 | BE119: 1 | BF119: 1 | BG119: 1 | BH119: 1 | BI119: 1 | BJ119: 1 | BK119: 1 | BL119: 1 | BM119: 1 | BN119: 1
D120: ="Total "&D94 -> Total Escalation Factors | P120: =SUM(P95:P119) -> 25 | Q120: 25.048 | R120: 25.097152 | S120: 25.14748365 | T120: 25.19902326 | U120: 25.25179981 | V120: 25.30584301 | W120: 25.36118324 | X120: 25.41785164 | Y120: 25.47588008 | Z120: 25.5353012 | AA120: 25.59614843 | AB120: 25.65845599 | AC120: 25.72225894 | AD120: 25.78759315 | AE120: 25.85449539 | AF120: 25.92300327 | AG120: 25.99315535 | AH120: 26.06499108 | AI120: 26.13855087 | AJ120: 26.21387609 | AK120: 26.29100911 | AL120: 26.36999333 | AM120: 26.45087317 | AN120: 26.53369413 | AO120: 26.61850279 | AP120: 26.70534686 | AQ120: 26.79427518 | AR120: 26.88533778 | AS120: 26.97858589 | AT120: 27.07407195 | AU120: 27.17184968 | AV120: =SUM(AV95:AV119) -> 27.27197407 | AW120: 27.37450145 | AX120: 27.47948948 | AY120: 27.58699723 | AZ120: 27.69708517 | BA120: 27.80981521 | BB120: 27.92525077 | BC120: 28.04345679 | BD120: 28.16449976 | BE120: 28.28844775 | BF120: 28.4153705 | BG120: 28.54533939 | BH120: 28.67842753 | BI120: 28.81470979 | BJ120: 28.95426283 | BK120: 29.09716514 | BL120: 29.2434971 | BM120: 29.39334103 | BN120: 29.54678122
D123: Cash Flow, Escalated
C124: =C123+1 -> 1 | D124: =INDEX(D$66:D$90,$C124,1) -> Acquired Inventory | E124: =INDEX(E$66:E$90,$C124,1) -> Capital | F124: 4 | K124: =SUMPRODUCT(P124:BN124,$P$14:$BN$14) -> 3576.919658 | L124: =SUM(P124:BN124) -> 4000 | P124: =P66*P95 -> 0 | Q124: =Q66*Q95 -> 4000 | R124: 0 | S124: 0 | T124: 0 | U124: 0 | V124: 0 | W124: 0 | X124: 0 | Y124: 0 | Z124: 0 | AA124: 0 | AB124: 0 | AC124: 0 | AD124: 0 | AE124: 0 | AF124: 0 | AG124: 0 | AH124: 0 | AI124: 0 | AJ124: 0 | AK124: 0 | AL124: 0 | AM124: 0 | AN124: 0 | AO124: 0 | AP124: 0 | AQ124: 0 | AR124: 0 | AS124: 0 | AT124: 0 | AU124: 0 | AV124: 0 | AW124: 0 | AX124: 0 | AY124: 0 | AZ124: 0 | BA124: 0 | BB124: 0 | BC124: 0 | BD124: 0 | BE124: 0 | BF124: 0 | BG124: 0 | BH124: 0 | BI124: 0 | BJ124: 0 | BK124: 0 | BL124: 0 | BM124: 0 | BN124: 0
C125: =C124+1 -> 2 | D125: =INDEX(D$66:D$90,$C125,1) -> PP&E - Dist | E125: Capital | F125: 4 | K125: =SUMPRODUCT(P125:BN125,$P$14:$BN$14) -> 46850.32337 | L125: =SUM(P125:BN125) -> 52391.80955 | P125: =P67*P96 -> 0 | Q125: 52391.80955 | R125: 0 | S125: 0 | T125: 0 | U125: 0 | V125: 0 | W125: 0 | X125: 0 | Y125: 0 | Z125: 0 | AA125: 0 | AB125: 0 | AC125: 0 | AD125: 0 | AE125: 0 | AF125: 0 | AG125: 0 | AH125: 0 | AI125: 0 | AJ125: 0 | AK125: 0 | AL125: 0 | AM125: 0 | AN125: 0 | AO125: 0 | AP125: 0 | AQ125: 0 | AR125: 0 | AS125: 0 | AT125: 0 | AU125: 0 | AV125: 0 | AW125: 0 | AX125: 0 | AY125: 0 | AZ125: 0 | BA125: 0 | BB125: 0 | BC125: 0 | BD125: 0 | BE125: 0 | BF125: 0 | BG125: 0 | BH125: 0 | BI125: 0 | BJ125: 0 | BK125: 0 | BL125: 0 | BM125: 0 | BN125: 0
C126: 3 | D126: PP&E - Transmission | E126: Capital | F126: 4 | K126: 5686.595933 | L126: 6359.210132 | P126: =P68*P97 -> 0 | Q126: 6359.210132 | R126: 0 | S126: 0 | T126: 0 | U126: 0 | V126: 0 | W126: 0 | X126: 0 | Y126: 0 | Z126: 0 | AA126: 0 | AB126: 0 | AC126: 0 | AD126: 0 | AE126: 0 | AF126: 0 | AG126: 0 | AH126: 0 | AI126: 0 | AJ126: 0 | AK126: 0 | AL126: 0 | AM126: 0 | AN126: 0 | AO126: 0 | AP126: 0 | AQ126: 0 | AR126: 0 | AS126: 0 | AT126: 0 | AU126: 0 | AV126: 0 | AW126: 0 | AX126: 0 | AY126: 0 | AZ126: 0 | BA126: 0 | BB126: 0 | BC126: 0 | BD126: 0 | BE126: 0 | BF126: 0 | BG126: 0 | BH126: 0 | BI126: 0 | BJ126: 0 | BK126: 0 | BL126: 0 | BM126: 0 | BN126: 0
C127: 4 | D127: PP&E - General Plant | E127: Capital | F127: 4 | K127: 795.9032354 | L127: 890.0431785 | P127: =P69*P98 -> 0 | Q127: 890.0431785 | R127: 0 | S127: 0 | T127: 0 | U127: 0 | V127: 0 | W127: 0 | X127: 0 | Y127: 0 | Z127: 0 | AA127: 0 | AB127: 0 | AC127: 0 | AD127: 0 | AE127: 0 | AF127: 0 | AG127: 0 | AH127: 0 | AI127: 0 | AJ127: 0 | AK127: 0 | AL127: 0 | AM127: 0 | AN127: 0 | AO127: 0 | AP127: 0 | AQ127: 0 | AR127: 0 | AS127: 0 | AT127: 0 | AU127: 0 | AV127: 0 | AW127: 0 | AX127: 0 | AY127: 0 | AZ127: 0 | BA127: 0 | BB127: 0 | BC127: 0 | BD127: 0 | BE127: 0 | BF127: 0 | BG127: 0 | BH127: 0 | BI127: 0 | BJ127: 0 | BK127: 0 | BL127: 0 | BM127: 0 | BN127: 0
C128: 5 | D128: PP&E - Land (included in Trans and Dist) | E128: Land | F128: 3 | K128: 1613.903994 | L128: 1804.79759 | P128: =P70*P99 -> 0 | Q128: 1804.79759 | R128: 0 | S128: 0 | T128: 0 | U128: 0 | V128: 0 | W128: 0 | X128: 0 | Y128: 0 | Z128: 0 | AA128: 0 | AB128: 0 | AC128: 0 | AD128: 0 | AE128: 0 | AF128: 0 | AG128: 0 | AH128: 0 | AI128: 0 | AJ128: 0 | AK128: 0 | AL128: 0 | AM128: 0 | AN128: 0 | AO128: 0 | AP128: 0 | AQ128: 0 | AR128: 0 | AS128: 0 | AT128: 0 | AU128: 0 | AV128: 0 | AW128: 0 | AX128: 0 | AY128: 0 | AZ128: 0 | BA128: 0 | BB128: 0 | BC128: 0 | BD128: 0 | BE128: 0 | BF128: 0 | BG128: 0 | BH128: 0 | BI128: 0 | BJ128: 0 | BK128: 0 | BL128: 0 | BM128: 0 | BN128: 0
C129: 6 | D129: Asset Acquisition Adjustment | E129: Capital | F129: 4 | K129: 102178.3813 | L129: 114264.1055 | P129: =P71*P100 -> 0 | Q129: 114264.1055 | R129: 0 | S129: 0 | T129: 0 | U129: 0 | V129: 0 | W129: 0 | X129: 0 | Y129: 0 | Z129: 0 | AA129: 0 | AB129: 0 | AC129: 0 | AD129: 0 | AE129: 0 | AF129: 0 | AG129: 0 | AH129: 0 | AI129: 0 | AJ129: 0 | AK129: 0 | AL129: 0 | AM129: 0 | AN129: 0 | AO129: 0 | AP129: 0 | AQ129: 0 | AR129: 0 | AS129: 0 | AT129: 0 | AU129: 0 | AV129: 0 | AW129: 0 | AX129: 0 | AY129: 0 | AZ129: 0 | BA129: 0 | BB129: 0 | BC129: 0 | BD129: 0 | BE129: 0 | BF129: 0 | BG129: 0 | BH129: 0 | BI129: 0 | BJ129: 0 | BK129: 0 | BL129: 0 | BM129: 0 | BN129: 0
C130: 7 | D130: Lease Easement Indian River | E130: Operating Expense | F130: 2 | K130: 331.5909178 | L130: 1017.677971 | P130: =P72*P101 -> 0 | Q130: 23.552 | R130: 24.117248 | S130: 24.69606195 | T130: 25.28876744 | U130: 25.89569786 | V130: 26.51719461 | W130: 27.15360728 | X130: 27.80529385 | Y130: 28.4726209 | Z130: 29.15596381 | AA130: 29.85570694 | AB130: 30.5722439 | AC130: 31.30597776 | AD130: 32.05732122 | AE130: 32.82669693 | AF130: 33.61453766 | AG130: 34.42128656 | AH130: 35.24739744 | AI130: 36.09333498 | AJ130: 36.95957502 | AK130: 37.84660482 | AL130: 38.75492333 | AM130: 39.68504149 | AN130: 40.63748249 | AO130: 41.61278207 | AP130: 42.61148884 | AQ130: 43.63416457 | AR130: 44.68138452 | AS130: 45.75373775 | AT130: 46.85182746 | AU130: 0 | AV130: 0 | AW130: 0 | AX130: 0 | AY130: 0 | AZ130: 0 | BA130: 0 | BB130: 0 | BC130: 0 | BD130: 0 | BE130: 0 | BF130: 0 | BG130: 0 | BH130: 0 | BI130: 0 | BJ130: 0 | BK130: 0 | BL130: 0 | BM130: 0 | BN130: 0
C131: 8 | D131: Prepaid Easement Vero Beach | E131: Capital | F131: 4 | K131: 1788.459829 | L131: 2000 | P131: =P73*P102 -> 0 | Q131: 2000 | R131: 0 | S131: 0 | T131: 0 | U131: 0 | V131: 0 | W131: 0 | X131: 0 | Y131: 0 | Z131: 0 | AA131: 0 | AB131: 0 | AC131: 0 | AD131: 0 | AE131: 0 | AF131: 0 | AG131: 0 | AH131: 0 | AI131: 0 | AJ131: 0 | AK131: 0 | AL131: 0 | AM131: 0 | AN131: 0 | AO131: 0 | AP131: 0 | AQ131: 0 | AR131: 0 | AS131: 0 | AT131: 0 | AU131: 0 | AV131: 0 | AW131: 0 | AX131: 0 | AY131: 0 | AZ131: 0 | BA131: 0 | BB131: 0 | BC131: 0 | BD131: 0 | BE131: 0 | BF131: 0 | BG131: 0 | BH131: 0 | BI131: 0 | BJ131: 0 | BK131: 0 | BL131: 0 | BM131: 0 | BN131: 0
C132: 9 | D132: OUC PPA Payment - Above Market | E132: Capital | F132: 4 | K132: 11081.74211 | L132: 12904.02 | P132: =P74*P103 -> 0 | Q132: 5819.1 | R132: 7084.92 | S132: 0 | T132: 0 | U132: 0 | V132: 0 | W132: 0 | X132: 0 | Y132: 0 | Z132: 0 | AA132: 0 | AB132: 0 | AC132: 0 | AD132: 0 | AE132: 0 | AF132: 0 | AG132: 0 | AH132: 0 | AI132: 0 | AJ132: 0 | AK132: 0 | AL132: 0 | AM132: 0 | AN132: 0 | AO132: 0 | AP132: 0 | AQ132: 0 | AR132: 0 | AS132: 0 | AT132: 0 | AU132: 0 | AV132: 0 | AW132: 0 | AX132: 0 | AY132: 0 | AZ132: 0 | BA132: 0 | BB132: 0 | BC132: 0 | BD132: 0 | BE132: 0 | BF132: 0 | BG132: 0 | BH132: 0 | BI132: 0 | BJ132: 0 | BK132: 0 | BL132: 0 | BM132: 0 | BN132: 0
C133: 10 | D133: PPA Energy Savings | E133: Operating Savings | F133: 1 | K133: -5445.670607 | L133: -6310.722068 | P133: =P75*P104 -> 0 | Q133: -3250.640424 | R133: -3060.081644 | S133: 0 | T133: 0 | U133: 0 | V133: 0 | W133: 0 | X133: 0 | Y133: 0 | Z133: 0 | AA133: 0 | AB133: 0 | AC133: 0 | AD133: 0 | AE133: 0 | AF133: 0 | AG133: 0 | AH133: 0 | AI133: 0 | AJ133: 0 | AK133: 0 | AL133: 0 | AM133: 0 | AN133: 0 | AO133: 0 | AP133: 0 | AQ133: 0 | AR133: 0 | AS133: 0 | AT133: 0 | AU133: 0 | AV133: 0 | AW133: 0 | AX133: 0 | AY133: 0 | AZ133: 0 | BA133: 0 | BB133: 0 | BC133: 0 | BD133: 0 | BE133: 0 | BF133: 0 | BG133: 0 | BH133: 0 | BI133: 0 | BJ133: 0 | BK133: 0 | BL133: 0 | BM133: 0 | BN133: 0
C134: 11 | D134: Ongoing Distribution Capex | E134: Capital | F134: 4 | K134: 102067.8835 | L134: 290925.5306 | P134: =P76*P105 -> 2671.329037 | Q134: 860.1561862 | R134: 4454.909803 | S134: 9284.557884 | T134: 9445.99574 | U134: 13405.7279 | V134: 8624.541926 | W134: 8891.948221 | X134: 9167.751418 | Y134: 9373.93193 | Z134: 9584.354336 | AA134: 9882.145519 | AB134: 10189.30822 | AC134: 10506.14086 | AD134: 10832.9515 | AE134: 11170.05808 | AF134: 11517.78882 | AG134: 11876.4825 | AH134: 12246.4888 | AI134: 12628.16871 | AJ134: 13021.89484 | AK134: 13428.05183 | AL134: 7593.842549 | AM134: 7838.469387 | AN134: 8091.129223 | AO134: 8352.089989 | AP134: 8621.628662 | AQ134: 8900.031577 | AR134: 9187.594742 | AS134: 9484.624169 | AT134: 9791.436216 | AU134: 0 | AV134: 0 | AW134: 0 | AX134: 0 | AY134: 0 | AZ134: 0 | BA134: 0 | BB134: 0 | BC134: 0 | BD134: 0 | BE134: 0 | BF134: 0 | BG134: 0 | BH134: 0 | BI134: 0 | BJ134: 0 | BK134: 0 | BL134: 0 | BM134: 0 | BN134: 0
C135: 12 | D135: Ongoing Transmission Capex | E135: Capital | F135: 4 | K135: 33541.41856 | L135: 87881.66852 | P135: =P77*P106 -> 23.46153846 | Q135: 1303.426441 | R135: 10934.08505 | S135: 2906.916369 | T135: 2041.31503 | U135: 2081.250261 | V135: 1673.485879 | W135: 1817.06205 | X135: 2737.137222 | Y135: 2797.417687 | Z135: 2191.278022 | AA135: 2246.059972 | AB135: 2302.211472 | AC135: 2359.766758 | AD135: 2418.760927 | AE135: 2479.229951 | AF135: 2541.210699 | AG135: 2604.740967 | AH135: 2669.859491 | AI135: 2736.605978 | AJ135: 2805.021128 | AK135: 2875.146656 | AL135: 2947.025322 | AM135: 3020.700955 | AN135: 3096.218479 | AO135: 3173.623941 | AP135: 3252.96454 | AQ135: 3334.288653 | AR135: 3417.64587 | AS135: 3503.087016 | AT135: 3590.664192 | AU135: 0 | AV135: 0 | AW135: 0 | AX135: 0 | AY135: 0 | AZ135: 0 | BA135: 0 | BB135: 0 | BC135: 0 | BD135: 0 | BE135: 0 | BF135: 0 | BG135: 0 | BH135: 0 | BI135: 0 | BJ135: 0 | BK135: 0 | BL135: 0 | BM135: 0 | BN135: 0
C136: 13 | D136: Customer Serivce O&M | E136: Operating Expense | F136: 2 | K136: 9082.783589 | L136: 26364.19998 | P136: =P78*P107 -> 669.8774253 | Q136: 391.5766236 | R136: 990.4569161 | S136: 655.0719696 | T136: 614.5084152 | U136: 639.8671401 | V136: 655.8638186 | W136: 672.260414 | X136: 689.0669244 | Y136: 706.2935975 | Z136: 723.9509374 | AA136: 742.0497109 | AB136: 760.6009536 | AC136: 779.6159775 | AD136: 799.1063769 | AE136: 819.0840363 | AF136: 839.5611372 | AG136: 860.5501657 | AH136: 882.0639198 | AI136: 904.1155178 | AJ136: 926.7184057 | AK136: 949.8863659 | AL136: 973.633525 | AM136: 997.9743632 | AN136: 1022.923722 | AO136: 1048.496815 | AP136: 1074.709236 | AQ136: 1101.576967 | AR136: 1129.116391 | AS136: 1157.3443 | AT136: 1186.277908 | AU136: 0 | AV136: 0 | AW136: 0 | AX136: 0 | AY136: 0 | AZ136: 0 | BA136: 0 | BB136: 0 | BC136: 0 | BD136: 0 | BE136: 0 | BF136: 0 | BG136: 0 | BH136: 0 | BI136: 0 | BJ136: 0 | BK136: 0 | BL136: 0 | BM136: 0 | BN136: 0
C137: 14 | D137: Ongoing Distribution O&M | E137: Operating Expense | F137: 2 | K137: 33093.39769 | L137: 86137.41046 | P137: =P79*P108 -> 183.1045444 | Q137: 5464.581571 | R137: 7063.241469 | S137: 2359.566982 | T137: 2362.315379 | U137: 1993.901913 | V137: 1848.05727 | W137: 1904.461301 | X137: 1962.630536 | Y137: 2022.621473 | Z137: 2084.492455 | AA137: 2148.30373 | AB137: 2214.117513 | AC137: 2281.998052 | AD137: 2352.011697 | AE137: 2424.226967 | AF137: 2498.714624 | AG137: 2575.547748 | AH137: 2654.801813 | AI137: 2736.554765 | AJ137: 2820.887108 | AK137: 2907.881986 | AL137: 2870.009066 | AM137: 2958.76097 | AN137: 3050.326731 | AO137: 3144.797522 | AP137: 3242.267524 | AQ137: 3342.834028 | AR137: 3446.597538 | AS137: 3553.66188 | AT137: 3664.134309 | AU137: 0 | AV137: 0 | AW137: 0 | AX137: 0 | AY137: 0 | AZ137: 0 | BA137: 0 | BB137: 0 | BC137: 0 | BD137: 0 | BE137: 0 | BF137: 0 | BG137: 0 | BH137: 0 | BI137: 0 | BJ137: 0 | BK137: 0 | BL137: 0 | BM137: 0 | BN137: 0
C138: 15 | D138: Ongoing Transmission O&M | E138: Operating Expense | F138: 2 | K138: 11908.57064 | L138: 35416.51462 | P138: =P80*P109 -> 95 | Q138: 294.6496406 | R138: 1770.64549 | S138: 956.4515342 | T138: 937.2255144 | U138: 980.6374284 | V138: 893.1174397 | W138: 989.9911532 | X138: 939.7589649 | Y138: 956.4351492 | Z138: 978.6386386 | AA138: 1003.104605 | AB138: 1028.18222 | AC138: 1053.886775 | AD138: 1080.233945 | AE138: 1107.239793 | AF138: 1134.920788 | AG138: 1163.293808 | AH138: 1192.376153 | AI138: 1222.185557 | AJ138: 1252.740196 | AK138: 1284.0587 | AL138: 1316.160168 | AM138: 1349.064172 | AN138: 1382.790777 | AO138: 1417.360546 | AP138: 1452.79456 | AQ138: 1489.114424 | AR138: 1526.342284 | AS138: 1564.500841 | AT138: 1603.613362 | AU138: 0 | AV138: 0 | AW138: 0 | AX138: 0 | AY138: 0 | AZ138: 0 | BA138: 0 | BB138: 0 | BC138: 0 | BD138: 0 | BE138: 0 | BF138: 0 | BG138: 0 | BH138: 0 | BI138: 0 | BJ138: 0 | BK138: 0 | BL138: 0 | BM138: 0 | BN138: 0
C139: 16 | D139: Dark Fiber Lease | E139: Operating Expense | F139: 2 | K139: 2479.723386 | L139: 7610.461352 | P139: =P81*P110 -> 0 | Q139: 176.128 | R139: 180.355072 | S139: 184.6835937 | T139: 189.116 | U139: 193.654784 | V139: 198.3024988 | W139: 203.0617588 | X139: 207.935241 | Y139: 212.9256868 | Z139: 218.0359032 | AA139: 223.2687649 | AB139: 228.6272153 | AC139: 234.1142684 | AD139: 239.7330109 | AE139: 245.4866031 | AF139: 251.3782816 | AG139: 257.4113604 | AH139: 263.589233 | AI139: 269.9153746 | AJ139: 276.3933436 | AK139: 283.0267839 | AL139: 289.8194267 | AM139: 296.7750929 | AN139: 303.8976951 | AO139: 311.1912398 | AP139: 318.6598296 | AQ139: 326.3076655 | AR139: 334.1390495 | AS139: 342.1583866 | AT139: 350.3701879 | AU139: 0 | AV139: 0 | AW139: 0 | AX139: 0 | AY139: 0 | AZ139: 0 | BA139: 0 | BB139: 0 | BC139: 0 | BD139: 0 | BE139: 0 | BF139: 0 | BG139: 0 | BH139: 0 | BI139: 0 | BJ139: 0 | BK139: 0 | BL139: 0 | BM139: 0 | BN139: 0
C140: 17 | D140: OUC PPA Payment - At Market | E140: Operating Expense | F140: 2 | K140: 7033.501999 | L140: 8160 | P140: =P82*P111 -> 0 | Q140: 4080 | R140: 4080 | S140: 0 | T140: 0 | U140: 0 | V140: 0 | W140: 0 | X140: 0 | Y140: 0 | Z140: 0 | AA140: 0 | AB140: 0 | AC140: 0 | AD140: 0 | AE140: 0 | AF140: 0 | AG140: 0 | AH140: 0 | AI140: 0 | AJ140: 0 | AK140: 0 | AL140: 0 | AM140: 0 | AN140: 0 | AO140: 0 | AP140: 0 | AQ140: 0 | AR140: 0 | AS140: 0 | AT140: 0 | AU140: 0 | AV140: 0 | AW140: 0 | AX140: 0 | AY140: 0 | AZ140: 0 | BA140: 0 | BB140: 0 | BC140: 0 | BD140: 0 | BE140: 0 | BF140: 0 | BG140: 0 | BH140: 0 | BI140: 0 | BJ140: 0 | BK140: 0 | BL140: 0 | BM140: 0 | BN140: 0
C141: 18 | D141: Transaction Cost | E141: Operating Expense | F141: 2 | K141: 722.5662317 | L141: 750 | P141: =P83*P112 -> 750 | Q141: 0 | R141: 0 | S141: 0 | T141: 0 | U141: 0 | V141: 0 | W141: 0 | X141: 0 | Y141: 0 | Z141: 0 | AA141: 0 | AB141: 0 | AC141: 0 | AD141: 0 | AE141: 0 | AF141: 0 | AG141: 0 | AH141: 0 | AI141: 0 | AJ141: 0 | AK141: 0 | AL141: 0 | AM141: 0 | AN141: 0 | AO141: 0 | AP141: 0 | AQ141: 0 | AR141: 0 | AS141: 0 | AT141: 0 | AU141: 0 | AV141: 0 | AW141: 0 | AX141: 0 | AY141: 0 | AZ141: 0 | BA141: 0 | BB141: 0 | BC141: 0 | BD141: 0 | BE141: 0 | BF141: 0 | BG141: 0 | BH141: 0 | BI141: 0 | BJ141: 0 | BK141: 0 | BL141: 0 | BM141: 0 | BN141: 0
C142: 19 | D142: System Impact Short Term PPAs | E142: Operating Expense | F142: 2 | K142: 6296.937947 | L142: 10438.78162 | P142: =P84*P113 -> 0 | Q142: 2920.05 | R142: 875.2425 | S142: 0 | T142: 0 | U142: 0 | V142: 0 | W142: 0 | X142: 0 | Y142: 3542.459194 | Z142: 0 | AA142: 0 | AB142: 3101.029929 | AC142: 0 | AD142: 0 | AE142: 0 | AF142: 0 | AG142: 0 | AH142: 0 | AI142: 0 | AJ142: 0 | AK142: 0 | AL142: 0 | AM142: 0 | AN142: 0 | AO142: 0 | AP142: 0 | AQ142: 0 | AR142: 0 | AS142: 0 | AT142: 0 | AU142: 0 | AV142: 0 | AW142: 0 | AX142: 0 | AY142: 0 | AZ142: 0 | BA142: 0 | BB142: 0 | BC142: 0 | BD142: 0 | BE142: 0 | BF142: 0 | BG142: 0 | BH142: 0 | BI142: 0 | BJ142: 0 | BK142: 0 | BL142: 0 | BM142: 0 | BN142: 0
C143: 20 | D143: Customer Service Capital | E143: Capital | F143: 4 | K143: 6835.814718 | L143: 7247.909689 | P143: =P85*P114 -> 5123.691348 | Q143: 2124.218341 | R143: 0 | S143: 0 | T143: 0 | U143: 0 | V143: 0 | W143: 0 | X143: 0 | Y143: 0 | Z143: 0 | AA143: 0 | AB143: 0 | AC143: 0 | AD143: 0 | AE143: 0 | AF143: 0 | AG143: 0 | AH143: 0 | AI143: 0 | AJ143: 0 | AK143: 0 | AL143: 0 | AM143: 0 | AN143: 0 | AO143: 0 | AP143: 0 | AQ143: 0 | AR143: 0 | AS143: 0 | AT143: 0 | AU143: 0 | AV143: 0 | AW143: 0 | AX143: 0 | AY143: 0 | AZ143: 0 | BA143: 0 | BB143: 0 | BC143: 0 | BD143: 0 | BE143: 0 | BF143: 0 | BG143: 0 | BH143: 0 | BI143: 0 | BJ143: 0 | BK143: 0 | BL143: 0 | BM143: 0 | BN143: 0
C144: 21 | D144: Vero Revenue - Fuel Other Clauses | E144: Operating Savings | F144: 1 | K144: -340992.774 | L144: -1100009.169 | P144: =P86*P115 -> 0 | Q144: -24110.91118 | R144: -24325.83336 | S144: -24717.41819 | T144: -24479.59397 | U144: -25069.27611 | V144: -25330.02023 | W144: -25509.09482 | X144: -26393.11091 | Y144: -27221.37447 | Z144: -28050.02119 | AA144: -29044.356 | AB144: -30146.494 | AC144: -31155.10025 | AD144: -32232.92862 | AE144: -33254.21835 | AF144: -34315.9789 | AG144: -35818.77783 | AH144: -38447.25809 | AI144: -39964.42517 | AJ144: -41291.90487 | AK144: -42413.01757 | AL144: -43723.74892 | AM144: -45137.77681 | AN144: -45767.91702 | AO144: -48693.58217 | AP144: -50946.10063 | AQ144: -52564.04546 | AR144: -54521.42933 | AS144: -56803.08338 | AT144: -58560.37166 | AU144: 0 | AV144: 0 | AW144: 0 | AX144: 0 | AY144: 0 | AZ144: 0 | BA144: 0 | BB144: 0 | BC144: 0 | BD144: 0 | BE144: 0 | BF144: 0 | BG144: 0 | BH144: 0 | BI144: 0 | BJ144: 0 | BK144: 0 | BL144: 0 | BM144: 0 | BN144: 0
C145: 22 | D145: Vero Revenue - Base Rates | E145: Operating Savings | F145: 1 | K145: -648838.9718 | L145: -1984594.234 | P145: =P87*P116 -> 0 | Q145: -43166.57906 | R145: -44239.10127 | S145: -44557.86806 | T145: -49521.99921 | U145: -53379.33776 | V145: -54393.39733 | W145: -55397.90657 | X145: -56405.34673 | Y145: -57414.6021 | Z145: -59034.87671 | AA145: -60243.49797 | AB145: -61067.19789 | AC145: -62058.51976 | AD145: -63451.96509 | AE145: -65007.10988 | AF145: -66617.08947 | AG145: -67662.1304 | AH145: -69563.6618 | AI145: -71452.715 | AJ145: -72781.26539 | AK145: -74001.95099 | AL145: -75736.32388 | AM145: -76876.7217 | AN145: -78367.25416 | AO145: -79963.93173 | AP145: -81899.44238 | AQ145: -82989.0505 | AR145: -84502.14558 | AS145: -85626.52498 | AT145: -87214.72039 | AU145: 0 | AV145: 0 | AW145: 0 | AX145: 0 | AY145: 0 | AZ145: 0 | BA145: 0 | BB145: 0 | BC145: 0 | BD145: 0 | BE145: 0 | BF145: 0 | BG145: 0 | BH145: 0 | BI145: 0 | BJ145: 0 | BK145: 0 | BL145: 0 | BM145: 0 | BN145: 0
C146: 23 | D146: System Impact Fixed Cost | E146: Operating Expense | F146: 2 | K146: 83118.90092 | L146: 399532.3655 | P146: =P88*P117 -> 0 | Q146: 0 | R146: 0 | S146: 0 | T146: 0 | U146: 0 | V146: 0 | W146: 0 | X146: 0 | Y146: 0 | Z146: 0 | AA146: 0 | AB146: 0 | AC146: 15073.40616 | AD146: 23246.24107 | AE146: 24297.94611 | AF146: 23305.26752 | AG146: 23407.34309 | AH146: 23102.93266 | AI146: 23523.44927 | AJ146: 22462.90806 | AK146: 24261.9619 | AL146: 24429.68949 | AM146: 24883.79809 | AN146: 22059.90047 | AO146: 22576.81604 | AP146: 21262.72379 | AQ146: 20865.11058 | AR146: 20491.74031 | AS146: 21534.45214 | AT146: 18746.67878 | AU146: 0 | AV146: 0 | AW146: 0 | AX146: 0 | AY146: 0 | AZ146: 0 | BA146: 0 | BB146: 0 | BC146: 0 | BD146: 0 | BE146: 0 | BF146: 0 | BG146: 0 | BH146: 0 | BI146: 0 | BJ146: 0 | BK146: 0 | BL146: 0 | BM146: 0 | BN146: 0
C147: 24 | D147: System Impact VOM, Emissions | E147: Operating Expense | F147: 2 | K147: 25423.5086 | L147: 144720 | P147: =P89*P118 -> 0 | Q147: 260 | R147: 240 | S147: 270 | T147: -220 | U147: 520 | V147: -470 | W147: -320 | X147: -50 | Y147: 370 | Z147: 70 | AA147: 2460 | AB147: 390 | AC147: 2160 | AD147: 3260 | AE147: 1590 | AF147: 5530 | AG147: 5580 | AH147: 4050 | AI147: 4990 | AJ147: 4350 | AK147: 7710 | AL147: 7180 | AM147: 9960 | AN147: 5940 | AO147: 6830 | AP147: 13050 | AQ147: 10720 | AR147: 15010 | AS147: 18040 | AT147: 15250 | AU147: 0 | AV147: 0 | AW147: 0 | AX147: 0 | AY147: 0 | AZ147: 0 | BA147: 0 | BB147: 0 | BC147: 0 | BD147: 0 | BE147: 0 | BF147: 0 | BG147: 0 | BH147: 0 | BI147: 0 | BJ147: 0 | BK147: 0 | BL147: 0 | BM147: 0 | BN147: 0
C148: 25 | D148: System Impact Fuel | E148: Operating Expense | F148: 2 | K148: 288722.2235 | L148: 923290 | P148: =P90*P119 -> 0 | Q148: 20470 | R148: 15710 | S148: 17950 | T148: 17960 | U148: 21500 | V148: 21490 | W148: 23490 | X148: 24830 | Y148: 25650 | Z148: 26480 | AA148: 26990 | AB148: 30670 | AC148: 29070 | AD148: 29260 | AE148: 30030 | AF148: 29240 | AG148: 31640 | AH148: 34150 | AI148: 35320 | AJ148: 34600 | AK148: 33970 | AL148: 36850 | AM148: 36590 | AN148: 40050 | AO148: 40390 | AP148: 40020 | AQ148: 42940 | AR148: 41660 | AS148: 42210 | AT148: 42110 | AU148: 0 | AV148: 0 | AW148: 0 | AX148: 0 | AY148: 0 | AZ148: 0 | BA148: 0 | BB148: 0 | BC148: 0 | BD148: 0 | BE148: 0 | BF148: 0 | BG148: 0 | BH148: 0 | BI148: 0 | BJ148: 0 | BK148: 0 | BL148: 0 | BM148: 0 | BN148: 0
D149: ="Total "&D123 -> Total Cash Flow, Escalated | K149: -211046.3646 | L149: -866807.6189 | P149: =SUM(P124:P148) -> 9516.463893 | Q149: 155369.2741 | R149: -18217.04272 | S149: -34683.34185 | T149: -40645.82834 | U149: -37107.67874 | V149: -44783.53154 | W149: -43231.06289 | X149: -42286.37204 | Y149: -38975.41924 | Z149: -44724.99164 | AA149: -43563.06596 | AB149: -40299.04212 | AC149: -29663.38518 | AD149: -22163.79786 | AE149: -24065.23 | AF149: -24040.61196 | AG149: -23481.1173 | AH149: -26763.56042 | AI149: -27050.05166 | AJ149: -31519.64759 | AK149: -28707.10773 | AL149: -34971.13834 | AM149: -34079.27044 | AN149: -39097.3466 | AO149: -41371.52503 | AP149: -40507.18338 | AQ149: -42490.19791 | AR149: -42775.71734 | AS149: -40994.02588 | AT149: -49435.06526 | AU149: 0 | AV149: =SUM(AV124:AV148) -> 0 | AW149: 0 | AX149: 0 | AY149: 0 | AZ149: 0 | BA149: 0 | BB149: 0 | BC149: 0 | BD149: 0 | BE149: 0 | BF149: 0 | BG149: 0 | BH149: 0 | BI149: 0 | BJ149: 0 | BK149: 0 | BL149: 0 | BM149: 0 | BN149: 0
D151: OPERATING EXPENSES / (SAVINGS)
D153: Operating Expenses / (Savings)
A154: Base | C154: =C153+1 -> 1 | D154: =INDEX(D$66:D$90,$C154,1) -> Acquired Inventory | E154: =INDEX(E$66:E$90,$C154,1) -> Capital | F154: 4 | K154: =SUMPRODUCT(P154:BN154,$P$14:$BN$14) -> 0 | L154: =SUM(P154:BN154) -> 0 | P154: =P124*($F154<=2) -> 0 | Q154: =Q124*($F154<=2) -> 0 | R154: 0 | S154: 0 | T154: 0 | U154: 0 | V154: 0 | W154: 0 | X154: 0 | Y154: 0 | Z154: 0 | AA154: 0 | AB154: 0 | AC154: 0 | AD154: 0 | AE154: 0 | AF154: 0 | AG154: 0 | AH154: 0 | AI154: 0 | AJ154: 0 | AK154: 0 | AL154: 0 | AM154: 0 | AN154: 0 | AO154: 0 | AP154: 0 | AQ154: 0 | AR154: 0 | AS154: 0 | AT154: 0 | AU154: 0 | AV154: 0 | AW154: 0 | AX154: 0 | AY154: 0 | AZ154: 0 | BA154: 0 | BB154: 0 | BC154: 0 | BD154: 0 | BE154: 0 | BF154: 0 | BG154: 0 | BH154: 0 | BI154: 0 | BJ154: 0 | BK154: 0 | BL154: 0 | BM154: 0 | BN154: 0
A155: Base | C155: =C154+1 -> 2 | D155: =INDEX(D$66:D$90,$C155,1) -> PP&E - Dist | E155: Capital | F155: 4 | K155: =SUMPRODUCT(P155:BN155,$P$14:$BN$14) -> 0 | L155: =SUM(P155:BN155) -> 0 | P155: =P125*($F155<=2) -> 0 | Q155: 0 | R155: 0 | S155: 0 | T155: 0 | U155: 0 | V155: 0 | W155: 0 | X155: 0 | Y155: 0 | Z155: 0 | AA155: 0 | AB155: 0 | AC155: 0 | AD155: 0 | AE155: 0 | AF155: 0 | AG155: 0 | AH155: 0 | AI155: 0 | AJ155: 0 | AK155: 0 | AL155: 0 | AM155: 0 | AN155: 0 | AO155: 0 | AP155: 0 | AQ155: 0 | AR155: 0 | AS155: 0 | AT155: 0 | AU155: 0 | AV155: 0 | AW155: 0 | AX155: 0 | AY155: 0 | AZ155: 0 | BA155: 0 | BB155: 0 | BC155: 0 | BD155: 0 | BE155: 0 | BF155: 0 | BG155: 0 | BH155: 0 | BI155: 0 | BJ155: 0 | BK155: 0 | BL155: 0 | BM155: 0 | BN155: 0
A156: Base | C156: 3 | D156: PP&E - Transmission | E156: Capital | F156: 4 | K156: 0 | L156: 0 | P156: =P126*($F156<=2) -> 0 | Q156: 0 | R156: 0 | S156: 0 | T156: 0 | U156: 0 | V156: 0 | W156: 0 | X156: 0 | Y156: 0 | Z156: 0 | AA156: 0 | AB156: 0 | AC156: 0 | AD156: 0 | AE156: 0 | AF156: 0 | AG156: 0 | AH156: 0 | AI156: 0 | AJ156: 0 | AK156: 0 | AL156: 0 | AM156: 0 | AN156: 0 | AO156: 0 | AP156: 0 | AQ156: 0 | AR156: 0 | AS156: 0 | AT156: 0 | AU156: 0 | AV156: 0 | AW156: 0 | AX156: 0 | AY156: 0 | AZ156: 0 | BA156: 0 | BB156: 0 | BC156: 0 | BD156: 0 | BE156: 0 | BF156: 0 | BG156: 0 | BH156: 0 | BI156: 0 | BJ156: 0 | BK156: 0 | BL156: 0 | BM156: 0 | BN156: 0
A157: Base | C157: 4 | D157: PP&E - General Plant | E157: Capital | F157: 4 | K157: 0 | L157: 0 | P157: =P127*($F157<=2) -> 0 | Q157: 0 | R157: 0 | S157: 0 | T157: 0 | U157: 0 | V157: 0 | W157: 0 | X157: 0 | Y157: 0 | Z157: 0 | AA157: 0 | AB157: 0 | AC157: 0 | AD157: 0 | AE157: 0 | AF157: 0 | AG157: 0 | AH157: 0 | AI157: 0 | AJ157: 0 | AK157: 0 | AL157: 0 | AM157: 0 | AN157: 0 | AO157: 0 | AP157: 0 | AQ157: 0 | AR157: 0 | AS157: 0 | AT157: 0 | AU157: 0 | AV157: 0 | AW157: 0 | AX157: 0 | AY157: 0 | AZ157: 0 | BA157: 0 | BB157: 0 | BC157: 0 | BD157: 0 | BE157: 0 | BF157: 0 | BG157: 0 | BH157: 0 | BI157: 0 | BJ157: 0 | BK157: 0 | BL157: 0 | BM157: 0 | BN157: 0
A158: Base | C158: 5 | D158: PP&E - Land (included in Trans and Dist) | E158: Land | F158: 3 | K158: 0 | L158: 0 | P158: =P128*($F158<=2) -> 0 | Q158: 0 | R158: 0 | S158: 0 | T158: 0 | U158: 0 | V158: 0 | W158: 0 | X158: 0 | Y158: 0 | Z158: 0 | AA158: 0 | AB158: 0 | AC158: 0 | AD158: 0 | AE158: 0 | AF158: 0 | AG158: 0 | AH158: 0 | AI158: 0 | AJ158: 0 | AK158: 0 | AL158: 0 | AM158: 0 | AN158: 0 | AO158: 0 | AP158: 0 | AQ158: 0 | AR158: 0 | AS158: 0 | AT158: 0 | AU158: 0 | AV158: 0 | AW158: 0 | AX158: 0 | AY158: 0 | AZ158: 0 | BA158: 0 | BB158: 0 | BC158: 0 | BD158: 0 | BE158: 0 | BF158: 0 | BG158: 0 | BH158: 0 | BI158: 0 | BJ158: 0 | BK158: 0 | BL158: 0 | BM158: 0 | BN158: 0
A159: Base | C159: 6 | D159: Asset Acquisition Adjustment | E159: Capital | F159: 4 | K159: 0 | L159: 0 | P159: =P129*($F159<=2) -> 0 | Q159: 0 | R159: 0 | S159: 0 | T159: 0 | U159: 0 | V159: 0 | W159: 0 | X159: 0 | Y159: 0 | Z159: 0 | AA159: 0 | AB159: 0 | AC159: 0 | AD159: 0 | AE159: 0 | AF159: 0 | AG159: 0 | AH159: 0 | AI159: 0 | AJ159: 0 | AK159: 0 | AL159: 0 | AM159: 0 | AN159: 0 | AO159: 0 | AP159: 0 | AQ159: 0 | AR159: 0 | AS159: 0 | AT159: 0 | AU159: 0 | AV159: 0 | AW159: 0 | AX159: 0 | AY159: 0 | AZ159: 0 | BA159: 0 | BB159: 0 | BC159: 0 | BD159: 0 | BE159: 0 | BF159: 0 | BG159: 0 | BH159: 0 | BI159: 0 | BJ159: 0 | BK159: 0 | BL159: 0 | BM159: 0 | BN159: 0
A160: Base | C160: 7 | D160: Lease Easement Indian River | E160: Operating Expense | F160: 2 | K160: 331.5909178 | L160: 1017.677971 | P160: =P130*($F160<=2) -> 0 | Q160: 23.552 | R160: 24.117248 | S160: 24.69606195 | T160: 25.28876744 | U160: 25.89569786 | V160: 26.51719461 | W160: 27.15360728 | X160: 27.80529385 | Y160: 28.4726209 | Z160: 29.15596381 | AA160: 29.85570694 | AB160: 30.5722439 | AC160: 31.30597776 | AD160: 32.05732122 | AE160: 32.82669693 | AF160: 33.61453766 | AG160: 34.42128656 | AH160: 35.24739744 | AI160: 36.09333498 | AJ160: 36.95957502 | AK160: 37.84660482 | AL160: 38.75492333 | AM160: 39.68504149 | AN160: 40.63748249 | AO160: 41.61278207 | AP160: 42.61148884 | AQ160: 43.63416457 | AR160: 44.68138452 | AS160: 45.75373775 | AT160: 46.85182746 | AU160: 0 | AV160: 0 | AW160: 0 | AX160: 0 | AY160: 0 | AZ160: 0 | BA160: 0 | BB160: 0 | BC160: 0 | BD160: 0 | BE160: 0 | BF160: 0 | BG160: 0 | BH160: 0 | BI160: 0 | BJ160: 0 | BK160: 0 | BL160: 0 | BM160: 0 | BN160: 0
A161: Base | C161: 8 | D161: Prepaid Easement Vero Beach | E161: Capital | F161: 4 | K161: 0 | L161: 0 | P161: =P131*($F161<=2) -> 0 | Q161: 0 | R161: 0 | S161: 0 | T161: 0 | U161: 0 | V161: 0 | W161: 0 | X161: 0 | Y161: 0 | Z161: 0 | AA161: 0 | AB161: 0 | AC161: 0 | AD161: 0 | AE161: 0 | AF161: 0 | AG161: 0 | AH161: 0 | AI161: 0 | AJ161: 0 | AK161: 0 | AL161: 0 | AM161: 0 | AN161: 0 | AO161: 0 | AP161: 0 | AQ161: 0 | AR161: 0 | AS161: 0 | AT161: 0 | AU161: 0 | AV161: 0 | AW161: 0 | AX161: 0 | AY161: 0 | AZ161: 0 | BA161: 0 | BB161: 0 | BC161: 0 | BD161: 0 | BE161: 0 | BF161: 0 | BG161: 0 | BH161: 0 | BI161: 0 | BJ161: 0 | BK161: 0 | BL161: 0 | BM161: 0 | BN161: 0
A162: Clause | C162: 9 | D162: OUC PPA Payment - Above Market | E162: Capital | F162: 4 | K162: 0 | L162: 0 | P162: =P132*($F162<=2) -> 0 | Q162: 0 | R162: 0 | S162: 0 | T162: 0 | U162: 0 | V162: 0 | W162: 0 | X162: 0 | Y162: 0 | Z162: 0 | AA162: 0 | AB162: 0 | AC162: 0 | AD162: 0 | AE162: 0 | AF162: 0 | AG162: 0 | AH162: 0 | AI162: 0 | AJ162: 0 | AK162: 0 | AL162: 0 | AM162: 0 | AN162: 0 | AO162: 0 | AP162: 0 | AQ162: 0 | AR162: 0 | AS162: 0 | AT162: 0 | AU162: 0 | AV162: 0 | AW162: 0 | AX162: 0 | AY162: 0 | AZ162: 0 | BA162: 0 | BB162: 0 | BC162: 0 | BD162: 0 | BE162: 0 | BF162: 0 | BG162: 0 | BH162: 0 | BI162: 0 | BJ162: 0 | BK162: 0 | BL162: 0 | BM162: 0 | BN162: 0
A163: SysImpClau | C163: 10 | D163: PPA Energy Savings | E163: Operating Savings | F163: 1 | K163: -5445.670607 | L163: -6310.722068 | P163: =P133*($F163<=2) -> 0 | Q163: -3250.640424 | R163: -3060.081644 | S163: 0 | T163: 0 | U163: 0 | V163: 0 | W163: 0 | X163: 0 | Y163: 0 | Z163: 0 | AA163: 0 | AB163: 0 | AC163: 0 | AD163: 0 | AE163: 0 | AF163: 0 | AG163: 0 | AH163: 0 | AI163: 0 | AJ163: 0 | AK163: 0 | AL163: 0 | AM163: 0 | AN163: 0 | AO163: 0 | AP163: 0 | AQ163: 0 | AR163: 0 | AS163: 0 | AT163: 0 | AU163: 0 | AV163: 0 | AW163: 0 | AX163: 0 | AY163: 0 | AZ163: 0 | BA163: 0 | BB163: 0 | BC163: 0 | BD163: 0 | BE163: 0 | BF163: 0 | BG163: 0 | BH163: 0 | BI163: 0 | BJ163: 0 | BK163: 0 | BL163: 0 | BM163: 0 | BN163: 0
A164: Base | C164: 11 | D164: Ongoing Distribution Capex | E164: Capital | F164: 4 | K164: 0 | L164: 0 | P164: =P134*($F164<=2) -> 0 | Q164: 0 | R164: 0 | S164: 0 | T164: 0 | U164: 0 | V164: 0 | W164: 0 | X164: 0 | Y164: 0 | Z164: 0 | AA164: 0 | AB164: 0 | AC164: 0 | AD164: 0 | AE164: 0 | AF164: 0 | AG164: 0 | AH164: 0 | AI164: 0 | AJ164: 0 | AK164: 0 | AL164: 0 | AM164: 0 | AN164: 0 | AO164: 0 | AP164: 0 | AQ164: 0 | AR164: 0 | AS164: 0 | AT164: 0 | AU164: 0 | AV164: 0 | AW164: 0 | AX164: 0 | AY164: 0 | AZ164: 0 | BA164: 0 | BB164: 0 | BC164: 0 | BD164: 0 | BE164: 0 | BF164: 0 | BG164: 0 | BH164: 0 | BI164: 0 | BJ164: 0 | BK164: 0 | BL164: 0 | BM164: 0 | BN164: 0
A165: Base | C165: 12 | D165: Ongoing Transmission Capex | E165: Capital | F165: 4 | K165: 0 | L165: 0 | P165: =P135*($F165<=2) -> 0 | Q165: 0 | R165: 0 | S165: 0 | T165: 0 | U165: 0 | V165: 0 | W165: 0 | X165: 0 | Y165: 0 | Z165: 0 | AA165: 0 | AB165: 0 | AC165: 0 | AD165: 0 | AE165: 0 | AF165: 0 | AG165: 0 | AH165: 0 | AI165: 0 | AJ165: 0 | AK165: 0 | AL165: 0 | AM165: 0 | AN165: 0 | AO165: 0 | AP165: 0 | AQ165: 0 | AR165: 0 | AS165: 0 | AT165: 0 | AU165: 0 | AV165: 0 | AW165: 0 | AX165: 0 | AY165: 0 | AZ165: 0 | BA165: 0 | BB165: 0 | BC165: 0 | BD165: 0 | BE165: 0 | BF165: 0 | BG165: 0 | BH165: 0 | BI165: 0 | BJ165: 0 | BK165: 0 | BL165: 0 | BM165: 0 | BN165: 0
A166: Base | C166: 13 | D166: Customer Serivce O&M | E166: Operating Expense | F166: 2 | K166: 9082.783589 | L166: 26364.19998 | P166: =P136*($F166<=2) -> 669.8774253 | Q166: 391.5766236 | R166: 990.4569161 | S166: 655.0719696 | T166: 614.5084152 | U166: 639.8671401 | V166: 655.8638186 | W166: 672.260414 | X166: 689.0669244 | Y166: 706.2935975 | Z166: 723.9509374 | AA166: 742.0497109 | AB166: 760.6009536 | AC166: 779.6159775 | AD166: 799.1063769 | AE166: 819.0840363 | AF166: 839.5611372 | AG166: 860.5501657 | AH166: 882.0639198 | AI166: 904.1155178 | AJ166: 926.7184057 | AK166: 949.8863659 | AL166: 973.633525 | AM166: 997.9743632 | AN166: 1022.923722 | AO166: 1048.496815 | AP166: 1074.709236 | AQ166: 1101.576967 | AR166: 1129.116391 | AS166: 1157.3443 | AT166: 1186.277908 | AU166: 0 | AV166: 0 | AW166: 0 | AX166: 0 | AY166: 0 | AZ166: 0 | BA166: 0 | BB166: 0 | BC166: 0 | BD166: 0 | BE166: 0 | BF166: 0 | BG166: 0 | BH166: 0 | BI166: 0 | BJ166: 0 | BK166: 0 | BL166: 0 | BM166: 0 | BN166: 0
A167: Base | C167: 14 | D167: Ongoing Distribution O&M | E167: Operating Expense | F167: 2 | K167: 33093.39769 | L167: 86137.41046 | P167: =P137*($F167<=2) -> 183.1045444 | Q167: 5464.581571 | R167: 7063.241469 | S167: 2359.566982 | T167: 2362.315379 | U167: 1993.901913 | V167: 1848.05727 | W167: 1904.461301 | X167: 1962.630536 | Y167: 2022.621473 | Z167: 2084.492455 | AA167: 2148.30373 | AB167: 2214.117513 | AC167: 2281.998052 | AD167: 2352.011697 | AE167: 2424.226967 | AF167: 2498.714624 | AG167: 2575.547748 | AH167: 2654.801813 | AI167: 2736.554765 | AJ167: 2820.887108 | AK167: 2907.881986 | AL167: 2870.009066 | AM167: 2958.76097 | AN167: 3050.326731 | AO167: 3144.797522 | AP167: 3242.267524 | AQ167: 3342.834028 | AR167: 3446.597538 | AS167: 3553.66188 | AT167: 3664.134309 | AU167: 0 | AV167: 0 | AW167: 0 | AX167: 0 | AY167: 0 | AZ167: 0 | BA167: 0 | BB167: 0 | BC167: 0 | BD167: 0 | BE167: 0 | BF167: 0 | BG167: 0 | BH167: 0 | BI167: 0 | BJ167: 0 | BK167: 0 | BL167: 0 | BM167: 0 | BN167: 0
A168: Base | C168: 15 | D168: Ongoing Transmission O&M | E168: Operating Expense | F168: 2 | K168: 11908.57064 | L168: 35416.51462 | P168: =P138*($F168<=2) -> 95 | Q168: 294.6496406 | R168: 1770.64549 | S168: 956.4515342 | T168: 937.2255144 | U168: 980.6374284 | V168: 893.1174397 | W168: 989.9911532 | X168: 939.7589649 | Y168: 956.4351492 | Z168: 978.6386386 | AA168: 1003.104605 | AB168: 1028.18222 | AC168: 1053.886775 | AD168: 1080.233945 | AE168: 1107.239793 | AF168: 1134.920788 | AG168: 1163.293808 | AH168: 1192.376153 | AI168: 1222.185557 | AJ168: 1252.740196 | AK168: 1284.0587 | AL168: 1316.160168 | AM168: 1349.064172 | AN168: 1382.790777 | AO168: 1417.360546 | AP168: 1452.79456 | AQ168: 1489.114424 | AR168: 1526.342284 | AS168: 1564.500841 | AT168: 1603.613362 | AU168: 0 | AV168: 0 | AW168: 0 | AX168: 0 | AY168: 0 | AZ168: 0 | BA168: 0 | BB168: 0 | BC168: 0 | BD168: 0 | BE168: 0 | BF168: 0 | BG168: 0 | BH168: 0 | BI168: 0 | BJ168: 0 | BK168: 0 | BL168: 0 | BM168: 0 | BN168: 0
A169: Base | C169: 16 | D169: Dark Fiber Lease | E169: Operating Expense | F169: 2 | K169: 2479.723386 | L169: 7610.461352 | P169: =P139*($F169<=2) -> 0 | Q169: 176.128 | R169: 180.355072 | S169: 184.6835937 | T169: 189.116 | U169: 193.654784 | V169: 198.3024988 | W169: 203.0617588 | X169: 207.935241 | Y169: 212.9256868 | Z169: 218.0359032 | AA169: 223.2687649 | AB169: 228.6272153 | AC169: 234.1142684 | AD169: 239.7330109 | AE169: 245.4866031 | AF169: 251.3782816 | AG169: 257.4113604 | AH169: 263.589233 | AI169: 269.9153746 | AJ169: 276.3933436 | AK169: 283.0267839 | AL169: 289.8194267 | AM169: 296.7750929 | AN169: 303.8976951 | AO169: 311.1912398 | AP169: 318.6598296 | AQ169: 326.3076655 | AR169: 334.1390495 | AS169: 342.1583866 | AT169: 350.3701879 | AU169: 0 | AV169: 0 | AW169: 0 | AX169: 0 | AY169: 0 | AZ169: 0 | BA169: 0 | BB169: 0 | BC169: 0 | BD169: 0 | BE169: 0 | BF169: 0 | BG169: 0 | BH169: 0 | BI169: 0 | BJ169: 0 | BK169: 0 | BL169: 0 | BM169: 0 | BN169: 0
A170: Clause | C170: 17 | D170: OUC PPA Payment - At Market | E170: Operating Expense | F170: 2 | K170: 7033.501999 | L170: 8160 | P170: =P140*($F170<=2) -> 0 | Q170: 4080 | R170: 4080 | S170: 0 | T170: 0 | U170: 0 | V170: 0 | W170: 0 | X170: 0 | Y170: 0 | Z170: 0 | AA170: 0 | AB170: 0 | AC170: 0 | AD170: 0 | AE170: 0 | AF170: 0 | AG170: 0 | AH170: 0 | AI170: 0 | AJ170: 0 | AK170: 0 | AL170: 0 | AM170: 0 | AN170: 0 | AO170: 0 | AP170: 0 | AQ170: 0 | AR170: 0 | AS170: 0 | AT170: 0 | AU170: 0 | AV170: 0 | AW170: 0 | AX170: 0 | AY170: 0 | AZ170: 0 | BA170: 0 | BB170: 0 | BC170: 0 | BD170: 0 | BE170: 0 | BF170: 0 | BG170: 0 | BH170: 0 | BI170: 0 | BJ170: 0 | BK170: 0 | BL170: 0 | BM170: 0 | BN170: 0
A171: Base | C171: 18 | D171: Transaction Cost | E171: Operating Expense | F171: 2 | K171: 722.5662317 | L171: 750 | P171: =P141*($F171<=2) -> 750 | Q171: 0 | R171: 0 | S171: 0 | T171: 0 | U171: 0 | V171: 0 | W171: 0 | X171: 0 | Y171: 0 | Z171: 0 | AA171: 0 | AB171: 0 | AC171: 0 | AD171: 0 | AE171: 0 | AF171: 0 | AG171: 0 | AH171: 0 | AI171: 0 | AJ171: 0 | AK171: 0 | AL171: 0 | AM171: 0 | AN171: 0 | AO171: 0 | AP171: 0 | AQ171: 0 | AR171: 0 | AS171: 0 | AT171: 0 | AU171: 0 | AV171: 0 | AW171: 0 | AX171: 0 | AY171: 0 | AZ171: 0 | BA171: 0 | BB171: 0 | BC171: 0 | BD171: 0 | BE171: 0 | BF171: 0 | BG171: 0 | BH171: 0 | BI171: 0 | BJ171: 0 | BK171: 0 | BL171: 0 | BM171: 0 | BN171: 0
A172: SysImpClau | C172: 19 | D172: System Impact Short Term PPAs | E172: Operating Expense | F172: 2 | K172: 6296.937947 | L172: 10438.78162 | P172: =P142*($F172<=2) -> 0 | Q172: 2920.05 | R172: 875.2425 | S172: 0 | T172: 0 | U172: 0 | V172: 0 | W172: 0 | X172: 0 | Y172: 3542.459194 | Z172: 0 | AA172: 0 | AB172: 3101.029929 | AC172: 0 | AD172: 0 | AE172: 0 | AF172: 0 | AG172: 0 | AH172: 0 | AI172: 0 | AJ172: 0 | AK172: 0 | AL172: 0 | AM172: 0 | AN172: 0 | AO172: 0 | AP172: 0 | AQ172: 0 | AR172: 0 | AS172: 0 | AT172: 0 | AU172: 0 | AV172: 0 | AW172: 0 | AX172: 0 | AY172: 0 | AZ172: 0 | BA172: 0 | BB172: 0 | BC172: 0 | BD172: 0 | BE172: 0 | BF172: 0 | BG172: 0 | BH172: 0 | BI172: 0 | BJ172: 0 | BK172: 0 | BL172: 0 | BM172: 0 | BN172: 0
A173: Base | C173: 20 | D173: Customer Service Capital | E173: Capital | F173: 4 | K173: 0 | L173: 0 | P173: =P143*($F173<=2) -> 0 | Q173: 0 | R173: 0 | S173: 0 | T173: 0 | U173: 0 | V173: 0 | W173: 0 | X173: 0 | Y173: 0 | Z173: 0 | AA173: 0 | AB173: 0 | AC173: 0 | AD173: 0 | AE173: 0 | AF173: 0 | AG173: 0 | AH173: 0 | AI173: 0 | AJ173: 0 | AK173: 0 | AL173: 0 | AM173: 0 | AN173: 0 | AO173: 0 | AP173: 0 | AQ173: 0 | AR173: 0 | AS173: 0 | AT173: 0 | AU173: 0 | AV173: 0 | AW173: 0 | AX173: 0 | AY173: 0 | AZ173: 0 | BA173: 0 | BB173: 0 | BC173: 0 | BD173: 0 | BE173: 0 | BF173: 0 | BG173: 0 | BH173: 0 | BI173: 0 | BJ173: 0 | BK173: 0 | BL173: 0 | BM173: 0 | BN173: 0
A174: Fuel Rev | C174: 21 | D174: Vero Revenue - Fuel Other Clauses | E174: Operating Savings | F174: 1 | K174: -340992.774 | L174: -1100009.169 | P174: =P144*($F174<=2) -> 0 | Q174: -24110.91118 | R174: -24325.83336 | S174: -24717.41819 | T174: -24479.59397 | U174: -25069.27611 | V174: -25330.02023 | W174: -25509.09482 | X174: -26393.11091 | Y174: -27221.37447 | Z174: -28050.02119 | AA174: -29044.356 | AB174: -30146.494 | AC174: -31155.10025 | AD174: -32232.92862 | AE174: -33254.21835 | AF174: -34315.9789 | AG174: -35818.77783 | AH174: -38447.25809 | AI174: -39964.42517 | AJ174: -41291.90487 | AK174: -42413.01757 | AL174: -43723.74892 | AM174: -45137.77681 | AN174: -45767.91702 | AO174: -48693.58217 | AP174: -50946.10063 | AQ174: -52564.04546 | AR174: -54521.42933 | AS174: -56803.08338 | AT174: -58560.37166 | AU174: 0 | AV174: 0 | AW174: 0 | AX174: 0 | AY174: 0 | AZ174: 0 | BA174: 0 | BB174: 0 | BC174: 0 | BD174: 0 | BE174: 0 | BF174: 0 | BG174: 0 | BH174: 0 | BI174: 0 | BJ174: 0 | BK174: 0 | BL174: 0 | BM174: 0 | BN174: 0
A175: Base Rev | C175: 22 | D175: Vero Revenue - Base Rates | E175: Operating Savings | F175: 1 | K175: -648838.9718 | L175: -1984594.234 | P175: =P145*($F175<=2) -> 0 | Q175: -43166.57906 | R175: -44239.10127 | S175: -44557.86806 | T175: -49521.99921 | U175: -53379.33776 | V175: -54393.39733 | W175: -55397.90657 | X175: -56405.34673 | Y175: -57414.6021 | Z175: -59034.87671 | AA175: -60243.49797 | AB175: -61067.19789 | AC175: -62058.51976 | AD175: -63451.96509 | AE175: -65007.10988 | AF175: -66617.08947 | AG175: -67662.1304 | AH175: -69563.6618 | AI175: -71452.715 | AJ175: -72781.26539 | AK175: -74001.95099 | AL175: -75736.32388 | AM175: -76876.7217 | AN175: -78367.25416 | AO175: -79963.93173 | AP175: -81899.44238 | AQ175: -82989.0505 | AR175: -84502.14558 | AS175: -85626.52498 | AT175: -87214.72039 | AU175: 0 | AV175: 0 | AW175: 0 | AX175: 0 | AY175: 0 | AZ175: 0 | BA175: 0 | BB175: 0 | BC175: 0 | BD175: 0 | BE175: 0 | BF175: 0 | BG175: 0 | BH175: 0 | BI175: 0 | BJ175: 0 | BK175: 0 | BL175: 0 | BM175: 0 | BN175: 0
A176: SysImpBase | C176: 23 | D176: System Impact Fixed Cost | E176: Operating Expense | F176: 2 | K176: 83118.90092 | L176: 399532.3655 | P176: =P146*($F176<=2) -> 0 | Q176: 0 | R176: 0 | S176: 0 | T176: 0 | U176: 0 | V176: 0 | W176: 0 | X176: 0 | Y176: 0 | Z176: 0 | AA176: 0 | AB176: 0 | AC176: 15073.40616 | AD176: 23246.24107 | AE176: 24297.94611 | AF176: 23305.26752 | AG176: 23407.34309 | AH176: 23102.93266 | AI176: 23523.44927 | AJ176: 22462.90806 | AK176: 24261.9619 | AL176: 24429.68949 | AM176: 24883.79809 | AN176: 22059.90047 | AO176: 22576.81604 | AP176: 21262.72379 | AQ176: 20865.11058 | AR176: 20491.74031 | AS176: 21534.45214 | AT176: 18746.67878 | AU176: 0 | AV176: 0 | AW176: 0 | AX176: 0 | AY176: 0 | AZ176: 0 | BA176: 0 | BB176: 0 | BC176: 0 | BD176: 0 | BE176: 0 | BF176: 0 | BG176: 0 | BH176: 0 | BI176: 0 | BJ176: 0 | BK176: 0 | BL176: 0 | BM176: 0 | BN176: 0
A177: SysImpClau | C177: 24 | D177: System Impact VOM, Emissions | E177: Operating Expense | F177: 2 | K177: 25423.5086 | L177: 144720 | P177: =P147*($F177<=2) -> 0 | Q177: 260 | R177: 240 | S177: 270 | T177: -220 | U177: 520 | V177: -470 | W177: -320 | X177: -50 | Y177: 370 | Z177: 70 | AA177: 2460 | AB177: 390 | AC177: 2160 | AD177: 3260 | AE177: 1590 | AF177: 5530 | AG177: 5580 | AH177: 4050 | AI177: 4990 | AJ177: 4350 | AK177: 7710 | AL177: 7180 | AM177: 9960 | AN177: 5940 | AO177: 6830 | AP177: 13050 | AQ177: 10720 | AR177: 15010 | AS177: 18040 | AT177: 15250 | AU177: 0 | AV177: 0 | AW177: 0 | AX177: 0 | AY177: 0 | AZ177: 0 | BA177: 0 | BB177: 0 | BC177: 0 | BD177: 0 | BE177: 0 | BF177: 0 | BG177: 0 | BH177: 0 | BI177: 0 | BJ177: 0 | BK177: 0 | BL177: 0 | BM177: 0 | BN177: 0
A178: SysImpClau | C178: 25 | D178: System Impact Fuel | E178: Operating Expense | F178: 2 | K178: 288722.2235 | L178: 923290 | P178: =P148*($F178<=2) -> 0 | Q178: 20470 | R178: 15710 | S178: 17950 | T178: 17960 | U178: 21500 | V178: 21490 | W178: 23490 | X178: 24830 | Y178: 25650 | Z178: 26480 | AA178: 26990 | AB178: 30670 | AC178: 29070 | AD178: 29260 | AE178: 30030 | AF178: 29240 | AG178: 31640 | AH178: 34150 | AI178: 35320 | AJ178: 34600 | AK178: 33970 | AL178: 36850 | AM178: 36590 | AN178: 40050 | AO178: 40390 | AP178: 40020 | AQ178: 42940 | AR178: 41660 | AS178: 42210 | AT178: 42110 | AU178: 0 | AV178: 0 | AW178: 0 | AX178: 0 | AY178: 0 | AZ178: 0 | BA178: 0 | BB178: 0 | BC178: 0 | BD178: 0 | BE178: 0 | BF178: 0 | BG178: 0 | BH178: 0 | BI178: 0 | BJ178: 0 | BK178: 0 | BL178: 0 | BM178: 0 | BN178: 0
D179: ="Total "&D153 -> Total Operating Expenses / (Savings) | K179: -527063.7109 | L179: -1447476.714 | P179: =SUM(P154:P178) -> 1697.98197 | Q179: -36447.59284 | R179: -40690.95758 | S179: -46874.8161 | T179: -52133.13911 | U179: -52594.65691 | V179: -55081.55934 | W179: -53940.07316 | X179: -54191.26068 | Y179: -51146.76886 | Z179: -56500.624 | AA179: -55691.27145 | AB179: -52790.56181 | AC179: -42529.2928 | AD179: -35415.51029 | AE179: -37714.51803 | AF179: -38099.61148 | AG179: -37962.34077 | AH179: -41679.90872 | AI179: -42414.82635 | AJ179: -47346.56356 | AK179: -45010.30622 | AL179: -45512.00621 | AM179: -44938.44078 | AN179: -50284.6943 | AO179: -52897.23896 | AP179: -52381.77659 | AQ179: -54724.51814 | AR179: -55380.95795 | AS179: -53981.73707 | AT179: -62817.16567 | AU179: 0 | AV179: =SUM(AV154:AV178) -> 0 | AW179: 0 | AX179: 0 | AY179: 0 | AZ179: 0 | BA179: 0 | BB179: 0 | BC179: 0 | BD179: 0 | BE179: 0 | BF179: 0 | BG179: 0 | BH179: 0 | BI179: 0 | BJ179: 0 | BK179: 0 | BL179: 0 | BM179: 0 | BN179: 0
D182: BOOK RATE BASE CALCULATIONS
D184: Book Capital Placed in Service | H184: Book Life | I184: COD | J184: AFUDC
